{"text_format":"1","workbook":"xlsx","n_sheets":5,"sheets":["Financial Analysis Worksheet","Rental Property","Standards","Counties","Sheet1"],"not_rendered":{"charts":0,"images":0,"macros":1,"external_links":0,"defined_names":67,"comments":0,"pivot_tables":0},"unopened":[],"bounds":{"document_bytes":16777216,"sheet_cells":100000,"rows_first":2000,"rows_last":500,"rows_between":2000,"halvings":0,"cell_chars":16384,"cell_head_chars":4096},"cells_cut":0,"cells_raw":0,"read":"whole","date_system":"1900"}

{"sheet":"Financial Analysis Worksheet","index":0,"n_rows":92,"n_cols":26,"rows_kept":92,"cut":false,"hidden":false,"merged":[[34,23,35,24],[55,21,59,21],[40,8,42,9]]}
[]
[]
[]
[]
[]
[null,null,null,null,null,null,null,null,null,null,null,null,null,null,null,null,{"$f":"IF(J38<1,0,VLOOKUP(J36&\"-\"&J37,Standards!D:I,IF(J38>5,6,INDIRECT(\"$J$38\")+1),FALSE))","v":0}]
[]
[]
[]
[]
[]
[]
[]
[]
[]
[]
[]
[]
[]
[]
[]
[]
[]
[]
[]
[]
[]
[]
[]
[]
[]
[]
[]
["Total ",null,{"$f":"IF(F34=\"CLIENT\",(C27+C28+C29+C30+C31+C32+C33),0)","v":0},{"$f":"IF(F34=\"SPOUSE\",(E27+E28+E29+E30+E31+E32+E33), 0)","v":0},{"$f":"IF(C35>0,(D35/(C27+C28+C29+C30+C31+C32+C33+E27+E28+E29+E30+E31+E32+E33)),G35)","v":1},{"$f":"IF(G26=2,\"SPOUSE\",IF(G26=3,\"CLIENT\",IF(G26=4,\"crap\",FALSE)))","v":false},null,null,"FINANCIAL ANALYSIS WORKSHEET",null,null,null,null,null,null,null,null,null,null,null,null,null,null,{"$f":"IF(V62>0, X62, \"ALL HOUSING AND UTILITY                          EXPENSES MUST BE DOCUMENTED!\")","v":"ALL HOUSING AND UTILITY                          EXPENSES MUST BE DOCUMENTED!"},null,"Gross Wages"]
[null,null,{"$f":"C34+D34","v":0},{"$f":"(C27+C28+C29+C30+C31+C32+C33+E27+E28+E29+E30+E31+E32+E33)-C35","v":0},null,null,{"$f":"IF(G26=4, 0.5, 1)","v":1},null,"HOUSEHOLD INFORMATION",null,null,null,null,null,null,null,null,null,null,null,null,"Total Expenses",null,{"$f":"IF(ISERROR(X34), \"\", X34)","v":"ALL HOUSING AND UTILITY                          EXPENSES MUST BE DOCUMENTED!"},null,"Net Business Income"]
[null,null,null,null,null,null,null,null,"State     ",null,null,null,null,null,null,null,null,null,null,null,null,{"$f":"IFERROR(J45+J60+J61+J51+J70+J77+X44+X45, 0)","v":0},null,null,null,"Other Income (Net)"]
[null,null,null,null,null,null,null,null,"County     ",null,null,null,null,null,null,null,null,null,null,null,null,"Total Income",null,null,null,"Retirement / Social Security"]
[null,null,null,null,null,null,null,null,"Number in household     ",0,null,null,null,null,null,null,null,null,null,null,null,{"$f":"V43+X43+Y43","v":0},null,null,null,"Select Income Type"]
[null,null,null,null,null,null,null,null,"Number in household > 65     ",0,null,null,null,null,null,null,null,null,null,null,null,{"$f":"IF(X40>0, \"Est. Payment Range\", \"Estimated Payment\")","v":"Estimated Payment"}]
[null,null,null,null,null,null,null,null,"Number of ELIGIBLE vehicles     ",0,null,null,null,null,null,null,null,null,null,null,null,{"$f":"IF((V43+X43+Y43)>(V36-X40), IF(X40>0, \"$\"&ROUND((V38-V36), 0)&\"  -  \"&\"$\"&(V38-V36+X40), ROUND((V38-V36), 0)), (V38-V36+X40))","v":0},null,{"$f":"IF(V53>Standards!P13, (V53-Standards!P13), 0)+IF(V54>Standards!P13, (V54-Standards!P13), 0)+IF(V61>Q6, (V61-Q6), 0)+J77","v":0}]
[null,null,null,null,null,null,null,"Notes: "]
["Monthly Disposable Income Calculation",null,null,null,null,null,null,null,null,null,null,null,null,null,null,null,null,null,null,null,null,"Select Income Type",null,"Select Income Type","Select Income Type"]
["Expenses",null,null,null,null,null,"Actual","IRS",null,null,null,null,null,null,null,null,null,null,null,null,null,0,null,0,0]
["Food, Clothing, Misc ",{"$f":"H44","v":0},null,null,null,null,{"$f":"(H44)*E34","v":0},{"$f":"IF(H3<1, 0, IF(H3=1,565,IF(H3=2,1029, IF(H3=3,1227,IF(H3=4,1450,(((H3-4)*281)+1450))))))","v":0},"MONTHLY EXPENSES",null,null,null,null,null,null,null,null,null,null,null,null,"Total Tax Withheld:  ",null,0]
["Housing and Utilities",{"$f":"H45","v":0},null,null,null,null,{"$f":"SUM(C24+G24)*E34","v":0},{"$f":"IF(H3>0, (Q5*E34), 0)","v":0},"1. Food, Clothing, Misc.",{"$f":"SUM(J46:J50)","v":0},null,null,null,null,null,null,null,null,null,null,null,"Estimated Tax Payments:  ",null,0]
["Vehicle Ownership Costs",0,null,null,null,null,{"$f":"SUM(Q15:Q16)*E34","v":0},{"$f":"IF((T12*E34)>T12, (T12*E34), T12)","v":0},"Food:",{"$f":"IFERROR(ROUND(IF($J$38<5,VLOOKUP(LEFT(I46,LEN(I46)-1),Standards!O:T,(INDIRECT(\"$J$38\")+1),FALSE),(($J$38-4)*(Standards!$T$2/5))+Standards!$S2), 0), 0)","v":0}]
["Vehicle Operating Costs",0,null,null,null,null,{"$f":"IF(J24>H47,J24,H47)*E34","v":0},{"$f":"IF(ISERROR(P47),0,P47)*E34","v":0},"Housekeeping Supplies:",{"$f":"IFERROR(ROUND(IF($J$38<5,VLOOKUP(LEFT(I47,LEN(I47)-1),Standards!O:T,(INDIRECT(\"$J$38\")+1),FALSE),(($J$38-4)*(Standards!$T$2/5))+Standards!$S3), 0), 0)","v":0}]
["Health Care",0,null,null,null,null,{"$f":"N24","v":0},{"$f":"G48","v":0},"Apparel & services:",{"$f":"IFERROR(ROUND(IF($J$38<5,VLOOKUP(LEFT(I48,LEN(I48)-1),Standards!O:T,(INDIRECT(\"$J$38\")+1),FALSE),(($J$38-4)*(Standards!$T$2/5))+Standards!$S4), 0), 0)","v":0}]
["Out of Pocket Health Care Costs",0,null,null,null,null,{"$f":"IF(N33>H49,N33,H49)","v":0},{"$f":"(((J38-J39)*54)+(J39*130))*E34","v":0},"Personal Care Products & Services:",{"$f":"IFERROR(ROUND(IF($J$38<5,VLOOKUP(LEFT(I49,LEN(I49)-1),Standards!O:T,(INDIRECT(\"$J$38\")+1),FALSE),(($J$38-4)*(Standards!$T$2/5))+Standards!$S5), 0), 0)","v":0}]
["Taxes",null,null,null,null,null,{"$f":"(J33)","v":0},{"$f":"G50","v":0},"Miscellaneous:",{"$f":"IFERROR(ROUND(IF($J$38<5,VLOOKUP(LEFT(I50,LEN(I50)-1),Standards!O:T,(INDIRECT(\"$J$38\")+1),FALSE),(($J$38-4)*(Standards!$T$2/5))+Standards!$S6), 0), 0)","v":0}]
["Court Mandated(Child Support)",null,null,null,null,null,0,0,"2. Transportation",{"$f":"SUM(J52:J54)","v":0}]
["Dependant Care",null,null,null,null,null,0,0,"Gas/Insurance/Licenses/Parking/ Maintenance etc.:",{"$f":"IF(J40<1, 0, VLOOKUP(VLOOKUP(J36&\"-\"&J37, Standards!D:J, 7, FALSE), Standards!Y:AA, (INDIRECT(\"$J$40\")+1), FALSE))","v":0},null,null,null,null,null,null,null,null,null,null,null,"Auto Payments"]
["Life Insurance ",null,null,null,null,null,0,0,"Public Transportation:",{"$f":"IF(OR(J40>0, J38=0), 0, Standards!P10)","v":0},null,null,null,null,null,null,null,null,null,null,null,0,null,{"$f":"IF(V53>Standards!P13, \"  Payment Must Be Documented\", \"\")","v":""}]
["Life Insurance ",null,null,null,null,null,0,0,"Auto Payments",{"$f":"IF(J40=1,V53,IF(J40=2,SUM(V53:V54),0))","v":0},null,null,null,null,null,null,null,null,null,null,null,0,null,{"$f":"IF(V54>Standards!P13, \"  Payment Must Be Documented\", \"\")","v":""}]
[null,null,null,null,null,null,0,0,"3. Housing & Utilities",{"$f":"J60","v":0}]
[null,null,null,null,null,null,0,0,"Rent / Mortgage:",0,null,null,null,null,null,null,null,null,null,null,null,"ALL EXPENSES FOR THIS CATEGORY MUST BE DOCUMENTED"]
[null,null,null,null,null,null,0,0,"Electric, Oil/Gas, Water/Trash:",0]
[null,null,null,null,null,null,0,0,"Telephone/Cell/Cable/Internet:",0]
[null,null,null,null,null,null,0,0,"Real Estate Taxes and Insurance: (if not included in B above)",0]
[null,null,null,null,null,null,null,null,{"$f":"\"Total:  \"&\"(The Standard is $\"&(Q6)&\")\"","v":"Total:  (The Standard is $0)"},{"$f":"IF(SUM(J56:J59)>0,SUM(J56:J59),IF(J38<1,0,VLOOKUP(J36&\"-\"&J37,Standards!D:I,IF(J38>5,6,INDIRECT(\"$J$38\")+1),FALSE)))","v":0}]
[null,null,null,null,null,null,null,null,"4. Medical",{"$f":"SUM(J63:J69)","v":0},null,null,null,null,null,null,null,null,null,null,null,{"$f":"SUM(J56:J59)","v":0},null,{"$f":"IF(V62>0, X62, \"You're over\")","v":"You're over"}]
[null,null,null,null,null,null,0,0,"Health Insurance:",{"$f":"J64+J65+J66","v":0},null,null,null,null,null,null,null,null,null,null,null,{"$f":"Q6-V61","v":0},null,{"$f":"IF(V61<>0,\"You are $\"& V62 & \" below the Housing and Utility Standard!\", \"Based on the Housing & Utility Standard, not actual expenses!\")","v":"Based on the Housing & Utility Standard, not actual expenses!"}]
["Total Expense",null,null,null,null,null,{"$f":"SUM(G44:G62)","v":0},{"$f":"SUM(H44:H62)","v":0},"Out of Pocket Health Care Expenses:",{"$f":"(J38-J39)*Standards!P17+(J39*Standards!P18)","v":0}]
[{"$f":"IF((D35-G63)<0, \"Case appears to be CNC\", \"Actual Monthly Disposable Income\")","v":"Actual Monthly Disposable Income"},null,null,null,null,null,{"$f":"IF(N43=1, ((D35-G63)-N63), (D35-G63))","v":0},{"$f":"IF(N43=1, \"  This figure INCLUDES Conditional Expenses\", \"  This figure EXCLUDES Conditional Expenses\")","v":"  This figure EXCLUDES Conditional Expenses"},"Medical Insurance",0]
["Total Amount Client is Over Standards",null,null,null,null,null,{"$f":"SUM(G44:G47)-SUM(H44:H47)","v":0},null,"Dental Insurance",0]
[null,null,null,null,"Ideal Payment Based on 6 Year Rule",null,null,null,"Vision Insurance",0]
[null,null,null,null,"Client's Stated MDI (from deal-out sheet)",null,null,null,"Long Term Disability Insurance",0]
[null,"NOTES:",null,null,null,null,null,null,"Short Term Disability Insurance",0]
[null,null,null,null,null,null,null,null,"TERM Life Insurance",0]
[null,null,null,null,null,null,null,null,"5. Additional Allowable Expenses",{"$f":"SUM(J71:J76)","v":0}]
[null,null,null,null,null,null,null,null,"Delinquent State Tax Payments",0]
[null,null,null,null,null,null,null,null,"Retirement Contributions (Required)",0]
[null,null,null,null,null,null,null,null,{"$f":"(\"Medical / Prescription costs (over the standard of $\"&J63&\")\")","v":"Medical / Prescription costs (over the standard of $0)"},0,null,null,null,null,null,null,null,null,null,null,null,{"$f":"IF(J73>0, \"This expense must be documented\", \"\")","v":""}]
[null,null,null,null,null,null,null,null,"Other",0]
[null,null,null,null,null,null,null,null,"Other",0]
[null,null,null,null,null,null,null,null,"Other",0]
[null,null,null,null,null,null,null,null,"6. Conditional Expenses",{"$f":"SUM(J78:J92)","v":0}]
[null,null,null,null,null,null,null,null,"Retirement Contributions (Voluntary)",0]
[null,null,null,null,null,null,null,null,"Other",0]
[null,null,null,null,null,null,null,null,"Other",0]
[null,null,null,null,null,null,null,null,"Other",0]
[null,null,null,null,null,null,null,null,"Other",0]
[null,null,null,null,null,null,null,null,"Other",0]
[null,null,null,null,null,null,null,null,"Other",0]
[null,null,null,null,null,null,null,null,"Other",0]
[null,null,null,null,null,null,null,null,"Other",0]
[null,null,null,null,null,null,null,null,"Other",0]
[null,null,null,null,null,null,null,null,"Other",0]
[null,null,null,null,null,null,null,null,"Other",0]
[null,null,null,null,null,null,null,null,"Other",0]
[null,null,null,null,null,null,null,null,"Other",0]
[null,null,null,null,null,null,null,null,"Other",0]

{"sheet":"Rental Property","index":1,"n_rows":20,"n_cols":11,"rows_kept":20,"cut":false,"hidden":true,"merged":[[1,1,1,10]]}
[]
[null,"Rental Property"]
[null,null,"Purchase Date","Purchase Price","Final Payment","Amount Owed","Payment Amount","Current Value","PropTax/HOI/Fees","Monthly Rental Income","Income/Loss"]
[null,"Rental Property",null,null,null,null,null,null,null,null,{"$f":"J4-G4-I4","v":0}]
[null,"Rental Property",null,null,null,null,null,null,null,null,{"$f":"J5-G5-I5","v":0}]
[null,"Rental Property",null,null,null,null,null,null,null,null,0]
[null,"Rental Property",null,null,null,null,null,null,null,null,0]
[null,"Rental Property",null,null,null,null,null,null,null,null,0]
[null,"Rental Property",null,null,null,null,null,null,null,null,0]
[null,"Rental Property",null,null,null,null,null,null,null,null,0]
[null,"Rental Property",null,null,null,null,null,null,null,null,0]
[null,"Rental Property",null,null,null,null,null,null,null,null,0]
[null,"Rental Property",null,null,null,null,null,null,null,null,0]
[null,"Rental Property",null,null,null,null,null,null,null,null,0]
[null,"Rental Property",null,null,null,null,null,null,null,null,0]
[null,"Rental Property",null,null,null,null,null,null,null,null,0]
[null,"Rental Property",null,null,null,null,null,null,null,null,0]
[null,"Rental Property",null,null,null,null,null,null,null,null,0]
[null,null,null,null,null,null,null,null,null,null,0]
[null,null,null,null,null,null,null,null,null,"TOTAL",{"$f":"SUM(K4:K19)","v":0}]

{"sheet":"Standards","index":2,"n_rows":3223,"n_cols":67,"rows_kept":3223,"cut":false,"hidden":true,"merged":[]}
[null,null,null,null,null,null,null,null,null,null,null,null,null,null,"Expense","One Person","Two Persons","Three Persons","Four Persons","Over Four",null,"Eligible Vehicles",null,null,"Atlanta",229,458,null,null,null,null,null,null,null,null,null,null,null,null,null,null,null,null,null,null,null,null,null,null,null,null,null,null,null,null,null,null,null,null,null,null,null,null,null,null,null,"1)      Bank Information:"]
[null,"State","County","state & County","Housing and Utilities for a Family of 1","Housing and Utilities for a Family of 2","Housing and Utilities for a Family of 3","Housing and Utilities for a Family of 4","Housing and Utilities for a Family of 5 or more","Region",null,null,null,null,"Food",345,612,737,845,325,null,0,null,null,"Baltimore",253,506,null,null,null,null,null,null,null,null,null,null,null,null,null,null,null,null,null,null,null,null,null,null,null,null,null,null,null,null,null,null,null,null,null,null,null,null,null,null,null,"a.       Filling out the FAW: Complete this section using the information provided by your client on the FDF and over the phone. Ensure you put the institution’s name and the type of account in the margin on the left. Fill in the amount currently in the account. In the case of investment accounts, put the amount available for loan or withdrawal in the ‘available’ column. "]
[null,"PR","Adjuntas","PR-Adjuntas",848,996,1049,1170,1189,0,null,null,null,null,"Housekeeping supplies",32,65,66,65,null,null,1,null,null,"Boston",250,500,null,null,null,null,null,null,null,null,null,null,null,null,null,null,null,null,null,null,null,null,null,null,null,null,null,null,null,null,null,null,null,null,null,null,null,null,null,null,null,"b.      Substantiation: Bank statements are only absolutely required when a case is with the high dollar unit or a revenue officer is working the case. Bank statements may be required at the discretion of the IRS. IRS may require if client has multiple funds and income sources. We can utilize statements to show some expenses."]
[null,"PR","Aguada","PR-Aguada",940,1104,1163,1297,1318,0,null,null,null,null,"Apparel & services",83,138,193,293,null,null,2,null,null,"Chicago",241,482,null,null,null,null,null,null,null,null,null,null,null,null,null,null,null,null,null,null,null,null,null,null,null,null,null,null,null,null,null,null,null,null,null,null,null,null,null,null,null,"2)      Real Property:"]
[null,"PR","Aguadilla","PR-Aguadilla",947,1112,1172,1307,1328,0,null,null,null,null,"Personal care products & services",36,63,73,77,null,null,null,null,null,"Cleveland",203,406,null,null,null,null,null,null,null,null,null,null,null,null,null,null,null,null,null,null,null,null,null,null,null,null,null,null,null,null,null,null,null,null,null,null,null,null,null,null,null,"a.       Filling out the FAW: Most of this information can be derived from the FDF or from the client over the phone. Verify the value of the home only if client shows positive equity using the number provided by the client or if client does not provide. Pay particular attention that the amount owed and final payment date fields are completely filled in."]
[null,"PR","Aguas Buenas","PR-Aguas Buenas",941,1105,1164,1298,1319,0,null,null,null,null,"Miscellaneous",143,254,309,370,null,null,null,null,null,"Dallas-Ft. Worth",250,500,null,null,null,null,null,null,null,null,null,null,null,null,null,null,null,null,null,null,null,null,null,null,null,null,null,null,null,null,null,null,null,null,null,null,null,null,null,null,null,"b.      Substantiation: Housing and Utility substantiation is ONLY necessary if client is over local standard."]
[null,"PR","Aibonito","PR-Aibonito",911,1070,1127,1257,1277,0,null,null,null,null,null,null,null,null,null,null,null,null,null,null,"Detroit",300,600,null,null,null,null,null,null,null,null,null,null,null,null,null,null,null,null,null,null,null,null,null,null,null,null,null,null,null,null,null,null,null,null,null,null,null,null,null,null,null,"3)      Vehicles"]
[null,"PR","Anasco","PR-Anasco",860,1010,1064,1186,1206,0,null,null,null,null,null,null,null,null,null,null,null,null,null,null,"Houston",279,558,null,null,null,null,null,null,null,null,null,null,null,null,null,null,null,null,null,null,null,null,null,null,null,null,null,null,null,null,null,null,null,null,null,null,null,null,null,null,null,"a.       Filling out the Form: Most of this information can be taken directly from the FDF or from client over the phone. Purchase Date and Current Value may be estimated for efficiency. Operating Costs = Use Standard unless special circumstances exist."]
[null,"PR","Arecibo","PR-Arecibo",903,1061,1118,1247,1267,0,null,null,null,null,null,null,null,null,null,null,null,null,null,null,"Los Angeles",300,600,null,null,null,null,null,null,null,null,null,null,null,null,null,null,null,null,null,null,null,null,null,null,null,null,null,null,null,null,null,null,null,null,null,null,null,null,null,null,null,"b.      Substantiation: Vehicle costs require substantiation ONLY when one car exceeds the national standard of 489/mo or when requested as a conditional expense."]
[null,"PR","Arroyo","PR-Arroyo",785,922,972,1084,1101,0,null,null,null,null,"Public Transcprtation",189,null,null,null,null,null,null,null,null,"Miami",343,686,null,null,null,null,null,null,null,null,null,null,null,null,null,null,null,null,null,null,null,null,null,null,null,null,null,null,null,null,null,null,null,null,null,null,null,null,null,null,null,"4)      Health Insurance:"]
[null,"PR","Barceloneta","PR-Barceloneta",865,1015,1070,1193,1212,0,null,null,null,null,null,null,null,null,null,null,null,null,null,null,"Midwest Region",203,406,null,null,null,null,null,null,null,null,null,null,null,null,null,null,null,null,null,null,null,null,null,null,null,null,null,null,null,null,null,null,null,null,null,null,null,null,null,null,null,"a.       Filling out the FAW: Enter the amount paid for each type of insurance. Mark whether the insurance is deducted from the client’s paycheck in the column to the right."]
[null,"PR","Barranquitas","PR-Barranquitas",852,1001,1055,1176,1195,0,null,null,null,null,null,"Ownership Costs",null,null,null,null,null,null,null,null,"Minneapolis-St. Paul",196,392,null,null,null,null,null,null,null,null,null,null,null,null,null,null,null,null,null,null,null,null,null,null,null,null,null,null,null,null,null,null,null,null,null,null,null,null,null,null,null,"b.      Substantiation: ALL health insurance MUST be substantiated. A paystub is sufficient to substantiate insurance providing client's health insurance is deducted from paystub."]
[null,"PR","Bayamon","PR-Bayamon",1079,1268,1336,1490,1514,0,null,null,null,null,"One car",485,null,null,null,null,null,null,null,null,"New York",299,598,null,null,null,null,null,null,null,null,null,null,null,null,null,null,null,null,null,null,null,null,null,null,null,null,null,null,null,null,null,null,null,null,null,null,null,null,null,null,null,"5)      Income and Tax Information:"]
[null,"PR","Cabo Rojo","PR-Cabo Rojo",907,1066,1123,1252,1272,0,null,null,null,null,"Two Cars",970,null,null,null,null,null,null,null,null,"Northeast Region",250,500,null,null,null,null,null,null,null,null,null,null,null,null,null,null,null,null,null,null,null,null,null,null,null,null,null,null,null,null,null,null,null,null,null,null,null,null,null,null,null,"a.       Filling out the FAW: Annotate the name of client’s employer in the left hand column. Use the income calculations to determine client’s monthly income and enter it into the corresponding box. Fill out tax information using the same method."]
[null,"PR","Caguas","PR-Caguas",1053,1237,1303,1453,1476,0,null,null,null,null,null,null,null,null,null,null,null,null,null,null,"Philadelphia",279,558,null,null,null,null,null,null,null,null,null,null,null,null,null,null,null,null,null,null,null,null,null,null,null,null,null,null,null,null,null,null,null,null,null,null,null,null,null,null,null,"b.      Substantiation: ALWAYS substantiate client's income. Income documents can be useful for substantiating income as well as taxes, health care, court ordered payments, 401K loans, and other employee related costs. Self employed individuals should provide a profit and loss."]
[null,"PR","Camuy","PR-Camuy",869,1020,1075,1199,1218,0,null,null,null,null,null,"HealthCare",null,null,null,null,null,null,null,null,"Phoenix",237,474,null,null,null,null,null,null,null,null,null,null,null,null,null,null,null,null,null,null,null,null,null,null,null,null,null,null,null,null,null,null,null,null,null,null,null,null,null,null,null,"6)      Out of Pocket Health Expenses:"]
[null,"PR","Canovanas","PR-Canovanas",998,1172,1235,1377,1399,0,null,null,null,null,"under 65",54,49,null,null,null,null,null,null,null,"San Diego",290,580,null,null,null,null,null,null,null,null,null,null,null,null,null,null,null,null,null,null,null,null,null,null,null,null,null,null,null,null,null,null,null,null,null,null,null,null,null,null,null,"a.       Substantiation: OTP Health Expenses must be substantiated ONLY when over national standard."]
[null,"PR","Carolina","PR-Carolina",1113,1307,1377,1535,1560,0,null,null,null,null,"over 65",130,117,null,null,null,null,null,null,null,"San Francisco",261,522,null,null,null,null,null,null,null,null,null,null,null,null,null,null,null,null,null,null,null,null,null,null,null,null,null,null,null,null,null,null,null,null,null,null,null,null,null,null,null,"7)      ‘Other’ and ‘Conditional’ Expenses"]
[null,"PR","Catano","PR-Catano",1238,1454,1532,1708,1736,0,null,null,null,null,null,null,null,null,null,null,null,null,null,null,"Seattle",219,438,null,null,null,null,null,null,null,null,null,null,null,null,null,null,null,null,null,null,null,null,null,null,null,null,null,null,null,null,null,null,null,null,null,null,null,null,null,null,null,"a.       Substantiation: Child Support, Court Ordered Payments, Dependant Care, Term Life, and ALL OTHER payments MUST be substantiated by showing proof of payment. Child support and Court ordered payments require court order and proof of payment."]
[null,"PR","Cayey","PR-Cayey",987,1160,1222,1363,1385,0,null,null,null,null,null,null,null,null,null,null,null,null,null,null,"South Region",215,430]
[null,"PR","Ceiba","PR-Ceiba",835,981,1034,1153,1172,0,null,null,null,null,null,null,null,null,null,null,null,null,null,null,"Washington D.C.",245,490]
[null,"PR","Ciales","PR-Ciales",904,1062,1119,1248,1268,0,null,null,null,null,null,null,null,null,null,null,null,null,null,null,"West Region",220,440]
[null,"PR","Cidra","PR-Cidra",1008,1183,1247,1390,1413,0]
[null,"PR","Coamo","PR-Coamo",840,987,1040,1160,1178,0]
[null,"PR","Comerio","PR-Comerio",884,1038,1094,1220,1240,0]
[null,"PR","Corozal","PR-Corozal",877,1031,1086,1211,1230,0]
[null,"PR","Culebra","PR-Culebra",1203,1413,1489,1660,1687,0]
[null,"PR","Dorado","PR-Dorado",1210,1422,1498,1670,1697,0]
[null,"PR","Fajardo","PR-Fajardo",901,1058,1115,1243,1263,0]
[null,"PR","Florida","PR-Florida",853,1002,1056,1177,1196,0]
[null,"PR","Guanica","PR-Guanica",800,940,990,1104,1122,0]
[null,"PR","Guayama","PR-Guayama",876,1029,1084,1209,1228,0]
[null,"PR","Guayanilla","PR-Guayanilla",869,1021,1076,1200,1219,0]
[null,"PR","Guaynabo","PR-Guaynabo",1585,1862,1962,2188,2223,0]
[null,"PR","Gurabo","PR-Gurabo",1176,1382,1456,1623,1650,0]
[null,"PR","Hatillo","PR-Hatillo",885,1039,1095,1221,1241,0]
[null,"PR","Hormigueros","PR-Hormigueros",856,1005,1059,1181,1200,0]
[null,"PR","Humacao","PR-Humacao",915,1075,1133,1263,1284,0]
[null,"PR","Isabela","PR-Isabela",870,1022,1077,1201,1220,0]
[null,"PR","Jayuya","PR-Jayuya",766,900,948,1057,1074,0]
[null,"PR","Juana Diaz","PR-Juana Diaz",898,1054,1111,1239,1259,0]
[null,"PR","Juncos","PR-Juncos",949,1115,1175,1310,1331,0]
[null,"PR","Lajas","PR-Lajas",860,1010,1064,1186,1206,0]
[null,"PR","Lares","PR-Lares",793,931,981,1094,1111,0]
[null,"PR","Las Marias","PR-Las Marias",830,975,1027,1145,1164,0]
[null,"PR","Las Piedras","PR-Las Piedras",966,1135,1196,1334,1355,0]
[null,"PR","Loiza","PR-Loiza",906,1064,1121,1250,1270,0]
[null,"PR","Luquillo","PR-Luquillo",932,1095,1154,1287,1307,0]
[null,"PR","Manati","PR-Manati",959,1126,1187,1324,1345,0]
[null,"PR","Maricao","PR-Maricao",709,832,877,978,994,0]
[null,"PR","Maunabo","PR-Maunabo",843,990,1043,1163,1182,0]
[null,"PR","Mayaguez","PR-Mayaguez",962,1130,1191,1328,1349,0]
[null,"PR","Moca","PR-Moca",882,1035,1091,1216,1236,0]
[null,"PR","Morovis","PR-Morovis",844,992,1045,1165,1184,0]
[null,"PR","Naguabo","PR-Naguabo",858,1008,1062,1184,1203,0]
[null,"PR","Naranjito","PR-Naranjito",858,1008,1062,1184,1203,0]
[null,"PR","Orocovis","PR-Orocovis",819,962,1014,1131,1149,0]
[null,"PR","Patillas","PR-Patillas",807,948,999,1114,1132,0]
[null,"PR","Penuelas","PR-Penuelas",817,959,1011,1127,1145,0]
[null,"PR","Ponce","PR-Ponce",916,1076,1134,1264,1285,0]
[null,"PR","Quebradillas","PR-Quebradillas",871,1023,1078,1202,1221,0]
[null,"PR","Rincon","PR-Rincon",934,1097,1156,1289,1310,0]
[null,"PR","Rio Grande","PR-Rio Grande",971,1141,1202,1340,1362,0]
[null,"PR","Sabana Grande","PR-Sabana Grande",813,955,1006,1122,1140,0]
[null,"PR","Salinas","PR-Salinas",816,958,1010,1126,1144,0]
[null,"PR","San German","PR-San German",880,1033,1089,1214,1234,0]
[null,"PR","San Juan","PR-San Juan",1248,1465,1544,1722,1749,0]
[null,"PR","San Lorenzo","PR-San Lorenzo",940,1104,1163,1297,1318,0]
[null,"PR","San Sebastian","PR-San Sebastian",844,992,1045,1165,1184,0]
[null,"PR","Santa Isabel","PR-Santa Isabel",899,1056,1113,1241,1261,0]
[null,"PR","Toa Alta","PR-Toa Alta",1192,1400,1475,1645,1671,0]
[null,"PR","Toa Baja","PR-Toa Baja",1039,1220,1286,1434,1457,0]
[null,"PR","Trujillo Alto","PR-Trujillo Alto",1197,1406,1482,1652,1679,0]
[null,"PR","Utuado","PR-Utuado",785,922,972,1084,1101,0]
[null,"PR","Vega Alta","PR-Vega Alta",997,1171,1234,1376,1398,0]
[null,"PR","Vega Baja","PR-Vega Baja",974,1144,1205,1344,1365,0]
[null,"PR","Vieques","PR-Vieques",871,1023,1078,1202,1221,0]
[null,"PR","Villalba","PR-Villalba",857,1007,1061,1183,1202,0]
[null,"PR","Yabucoa","PR-Yabucoa",894,1051,1107,1234,1254,0]
[null,"PR","Yauco","PR-Yauco",862,1013,1067,1190,1209,0]
[null,"AL","Cleburne","AL-Cleburne",1116,1311,1381,1540,1565,"Atlanta"]
[null,"GA","Barrow","GA-Barrow",1222,1435,1512,1686,1713,"Atlanta"]
[null,"GA","Bartow","GA-Bartow",1227,1442,1519,1694,1721,"Atlanta"]
[null,"GA","Butts","GA-Butts",1236,1452,1530,1706,1733,"Atlanta"]
[null,"GA","Carroll","GA-Carroll",1201,1411,1487,1658,1685,"Atlanta"]
[null,"GA","Cherokee","GA-Cherokee",1509,1773,1868,2083,2116,"Atlanta"]
[null,"GA","Clayton","GA-Clayton",1210,1422,1498,1670,1697,"Atlanta"]
[null,"GA","Cobb","GA-Cobb",1553,1824,1922,2143,2178,"Atlanta"]
[null,"GA","Coweta","GA-Coweta",1394,1637,1725,1923,1954,"Atlanta"]
[null,"GA","Dawson","GA-Dawson",1458,1713,1805,2013,2045,"Atlanta"]
[null,"GA","DeKalb","GA-DeKalb",1484,1743,1837,2048,2081,"Atlanta"]
[null,"GA","Douglas","GA-Douglas",1336,1569,1653,1843,1873,"Atlanta"]
[null,"GA","Fayette","GA-Fayette",1705,2002,2110,2353,2391,"Atlanta"]
[null,"GA","Forsyth","GA-Forsyth",1733,2036,2145,2392,2430,"Atlanta"]
[null,"GA","Fulton","GA-Fulton",1749,2054,2164,2413,2452,"Atlanta"]
[null,"GA","Gwinnett","GA-Gwinnett",1515,1779,1875,2091,2124,"Atlanta"]
[null,"GA","Haralson","GA-Haralson",1179,1385,1459,1627,1653,"Atlanta"]
[null,"GA","Henry","GA-Henry",1386,1628,1715,1912,1943,"Atlanta"]
[null,"GA","Newton","GA-Newton",1246,1463,1542,1719,1747,"Atlanta"]
[null,"GA","Paulding","GA-Paulding",1301,1528,1610,1795,1824,"Atlanta"]
[null,"GA","Pickens","GA-Pickens",1315,1545,1628,1815,1845,"Atlanta"]
[null,"GA","Pike","GA-Pike",1386,1628,1715,1912,1943,"Atlanta"]
[null,"GA","Rockdale","GA-Rockdale",1300,1527,1609,1794,1823,"Atlanta"]
[null,"GA","Spalding","GA-Spalding",1225,1439,1516,1690,1718,"Atlanta"]
[null,"GA","Walton","GA-Walton",1352,1588,1673,1865,1896,"Atlanta"]
[null,"MD","Anne Arundel","MD-Anne Arundel",1956,2298,2421,2699,2743,"Baltimore"]
[null,"MD","Baltimore","MD-Baltimore",1683,1977,2083,2323,2360,"Baltimore"]
[null,"MD","Baltimore city","MD-Baltimore city",1415,1662,1751,1952,1984,"Baltimore"]
[null,"MD","Carroll","MD-Carroll",1930,2267,2389,2664,2707,"Baltimore"]
[null,"MD","Harford","MD-Harford",1780,2091,2203,2456,2496,"Baltimore"]
[null,"MD","Howard","MD-Howard",2308,2710,2856,3184,3236,"Baltimore"]
[null,"MD","Queen Annes","MD-Queen Annes",1997,2346,2472,2756,2801,"Baltimore"]
[null,"CT","Windham","CT-Windham",1631,1916,2019,2251,2288,"Boston"]
[null,"MA","Bristol","MA-Bristol",1780,2091,2203,2456,2496,"Boston"]
[null,"MA","Essex","MA-Essex",2068,2429,2560,2854,2900,"Boston"]
[null,"MA","Hampden","MA-Hampden",1528,1795,1891,2108,2143,"Boston"]
[null,"MA","Middlesex","MA-Middlesex",2236,2626,2767,3085,3135,"Boston"]
[null,"MA","Norfolk","MA-Norfolk",2222,2610,2750,3066,3116,"Boston"]
[null,"MA","Plymouth","MA-Plymouth",2015,2367,2494,2781,2826,"Boston"]
[null,"MA","Suffolk","MA-Suffolk",2085,2448,2580,2877,2923,"Boston"]
[null,"MA","Worcester","MA-Worcester",1805,2120,2234,2491,2531,"Boston"]
[null,"ME","York","ME-York",1542,1812,1909,2129,2163,"Boston"]
[null,"NH","Hillsborough","NH-Hillsborough",1899,2230,2350,2620,2663,"Boston"]
[null,"NH","Merrimack","NH-Merrimack",1785,2096,2209,2463,2503,"Boston"]
[null,"NH","Rockingham","NH-Rockingham",2015,2367,2494,2781,2826,"Boston"]
[null,"NH","Strafford","NH-Strafford",1771,2080,2192,2444,2484,"Boston"]
[null,"IL","Cook","IL-Cook",1781,2092,2204,2457,2497,"Chicago"]
[null,"IL","DeKalb","IL-DeKalb",1579,1854,1954,2179,2214,"Chicago"]
[null,"IL","DuPage","IL-DuPage",1942,2281,2404,2680,2724,"Chicago"]
[null,"IL","Grundy","IL-Grundy",1583,1859,1959,2184,2220,"Chicago"]
[null,"IL","Kane","IL-Kane",1787,2099,2212,2466,2506,"Chicago"]
[null,"IL","Kankakee","IL-Kankakee",1367,1606,1692,1887,1917,"Chicago"]
[null,"IL","Kendall","IL-Kendall",1875,2203,2321,2588,2630,"Chicago"]
[null,"IL","Lake","IL-Lake",2002,2352,2478,2763,2808,"Chicago"]
[null,"IL","McHenry","IL-McHenry",1799,2112,2226,2482,2522,"Chicago"]
[null,"IL","Will","IL-Will",1802,2116,2230,2486,2527,"Chicago"]
[null,"IN","Lake","IN-Lake",1253,1472,1551,1729,1757,"Chicago"]
[null,"IN","Newton","IN-Newton",1098,1290,1359,1515,1540,"Chicago"]
[null,"IN","Porter","IN-Porter",1344,1578,1663,1854,1884,"Chicago"]
[null,"WI","Kenosha","WI-Kenosha",1493,1754,1848,2061,2094,"Chicago"]
[null,"OH","Ashtabula","OH-Ashtabula",1117,1312,1383,1542,1567,"Cleveland"]
[null,"OH","Cuyahoga","OH-Cuyahoga",1312,1541,1624,1811,1840,"Cleveland"]
[null,"OH","Geauga","OH-Geauga",1559,1831,1929,2151,2186,"Cleveland"]
[null,"OH","Lake","OH-Lake",1325,1556,1640,1829,1858,"Cleveland"]
[null,"OH","Lorain","OH-Lorain",1297,1523,1605,1790,1818,"Cleveland"]
[null,"OH","Medina","OH-Medina",1439,1690,1781,1986,2018,"Cleveland"]
[null,"OH","Portage","OH-Portage",1332,1564,1648,1838,1867,"Cleveland"]
[null,"OH","Summit","OH-Summit",1264,1484,1564,1744,1772,"Cleveland"]
[null,"TX","Collin","TX-Collin",1822,2140,2255,2514,2555,"Dallas-Ft. Worth"]
[null,"TX","Dallas","TX-Dallas",1461,1716,1808,2016,2048,"Dallas-Ft. Worth"]
[null,"TX","Delta","TX-Delta",1041,1222,1288,1436,1459,"Dallas-Ft. Worth"]
[null,"TX","Denton","TX-Denton",1723,2024,2133,2378,2417,"Dallas-Ft. Worth"]
[null,"TX","Ellis","TX-Ellis",1466,1721,1814,2023,2055,"Dallas-Ft. Worth"]
[null,"TX","Henderson","TX-Henderson",1170,1374,1448,1615,1641,"Dallas-Ft. Worth"]
[null,"TX","Hood","TX-Hood",1370,1610,1696,1891,1922,"Dallas-Ft. Worth"]
[null,"TX","Hunt","TX-Hunt",1258,1478,1557,1736,1764,"Dallas-Ft. Worth"]
[null,"TX","Johnson","TX-Johnson",1323,1554,1637,1825,1855,"Dallas-Ft. Worth"]
[null,"TX","Kaufman","TX-Kaufman",1486,1745,1839,2050,2084,"Dallas-Ft. Worth"]
[null,"TX","Parker","TX-Parker",1533,1800,1897,2115,2149,"Dallas-Ft. Worth"]
[null,"TX","Rockwall","TX-Rockwall",1689,1983,2090,2330,2368,"Dallas-Ft. Worth"]
[null,"TX","Tarrant","TX-Tarrant",1481,1740,1833,2044,2077,"Dallas-Ft. Worth"]
[null,"TX","Wise","TX-Wise",1361,1598,1684,1878,1908,"Dallas-Ft. Worth"]
[null,"MI","Genesee","MI-Genesee",1226,1440,1517,1691,1719,"Detroit"]
[null,"MI","Lapeer","MI-Lapeer",1308,1536,1619,1805,1834,"Detroit"]
[null,"MI","Lenawee","MI-Lenawee",1242,1459,1537,1714,1741,"Detroit"]
[null,"MI","Livingston","MI-Livingston",1551,1821,1919,2140,2174,"Detroit"]
[null,"MI","Macomb","MI-Macomb",1355,1591,1677,1870,1900,"Detroit"]
[null,"MI","Monroe","MI-Monroe",1325,1556,1640,1829,1858,"Detroit"]
[null,"MI","Oakland","MI-Oakland",1595,1873,1974,2201,2237,"Detroit"]
[null,"MI","Saint Clair","MI-Saint Clair",1276,1498,1579,1761,1789,"Detroit"]
[null,"MI","Washtenaw","MI-Washtenaw",1666,1957,2062,2299,2336,"Detroit"]
[null,"MI","Wayne","MI-Wayne",1298,1524,1606,1791,1820,"Detroit"]
[null,"TX","Austin","TX-Austin",1533,1800,1897,2115,2149,"Houston"]
[null,"TX","Brazoria","TX-Brazoria",1604,1884,1985,2213,2249,"Houston"]
[null,"TX","Chambers","TX-Chambers",1522,1788,1884,2101,2135,"Houston"]
[null,"TX","Fort Bend","TX-Fort Bend",1790,2102,2215,2470,2510,"Houston"]
[null,"TX","Galveston","TX-Galveston",1622,1905,2007,2238,2274,"Houston"]
[null,"TX","Harris","TX-Harris",1494,1755,1849,2062,2095,"Houston"]
[null,"TX","Liberty","TX-Liberty",1237,1453,1531,1707,1735,"Houston"]
[null,"TX","Montgomery","TX-Montgomery",1593,1871,1972,2199,2234,"Houston"]
[null,"TX","San Jacinto","TX-San Jacinto",1244,1461,1540,1717,1745,"Houston"]
[null,"TX","Waller","TX-Waller",1405,1650,1739,1939,1970,"Houston"]
[null,"CA","Los Angeles","CA-Los Angeles",2162,2540,2676,2984,3032,"Los Angeles"]
[null,"CA","Orange","CA-Orange",2381,2797,2947,3286,3339,"Los Angeles"]
[null,"CA","Riverside","CA-Riverside",1776,2086,2198,2451,2490,"Los Angeles"]
[null,"CA","San Bernardino","CA-San Bernardino",1673,1964,2070,2308,2345,"Los Angeles"]
[null,"CA","Ventura","CA-Ventura",2254,2647,2789,3110,3160,"Los Angeles"]
[null,"FL","Broward","FL-Broward",1712,2011,2119,2363,2401,"Miami"]
[null,"FL","Miami-Dade","FL-Miami-Dade",1665,1956,2061,2298,2335,"Miami"]
[null,"IA","Adair","IA-Adair",1059,1244,1311,1462,1485,"Midwest Region"]
[null,"IA","Adams","IA-Adams",1024,1202,1267,1413,1436,"Midwest Region"]
[null,"IA","Allamakee","IA-Allamakee",1099,1291,1360,1516,1541,"Midwest Region"]
[null,"IA","Appanoose","IA-Appanoose",1008,1183,1247,1390,1413,"Midwest Region"]
[null,"IA","Audubon","IA-Audubon",894,1050,1106,1233,1253,"Midwest Region"]
[null,"IA","Benton","IA-Benton",1294,1519,1601,1785,1814,"Midwest Region"]
[null,"IA","Black Hawk","IA-Black Hawk",1134,1331,1403,1564,1590,"Midwest Region"]
[null,"IA","Boone","IA-Boone",1218,1430,1507,1680,1707,"Midwest Region"]
[null,"IA","Bremer","IA-Bremer",1244,1461,1539,1716,1744,"Midwest Region"]
[null,"IA","Buchanan","IA-Buchanan",1154,1355,1428,1592,1618,"Midwest Region"]
[null,"IA","Buena Vista","IA-Buena Vista",1047,1230,1296,1445,1468,"Midwest Region"]
[null,"IA","Butler","IA-Butler",1063,1248,1315,1466,1490,"Midwest Region"]
[null,"IA","Calhoun","IA-Calhoun",935,1098,1157,1290,1311,"Midwest Region"]
[null,"IA","Carroll","IA-Carroll",1059,1244,1311,1462,1485,"Midwest Region"]
[null,"IA","Cass","IA-Cass",945,1109,1169,1303,1324,"Midwest Region"]
[null,"IA","Cedar","IA-Cedar",1188,1395,1470,1639,1666,"Midwest Region"]
[null,"IA","Cerro Gordo","IA-Cerro Gordo",1115,1310,1380,1539,1564,"Midwest Region"]
[null,"IA","Cherokee","IA-Cherokee",965,1133,1194,1331,1353,"Midwest Region"]
[null,"IA","Chickasaw","IA-Chickasaw",1060,1245,1312,1463,1486,"Midwest Region"]
[null,"IA","Clarke","IA-Clarke",1155,1357,1430,1594,1620,"Midwest Region"]
[null,"IA","Clay","IA-Clay",1067,1253,1320,1472,1496,"Midwest Region"]
[null,"IA","Clayton","IA-Clayton",1130,1328,1399,1560,1585,"Midwest Region"]
[null,"IA","Clinton","IA-Clinton",1142,1341,1413,1575,1601,"Midwest Region"]
[null,"IA","Crawford","IA-Crawford",1048,1231,1297,1446,1470,"Midwest Region"]
[null,"IA","Dallas","IA-Dallas",1496,1757,1851,2064,2097,"Midwest Region"]
[null,"IA","Davis","IA-Davis",1138,1336,1408,1570,1595,"Midwest Region"]
[null,"IA","Decatur","IA-Decatur",1054,1238,1305,1455,1479,"Midwest Region"]
[null,"IA","Delaware","IA-Delaware",1158,1360,1433,1598,1624,"Midwest Region"]
[null,"IA","Des Moines","IA-Des Moines",1074,1261,1329,1482,1506,"Midwest Region"]
[null,"IA","Dickinson","IA-Dickinson",1263,1483,1563,1743,1771,"Midwest Region"]
[null,"IA","Dubuque","IA-Dubuque",1240,1457,1535,1712,1739,"Midwest Region"]
[null,"IA","Emmet","IA-Emmet",1044,1226,1292,1441,1464,"Midwest Region"]
[null,"IA","Fayette","IA-Fayette",1022,1200,1265,1410,1433,"Midwest Region"]
[null,"IA","Floyd","IA-Floyd",995,1169,1232,1374,1396,"Midwest Region"]
[null,"IA","Franklin","IA-Franklin",1012,1189,1253,1397,1420,"Midwest Region"]
[null,"IA","Fremont","IA-Fremont",1057,1241,1308,1458,1482,"Midwest Region"]
[null,"IA","Greene","IA-Greene",1068,1255,1322,1474,1498,"Midwest Region"]
[null,"IA","Grundy","IA-Grundy",1151,1352,1425,1589,1615,"Midwest Region"]
[null,"IA","Guthrie","IA-Guthrie",1165,1368,1442,1608,1634,"Midwest Region"]
[null,"IA","Hamilton","IA-Hamilton",1084,1274,1342,1496,1520,"Midwest Region"]
[null,"IA","Hancock","IA-Hancock",1063,1248,1315,1466,1490,"Midwest Region"]
[null,"IA","Hardin","IA-Hardin",1039,1220,1286,1434,1457,"Midwest Region"]
[null,"IA","Harrison","IA-Harrison",1173,1378,1452,1619,1645,"Midwest Region"]
[null,"IA","Henry","IA-Henry",1098,1290,1359,1515,1540,"Midwest Region"]
[null,"IA","Howard","IA-Howard",1064,1250,1317,1468,1492,"Midwest Region"]
[null,"IA","Humboldt","IA-Humboldt",1041,1222,1288,1436,1459,"Midwest Region"]
[null,"IA","Ida","IA-Ida",874,1027,1082,1206,1226,"Midwest Region"]
[null,"IA","Iowa","IA-Iowa",1253,1472,1551,1729,1757,"Midwest Region"]
[null,"IA","Jackson","IA-Jackson",1133,1330,1402,1563,1588,"Midwest Region"]
[null,"IA","Jasper","IA-Jasper",1189,1397,1472,1641,1668,"Midwest Region"]
[null,"IA","Jefferson","IA-Jefferson",1071,1257,1325,1477,1501,"Midwest Region"]
[null,"IA","Johnson","IA-Johnson",1441,1693,1784,1989,2021,"Midwest Region"]
[null,"IA","Jones","IA-Jones",1186,1393,1468,1637,1663,"Midwest Region"]
[null,"IA","Keokuk","IA-Keokuk",1040,1221,1287,1435,1458,"Midwest Region"]
[null,"IA","Kossuth","IA-Kossuth",984,1156,1218,1358,1380,"Midwest Region"]
[null,"IA","Lee","IA-Lee",1033,1213,1278,1425,1448,"Midwest Region"]
[null,"IA","Linn","IA-Linn",1298,1524,1606,1791,1820,"Midwest Region"]
[null,"IA","Louisa","IA-Louisa",1079,1268,1336,1490,1514,"Midwest Region"]
[null,"IA","Lucas","IA-Lucas",1046,1228,1294,1443,1466,"Midwest Region"]
[null,"IA","Lyon","IA-Lyon",1096,1287,1356,1512,1536,"Midwest Region"]
[null,"IA","Madison","IA-Madison",1412,1659,1748,1949,1980,"Midwest Region"]
[null,"IA","Mahaska","IA-Mahaska",1099,1291,1360,1516,1541,"Midwest Region"]
[null,"IA","Marion","IA-Marion",1193,1401,1476,1646,1672,"Midwest Region"]
[null,"IA","Marshall","IA-Marshall",1126,1322,1393,1553,1578,"Midwest Region"]
[null,"IA","Mills","IA-Mills",1382,1624,1711,1908,1939,"Midwest Region"]
[null,"IA","Mitchell","IA-Mitchell",1060,1245,1312,1463,1486,"Midwest Region"]
[null,"IA","Monona","IA-Monona",957,1125,1185,1321,1343,"Midwest Region"]
[null,"IA","Monroe","IA-Monroe",1192,1400,1475,1645,1671,"Midwest Region"]
[null,"IA","Montgomery","IA-Montgomery",1008,1183,1247,1390,1413,"Midwest Region"]
[null,"IA","Muscatine","IA-Muscatine",1235,1451,1529,1705,1732,"Midwest Region"]
[null,"IA","OBrien","IA-OBrien",1067,1253,1320,1472,1496,"Midwest Region"]
[null,"IA","Osceola","IA-Osceola",970,1140,1201,1339,1361,"Midwest Region"]
[null,"IA","Page","IA-Page",1025,1204,1269,1415,1438,"Midwest Region"]
[null,"IA","Palo Alto","IA-Palo Alto",952,1118,1178,1313,1335,"Midwest Region"]
[null,"IA","Plymouth","IA-Plymouth",1159,1362,1435,1600,1626,"Midwest Region"]
[null,"IA","Pocahontas","IA-Pocahontas",897,1053,1110,1238,1258,"Midwest Region"]
[null,"IA","Polk","IA-Polk",1357,1594,1680,1873,1903,"Midwest Region"]
[null,"IA","Pottawattamie","IA-Pottawattamie",1219,1432,1509,1683,1710,"Midwest Region"]
[null,"IA","Poweshiek","IA-Poweshiek",1192,1400,1475,1645,1671,"Midwest Region"]
[null,"IA","Ringgold","IA-Ringgold",1115,1310,1380,1539,1564,"Midwest Region"]
[null,"IA","Sac","IA-Sac",963,1131,1192,1329,1351,"Midwest Region"]
[null,"IA","Scott","IA-Scott",1270,1492,1572,1753,1781,"Midwest Region"]
[null,"IA","Shelby","IA-Shelby",1115,1310,1380,1539,1564,"Midwest Region"]
[null,"IA","Sioux","IA-Sioux",1173,1378,1452,1619,1645,"Midwest Region"]
[null,"IA","Story","IA-Story",1349,1585,1670,1862,1892,"Midwest Region"]
[null,"IA","Tama","IA-Tama",1103,1295,1365,1522,1547,"Midwest Region"]
[null,"IA","Taylor","IA-Taylor",970,1140,1201,1339,1361,"Midwest Region"]
[null,"IA","Union","IA-Union",1025,1204,1269,1415,1438,"Midwest Region"]
[null,"IA","Van Buren","IA-Van Buren",1022,1200,1265,1410,1433,"Midwest Region"]
[null,"IA","Wapello","IA-Wapello",1001,1176,1239,1381,1404,"Midwest Region"]
[null,"IA","Warren","IA-Warren",1347,1582,1667,1859,1889,"Midwest Region"]
[null,"IA","Washington","IA-Washington",1226,1440,1517,1691,1719,"Midwest Region"]
[null,"IA","Wayne","IA-Wayne",1024,1202,1267,1413,1436,"Midwest Region"]
[null,"IA","Webster","IA-Webster",1007,1182,1246,1389,1412,"Midwest Region"]
[null,"IA","Winnebago","IA-Winnebago",1046,1228,1294,1443,1466,"Midwest Region"]
[null,"IA","Winneshiek","IA-Winneshiek",1250,1468,1547,1725,1753,"Midwest Region"]
[null,"IA","Woodbury","IA-Woodbury",1092,1283,1352,1507,1532,"Midwest Region"]
[null,"IA","Worth","IA-Worth",983,1154,1216,1356,1378,"Midwest Region"]
[null,"IA","Wright","IA-Wright",988,1161,1223,1364,1386,"Midwest Region"]
[null,"IL","Adams","IL-Adams",1067,1253,1320,1472,1496,"Midwest Region"]
[null,"IL","Alexander","IL-Alexander",957,1124,1184,1320,1341,"Midwest Region"]
[null,"IL","Bond","IL-Bond",1164,1368,1441,1607,1633,"Midwest Region"]
[null,"IL","Boone","IL-Boone",1425,1674,1764,1967,1999,"Midwest Region"]
[null,"IL","Brown","IL-Brown",1000,1175,1238,1380,1403,"Midwest Region"]
[null,"IL","Bureau","IL-Bureau",1149,1349,1422,1586,1611,"Midwest Region"]
[null,"IL","Calhoun","IL-Calhoun",1238,1454,1532,1708,1736,"Midwest Region"]
[null,"IL","Carroll","IL-Carroll",1122,1318,1389,1549,1574,"Midwest Region"]
[null,"IL","Cass","IL-Cass",1016,1193,1257,1402,1424,"Midwest Region"]
[null,"IL","Champaign","IL-Champaign",1328,1559,1643,1832,1862,"Midwest Region"]
[null,"IL","Christian","IL-Christian",1012,1189,1253,1397,1420,"Midwest Region"]
[null,"IL","Clark","IL-Clark",1061,1246,1313,1464,1488,"Midwest Region"]
[null,"IL","Clay","IL-Clay",932,1095,1154,1287,1307,"Midwest Region"]
[null,"IL","Clinton","IL-Clinton",1291,1517,1598,1782,1811,"Midwest Region"]
[null,"IL","Coles","IL-Coles",1052,1236,1302,1452,1475,"Midwest Region"]
[null,"IL","Crawford","IL-Crawford",941,1106,1165,1299,1320,"Midwest Region"]
[null,"IL","Cumberland","IL-Cumberland",1053,1237,1303,1453,1476,"Midwest Region"]
[null,"IL","De Witt","IL-De Witt",1106,1299,1369,1526,1551,"Midwest Region"]
[null,"IL","Douglas","IL-Douglas",1105,1298,1368,1525,1550,"Midwest Region"]
[null,"IL","Edgar","IL-Edgar",1008,1184,1248,1392,1414,"Midwest Region"]
[null,"IL","Edwards","IL-Edwards",924,1086,1144,1276,1296,"Midwest Region"]
[null,"IL","Effingham","IL-Effingham",1132,1330,1401,1562,1587,"Midwest Region"]
[null,"IL","Fayette","IL-Fayette",987,1160,1222,1363,1385,"Midwest Region"]
[null,"IL","Ford","IL-Ford",1088,1277,1346,1501,1525,"Midwest Region"]
[null,"IL","Franklin","IL-Franklin",945,1109,1169,1303,1324,"Midwest Region"]
[null,"IL","Fulton","IL-Fulton",1030,1210,1275,1422,1445,"Midwest Region"]
[null,"IL","Gallatin","IL-Gallatin",933,1096,1155,1288,1309,"Midwest Region"]
[null,"IL","Greene","IL-Greene",983,1154,1216,1356,1378,"Midwest Region"]
[null,"IL","Hamilton","IL-Hamilton",989,1162,1224,1365,1387,"Midwest Region"]
[null,"IL","Hancock","IL-Hancock",1000,1175,1238,1380,1403,"Midwest Region"]
[null,"IL","Hardin","IL-Hardin",963,1131,1192,1329,1351,"Midwest Region"]
[null,"IL","Henderson","IL-Henderson",985,1157,1219,1359,1381,"Midwest Region"]
[null,"IL","Henry","IL-Henry",1155,1357,1430,1594,1620,"Midwest Region"]
[null,"IL","Iroquois","IL-Iroquois",1134,1332,1404,1565,1591,"Midwest Region"]
[null,"IL","Jackson","IL-Jackson",1153,1354,1427,1591,1617,"Midwest Region"]
[null,"IL","Jasper","IL-Jasper",1018,1196,1260,1405,1428,"Midwest Region"]
[null,"IL","Jefferson","IL-Jefferson",1085,1275,1343,1497,1522,"Midwest Region"]
[null,"IL","Jersey","IL-Jersey",1185,1392,1467,1636,1662,"Midwest Region"]
[null,"IL","Jo Daviess","IL-Jo Daviess",1256,1476,1555,1734,1762,"Midwest Region"]
[null,"IL","Johnson","IL-Johnson",1145,1345,1417,1580,1605,"Midwest Region"]
[null,"IL","Knox","IL-Knox",1009,1185,1249,1393,1415,"Midwest Region"]
[null,"IL","La Salle","IL-La Salle",1266,1487,1567,1747,1775,"Midwest Region"]
[null,"IL","Lawrence","IL-Lawrence",910,1069,1126,1255,1276,"Midwest Region"]
[null,"IL","Lee","IL-Lee",1172,1377,1451,1618,1644,"Midwest Region"]
[null,"IL","Livingston","IL-Livingston",1166,1369,1443,1609,1635,"Midwest Region"]
[null,"IL","Logan","IL-Logan",1056,1240,1307,1457,1481,"Midwest Region"]
[null,"IL","Macon","IL-Macon",1098,1290,1359,1515,1540,"Midwest Region"]
[null,"IL","Macoupin","IL-Macoupin",1093,1284,1353,1509,1533,"Midwest Region"]
[null,"IL","Madison","IL-Madison",1248,1466,1545,1723,1750,"Midwest Region"]
[null,"IL","Marion","IL-Marion",968,1137,1198,1336,1357,"Midwest Region"]
[null,"IL","Marshall","IL-Marshall",1171,1375,1449,1616,1642,"Midwest Region"]
[null,"IL","Mason","IL-Mason",1044,1226,1292,1441,1464,"Midwest Region"]
[null,"IL","Massac","IL-Massac",1094,1285,1354,1510,1534,"Midwest Region"]
[null,"IL","McDonough","IL-McDonough",1064,1250,1317,1468,1492,"Midwest Region"]
[null,"IL","McLean","IL-McLean",1405,1650,1739,1939,1970,"Midwest Region"]
[null,"IL","Menard","IL-Menard",1215,1427,1504,1677,1704,"Midwest Region"]
[null,"IL","Mercer","IL-Mercer",1113,1307,1377,1535,1560,"Midwest Region"]
[null,"IL","Monroe","IL-Monroe",1567,1840,1939,2162,2197,"Midwest Region"]
[null,"IL","Montgomery","IL-Montgomery",982,1153,1215,1355,1377,"Midwest Region"]
[null,"IL","Morgan","IL-Morgan",1091,1281,1350,1505,1530,"Midwest Region"]
[null,"IL","Moultrie","IL-Moultrie",1091,1281,1350,1505,1530,"Midwest Region"]
[null,"IL","Ogle","IL-Ogle",1338,1572,1656,1846,1876,"Midwest Region"]
[null,"IL","Peoria","IL-Peoria",1214,1426,1503,1676,1703,"Midwest Region"]
[null,"IL","Perry","IL-Perry",1012,1188,1252,1396,1419,"Midwest Region"]
[null,"IL","Piatt","IL-Piatt",1241,1458,1536,1713,1740,"Midwest Region"]
[null,"IL","Pike","IL-Pike",932,1095,1154,1287,1307,"Midwest Region"]
[null,"IL","Pope","IL-Pope",1033,1214,1279,1426,1449,"Midwest Region"]
[null,"IL","Pulaski","IL-Pulaski",976,1146,1208,1347,1369,"Midwest Region"]
[null,"IL","Putnam","IL-Putnam",1175,1380,1454,1621,1647,"Midwest Region"]
[null,"IL","Randolph","IL-Randolph",1100,1292,1361,1518,1542,"Midwest Region"]
[null,"IL","Richland","IL-Richland",1001,1176,1239,1381,1404,"Midwest Region"]
[null,"IL","Rock Island","IL-Rock Island",1175,1380,1454,1621,1647,"Midwest Region"]
[null,"IL","Saint Clair","IL-Saint Clair",1361,1598,1684,1878,1908,"Midwest Region"]
[null,"IL","Saline","IL-Saline",987,1159,1221,1361,1383,"Midwest Region"]
[null,"IL","Sangamon","IL-Sangamon",1241,1458,1536,1713,1740,"Midwest Region"]
[null,"IL","Schuyler","IL-Schuyler",972,1142,1203,1341,1363,"Midwest Region"]
[null,"IL","Scott","IL-Scott",1016,1194,1258,1403,1425,"Midwest Region"]
[null,"IL","Shelby","IL-Shelby",1012,1188,1252,1396,1419,"Midwest Region"]
[null,"IL","Stark","IL-Stark",1054,1237,1304,1454,1477,"Midwest Region"]
[null,"IL","Stephenson","IL-Stephenson",1120,1315,1386,1545,1570,"Midwest Region"]
[null,"IL","Tazewell","IL-Tazewell",1211,1423,1499,1671,1698,"Midwest Region"]
[null,"IL","Union","IL-Union",1068,1255,1322,1474,1498,"Midwest Region"]
[null,"IL","Vermilion","IL-Vermilion",1027,1206,1271,1417,1440,"Midwest Region"]
[null,"IL","Wabash","IL-Wabash",1041,1222,1288,1436,1459,"Midwest Region"]
[null,"IL","Warren","IL-Warren",1007,1182,1246,1389,1412,"Midwest Region"]
[null,"IL","Washington","IL-Washington",1203,1413,1489,1660,1687,"Midwest Region"]
[null,"IL","Wayne","IL-Wayne",966,1134,1195,1332,1354,"Midwest Region"]
[null,"IL","White","IL-White",963,1131,1192,1329,1351,"Midwest Region"]
[null,"IL","Whiteside","IL-Whiteside",1089,1279,1348,1503,1527,"Midwest Region"]
[null,"IL","Williamson","IL-Williamson",1084,1274,1342,1496,1520,"Midwest Region"]
[null,"IL","Winnebago","IL-Winnebago",1259,1479,1558,1737,1765,"Midwest Region"]
[null,"IL","Woodford","IL-Woodford",1407,1652,1741,1941,1973,"Midwest Region"]
[null,"IN","Adams","IN-Adams",988,1161,1223,1364,1386,"Midwest Region"]
[null,"IN","Allen","IN-Allen",1074,1261,1329,1482,1506,"Midwest Region"]
[null,"IN","Bartholomew","IN-Bartholomew",1173,1378,1452,1619,1645,"Midwest Region"]
[null,"IN","Benton","IN-Benton",1009,1185,1249,1393,1415,"Midwest Region"]
[null,"IN","Blackford","IN-Blackford",927,1089,1147,1279,1300,"Midwest Region"]
[null,"IN","Boone","IN-Boone",1499,1760,1855,2068,2102,"Midwest Region"]
[null,"IN","Brown","IN-Brown",1292,1517,1599,1783,1812,"Midwest Region"]
[null,"IN","Carroll","IN-Carroll",1074,1261,1329,1482,1506,"Midwest Region"]
[null,"IN","Cass","IN-Cass",974,1144,1205,1344,1365,"Midwest Region"]
[null,"IN","Clark","IN-Clark",1155,1357,1430,1594,1620,"Midwest Region"]
[null,"IN","Clay","IN-Clay",1066,1252,1319,1471,1494,"Midwest Region"]
[null,"IN","Clinton","IN-Clinton",1090,1280,1349,1504,1528,"Midwest Region"]
[null,"IN","Crawford","IN-Crawford",922,1083,1141,1272,1293,"Midwest Region"]
[null,"IN","Daviess","IN-Daviess",1029,1208,1273,1419,1442,"Midwest Region"]
[null,"IN","Dearborn","IN-Dearborn",1302,1529,1611,1796,1825,"Midwest Region"]
[null,"IN","Decatur","IN-Decatur",1053,1237,1303,1453,1476,"Midwest Region"]
[null,"IN","DeKalb","IN-DeKalb",1064,1250,1317,1468,1492,"Midwest Region"]
[null,"IN","Delaware","IN-Delaware",991,1164,1227,1368,1390,"Midwest Region"]
[null,"IN","Dubois","IN-Dubois",1128,1325,1396,1557,1582,"Midwest Region"]
[null,"IN","Elkhart","IN-Elkhart",1088,1277,1346,1501,1525,"Midwest Region"]
[null,"IN","Fayette","IN-Fayette",991,1163,1226,1367,1389,"Midwest Region"]
[null,"IN","Floyd","IN-Floyd",1263,1483,1563,1743,1771,"Midwest Region"]
[null,"IN","Fountain","IN-Fountain",1016,1194,1258,1403,1425,"Midwest Region"]
[null,"IN","Franklin","IN-Franklin",1241,1458,1536,1713,1740,"Midwest Region"]
[null,"IN","Fulton","IN-Fulton",1001,1176,1239,1381,1404,"Midwest Region"]
[null,"IN","Gibson","IN-Gibson",1055,1239,1306,1456,1480,"Midwest Region"]
[null,"IN","Grant","IN-Grant",961,1128,1189,1326,1347,"Midwest Region"]
[null,"IN","Greene","IN-Greene",1013,1190,1254,1398,1421,"Midwest Region"]
[null,"IN","Hamilton","IN-Hamilton",1544,1814,1911,2131,2165,"Midwest Region"]
[null,"IN","Hancock","IN-Hancock",1300,1527,1609,1794,1823,"Midwest Region"]
[null,"IN","Harrison","IN-Harrison",1121,1316,1387,1547,1571,"Midwest Region"]
[null,"IN","Hendricks","IN-Hendricks",1350,1586,1671,1863,1893,"Midwest Region"]
[null,"IN","Henry","IN-Henry",1044,1226,1292,1441,1464,"Midwest Region"]
[null,"IN","Howard","IN-Howard",1029,1209,1274,1421,1443,"Midwest Region"]
[null,"IN","Huntington","IN-Huntington",1041,1222,1288,1436,1459,"Midwest Region"]
[null,"IN","Jackson","IN-Jackson",1062,1247,1314,1465,1489,"Midwest Region"]
[null,"IN","Jasper","IN-Jasper",1173,1378,1452,1619,1645,"Midwest Region"]
[null,"IN","Jay","IN-Jay",917,1077,1135,1266,1286,"Midwest Region"]
[null,"IN","Jefferson","IN-Jefferson",1051,1235,1301,1451,1474,"Midwest Region"]
[null,"IN","Jennings","IN-Jennings",1050,1233,1299,1448,1472,"Midwest Region"]
[null,"IN","Johnson","IN-Johnson",1269,1491,1571,1752,1780,"Midwest Region"]
[null,"IN","Knox","IN-Knox",974,1144,1206,1345,1366,"Midwest Region"]
[null,"IN","Kosciusko","IN-Kosciusko",1131,1329,1400,1561,1586,"Midwest Region"]
[null,"IN","LaGrange","IN-LaGrange",1138,1336,1408,1570,1595,"Midwest Region"]
[null,"IN","LaPorte","IN-LaPorte",1129,1326,1397,1558,1583,"Midwest Region"]
[null,"IN","Lawrence","IN-Lawrence",1047,1230,1296,1445,1468,"Midwest Region"]
[null,"IN","Madison","IN-Madison",1051,1235,1301,1451,1474,"Midwest Region"]
[null,"IN","Marion","IN-Marion",1165,1368,1442,1608,1634,"Midwest Region"]
[null,"IN","Marshall","IN-Marshall",1109,1302,1372,1530,1554,"Midwest Region"]
[null,"IN","Martin","IN-Martin",1051,1235,1301,1451,1474,"Midwest Region"]
[null,"IN","Miami","IN-Miami",999,1174,1237,1379,1402,"Midwest Region"]
[null,"IN","Monroe","IN-Monroe",1223,1436,1513,1687,1714,"Midwest Region"]
[null,"IN","Montgomery","IN-Montgomery",1063,1248,1315,1466,1490,"Midwest Region"]
[null,"IN","Morgan","IN-Morgan",1220,1433,1510,1684,1711,"Midwest Region"]
[null,"IN","Noble","IN-Noble",1058,1243,1310,1461,1484,"Midwest Region"]
[null,"IN","Ohio","IN-Ohio",1206,1416,1492,1664,1690,"Midwest Region"]
[null,"IN","Orange","IN-Orange",997,1171,1234,1376,1398,"Midwest Region"]
[null,"IN","Owen","IN-Owen",1089,1279,1348,1503,1527,"Midwest Region"]
[null,"IN","Parke","IN-Parke",967,1136,1197,1335,1356,"Midwest Region"]
[null,"IN","Perry","IN-Perry",1027,1206,1271,1417,1440,"Midwest Region"]
[null,"IN","Pike","IN-Pike",1063,1248,1315,1466,1490,"Midwest Region"]
[null,"IN","Posey","IN-Posey",1159,1361,1434,1599,1625,"Midwest Region"]
[null,"IN","Pulaski","IN-Pulaski",1021,1199,1263,1408,1431,"Midwest Region"]
[null,"IN","Putnam","IN-Putnam",1191,1399,1474,1644,1670,"Midwest Region"]
[null,"IN","Randolph","IN-Randolph",946,1111,1171,1306,1327,"Midwest Region"]
[null,"IN","Ripley","IN-Ripley",1166,1369,1443,1609,1635,"Midwest Region"]
[null,"IN","Rush","IN-Rush",1016,1193,1257,1402,1424,"Midwest Region"]
[null,"IN","Saint Joseph","IN-Saint Joseph",1080,1269,1337,1491,1515,"Midwest Region"]
[null,"IN","Scott","IN-Scott",1067,1254,1321,1473,1497,"Midwest Region"]
[null,"IN","Shelby","IN-Shelby",1183,1389,1464,1632,1659,"Midwest Region"]
[null,"IN","Spencer","IN-Spencer",1083,1272,1340,1494,1518,"Midwest Region"]
[null,"IN","Starke","IN-Starke",1024,1202,1267,1413,1436,"Midwest Region"]
[null,"IN","Steuben","IN-Steuben",1095,1286,1355,1511,1535,"Midwest Region"]
[null,"IN","Sullivan","IN-Sullivan",985,1157,1219,1359,1381,"Midwest Region"]
[null,"IN","Switzerland","IN-Switzerland",1096,1287,1356,1512,1536,"Midwest Region"]
[null,"IN","Tippecanoe","IN-Tippecanoe",1176,1381,1455,1622,1649,"Midwest Region"]
[null,"IN","Tipton","IN-Tipton",1122,1317,1388,1548,1573,"Midwest Region"]
[null,"IN","Union","IN-Union",1087,1276,1345,1500,1524,"Midwest Region"]
[null,"IN","Vanderburgh","IN-Vanderburgh",1092,1282,1351,1506,1531,"Midwest Region"]
[null,"IN","Vermillion","IN-Vermillion",962,1129,1190,1327,1348,"Midwest Region"]
[null,"IN","Vigo","IN-Vigo",1009,1185,1249,1393,1415,"Midwest Region"]
[null,"IN","Wabash","IN-Wabash",991,1164,1227,1368,1390,"Midwest Region"]
[null,"IN","Warren","IN-Warren",1055,1239,1306,1456,1480,"Midwest Region"]
[null,"IN","Warrick","IN-Warrick",1234,1449,1527,1703,1730,"Midwest Region"]
[null,"IN","Washington","IN-Washington",1051,1235,1301,1451,1474,"Midwest Region"]
[null,"IN","Wayne","IN-Wayne",1018,1196,1260,1405,1428,"Midwest Region"]
[null,"IN","Wells","IN-Wells",1030,1210,1275,1422,1445,"Midwest Region"]
[null,"IN","White","IN-White",1022,1200,1265,1410,1433,"Midwest Region"]
[null,"IN","Whitley","IN-Whitley",1153,1354,1427,1591,1617,"Midwest Region"]
[null,"KS","Allen","KS-Allen",1041,1222,1288,1436,1459,"Midwest Region"]
[null,"KS","Anderson","KS-Anderson",1158,1360,1433,1598,1624,"Midwest Region"]
[null,"KS","Atchison","KS-Atchison",1059,1244,1311,1462,1485,"Midwest Region"]
[null,"KS","Barber","KS-Barber",1003,1178,1241,1384,1406,"Midwest Region"]
[null,"KS","Barton","KS-Barton",1056,1240,1307,1457,1481,"Midwest Region"]
[null,"KS","Bourbon","KS-Bourbon",1036,1217,1282,1429,1453,"Midwest Region"]
[null,"KS","Brown","KS-Brown",1022,1200,1265,1410,1433,"Midwest Region"]
[null,"KS","Butler","KS-Butler",1371,1610,1697,1892,1923,"Midwest Region"]
[null,"KS","Chase","KS-Chase",1151,1351,1424,1588,1613,"Midwest Region"]
[null,"KS","Chautauqua","KS-Chautauqua",1004,1179,1242,1385,1407,"Midwest Region"]
[null,"KS","Cherokee","KS-Cherokee",1012,1189,1253,1397,1420,"Midwest Region"]
[null,"KS","Cheyenne","KS-Cheyenne",1033,1214,1279,1426,1449,"Midwest Region"]
[null,"KS","Clark","KS-Clark",991,1164,1227,1368,1390,"Midwest Region"]
[null,"KS","Clay","KS-Clay",1093,1284,1353,1509,1533,"Midwest Region"]
[null,"KS","Cloud","KS-Cloud",962,1129,1190,1327,1348,"Midwest Region"]
[null,"KS","Coffey","KS-Coffey",1149,1349,1422,1586,1611,"Midwest Region"]
[null,"KS","Comanche","KS-Comanche",930,1092,1151,1283,1304,"Midwest Region"]
[null,"KS","Cowley","KS-Cowley",1139,1338,1410,1572,1598,"Midwest Region"]
[null,"KS","Crawford","KS-Crawford",1079,1268,1336,1490,1514,"Midwest Region"]
[null,"KS","Decatur","KS-Decatur",898,1055,1112,1240,1260,"Midwest Region"]
[null,"KS","Dickinson","KS-Dickinson",1166,1369,1443,1609,1635,"Midwest Region"]
[null,"KS","Doniphan","KS-Doniphan",1139,1338,1410,1572,1598,"Midwest Region"]
[null,"KS","Douglas","KS-Douglas",1416,1663,1752,1953,1985,"Midwest Region"]
[null,"KS","Edwards","KS-Edwards",916,1076,1134,1264,1285,"Midwest Region"]
[null,"KS","Elk","KS-Elk",907,1065,1122,1251,1271,"Midwest Region"]
[null,"KS","Ellis","KS-Ellis",1249,1467,1546,1724,1752,"Midwest Region"]
[null,"KS","Ellsworth","KS-Ellsworth",1010,1186,1250,1394,1416,"Midwest Region"]
[null,"KS","Finney","KS-Finney",1273,1496,1576,1757,1786,"Midwest Region"]
[null,"KS","Ford","KS-Ford",1160,1363,1436,1601,1627,"Midwest Region"]
[null,"KS","Franklin","KS-Franklin",1261,1481,1561,1741,1769,"Midwest Region"]
[null,"KS","Geary","KS-Geary",1304,1532,1614,1800,1829,"Midwest Region"]
[null,"KS","Gove","KS-Gove",1054,1237,1304,1454,1477,"Midwest Region"]
[null,"KS","Graham","KS-Graham",882,1035,1091,1216,1236,"Midwest Region"]
[null,"KS","Grant","KS-Grant",1183,1389,1464,1632,1659,"Midwest Region"]
[null,"KS","Gray","KS-Gray",1230,1444,1522,1697,1724,"Midwest Region"]
[null,"KS","Greeley","KS-Greeley",1012,1189,1253,1397,1420,"Midwest Region"]
[null,"KS","Greenwood","KS-Greenwood",1000,1175,1238,1380,1403,"Midwest Region"]
[null,"KS","Hamilton","KS-Hamilton",1137,1335,1407,1569,1594,"Midwest Region"]
[null,"KS","Harper","KS-Harper",1027,1206,1271,1417,1440,"Midwest Region"]
[null,"KS","Harvey","KS-Harvey",1199,1408,1484,1655,1681,"Midwest Region"]
[null,"KS","Haskell","KS-Haskell",1130,1328,1399,1560,1585,"Midwest Region"]
[null,"KS","Hodgeman","KS-Hodgeman",1097,1289,1358,1514,1539,"Midwest Region"]
[null,"KS","Jackson","KS-Jackson",1288,1513,1594,1777,1806,"Midwest Region"]
[null,"KS","Jefferson","KS-Jefferson",1272,1494,1574,1755,1783,"Midwest Region"]
[null,"KS","Jewell","KS-Jewell",891,1047,1103,1230,1250,"Midwest Region"]
[null,"KS","Johnson","KS-Johnson",1618,1901,2003,2233,2269,"Midwest Region"]
[null,"KS","Kearny","KS-Kearny",1137,1335,1407,1569,1594,"Midwest Region"]
[null,"KS","Kingman","KS-Kingman",1186,1393,1468,1637,1663,"Midwest Region"]
[null,"KS","Kiowa","KS-Kiowa",1147,1347,1419,1582,1608,"Midwest Region"]
[null,"KS","Labette","KS-Labette",1043,1225,1291,1439,1463,"Midwest Region"]
[null,"KS","Lane","KS-Lane",932,1095,1154,1287,1307,"Midwest Region"]
[null,"KS","Leavenworth","KS-Leavenworth",1451,1704,1796,2003,2035,"Midwest Region"]
[null,"KS","Lincoln","KS-Lincoln",1013,1190,1254,1398,1421,"Midwest Region"]
[null,"KS","Linn","KS-Linn",1119,1314,1385,1544,1569,"Midwest Region"]
[null,"KS","Logan","KS-Logan",1096,1288,1357,1513,1537,"Midwest Region"]
[null,"KS","Lyon","KS-Lyon",1139,1338,1410,1572,1598,"Midwest Region"]
[null,"KS","Marion","KS-Marion",1070,1256,1324,1476,1500,"Midwest Region"]
[null,"KS","Marshall","KS-Marshall",1080,1269,1337,1491,1515,"Midwest Region"]
[null,"KS","McPherson","KS-McPherson",1200,1409,1485,1656,1683,"Midwest Region"]
[null,"KS","Meade","KS-Meade",1065,1251,1318,1470,1493,"Midwest Region"]
[null,"KS","Miami","KS-Miami",1497,1758,1853,2066,2099,"Midwest Region"]
[null,"KS","Mitchell","KS-Mitchell",1119,1314,1385,1544,1569,"Midwest Region"]
[null,"KS","Montgomery","KS-Montgomery",1009,1185,1249,1393,1415,"Midwest Region"]
[null,"KS","Morris","KS-Morris",1123,1319,1390,1550,1575,"Midwest Region"]
[null,"KS","Morton","KS-Morton",1167,1370,1444,1610,1636,"Midwest Region"]
[null,"KS","Nemaha","KS-Nemaha",1146,1346,1418,1581,1607,"Midwest Region"]
[null,"KS","Neosho","KS-Neosho",1008,1183,1247,1390,1413,"Midwest Region"]
[null,"KS","Ness","KS-Ness",993,1166,1229,1370,1392,"Midwest Region"]
[null,"KS","Norton","KS-Norton",957,1124,1184,1320,1341,"Midwest Region"]
[null,"KS","Osage","KS-Osage",1158,1360,1433,1598,1624,"Midwest Region"]
[null,"KS","Osborne","KS-Osborne",1000,1175,1238,1380,1403,"Midwest Region"]
[null,"KS","Ottawa","KS-Ottawa",1134,1331,1403,1564,1590,"Midwest Region"]
[null,"KS","Pawnee","KS-Pawnee",1004,1180,1243,1386,1408,"Midwest Region"]
[null,"KS","Phillips","KS-Phillips",984,1156,1218,1358,1380,"Midwest Region"]
[null,"KS","Pottawatomie","KS-Pottawatomie",1317,1547,1630,1817,1847,"Midwest Region"]
[null,"KS","Pratt","KS-Pratt",1126,1323,1394,1554,1579,"Midwest Region"]
[null,"KS","Rawlins","KS-Rawlins",1232,1447,1525,1700,1728,"Midwest Region"]
[null,"KS","Reno","KS-Reno",1086,1275,1344,1499,1523,"Midwest Region"]
[null,"KS","Republic","KS-Republic",999,1174,1237,1379,1402,"Midwest Region"]
[null,"KS","Rice","KS-Rice",1044,1226,1292,1441,1464,"Midwest Region"]
[null,"KS","Riley","KS-Riley",1423,1671,1761,1964,1995,"Midwest Region"]
[null,"KS","Rooks","KS-Rooks",999,1173,1236,1378,1400,"Midwest Region"]
[null,"KS","Rush","KS-Rush",957,1124,1184,1320,1341,"Midwest Region"]
[null,"KS","Russell","KS-Russell",1015,1192,1256,1400,1423,"Midwest Region"]
[null,"KS","Saline","KS-Saline",1201,1411,1487,1658,1685,"Midwest Region"]
[null,"KS","Scott","KS-Scott",1328,1560,1644,1833,1863,"Midwest Region"]
[null,"KS","Sedgwick","KS-Sedgwick",1260,1479,1559,1738,1766,"Midwest Region"]
[null,"KS","Seward","KS-Seward",1149,1349,1422,1586,1611,"Midwest Region"]
[null,"KS","Shawnee","KS-Shawnee",1231,1445,1523,1698,1726,"Midwest Region"]
[null,"KS","Sheridan","KS-Sheridan",1083,1272,1340,1494,1518,"Midwest Region"]
[null,"KS","Sherman","KS-Sherman",1046,1228,1294,1443,1466,"Midwest Region"]
[null,"KS","Smith","KS-Smith",1088,1277,1346,1501,1525,"Midwest Region"]
[null,"KS","Stafford","KS-Stafford",965,1133,1194,1331,1353,"Midwest Region"]
[null,"KS","Stanton","KS-Stanton",1017,1195,1259,1404,1426,"Midwest Region"]
[null,"KS","Stevens","KS-Stevens",1175,1380,1454,1621,1647,"Midwest Region"]
[null,"KS","Sumner","KS-Sumner",1155,1356,1429,1593,1619,"Midwest Region"]
[null,"KS","Thomas","KS-Thomas",1163,1366,1439,1604,1630,"Midwest Region"]
[null,"KS","Trego","KS-Trego",1121,1316,1387,1547,1571,"Midwest Region"]
[null,"KS","Wabaunsee","KS-Wabaunsee",1143,1343,1415,1578,1603,"Midwest Region"]
[null,"KS","Wallace","KS-Wallace",1020,1198,1262,1407,1430,"Midwest Region"]
[null,"KS","Washington","KS-Washington",1026,1205,1270,1416,1439,"Midwest Region"]
[null,"KS","Wichita","KS-Wichita",1142,1341,1413,1575,1601,"Midwest Region"]
[null,"KS","Wilson","KS-Wilson",949,1115,1175,1310,1331,"Midwest Region"]
[null,"KS","Woodson","KS-Woodson",903,1061,1118,1247,1267,"Midwest Region"]
[null,"KS","Wyandotte","KS-Wyandotte",1217,1429,1506,1679,1706,"Midwest Region"]
[null,"MI","Alcona","MI-Alcona",1012,1188,1252,1396,1419,"Midwest Region"]
[null,"MI","Alger","MI-Alger",1070,1256,1324,1476,1500,"Midwest Region"]
[null,"MI","Allegan","MI-Allegan",1235,1451,1529,1705,1732,"Midwest Region"]
[null,"MI","Alpena","MI-Alpena",1016,1193,1257,1402,1424,"Midwest Region"]
[null,"MI","Antrim","MI-Antrim",1201,1410,1486,1657,1684,"Midwest Region"]
[null,"MI","Arenac","MI-Arenac",1052,1236,1302,1452,1475,"Midwest Region"]
[null,"MI","Baraga","MI-Baraga",991,1164,1227,1368,1390,"Midwest Region"]
[null,"MI","Barry","MI-Barry",1252,1471,1550,1728,1756,"Midwest Region"]
[null,"MI","Bay","MI-Bay",1134,1331,1403,1564,1590,"Midwest Region"]
[null,"MI","Benzie","MI-Benzie",1184,1390,1465,1633,1660,"Midwest Region"]
[null,"MI","Berrien","MI-Berrien",1184,1390,1465,1633,1660,"Midwest Region"]
[null,"MI","Branch","MI-Branch",1072,1259,1327,1480,1503,"Midwest Region"]
[null,"MI","Calhoun","MI-Calhoun",1147,1348,1420,1583,1609,"Midwest Region"]
[null,"MI","Cass","MI-Cass",1163,1366,1439,1604,1630,"Midwest Region"]
[null,"MI","Charlevoix","MI-Charlevoix",1277,1500,1581,1763,1791,"Midwest Region"]
[null,"MI","Cheboygan","MI-Cheboygan",1054,1237,1304,1454,1477,"Midwest Region"]
[null,"MI","Chippewa","MI-Chippewa",1096,1287,1356,1512,1536,"Midwest Region"]
[null,"MI","Clare","MI-Clare",991,1164,1227,1368,1390,"Midwest Region"]
[null,"MI","Clinton","MI-Clinton",1398,1642,1730,1929,1960,"Midwest Region"]
[null,"MI","Crawford","MI-Crawford",1041,1222,1288,1436,1459,"Midwest Region"]
[null,"MI","Delta","MI-Delta",1071,1258,1326,1478,1502,"Midwest Region"]
[null,"MI","Dickinson","MI-Dickinson",1097,1289,1358,1514,1539,"Midwest Region"]
[null,"MI","Eaton","MI-Eaton",1319,1550,1633,1821,1850,"Midwest Region"]
[null,"MI","Emmet","MI-Emmet",1275,1498,1578,1759,1788,"Midwest Region"]
[null,"MI","Gladwin","MI-Gladwin",1057,1241,1308,1458,1482,"Midwest Region"]
[null,"MI","Gogebic","MI-Gogebic",936,1100,1159,1292,1313,"Midwest Region"]
[null,"MI","Grand Traverse","MI-Grand Traverse",1257,1477,1556,1735,1763,"Midwest Region"]
[null,"MI","Gratiot","MI-Gratiot",1091,1281,1350,1505,1530,"Midwest Region"]
[null,"MI","Hillsdale","MI-Hillsdale",1113,1308,1378,1536,1561,"Midwest Region"]
[null,"MI","Houghton","MI-Houghton",1037,1219,1284,1432,1455,"Midwest Region"]
[null,"MI","Huron","MI-Huron",1063,1248,1315,1466,1490,"Midwest Region"]
[null,"MI","Ingham","MI-Ingham",1278,1501,1582,1764,1792,"Midwest Region"]
[null,"MI","Ionia","MI-Ionia",1200,1409,1485,1656,1683,"Midwest Region"]
[null,"MI","Iosco","MI-Iosco",954,1121,1181,1317,1338,"Midwest Region"]
[null,"MI","Iron","MI-Iron",1025,1204,1269,1415,1438,"Midwest Region"]
[null,"MI","Isabella","MI-Isabella",1182,1388,1463,1631,1658,"Midwest Region"]
[null,"MI","Jackson","MI-Jackson",1185,1392,1467,1636,1662,"Midwest Region"]
[null,"MI","Kalamazoo","MI-Kalamazoo",1280,1503,1584,1766,1795,"Midwest Region"]
[null,"MI","Kalkaska","MI-Kalkaska",1017,1195,1259,1404,1426,"Midwest Region"]
[null,"MI","Kent","MI-Kent",1269,1490,1570,1751,1779,"Midwest Region"]
[null,"MI","Keweenaw","MI-Keweenaw",1052,1236,1302,1452,1475,"Midwest Region"]
[null,"MI","Lake","MI-Lake",997,1171,1234,1376,1398,"Midwest Region"]
[null,"MI","Leelanau","MI-Leelanau",1400,1645,1733,1932,1963,"Midwest Region"]
[null,"MI","Luce","MI-Luce",999,1173,1236,1378,1400,"Midwest Region"]
[null,"MI","Mackinac","MI-Mackinac",1115,1310,1380,1539,1564,"Midwest Region"]
[null,"MI","Manistee","MI-Manistee",1068,1255,1322,1474,1498,"Midwest Region"]
[null,"MI","Marquette","MI-Marquette",1150,1350,1423,1587,1612,"Midwest Region"]
[null,"MI","Mason","MI-Mason",1138,1337,1409,1571,1596,"Midwest Region"]
[null,"MI","Mecosta","MI-Mecosta",1122,1317,1388,1548,1573,"Midwest Region"]
[null,"MI","Menominee","MI-Menominee",1008,1183,1247,1390,1413,"Midwest Region"]
[null,"MI","Midland","MI-Midland",1235,1451,1529,1705,1732,"Midwest Region"]
[null,"MI","Missaukee","MI-Missaukee",1041,1222,1288,1436,1459,"Midwest Region"]
[null,"MI","Montcalm","MI-Montcalm",1077,1265,1333,1486,1510,"Midwest Region"]
[null,"MI","Montmorency","MI-Montmorency",1014,1191,1255,1399,1422,"Midwest Region"]
[null,"MI","Muskegon","MI-Muskegon",1113,1307,1377,1535,1560,"Midwest Region"]
[null,"MI","Newaygo","MI-Newaygo",1125,1321,1392,1552,1577,"Midwest Region"]
[null,"MI","Oceana","MI-Oceana",1113,1307,1377,1535,1560,"Midwest Region"]
[null,"MI","Ogemaw","MI-Ogemaw",1033,1214,1279,1426,1449,"Midwest Region"]
[null,"MI","Ontonagon","MI-Ontonagon",967,1136,1197,1335,1356,"Midwest Region"]
[null,"MI","Osceola","MI-Osceola",1055,1239,1306,1456,1480,"Midwest Region"]
[null,"MI","Oscoda","MI-Oscoda",991,1163,1226,1367,1389,"Midwest Region"]
[null,"MI","Otsego","MI-Otsego",1114,1309,1379,1538,1562,"Midwest Region"]
[null,"MI","Ottawa","MI-Ottawa",1289,1514,1595,1778,1807,"Midwest Region"]
[null,"MI","Presque Isle","MI-Presque Isle",995,1168,1231,1373,1395,"Midwest Region"]
[null,"MI","Roscommon","MI-Roscommon",982,1153,1215,1355,1377,"Midwest Region"]
[null,"MI","Saginaw","MI-Saginaw",1149,1349,1422,1586,1611,"Midwest Region"]
[null,"MI","Saint Joseph","MI-Saint Joseph",1088,1278,1347,1502,1526,"Midwest Region"]
[null,"MI","Sanilac","MI-Sanilac",1088,1277,1346,1501,1525,"Midwest Region"]
[null,"MI","Schoolcraft","MI-Schoolcraft",1063,1248,1315,1466,1490,"Midwest Region"]
[null,"MI","Shiawassee","MI-Shiawassee",1179,1385,1459,1627,1653,"Midwest Region"]
[null,"MI","Tuscola","MI-Tuscola",1124,1320,1391,1551,1576,"Midwest Region"]
[null,"MI","Van Buren","MI-Van Buren",1212,1424,1500,1673,1700,"Midwest Region"]
[null,"MI","Wexford","MI-Wexford",1067,1254,1321,1473,1497,"Midwest Region"]
[null,"MN","Aitkin","MN-Aitkin",1231,1445,1523,1698,1726,"Midwest Region"]
[null,"MN","Becker","MN-Becker",1312,1541,1624,1811,1840,"Midwest Region"]
[null,"MN","Beltrami","MN-Beltrami",1252,1470,1549,1727,1755,"Midwest Region"]
[null,"MN","Big Stone","MN-Big Stone",1042,1223,1289,1437,1460,"Midwest Region"]
[null,"MN","Blue Earth","MN-Blue Earth",1314,1543,1626,1813,1842,"Midwest Region"]
[null,"MN","Brown","MN-Brown",1168,1371,1445,1611,1637,"Midwest Region"]
[null,"MN","Carlton","MN-Carlton",1311,1540,1623,1810,1839,"Midwest Region"]
[null,"MN","Cass","MN-Cass",1242,1459,1537,1714,1741,"Midwest Region"]
[null,"MN","Chippewa","MN-Chippewa",1130,1327,1398,1559,1584,"Midwest Region"]
[null,"MN","Clay","MN-Clay",1336,1570,1654,1844,1874,"Midwest Region"]
[null,"MN","Clearwater","MN-Clearwater",1180,1386,1460,1628,1654,"Midwest Region"]
[null,"MN","Cook","MN-Cook",1471,1727,1820,2029,2062,"Midwest Region"]
[null,"MN","Cottonwood","MN-Cottonwood",1024,1202,1267,1413,1436,"Midwest Region"]
[null,"MN","Crow Wing","MN-Crow Wing",1272,1494,1574,1755,1783,"Midwest Region"]
[null,"MN","Dodge","MN-Dodge",1423,1671,1761,1964,1995,"Midwest Region"]
[null,"MN","Douglas","MN-Douglas",1331,1563,1647,1836,1866,"Midwest Region"]
[null,"MN","Faribault","MN-Faribault",975,1145,1207,1346,1368,"Midwest Region"]
[null,"MN","Fillmore","MN-Fillmore",1271,1493,1573,1754,1782,"Midwest Region"]
[null,"MN","Freeborn","MN-Freeborn",1072,1259,1327,1480,1503,"Midwest Region"]
[null,"MN","Goodhue","MN-Goodhue",1449,1702,1793,1999,2031,"Midwest Region"]
[null,"MN","Grant","MN-Grant",1146,1346,1418,1581,1607,"Midwest Region"]
[null,"MN","Houston","MN-Houston",1317,1547,1630,1817,1847,"Midwest Region"]
[null,"MN","Hubbard","MN-Hubbard",1271,1493,1573,1754,1782,"Midwest Region"]
[null,"MN","Itasca","MN-Itasca",1218,1431,1508,1681,1709,"Midwest Region"]
[null,"MN","Jackson","MN-Jackson",1100,1293,1362,1519,1543,"Midwest Region"]
[null,"MN","Kanabec","MN-Kanabec",1284,1508,1589,1772,1800,"Midwest Region"]
[null,"MN","Kandiyohi","MN-Kandiyohi",1298,1524,1606,1791,1820,"Midwest Region"]
[null,"MN","Kittson","MN-Kittson",1092,1282,1351,1506,1531,"Midwest Region"]
[null,"MN","Koochiching","MN-Koochiching",1096,1287,1356,1512,1536,"Midwest Region"]
[null,"MN","Lac qui Parle","MN-Lac qui Parle",1039,1220,1286,1434,1457,"Midwest Region"]
[null,"MN","Lake","MN-Lake",1255,1474,1553,1732,1760,"Midwest Region"]
[null,"MN","Lake of the Woods","MN-Lake of the Woods",1123,1319,1390,1550,1575,"Midwest Region"]
[null,"MN","Le Sueur","MN-Le Sueur",1403,1647,1736,1936,1967,"Midwest Region"]
[null,"MN","Lincoln","MN-Lincoln",1134,1332,1404,1565,1591,"Midwest Region"]
[null,"MN","Lyon","MN-Lyon",1204,1414,1490,1661,1688,"Midwest Region"]
[null,"MN","Mahnomen","MN-Mahnomen",1096,1288,1357,1513,1537,"Midwest Region"]
[null,"MN","Marshall","MN-Marshall",1104,1296,1366,1523,1548,"Midwest Region"]
[null,"MN","Martin","MN-Martin",1113,1308,1378,1536,1561,"Midwest Region"]
[null,"MN","McLeod","MN-McLeod",1298,1524,1606,1791,1820,"Midwest Region"]
[null,"MN","Meeker","MN-Meeker",1331,1563,1647,1836,1866,"Midwest Region"]
[null,"MN","Mille Lacs","MN-Mille Lacs",1312,1541,1624,1811,1840,"Midwest Region"]
[null,"MN","Morrison","MN-Morrison",1280,1503,1584,1766,1795,"Midwest Region"]
[null,"MN","Mower","MN-Mower",1154,1355,1428,1592,1618,"Midwest Region"]
[null,"MN","Murray","MN-Murray",1105,1298,1368,1525,1550,"Midwest Region"]
[null,"MN","Nicollet","MN-Nicollet",1366,1604,1690,1884,1915,"Midwest Region"]
[null,"MN","Nobles","MN-Nobles",1130,1327,1398,1559,1584,"Midwest Region"]
[null,"MN","Norman","MN-Norman",1063,1249,1316,1467,1491,"Midwest Region"]
[null,"MN","Olmsted","MN-Olmsted",1418,1665,1755,1957,1988,"Midwest Region"]
[null,"MN","Otter Tail","MN-Otter Tail",1234,1449,1527,1703,1730,"Midwest Region"]
[null,"MN","Pennington","MN-Pennington",1101,1293,1363,1520,1544,"Midwest Region"]
[null,"MN","Pine","MN-Pine",1256,1476,1555,1734,1762,"Midwest Region"]
[null,"MN","Pipestone","MN-Pipestone",1053,1237,1303,1453,1476,"Midwest Region"]
[null,"MN","Polk","MN-Polk",1260,1480,1560,1739,1767,"Midwest Region"]
[null,"MN","Pope","MN-Pope",1235,1451,1529,1705,1732,"Midwest Region"]
[null,"MN","Red Lake","MN-Red Lake",1132,1330,1401,1562,1587,"Midwest Region"]
[null,"MN","Redwood","MN-Redwood",1075,1262,1330,1483,1507,"Midwest Region"]
[null,"MN","Renville","MN-Renville",1126,1322,1393,1553,1578,"Midwest Region"]
[null,"MN","Rice","MN-Rice",1469,1725,1818,2027,2060,"Midwest Region"]
[null,"MN","Rock","MN-Rock",1159,1362,1435,1600,1626,"Midwest Region"]
[null,"MN","Roseau","MN-Roseau",1245,1462,1541,1718,1746,"Midwest Region"]
[null,"MN","Saint Louis","MN-Saint Louis",1218,1430,1507,1680,1707,"Midwest Region"]
[null,"MN","Sibley","MN-Sibley",1286,1511,1592,1775,1804,"Midwest Region"]
[null,"MN","Steele","MN-Steele",1343,1577,1662,1853,1883,"Midwest Region"]
[null,"MN","Stevens","MN-Stevens",1180,1386,1461,1629,1655,"Midwest Region"]
[null,"MN","Swift","MN-Swift",1042,1224,1290,1438,1462,"Midwest Region"]
[null,"MN","Todd","MN-Todd",1190,1398,1473,1642,1669,"Midwest Region"]
[null,"MN","Traverse","MN-Traverse",1038,1219,1285,1433,1456,"Midwest Region"]
[null,"MN","Wabasha","MN-Wabasha",1328,1559,1643,1832,1862,"Midwest Region"]
[null,"MN","Wadena","MN-Wadena",1118,1313,1384,1543,1568,"Midwest Region"]
[null,"MN","Waseca","MN-Waseca",1274,1497,1577,1758,1787,"Midwest Region"]
[null,"MN","Watonwan","MN-Watonwan",1039,1220,1286,1434,1457,"Midwest Region"]
[null,"MN","Wilkin","MN-Wilkin",1160,1363,1436,1601,1627,"Midwest Region"]
[null,"MN","Winona","MN-Winona",1257,1477,1556,1735,1763,"Midwest Region"]
[null,"MN","Yellow Medicine","MN-Yellow Medicine",1074,1261,1329,1482,1506,"Midwest Region"]
[null,"MO","Adair","MO-Adair",1050,1233,1299,1448,1472,"Midwest Region"]
[null,"MO","Andrew","MO-Andrew",1214,1425,1502,1675,1702,"Midwest Region"]
[null,"MO","Atchison","MO-Atchison",1001,1176,1239,1381,1404,"Midwest Region"]
[null,"MO","Audrain","MO-Audrain",1055,1239,1306,1456,1480,"Midwest Region"]
[null,"MO","Barry","MO-Barry",1013,1190,1254,1398,1421,"Midwest Region"]
[null,"MO","Barton","MO-Barton",1042,1223,1289,1437,1460,"Midwest Region"]
[null,"MO","Bates","MO-Bates",1114,1309,1379,1538,1562,"Midwest Region"]
[null,"MO","Benton","MO-Benton",1021,1199,1263,1408,1431,"Midwest Region"]
[null,"MO","Bollinger","MO-Bollinger",1004,1179,1242,1385,1407,"Midwest Region"]
[null,"MO","Boone","MO-Boone",1293,1518,1600,1784,1813,"Midwest Region"]
[null,"MO","Buchanan","MO-Buchanan",1115,1310,1380,1539,1564,"Midwest Region"]
[null,"MO","Butler","MO-Butler",1056,1240,1307,1457,1481,"Midwest Region"]
[null,"MO","Caldwell","MO-Caldwell",1139,1338,1410,1572,1598,"Midwest Region"]
[null,"MO","Callaway","MO-Callaway",1109,1302,1372,1530,1554,"Midwest Region"]
[null,"MO","Camden","MO-Camden",1147,1348,1420,1583,1609,"Midwest Region"]
[null,"MO","Cape Girardeau","MO-Cape Girardeau",1138,1337,1409,1571,1596,"Midwest Region"]
[null,"MO","Carroll","MO-Carroll",1018,1196,1260,1405,1428,"Midwest Region"]
[null,"MO","Carter","MO-Carter",984,1156,1218,1358,1380,"Midwest Region"]
[null,"MO","Cass","MO-Cass",1393,1636,1724,1922,1953,"Midwest Region"]
[null,"MO","Cedar","MO-Cedar",974,1144,1205,1344,1365,"Midwest Region"]
[null,"MO","Chariton","MO-Chariton",968,1137,1198,1336,1357,"Midwest Region"]
[null,"MO","Christian","MO-Christian",1192,1400,1475,1645,1671,"Midwest Region"]
[null,"MO","Clark","MO-Clark",1017,1195,1259,1404,1426,"Midwest Region"]
[null,"MO","Clay","MO-Clay",1399,1643,1731,1930,1961,"Midwest Region"]
[null,"MO","Clinton","MO-Clinton",1252,1471,1550,1728,1756,"Midwest Region"]
[null,"MO","Cole","MO-Cole",1208,1419,1495,1667,1694,"Midwest Region"]
[null,"MO","Cooper","MO-Cooper",1088,1277,1346,1501,1525,"Midwest Region"]
[null,"MO","Crawford","MO-Crawford",1038,1219,1285,1433,1456,"Midwest Region"]
[null,"MO","Dade","MO-Dade",965,1133,1194,1331,1353,"Midwest Region"]
[null,"MO","Dallas","MO-Dallas",965,1133,1194,1331,1353,"Midwest Region"]
[null,"MO","Daviess","MO-Daviess",1100,1293,1362,1519,1543,"Midwest Region"]
[null,"MO","DeKalb","MO-DeKalb",1147,1347,1419,1582,1608,"Midwest Region"]
[null,"MO","Dent","MO-Dent",966,1134,1195,1332,1354,"Midwest Region"]
[null,"MO","Douglas","MO-Douglas",922,1083,1141,1272,1293,"Midwest Region"]
[null,"MO","Dunklin","MO-Dunklin",905,1063,1120,1249,1269,"Midwest Region"]
[null,"MO","Franklin","MO-Franklin",1228,1442,1520,1695,1722,"Midwest Region"]
[null,"MO","Gasconade","MO-Gasconade",1116,1311,1381,1540,1565,"Midwest Region"]
[null,"MO","Gentry","MO-Gentry",1021,1199,1263,1408,1431,"Midwest Region"]
[null,"MO","Greene","MO-Greene",1100,1293,1362,1519,1543,"Midwest Region"]
[null,"MO","Grundy","MO-Grundy",992,1165,1228,1369,1391,"Midwest Region"]
[null,"MO","Harrison","MO-Harrison",1004,1180,1243,1386,1408,"Midwest Region"]
[null,"MO","Henry","MO-Henry",1016,1194,1258,1403,1425,"Midwest Region"]
[null,"MO","Hickory","MO-Hickory",978,1149,1211,1350,1372,"Midwest Region"]
[null,"MO","Holt","MO-Holt",1037,1219,1284,1432,1455,"Midwest Region"]
[null,"MO","Howard","MO-Howard",1067,1254,1321,1473,1497,"Midwest Region"]
[null,"MO","Howell","MO-Howell",1012,1188,1252,1396,1419,"Midwest Region"]
[null,"MO","Iron","MO-Iron",967,1136,1197,1335,1356,"Midwest Region"]
[null,"MO","Jackson","MO-Jackson",1303,1531,1613,1798,1828,"Midwest Region"]
[null,"MO","Jasper","MO-Jasper",1071,1258,1326,1478,1502,"Midwest Region"]
[null,"MO","Jefferson","MO-Jefferson",1297,1523,1605,1790,1818,"Midwest Region"]
[null,"MO","Johnson","MO-Johnson",1228,1442,1520,1695,1722,"Midwest Region"]
[null,"MO","Knox","MO-Knox",969,1138,1199,1337,1358,"Midwest Region"]
[null,"MO","Laclede","MO-Laclede",1021,1199,1263,1408,1431,"Midwest Region"]
[null,"MO","Lafayette","MO-Lafayette",1169,1373,1447,1613,1639,"Midwest Region"]
[null,"MO","Lawrence","MO-Lawrence",1069,1256,1323,1475,1499,"Midwest Region"]
[null,"MO","Lewis","MO-Lewis",941,1106,1165,1299,1320,"Midwest Region"]
[null,"MO","Lincoln","MO-Lincoln",1252,1470,1549,1727,1755,"Midwest Region"]
[null,"MO","Linn","MO-Linn",984,1156,1218,1358,1380,"Midwest Region"]
[null,"MO","Livingston","MO-Livingston",1071,1257,1325,1477,1501,"Midwest Region"]
[null,"MO","Macon","MO-Macon",986,1158,1220,1360,1382,"Midwest Region"]
[null,"MO","Madison","MO-Madison",969,1138,1199,1337,1358,"Midwest Region"]
[null,"MO","Maries","MO-Maries",1039,1220,1286,1434,1457,"Midwest Region"]
[null,"MO","Marion","MO-Marion",1050,1233,1299,1448,1472,"Midwest Region"]
[null,"MO","McDonald","MO-McDonald",989,1162,1224,1365,1387,"Midwest Region"]
[null,"MO","Mercer","MO-Mercer",957,1124,1184,1320,1341,"Midwest Region"]
[null,"MO","Miller","MO-Miller",1012,1189,1253,1397,1420,"Midwest Region"]
[null,"MO","Mississippi","MO-Mississippi",911,1070,1127,1257,1277,"Midwest Region"]
[null,"MO","Moniteau","MO-Moniteau",1100,1293,1362,1519,1543,"Midwest Region"]
[null,"MO","Monroe","MO-Monroe",1008,1183,1247,1390,1413,"Midwest Region"]
[null,"MO","Montgomery","MO-Montgomery",1090,1280,1349,1504,1528,"Midwest Region"]
[null,"MO","Morgan","MO-Morgan",1003,1178,1241,1384,1406,"Midwest Region"]
[null,"MO","New Madrid","MO-New Madrid",938,1102,1161,1295,1315,"Midwest Region"]
[null,"MO","Newton","MO-Newton",1071,1258,1326,1478,1502,"Midwest Region"]
[null,"MO","Nodaway","MO-Nodaway",1129,1326,1397,1558,1583,"Midwest Region"]
[null,"MO","Oregon","MO-Oregon",913,1072,1130,1260,1280,"Midwest Region"]
[null,"MO","Osage","MO-Osage",1103,1295,1365,1522,1547,"Midwest Region"]
[null,"MO","Ozark","MO-Ozark",986,1158,1220,1360,1382,"Midwest Region"]
[null,"MO","Pemiscot","MO-Pemiscot",962,1130,1191,1328,1349,"Midwest Region"]
[null,"MO","Perry","MO-Perry",1140,1339,1411,1573,1599,"Midwest Region"]
[null,"MO","Pettis","MO-Pettis",1049,1232,1298,1447,1471,"Midwest Region"]
[null,"MO","Phelps","MO-Phelps",1142,1341,1413,1575,1601,"Midwest Region"]
[null,"MO","Pike","MO-Pike",1059,1244,1311,1462,1485,"Midwest Region"]
[null,"MO","Platte","MO-Platte",1549,1819,1917,2137,2172,"Midwest Region"]
[null,"MO","Polk","MO-Polk",1063,1249,1316,1467,1491,"Midwest Region"]
[null,"MO","Pulaski","MO-Pulaski",1172,1376,1450,1617,1643,"Midwest Region"]
[null,"MO","Putnam","MO-Putnam",1015,1192,1256,1400,1423,"Midwest Region"]
[null,"MO","Ralls","MO-Ralls",1080,1269,1337,1491,1515,"Midwest Region"]
[null,"MO","Randolph","MO-Randolph",1010,1186,1250,1394,1416,"Midwest Region"]
[null,"MO","Ray","MO-Ray",1186,1393,1468,1637,1663,"Midwest Region"]
[null,"MO","Reynolds","MO-Reynolds",1039,1220,1286,1434,1457,"Midwest Region"]
[null,"MO","Ripley","MO-Ripley",917,1077,1135,1266,1286,"Midwest Region"]
[null,"MO","Saint Charles","MO-Saint Charles",1479,1737,1830,2040,2073,"Midwest Region"]
[null,"MO","Saint Clair","MO-Saint Clair",956,1123,1183,1319,1340,"Midwest Region"]
[null,"MO","Saint Francois","MO-Saint Francois",1054,1238,1305,1455,1479,"Midwest Region"]
[null,"MO","Saint Louis","MO-Saint Louis",1435,1685,1776,1980,2012,"Midwest Region"]
[null,"MO","Saint Louis city","MO-Saint Louis city",1231,1446,1524,1699,1727,"Midwest Region"]
[null,"MO","Sainte Genevieve","MO-Sainte Genevieve",1165,1368,1442,1608,1634,"Midwest Region"]
[null,"MO","Saline","MO-Saline",1013,1190,1254,1398,1421,"Midwest Region"]
[null,"MO","Schuyler","MO-Schuyler",951,1117,1177,1312,1334,"Midwest Region"]
[null,"MO","Scotland","MO-Scotland",1008,1184,1248,1392,1414,"Midwest Region"]
[null,"MO","Scott","MO-Scott",984,1156,1218,1358,1380,"Midwest Region"]
[null,"MO","Shannon","MO-Shannon",966,1134,1195,1332,1354,"Midwest Region"]
[null,"MO","Shelby","MO-Shelby",995,1168,1231,1373,1395,"Midwest Region"]
[null,"MO","Stoddard","MO-Stoddard",990,1163,1225,1366,1388,"Midwest Region"]
[null,"MO","Stone","MO-Stone",1103,1295,1365,1522,1547,"Midwest Region"]
[null,"MO","Sullivan","MO-Sullivan",997,1171,1234,1376,1398,"Midwest Region"]
[null,"MO","Taney","MO-Taney",1117,1312,1383,1542,1567,"Midwest Region"]
[null,"MO","Texas","MO-Texas",995,1169,1232,1374,1396,"Midwest Region"]
[null,"MO","Vernon","MO-Vernon",1054,1238,1305,1455,1479,"Midwest Region"]
[null,"MO","Warren","MO-Warren",1256,1476,1555,1734,1762,"Midwest Region"]
[null,"MO","Washington","MO-Washington",950,1116,1176,1311,1332,"Midwest Region"]
[null,"MO","Wayne","MO-Wayne",875,1028,1083,1208,1227,"Midwest Region"]
[null,"MO","Webster","MO-Webster",1031,1211,1276,1423,1446,"Midwest Region"]
[null,"MO","Worth","MO-Worth",968,1137,1198,1336,1357,"Midwest Region"]
[null,"MO","Wright","MO-Wright",957,1124,1184,1320,1341,"Midwest Region"]
[null,"ND","Adams","ND-Adams",1189,1396,1471,1640,1667,"Midwest Region"]
[null,"ND","Barnes","ND-Barnes",1114,1309,1379,1538,1562,"Midwest Region"]
[null,"ND","Benson","ND-Benson",977,1147,1209,1348,1370,"Midwest Region"]
[null,"ND","Billings","ND-Billings",1181,1387,1462,1630,1656,"Midwest Region"]
[null,"ND","Bottineau","ND-Bottineau",1168,1371,1445,1611,1637,"Midwest Region"]
[null,"ND","Bowman","ND-Bowman",1044,1226,1292,1441,1464,"Midwest Region"]
[null,"ND","Burke","ND-Burke",1137,1335,1407,1569,1594,"Midwest Region"]
[null,"ND","Burleigh","ND-Burleigh",1382,1624,1711,1908,1939,"Midwest Region"]
[null,"ND","Cass","ND-Cass",1406,1651,1740,1940,1971,"Midwest Region"]
[null,"ND","Cavalier","ND-Cavalier",1081,1270,1338,1492,1516,"Midwest Region"]
[null,"ND","Dickey","ND-Dickey",1118,1313,1384,1543,1568,"Midwest Region"]
[null,"ND","Divide","ND-Divide",1168,1372,1446,1612,1638,"Midwest Region"]
[null,"ND","Dunn","ND-Dunn",1091,1281,1350,1505,1530,"Midwest Region"]
[null,"ND","Eddy","ND-Eddy",903,1060,1117,1245,1266,"Midwest Region"]
[null,"ND","Emmons","ND-Emmons",949,1114,1174,1309,1330,"Midwest Region"]
[null,"ND","Foster","ND-Foster",1051,1235,1301,1451,1474,"Midwest Region"]
[null,"ND","Golden Valley","ND-Golden Valley",887,1042,1098,1224,1244,"Midwest Region"]
[null,"ND","Grand Forks","ND-Grand Forks",1345,1579,1664,1855,1885,"Midwest Region"]
[null,"ND","Grant","ND-Grant",1029,1208,1273,1419,1442,"Midwest Region"]
[null,"ND","Griggs","ND-Griggs",1076,1264,1332,1485,1509,"Midwest Region"]
[null,"ND","Hettinger","ND-Hettinger",978,1148,1210,1349,1371,"Midwest Region"]
[null,"ND","Kidder","ND-Kidder",1111,1305,1375,1533,1558,"Midwest Region"]
[null,"ND","LaMoure","ND-LaMoure",1089,1279,1348,1503,1527,"Midwest Region"]
[null,"ND","Logan","ND-Logan",1067,1254,1321,1473,1497,"Midwest Region"]
[null,"ND","McHenry","ND-McHenry",1123,1319,1390,1550,1575,"Midwest Region"]
[null,"ND","McIntosh","ND-McIntosh",929,1091,1150,1282,1303,"Midwest Region"]
[null,"ND","McKenzie","ND-McKenzie",1180,1386,1461,1629,1655,"Midwest Region"]
[null,"ND","McLean","ND-McLean",1153,1354,1427,1591,1617,"Midwest Region"]
[null,"ND","Mercer","ND-Mercer",1181,1387,1462,1630,1656,"Midwest Region"]
[null,"ND","Morton","ND-Morton",1303,1531,1613,1798,1828,"Midwest Region"]
[null,"ND","Mountrail","ND-Mountrail",1061,1246,1313,1464,1488,"Midwest Region"]
[null,"ND","Nelson","ND-Nelson",1034,1215,1280,1427,1450,"Midwest Region"]
[null,"ND","Oliver","ND-Oliver",1067,1254,1321,1473,1497,"Midwest Region"]
[null,"ND","Pembina","ND-Pembina",1016,1194,1258,1403,1425,"Midwest Region"]
[null,"ND","Pierce","ND-Pierce",1045,1227,1293,1442,1465,"Midwest Region"]
[null,"ND","Ramsey","ND-Ramsey",1059,1244,1311,1462,1485,"Midwest Region"]
[null,"ND","Ransom","ND-Ransom",1148,1349,1421,1584,1610,"Midwest Region"]
[null,"ND","Renville","ND-Renville",1202,1412,1488,1659,1686,"Midwest Region"]
[null,"ND","Richland","ND-Richland",1117,1312,1383,1542,1567,"Midwest Region"]
[null,"ND","Rolette","ND-Rolette",970,1140,1201,1339,1361,"Midwest Region"]
[null,"ND","Sargent","ND-Sargent",1101,1293,1363,1520,1544,"Midwest Region"]
[null,"ND","Sheridan","ND-Sheridan",950,1116,1176,1311,1332,"Midwest Region"]
[null,"ND","Sioux","ND-Sioux",1017,1195,1259,1404,1426,"Midwest Region"]
[null,"ND","Slope","ND-Slope",1045,1227,1293,1442,1465,"Midwest Region"]
[null,"ND","Stark","ND-Stark",1334,1567,1651,1841,1871,"Midwest Region"]
[null,"ND","Steele","ND-Steele",983,1155,1217,1357,1379,"Midwest Region"]
[null,"ND","Stutsman","ND-Stutsman",1130,1327,1398,1559,1584,"Midwest Region"]
[null,"ND","Towner","ND-Towner",957,1124,1184,1320,1341,"Midwest Region"]
[null,"ND","Traill","ND-Traill",1176,1382,1456,1623,1650,"Midwest Region"]
[null,"ND","Walsh","ND-Walsh",1035,1216,1281,1428,1451,"Midwest Region"]
[null,"ND","Ward","ND-Ward",1315,1544,1627,1814,1843,"Midwest Region"]
[null,"ND","Wells","ND-Wells",986,1158,1220,1360,1382,"Midwest Region"]
[null,"ND","Williams","ND-Williams",1284,1508,1589,1772,1800,"Midwest Region"]
[null,"NE","Adams","NE-Adams",1155,1356,1429,1593,1619,"Midwest Region"]
[null,"NE","Antelope","NE-Antelope",974,1144,1206,1345,1366,"Midwest Region"]
[null,"NE","Arthur","NE-Arthur",1185,1392,1467,1636,1662,"Midwest Region"]
[null,"NE","Banner","NE-Banner",1295,1521,1603,1787,1816,"Midwest Region"]
[null,"NE","Blaine","NE-Blaine",1072,1259,1327,1480,1503,"Midwest Region"]
[null,"NE","Boone","NE-Boone",1116,1311,1381,1540,1565,"Midwest Region"]
[null,"NE","Box Butte","NE-Box Butte",1126,1322,1393,1553,1578,"Midwest Region"]
[null,"NE","Boyd","NE-Boyd",1059,1244,1311,1462,1485,"Midwest Region"]
[null,"NE","Brown","NE-Brown",943,1107,1167,1301,1322,"Midwest Region"]
[null,"NE","Buffalo","NE-Buffalo",1332,1565,1649,1839,1868,"Midwest Region"]
[null,"NE","Burt","NE-Burt",1166,1369,1443,1609,1635,"Midwest Region"]
[null,"NE","Butler","NE-Butler",1147,1348,1420,1583,1609,"Midwest Region"]
[null,"NE","Cass","NE-Cass",1414,1661,1750,1951,1983,"Midwest Region"]
[null,"NE","Cedar","NE-Cedar",1084,1274,1342,1496,1520,"Midwest Region"]
[null,"NE","Chase","NE-Chase",1044,1226,1292,1441,1464,"Midwest Region"]
[null,"NE","Cherry","NE-Cherry",1162,1365,1438,1603,1629,"Midwest Region"]
[null,"NE","Cheyenne","NE-Cheyenne",1143,1343,1415,1578,1603,"Midwest Region"]
[null,"NE","Clay","NE-Clay",1072,1259,1327,1480,1503,"Midwest Region"]
[null,"NE","Colfax","NE-Colfax",1053,1237,1303,1453,1476,"Midwest Region"]
[null,"NE","Cuming","NE-Cuming",1049,1232,1298,1447,1471,"Midwest Region"]
[null,"NE","Custer","NE-Custer",1108,1301,1371,1529,1553,"Midwest Region"]
[null,"NE","Dakota","NE-Dakota",1159,1362,1435,1600,1626,"Midwest Region"]
[null,"NE","Dawes","NE-Dawes",1126,1323,1394,1554,1579,"Midwest Region"]
[null,"NE","Dawson","NE-Dawson",1071,1257,1325,1477,1501,"Midwest Region"]
[null,"NE","Deuel","NE-Deuel",978,1148,1210,1349,1371,"Midwest Region"]
[null,"NE","Dixon","NE-Dixon",1070,1256,1324,1476,1500,"Midwest Region"]
[null,"NE","Dodge","NE-Dodge",1183,1389,1464,1632,1659,"Midwest Region"]
[null,"NE","Douglas","NE-Douglas",1401,1646,1734,1933,1965,"Midwest Region"]
[null,"NE","Dundy","NE-Dundy",906,1064,1121,1250,1270,"Midwest Region"]
[null,"NE","Fillmore","NE-Fillmore",986,1158,1220,1360,1382,"Midwest Region"]
[null,"NE","Franklin","NE-Franklin",952,1118,1178,1313,1335,"Midwest Region"]
[null,"NE","Frontier","NE-Frontier",1057,1241,1308,1458,1482,"Midwest Region"]
[null,"NE","Furnas","NE-Furnas",974,1144,1206,1345,1366,"Midwest Region"]
[null,"NE","Gage","NE-Gage",1139,1338,1410,1572,1598,"Midwest Region"]
[null,"NE","Garden","NE-Garden",976,1146,1208,1347,1369,"Midwest Region"]
[null,"NE","Garfield","NE-Garfield",989,1162,1224,1365,1387,"Midwest Region"]
[null,"NE","Gosper","NE-Gosper",1033,1214,1279,1426,1449,"Midwest Region"]
[null,"NE","Grant","NE-Grant",981,1152,1214,1354,1375,"Midwest Region"]
[null,"NE","Greeley","NE-Greeley",1033,1214,1279,1426,1449,"Midwest Region"]
[null,"NE","Hall","NE-Hall",1207,1418,1494,1666,1693,"Midwest Region"]
[null,"NE","Hamilton","NE-Hamilton",1160,1363,1436,1601,1627,"Midwest Region"]
[null,"NE","Harlan","NE-Harlan",1043,1225,1291,1439,1463,"Midwest Region"]
[null,"NE","Hayes","NE-Hayes",1056,1240,1307,1457,1481,"Midwest Region"]
[null,"NE","Hitchcock","NE-Hitchcock",892,1048,1104,1231,1251,"Midwest Region"]
[null,"NE","Holt","NE-Holt",1096,1288,1357,1513,1537,"Midwest Region"]
[null,"NE","Hooker","NE-Hooker",989,1162,1224,1365,1387,"Midwest Region"]
[null,"NE","Howard","NE-Howard",1296,1522,1604,1788,1817,"Midwest Region"]
[null,"NE","Jefferson","NE-Jefferson",964,1132,1193,1330,1352,"Midwest Region"]
[null,"NE","Johnson","NE-Johnson",1014,1191,1255,1399,1422,"Midwest Region"]
[null,"NE","Kearney","NE-Kearney",1151,1351,1424,1588,1613,"Midwest Region"]
[null,"NE","Keith","NE-Keith",1117,1312,1383,1542,1567,"Midwest Region"]
[null,"NE","Keya Paha","NE-Keya Paha",1188,1395,1470,1639,1666,"Midwest Region"]
[null,"NE","Kimball","NE-Kimball",1069,1256,1323,1475,1499,"Midwest Region"]
[null,"NE","Knox","NE-Knox",1063,1248,1315,1466,1490,"Midwest Region"]
[null,"NE","Lancaster","NE-Lancaster",1327,1558,1642,1831,1860,"Midwest Region"]
[null,"NE","Lincoln","NE-Lincoln",1240,1457,1535,1712,1739,"Midwest Region"]
[null,"NE","Logan","NE-Logan",1248,1466,1545,1723,1750,"Midwest Region"]
[null,"NE","Loup","NE-Loup",1270,1492,1572,1753,1781,"Midwest Region"]
[null,"NE","Madison","NE-Madison",1172,1377,1451,1618,1644,"Midwest Region"]
[null,"NE","McPherson","NE-McPherson",1361,1599,1685,1879,1909,"Midwest Region"]
[null,"NE","Merrick","NE-Merrick",1037,1218,1283,1431,1454,"Midwest Region"]
[null,"NE","Morrill","NE-Morrill",1033,1213,1278,1425,1448,"Midwest Region"]
[null,"NE","Nance","NE-Nance",993,1166,1229,1370,1392,"Midwest Region"]
[null,"NE","Nemaha","NE-Nemaha",1151,1351,1424,1588,1613,"Midwest Region"]
[null,"NE","Nuckolls","NE-Nuckolls",890,1045,1101,1228,1247,"Midwest Region"]
[null,"NE","Otoe","NE-Otoe",1226,1440,1517,1691,1719,"Midwest Region"]
[null,"NE","Pawnee","NE-Pawnee",1040,1221,1287,1435,1458,"Midwest Region"]
[null,"NE","Perkins","NE-Perkins",1098,1290,1359,1515,1540,"Midwest Region"]
[null,"NE","Phelps","NE-Phelps",1075,1263,1331,1484,1508,"Midwest Region"]
[null,"NE","Pierce","NE-Pierce",1073,1260,1328,1481,1505,"Midwest Region"]
[null,"NE","Platte","NE-Platte",1142,1341,1413,1575,1601,"Midwest Region"]
[null,"NE","Polk","NE-Polk",1070,1256,1324,1476,1500,"Midwest Region"]
[null,"NE","Red Willow","NE-Red Willow",1035,1216,1281,1428,1451,"Midwest Region"]
[null,"NE","Richardson","NE-Richardson",933,1096,1155,1288,1309,"Midwest Region"]
[null,"NE","Rock","NE-Rock",1076,1264,1332,1485,1509,"Midwest Region"]
[null,"NE","Saline","NE-Saline",1138,1337,1409,1571,1596,"Midwest Region"]
[null,"NE","Sarpy","NE-Sarpy",1467,1723,1816,2025,2058,"Midwest Region"]
[null,"NE","Saunders","NE-Saunders",1380,1621,1708,1904,1935,"Midwest Region"]
[null,"NE","Scotts Bluff","NE-Scotts Bluff",1180,1386,1460,1628,1654,"Midwest Region"]
[null,"NE","Seward","NE-Seward",1309,1537,1620,1806,1835,"Midwest Region"]
[null,"NE","Sheridan","NE-Sheridan",941,1105,1164,1298,1319,"Midwest Region"]
[null,"NE","Sherman","NE-Sherman",1049,1232,1298,1447,1471,"Midwest Region"]
[null,"NE","Sioux","NE-Sioux",1148,1349,1421,1584,1610,"Midwest Region"]
[null,"NE","Stanton","NE-Stanton",1075,1263,1331,1484,1508,"Midwest Region"]
[null,"NE","Thayer","NE-Thayer",996,1170,1233,1375,1397,"Midwest Region"]
[null,"NE","Thomas","NE-Thomas",1188,1395,1470,1639,1666,"Midwest Region"]
[null,"NE","Thurston","NE-Thurston",1040,1221,1287,1435,1458,"Midwest Region"]
[null,"NE","Valley","NE-Valley",1004,1179,1242,1385,1407,"Midwest Region"]
[null,"NE","Washington","NE-Washington",1469,1725,1818,2027,2060,"Midwest Region"]
[null,"NE","Wayne","NE-Wayne",1033,1213,1278,1425,1448,"Midwest Region"]
[null,"NE","Webster","NE-Webster",1017,1195,1259,1404,1426,"Midwest Region"]
[null,"NE","Wheeler","NE-Wheeler",1088,1277,1346,1501,1525,"Midwest Region"]
[null,"NE","York","NE-York",1172,1376,1450,1617,1643,"Midwest Region"]
[null,"OH","Adams","OH-Adams",1046,1229,1295,1444,1467,"Midwest Region"]
[null,"OH","Allen","OH-Allen",1126,1322,1393,1553,1578,"Midwest Region"]
[null,"OH","Ashland","OH-Ashland",1123,1319,1390,1550,1575,"Midwest Region"]
[null,"OH","Athens","OH-Athens",1155,1356,1429,1593,1619,"Midwest Region"]
[null,"OH","Auglaize","OH-Auglaize",1190,1398,1473,1642,1669,"Midwest Region"]
[null,"OH","Belmont","OH-Belmont",1054,1237,1304,1454,1477,"Midwest Region"]
[null,"OH","Brown","OH-Brown",1175,1380,1454,1621,1647,"Midwest Region"]
[null,"OH","Butler","OH-Butler",1403,1647,1736,1936,1967,"Midwest Region"]
[null,"OH","Carroll","OH-Carroll",1165,1368,1442,1608,1634,"Midwest Region"]
[null,"OH","Champaign","OH-Champaign",1195,1404,1479,1649,1676,"Midwest Region"]
[null,"OH","Clark","OH-Clark",1136,1334,1406,1568,1593,"Midwest Region"]
[null,"OH","Clermont","OH-Clermont",1399,1643,1731,1930,1961,"Midwest Region"]
[null,"OH","Clinton","OH-Clinton",1200,1409,1485,1656,1683,"Midwest Region"]
[null,"OH","Columbiana","OH-Columbiana",1079,1267,1335,1489,1513,"Midwest Region"]
[null,"OH","Coshocton","OH-Coshocton",1047,1230,1296,1445,1468,"Midwest Region"]
[null,"OH","Crawford","OH-Crawford",1026,1205,1270,1416,1439,"Midwest Region"]
[null,"OH","Darke","OH-Darke",1131,1329,1400,1561,1586,"Midwest Region"]
[null,"OH","Defiance","OH-Defiance",1159,1361,1434,1599,1625,"Midwest Region"]
[null,"OH","Delaware","OH-Delaware",1875,2202,2320,2587,2629,"Midwest Region"]
[null,"OH","Erie","OH-Erie",1227,1441,1518,1693,1720,"Midwest Region"]
[null,"OH","Fairfield","OH-Fairfield",1415,1662,1751,1952,1984,"Midwest Region"]
[null,"OH","Fayette","OH-Fayette",1116,1311,1381,1540,1565,"Midwest Region"]
[null,"OH","Franklin","OH-Franklin",1418,1665,1755,1957,1988,"Midwest Region"]
[null,"OH","Fulton","OH-Fulton",1223,1437,1514,1688,1715,"Midwest Region"]
[null,"OH","Gallia","OH-Gallia",1139,1338,1410,1572,1598,"Midwest Region"]
[null,"OH","Greene","OH-Greene",1419,1666,1756,1958,1990,"Midwest Region"]
[null,"OH","Guernsey","OH-Guernsey",1058,1243,1310,1461,1484,"Midwest Region"]
[null,"OH","Hamilton","OH-Hamilton",1380,1621,1708,1904,1935,"Midwest Region"]
[null,"OH","Hancock","OH-Hancock",1216,1428,1505,1678,1705,"Midwest Region"]
[null,"OH","Hardin","OH-Hardin",1059,1244,1311,1462,1485,"Midwest Region"]
[null,"OH","Harrison","OH-Harrison",984,1156,1218,1358,1380,"Midwest Region"]
[null,"OH","Henry","OH-Henry",1175,1380,1454,1621,1647,"Midwest Region"]
[null,"OH","Highland","OH-Highland",1107,1300,1370,1528,1552,"Midwest Region"]
[null,"OH","Hocking","OH-Hocking",1164,1368,1441,1607,1633,"Midwest Region"]
[null,"OH","Holmes","OH-Holmes",1143,1343,1415,1578,1603,"Midwest Region"]
[null,"OH","Huron","OH-Huron",1164,1367,1440,1606,1632,"Midwest Region"]
[null,"OH","Jackson","OH-Jackson",1088,1277,1346,1501,1525,"Midwest Region"]
[null,"OH","Jefferson","OH-Jefferson",1016,1193,1257,1402,1424,"Midwest Region"]
[null,"OH","Knox","OH-Knox",1212,1424,1500,1673,1700,"Midwest Region"]
[null,"OH","Lawrence","OH-Lawrence",1080,1269,1337,1491,1515,"Midwest Region"]
[null,"OH","Licking","OH-Licking",1353,1589,1674,1867,1897,"Midwest Region"]
[null,"OH","Logan","OH-Logan",1164,1368,1441,1607,1633,"Midwest Region"]
[null,"OH","Lucas","OH-Lucas",1228,1442,1520,1695,1722,"Midwest Region"]
[null,"OH","Madison","OH-Madison",1317,1547,1630,1817,1847,"Midwest Region"]
[null,"OH","Mahoning","OH-Mahoning",1111,1305,1375,1533,1558,"Midwest Region"]
[null,"OH","Marion","OH-Marion",1115,1310,1380,1539,1564,"Midwest Region"]
[null,"OH","Meigs","OH-Meigs",1041,1222,1288,1436,1459,"Midwest Region"]
[null,"OH","Mercer","OH-Mercer",1154,1355,1428,1592,1618,"Midwest Region"]
[null,"OH","Miami","OH-Miami",1217,1429,1506,1679,1706,"Midwest Region"]
[null,"OH","Monroe","OH-Monroe",936,1100,1159,1292,1313,"Midwest Region"]
[null,"OH","Montgomery","OH-Montgomery",1238,1454,1532,1708,1736,"Midwest Region"]
[null,"OH","Morgan","OH-Morgan",1078,1266,1334,1487,1511,"Midwest Region"]
[null,"OH","Morrow","OH-Morrow",1236,1452,1530,1706,1733,"Midwest Region"]
[null,"OH","Muskingum","OH-Muskingum",1116,1311,1381,1540,1565,"Midwest Region"]
[null,"OH","Noble","OH-Noble",948,1113,1173,1308,1329,"Midwest Region"]
[null,"OH","Ottawa","OH-Ottawa",1238,1454,1532,1708,1736,"Midwest Region"]
[null,"OH","Paulding","OH-Paulding",1054,1237,1304,1454,1477,"Midwest Region"]
[null,"OH","Perry","OH-Perry",1079,1267,1335,1489,1513,"Midwest Region"]
[null,"OH","Pickaway","OH-Pickaway",1297,1523,1605,1790,1818,"Midwest Region"]
[null,"OH","Pike","OH-Pike",1128,1325,1396,1557,1582,"Midwest Region"]
[null,"OH","Preble","OH-Preble",1163,1366,1439,1604,1630,"Midwest Region"]
[null,"OH","Putnam","OH-Putnam",1158,1360,1433,1598,1624,"Midwest Region"]
[null,"OH","Richland","OH-Richland",1093,1284,1353,1509,1533,"Midwest Region"]
[null,"OH","Ross","OH-Ross",1152,1353,1426,1590,1616,"Midwest Region"]
[null,"OH","Sandusky","OH-Sandusky",1131,1329,1400,1561,1586,"Midwest Region"]
[null,"OH","Scioto","OH-Scioto",1092,1283,1352,1507,1532,"Midwest Region"]
[null,"OH","Seneca","OH-Seneca",1061,1246,1313,1464,1488,"Midwest Region"]
[null,"OH","Shelby","OH-Shelby",1190,1398,1473,1642,1669,"Midwest Region"]
[null,"OH","Stark","OH-Stark",1186,1393,1468,1637,1663,"Midwest Region"]
[null,"OH","Trumbull","OH-Trumbull",1094,1285,1354,1510,1534,"Midwest Region"]
[null,"OH","Tuscarawas","OH-Tuscarawas",1105,1298,1368,1525,1550,"Midwest Region"]
[null,"OH","Union","OH-Union",1508,1771,1866,2081,2114,"Midwest Region"]
[null,"OH","Van Wert","OH-Van Wert",1053,1237,1303,1453,1476,"Midwest Region"]
[null,"OH","Vinton","OH-Vinton",1057,1241,1308,1458,1482,"Midwest Region"]
[null,"OH","Warren","OH-Warren",1565,1838,1937,2160,2195,"Midwest Region"]
[null,"OH","Washington","OH-Washington",1083,1272,1340,1494,1518,"Midwest Region"]
[null,"OH","Wayne","OH-Wayne",1201,1410,1486,1657,1684,"Midwest Region"]
[null,"OH","Williams","OH-Williams",1068,1255,1322,1474,1498,"Midwest Region"]
[null,"OH","Wood","OH-Wood",1353,1590,1675,1868,1898,"Midwest Region"]
[null,"OH","Wyandot","OH-Wyandot",1080,1269,1337,1491,1515,"Midwest Region"]
[null,"SD","Aurora","SD-Aurora",1034,1215,1280,1427,1450,"Midwest Region"]
[null,"SD","Beadle","SD-Beadle",1097,1289,1358,1514,1539,"Midwest Region"]
[null,"SD","Bennett","SD-Bennett",977,1147,1209,1348,1370,"Midwest Region"]
[null,"SD","Bon Homme","SD-Bon Homme",963,1131,1192,1329,1351,"Midwest Region"]
[null,"SD","Brookings","SD-Brookings",1273,1495,1575,1756,1784,"Midwest Region"]
[null,"SD","Brown","SD-Brown",1183,1389,1464,1632,1659,"Midwest Region"]
[null,"SD","Brule","SD-Brule",1186,1393,1468,1637,1663,"Midwest Region"]
[null,"SD","Buffalo","SD-Buffalo",917,1077,1135,1266,1286,"Midwest Region"]
[null,"SD","Butte","SD-Butte",1193,1401,1476,1646,1672,"Midwest Region"]
[null,"SD","Campbell","SD-Campbell",1142,1341,1413,1575,1601,"Midwest Region"]
[null,"SD","Charles Mix","SD-Charles Mix",1016,1194,1258,1403,1425,"Midwest Region"]
[null,"SD","Clark","SD-Clark",967,1136,1197,1335,1356,"Midwest Region"]
[null,"SD","Clay","SD-Clay",1284,1508,1589,1772,1800,"Midwest Region"]
[null,"SD","Codington","SD-Codington",1184,1390,1465,1633,1660,"Midwest Region"]
[null,"SD","Corson","SD-Corson",943,1107,1167,1301,1322,"Midwest Region"]
[null,"SD","Custer","SD-Custer",1253,1472,1551,1729,1757,"Midwest Region"]
[null,"SD","Davison","SD-Davison",1143,1343,1415,1578,1603,"Midwest Region"]
[null,"SD","Day","SD-Day",1037,1218,1283,1431,1454,"Midwest Region"]
[null,"SD","Deuel","SD-Deuel",1128,1325,1396,1557,1582,"Midwest Region"]
[null,"SD","Dewey","SD-Dewey",944,1108,1168,1302,1323,"Midwest Region"]
[null,"SD","Douglas","SD-Douglas",949,1114,1174,1309,1330,"Midwest Region"]
[null,"SD","Edmunds","SD-Edmunds",1227,1442,1519,1694,1721,"Midwest Region"]
[null,"SD","Fall River","SD-Fall River",1192,1400,1475,1645,1671,"Midwest Region"]
[null,"SD","Faulk","SD-Faulk",1144,1344,1416,1579,1604,"Midwest Region"]
[null,"SD","Grant","SD-Grant",1126,1323,1394,1554,1579,"Midwest Region"]
[null,"SD","Gregory","SD-Gregory",1012,1188,1252,1396,1419,"Midwest Region"]
[null,"SD","Haakon","SD-Haakon",1016,1194,1258,1403,1425,"Midwest Region"]
[null,"SD","Hamlin","SD-Hamlin",1112,1306,1376,1534,1559,"Midwest Region"]
[null,"SD","Hand","SD-Hand",1134,1332,1404,1565,1591,"Midwest Region"]
[null,"SD","Hanson","SD-Hanson",1198,1407,1483,1654,1680,"Midwest Region"]
[null,"SD","Harding","SD-Harding",1246,1463,1542,1719,1747,"Midwest Region"]
[null,"SD","Hughes","SD-Hughes",1332,1565,1649,1839,1868,"Midwest Region"]
[null,"SD","Hutchinson","SD-Hutchinson",1064,1250,1317,1468,1492,"Midwest Region"]
[null,"SD","Hyde","SD-Hyde",1127,1324,1395,1555,1581,"Midwest Region"]
[null,"SD","Jackson","SD-Jackson",1122,1318,1389,1549,1574,"Midwest Region"]
[null,"SD","Jerauld","SD-Jerauld",1037,1218,1283,1431,1454,"Midwest Region"]
[null,"SD","Jones","SD-Jones",1109,1302,1372,1530,1554,"Midwest Region"]
[null,"SD","Kingsbury","SD-Kingsbury",1094,1285,1354,1510,1534,"Midwest Region"]
[null,"SD","Lake","SD-Lake",1254,1473,1552,1730,1758,"Midwest Region"]
[null,"SD","Lawrence","SD-Lawrence",1329,1561,1645,1834,1864,"Midwest Region"]
[null,"SD","Lincoln","SD-Lincoln",1429,1679,1769,1972,2004,"Midwest Region"]
[null,"SD","Lyman","SD-Lyman",1022,1200,1265,1410,1433,"Midwest Region"]
[null,"SD","Marshall","SD-Marshall",1168,1371,1445,1611,1637,"Midwest Region"]
[null,"SD","McCook","SD-McCook",1141,1340,1412,1574,1600,"Midwest Region"]
[null,"SD","McPherson","SD-McPherson",1036,1217,1282,1429,1453,"Midwest Region"]
[null,"SD","Meade","SD-Meade",1381,1622,1709,1906,1936,"Midwest Region"]
[null,"SD","Mellette","SD-Mellette",907,1066,1123,1252,1272,"Midwest Region"]
[null,"SD","Miner","SD-Miner",1004,1180,1243,1386,1408,"Midwest Region"]
[null,"SD","Minnehaha","SD-Minnehaha",1265,1486,1566,1746,1774,"Midwest Region"]
[null,"SD","Moody","SD-Moody",1178,1384,1458,1626,1652,"Midwest Region"]
[null,"SD","Oglala Dakota","SD-Oglala Dakota",754,885,933,1040,1057,"Midwest Region"]
[null,"SD","Pennington","SD-Pennington",1328,1560,1644,1833,1863,"Midwest Region"]
[null,"SD","Perkins","SD-Perkins",1011,1187,1251,1395,1417,"Midwest Region"]
[null,"SD","Potter","SD-Potter",1055,1239,1306,1456,1480,"Midwest Region"]
[null,"SD","Roberts","SD-Roberts",1128,1325,1396,1557,1582,"Midwest Region"]
[null,"SD","Sanborn","SD-Sanborn",966,1135,1196,1334,1355,"Midwest Region"]
[null,"SD","Spink","SD-Spink",997,1171,1234,1376,1398,"Midwest Region"]
[null,"SD","Stanley","SD-Stanley",1247,1464,1543,1720,1748,"Midwest Region"]
[null,"SD","Sully","SD-Sully",1234,1449,1527,1703,1730,"Midwest Region"]
[null,"SD","Todd","SD-Todd",785,922,972,1084,1101,"Midwest Region"]
[null,"SD","Tripp","SD-Tripp",1043,1225,1291,1439,1463,"Midwest Region"]
[null,"SD","Turner","SD-Turner",1153,1354,1427,1591,1617,"Midwest Region"]
[null,"SD","Union","SD-Union",1349,1585,1670,1862,1892,"Midwest Region"]
[null,"SD","Walworth","SD-Walworth",1009,1185,1249,1393,1415,"Midwest Region"]
[null,"SD","Yankton","SD-Yankton",1183,1389,1464,1632,1659,"Midwest Region"]
[null,"SD","Ziebach","SD-Ziebach",909,1068,1125,1254,1275,"Midwest Region"]
[null,"WI","Adams","WI-Adams",1201,1411,1487,1658,1685,"Midwest Region"]
[null,"WI","Ashland","WI-Ashland",1177,1383,1457,1625,1651,"Midwest Region"]
[null,"WI","Barron","WI-Barron",1194,1403,1478,1648,1675,"Midwest Region"]
[null,"WI","Bayfield","WI-Bayfield",1216,1428,1505,1678,1705,"Midwest Region"]
[null,"WI","Brown","WI-Brown",1351,1587,1672,1864,1894,"Midwest Region"]
[null,"WI","Buffalo","WI-Buffalo",1273,1496,1576,1757,1786,"Midwest Region"]
[null,"WI","Burnett","WI-Burnett",1193,1401,1476,1646,1672,"Midwest Region"]
[null,"WI","Calumet","WI-Calumet",1382,1623,1710,1907,1937,"Midwest Region"]
[null,"WI","Chippewa","WI-Chippewa",1256,1476,1555,1734,1762,"Midwest Region"]
[null,"WI","Clark","WI-Clark",1147,1347,1419,1582,1608,"Midwest Region"]
[null,"WI","Columbia","WI-Columbia",1439,1690,1781,1986,2018,"Midwest Region"]
[null,"WI","Crawford","WI-Crawford",1168,1372,1446,1612,1638,"Midwest Region"]
[null,"WI","Dane","WI-Dane",1670,1962,2067,2305,2342,"Midwest Region"]
[null,"WI","Dodge","WI-Dodge",1354,1591,1676,1869,1899,"Midwest Region"]
[null,"WI","Door","WI-Door",1312,1541,1624,1811,1840,"Midwest Region"]
[null,"WI","Douglas","WI-Douglas",1223,1436,1513,1687,1714,"Midwest Region"]
[null,"WI","Dunn","WI-Dunn",1348,1583,1668,1860,1890,"Midwest Region"]
[null,"WI","Eau Claire","WI-Eau Claire",1295,1521,1603,1787,1816,"Midwest Region"]
[null,"WI","Florence","WI-Florence",1252,1470,1549,1727,1755,"Midwest Region"]
[null,"WI","Fond du Lac","WI-Fond du Lac",1318,1548,1631,1819,1848,"Midwest Region"]
[null,"WI","Forest","WI-Forest",1088,1277,1346,1501,1525,"Midwest Region"]
[null,"WI","Grant","WI-Grant",1223,1436,1513,1687,1714,"Midwest Region"]
[null,"WI","Green","WI-Green",1397,1641,1729,1928,1959,"Midwest Region"]
[null,"WI","Green Lake","WI-Green Lake",1210,1422,1498,1670,1697,"Midwest Region"]
[null,"WI","Iowa","WI-Iowa",1428,1677,1767,1970,2002,"Midwest Region"]
[null,"WI","Iron","WI-Iron",1075,1262,1330,1483,1507,"Midwest Region"]
[null,"WI","Jackson","WI-Jackson",1201,1411,1487,1658,1685,"Midwest Region"]
[null,"WI","Jefferson","WI-Jefferson",1438,1689,1780,1985,2017,"Midwest Region"]
[null,"WI","Juneau","WI-Juneau",1188,1395,1470,1639,1666,"Midwest Region"]
[null,"WI","Kewaunee","WI-Kewaunee",1277,1499,1580,1762,1790,"Midwest Region"]
[null,"WI","La Crosse","WI-La Crosse",1374,1613,1700,1896,1926,"Midwest Region"]
[null,"WI","Lafayette","WI-Lafayette",1272,1494,1574,1755,1783,"Midwest Region"]
[null,"WI","Langlade","WI-Langlade",1088,1278,1347,1502,1526,"Midwest Region"]
[null,"WI","Lincoln","WI-Lincoln",1186,1393,1468,1637,1663,"Midwest Region"]
[null,"WI","Manitowoc","WI-Manitowoc",1201,1410,1486,1657,1684,"Midwest Region"]
[null,"WI","Marathon","WI-Marathon",1285,1509,1590,1773,1801,"Midwest Region"]
[null,"WI","Marinette","WI-Marinette",1105,1297,1367,1524,1549,"Midwest Region"]
[null,"WI","Marquette","WI-Marquette",1210,1421,1497,1669,1696,"Midwest Region"]
[null,"WI","Menominee","WI-Menominee",1037,1219,1284,1432,1455,"Midwest Region"]
[null,"WI","Milwaukee","WI-Milwaukee",1443,1695,1786,1991,2024,"Midwest Region"]
[null,"WI","Monroe","WI-Monroe",1231,1445,1523,1698,1726,"Midwest Region"]
[null,"WI","Oconto","WI-Oconto",1281,1504,1585,1767,1796,"Midwest Region"]
[null,"WI","Oneida","WI-Oneida",1217,1429,1506,1679,1706,"Midwest Region"]
[null,"WI","Outagamie","WI-Outagamie",1375,1615,1702,1898,1928,"Midwest Region"]
[null,"WI","Ozaukee","WI-Ozaukee",1677,1970,2076,2315,2352,"Midwest Region"]
[null,"WI","Pepin","WI-Pepin",1288,1513,1594,1777,1806,"Midwest Region"]
[null,"WI","Polk","WI-Polk",1367,1606,1692,1887,1917,"Midwest Region"]
[null,"WI","Portage","WI-Portage",1252,1471,1550,1728,1756,"Midwest Region"]
[null,"WI","Price","WI-Price",1140,1339,1411,1573,1599,"Midwest Region"]
[null,"WI","Racine","WI-Racine",1433,1683,1773,1977,2009,"Midwest Region"]
[null,"WI","Richland","WI-Richland",1214,1425,1502,1675,1702,"Midwest Region"]
[null,"WI","Rock","WI-Rock",1277,1500,1581,1763,1791,"Midwest Region"]
[null,"WI","Rusk","WI-Rusk",1109,1302,1372,1530,1554,"Midwest Region"]
[null,"WI","Sauk","WI-Sauk",1359,1596,1682,1875,1906,"Midwest Region"]
[null,"WI","Sawyer","WI-Sawyer",1181,1387,1462,1630,1656,"Midwest Region"]
[null,"WI","Shawano","WI-Shawano",1225,1439,1516,1690,1718,"Midwest Region"]
[null,"WI","Sheboygan","WI-Sheboygan",1282,1506,1587,1770,1798,"Midwest Region"]
[null,"WI","Taylor","WI-Taylor",1218,1430,1507,1680,1707,"Midwest Region"]
[null,"WI","Trempealeau","WI-Trempealeau",1277,1499,1580,1762,1790,"Midwest Region"]
[null,"WI","Vernon","WI-Vernon",1248,1465,1544,1722,1749,"Midwest Region"]
[null,"WI","Vilas","WI-Vilas",1273,1496,1576,1757,1786,"Midwest Region"]
[null,"WI","Walworth","WI-Walworth",1516,1780,1876,2092,2126,"Midwest Region"]
[null,"WI","Washburn","WI-Washburn",1174,1379,1453,1620,1646,"Midwest Region"]
[null,"WI","Washington","WI-Washington",1574,1849,1948,2172,2207,"Midwest Region"]
[null,"WI","Waukesha","WI-Waukesha",1710,2008,2116,2359,2397,"Midwest Region"]
[null,"WI","Waupaca","WI-Waupaca",1240,1457,1535,1712,1739,"Midwest Region"]
[null,"WI","Waushara","WI-Waushara",1214,1425,1502,1675,1702,"Midwest Region"]
[null,"WI","Winnebago","WI-Winnebago",1294,1520,1602,1786,1815,"Midwest Region"]
[null,"WI","Wood","WI-Wood",1151,1351,1424,1588,1613,"Midwest Region"]
[null,"MN","Anoka","MN-Anoka",1533,1800,1897,2115,2149,"Minneapolis-St. Paul"]
[null,"MN","Benton","MN-Benton",1343,1577,1662,1853,1883,"Minneapolis-St. Paul"]
[null,"MN","Carver","MN-Carver",1854,2178,2295,2559,2600,"Minneapolis-St. Paul"]
[null,"MN","Chisago","MN-Chisago",1577,1852,1952,2176,2212,"Minneapolis-St. Paul"]
[null,"MN","Dakota","MN-Dakota",1627,1911,2014,2246,2282,"Minneapolis-St. Paul"]
[null,"MN","Hennepin","MN-Hennepin",1674,1966,2072,2310,2348,"Minneapolis-St. Paul"]
[null,"MN","Isanti","MN-Isanti",1455,1709,1801,2008,2041,"Minneapolis-St. Paul"]
[null,"MN","Ramsey","MN-Ramsey",1526,1792,1888,2105,2139,"Minneapolis-St. Paul"]
[null,"MN","Scott","MN-Scott",1778,2088,2200,2453,2493,"Minneapolis-St. Paul"]
[null,"MN","Sherburne","MN-Sherburne",1563,1835,1934,2156,2191,"Minneapolis-St. Paul"]
[null,"MN","Stearns","MN-Stearns",1353,1590,1675,1868,1898,"Minneapolis-St. Paul"]
[null,"MN","Washington","MN-Washington",1694,1990,2097,2338,2376,"Minneapolis-St. Paul"]
[null,"MN","Wright","MN-Wright",1560,1833,1931,2153,2188,"Minneapolis-St. Paul"]
[null,"WI","Pierce","WI-Pierce",1622,1905,2007,2238,2274,"Minneapolis-St. Paul"]
[null,"WI","Saint Croix","WI-Saint Croix",1583,1859,1959,2184,2220,"Minneapolis-St. Paul"]
[null,"CT","Fairfield","CT-Fairfield",2496,2931,3089,3444,3500,"New York"]
[null,"CT","Hartford","CT-Hartford",1834,2154,2270,2531,2572,"New York"]
[null,"CT","Litchfield","CT-Litchfield",1819,2136,2251,2510,2550,"New York"]
[null,"CT","Middlesex","CT-Middlesex",1968,2312,2436,2716,2760,"New York"]
[null,"CT","New Haven","CT-New Haven",1897,2228,2348,2618,2660,"New York"]
[null,"CT","Tolland","CT-Tolland",1858,2182,2299,2563,2605,"New York"]
[null,"NJ","Bergen","NJ-Bergen",2690,3159,3329,3712,3772,"New York"]
[null,"NJ","Essex","NJ-Essex",2543,2987,3147,3509,3566,"New York"]
[null,"NJ","Hudson","NJ-Hudson",2462,2892,3047,3397,3452,"New York"]
[null,"NJ","Hunterdon","NJ-Hunterdon",2438,2863,3017,3364,3418,"New York"]
[null,"NJ","Mercer","NJ-Mercer",2130,2502,2636,2939,2987,"New York"]
[null,"NJ","Middlesex","NJ-Middlesex",2241,2632,2773,3092,3142,"New York"]
[null,"NJ","Monmouth","NJ-Monmouth",2396,2814,2965,3306,3359,"New York"]
[null,"NJ","Morris","NJ-Morris",2574,3024,3186,3552,3610,"New York"]
[null,"NJ","Ocean","NJ-Ocean",1906,2239,2359,2630,2673,"New York"]
[null,"NJ","Passaic","NJ-Passaic",2414,2836,2988,3332,3385,"New York"]
[null,"NJ","Somerset","NJ-Somerset",2464,2894,3049,3400,3455,"New York"]
[null,"NJ","Sussex","NJ-Sussex",2135,2507,2642,2946,2993,"New York"]
[null,"NJ","Union","NJ-Union",2448,2875,3030,3378,3433,"New York"]
[null,"NJ","Warren","NJ-Warren",2057,2416,2546,2839,2885,"New York"]
[null,"NY","Bronx","NY-Bronx",2215,2601,2741,3056,3106,"New York"]
[null,"NY","Dutchess","NY-Dutchess",2110,2479,2612,2912,2959,"New York"]
[null,"NY","Kings","NY-Kings",2443,2870,3024,3372,3426,"New York"]
[null,"NY","Nassau","NY-Nassau",2806,3296,3473,3872,3935,"New York"]
[null,"NY","New York","NY-New York",3302,3879,4087,4557,4631,"New York"]
[null,"NY","Orange","NY-Orange",2141,2515,2650,2955,3002,"New York"]
[null,"NY","Putnam","NY-Putnam",2495,2931,3088,3443,3499,"New York"]
[null,"NY","Queens","NY-Queens",2267,2663,2806,3129,3179,"New York"]
[null,"NY","Richmond","NY-Richmond",2238,2629,2770,3089,3138,"New York"]
[null,"NY","Rockland","NY-Rockland",2726,3202,3374,3762,3823,"New York"]
[null,"NY","Suffolk","NY-Suffolk",2526,2967,3126,3485,3542,"New York"]
[null,"NY","Westchester","NY-Westchester",2990,3512,3701,4127,4193,"New York"]
[null,"CT","New London","CT-New London",1785,2096,2209,2463,2503,"Northeast Region"]
[null,"MA","Barnstable","MA-Barnstable",1778,2088,2200,2453,2493,"Northeast Region"]
[null,"MA","Berkshire","MA-Berkshire",1431,1681,1771,1975,2007,"Northeast Region"]
[null,"MA","Dukes","MA-Dukes",2234,2624,2765,3083,3133,"Northeast Region"]
[null,"MA","Franklin","MA-Franklin",1504,1767,1862,2076,2110,"Northeast Region"]
[null,"MA","Hampshire","MA-Hampshire",1656,1945,2049,2285,2322,"Northeast Region"]
[null,"MA","Nantucket","MA-Nantucket",2561,3008,3170,3535,3592,"Northeast Region"]
[null,"ME","Androscoggin","ME-Androscoggin",1344,1578,1663,1854,1884,"Northeast Region"]
[null,"ME","Aroostook","ME-Aroostook",1047,1230,1296,1445,1468,"Northeast Region"]
[null,"ME","Cumberland","ME-Cumberland",1630,1914,2017,2249,2285,"Northeast Region"]
[null,"ME","Franklin","ME-Franklin",1126,1322,1393,1553,1578,"Northeast Region"]
[null,"ME","Hancock","ME-Hancock",1293,1518,1600,1784,1813,"Northeast Region"]
[null,"ME","Kennebec","ME-Kennebec",1235,1451,1529,1705,1732,"Northeast Region"]
[null,"ME","Knox","ME-Knox",1356,1592,1678,1871,1901,"Northeast Region"]
[null,"ME","Lincoln","ME-Lincoln",1239,1455,1533,1709,1737,"Northeast Region"]
[null,"ME","Oxford","ME-Oxford",1165,1368,1442,1608,1634,"Northeast Region"]
[null,"ME","Penobscot","ME-Penobscot",1237,1453,1531,1707,1735,"Northeast Region"]
[null,"ME","Piscataquis","ME-Piscataquis",1046,1229,1295,1444,1467,"Northeast Region"]
[null,"ME","Sagadahoc","ME-Sagadahoc",1411,1657,1746,1947,1978,"Northeast Region"]
[null,"ME","Somerset","ME-Somerset",1092,1282,1351,1506,1531,"Northeast Region"]
[null,"ME","Waldo","ME-Waldo",1235,1450,1528,1704,1731,"Northeast Region"]
[null,"ME","Washington","ME-Washington",1102,1294,1364,1521,1545,"Northeast Region"]
[null,"NH","Belknap","NH-Belknap",1629,1913,2016,2248,2284,"Northeast Region"]
[null,"NH","Carroll","NH-Carroll",1464,1720,1812,2020,2053,"Northeast Region"]
[null,"NH","Cheshire","NH-Cheshire",1591,1869,1969,2195,2231,"Northeast Region"]
[null,"NH","Coos","NH-Coos",1231,1445,1523,1698,1726,"Northeast Region"]
[null,"NH","Grafton","NH-Grafton",1538,1807,1904,2123,2157,"Northeast Region"]
[null,"NH","Sullivan","NH-Sullivan",1543,1813,1910,2130,2164,"Northeast Region"]
[null,"NY","Albany","NY-Albany",1627,1911,2014,2246,2282,"Northeast Region"]
[null,"NY","Allegany","NY-Allegany",1067,1254,1321,1473,1497,"Northeast Region"]
[null,"NY","Broome","NY-Broome",1219,1432,1509,1683,1710,"Northeast Region"]
[null,"NY","Cattaraugus","NY-Cattaraugus",1122,1318,1389,1549,1574,"Northeast Region"]
[null,"NY","Cayuga","NY-Cayuga",1242,1459,1537,1714,1741,"Northeast Region"]
[null,"NY","Chautauqua","NY-Chautauqua",1070,1256,1324,1476,1500,"Northeast Region"]
[null,"NY","Chemung","NY-Chemung",1157,1359,1432,1597,1622,"Northeast Region"]
[null,"NY","Chenango","NY-Chenango",1160,1363,1436,1601,1627,"Northeast Region"]
[null,"NY","Clinton","NY-Clinton",1257,1477,1556,1735,1763,"Northeast Region"]
[null,"NY","Columbia","NY-Columbia",1675,1967,2073,2311,2349,"Northeast Region"]
[null,"NY","Cortland","NY-Cortland",1266,1487,1567,1747,1775,"Northeast Region"]
[null,"NY","Delaware","NY-Delaware",1206,1417,1493,1665,1692,"Northeast Region"]
[null,"NY","Erie","NY-Erie",1290,1515,1596,1780,1808,"Northeast Region"]
[null,"NY","Essex","NY-Essex",1285,1509,1590,1773,1801,"Northeast Region"]
[null,"NY","Franklin","NY-Franklin",1164,1368,1441,1607,1633,"Northeast Region"]
[null,"NY","Fulton","NY-Fulton",1217,1429,1506,1679,1706,"Northeast Region"]
[null,"NY","Genesee","NY-Genesee",1227,1442,1519,1694,1721,"Northeast Region"]
[null,"NY","Greene","NY-Greene",1542,1812,1909,2129,2163,"Northeast Region"]
[null,"NY","Hamilton","NY-Hamilton",1253,1472,1551,1729,1757,"Northeast Region"]
[null,"NY","Herkimer","NY-Herkimer",1176,1382,1456,1623,1650,"Northeast Region"]
[null,"NY","Jefferson","NY-Jefferson",1274,1497,1577,1758,1787,"Northeast Region"]
[null,"NY","Lewis","NY-Lewis",1166,1369,1443,1609,1635,"Northeast Region"]
[null,"NY","Livingston","NY-Livingston",1303,1531,1613,1798,1828,"Northeast Region"]
[null,"NY","Madison","NY-Madison",1295,1521,1603,1787,1816,"Northeast Region"]
[null,"NY","Monroe","NY-Monroe",1381,1622,1709,1906,1936,"Northeast Region"]
[null,"NY","Montgomery","NY-Montgomery",1273,1495,1575,1756,1784,"Northeast Region"]
[null,"NY","Niagara","NY-Niagara",1241,1458,1536,1713,1740,"Northeast Region"]
[null,"NY","Oneida","NY-Oneida",1269,1490,1570,1751,1779,"Northeast Region"]
[null,"NY","Onondaga","NY-Onondaga",1368,1607,1693,1888,1918,"Northeast Region"]
[null,"NY","Ontario","NY-Ontario",1345,1580,1665,1856,1886,"Northeast Region"]
[null,"NY","Orleans","NY-Orleans",1245,1462,1541,1718,1746,"Northeast Region"]
[null,"NY","Oswego","NY-Oswego",1227,1442,1519,1694,1721,"Northeast Region"]
[null,"NY","Otsego","NY-Otsego",1284,1508,1589,1772,1800,"Northeast Region"]
[null,"NY","Rensselaer","NY-Rensselaer",1559,1832,1930,2152,2187,"Northeast Region"]
[null,"NY","Saint Lawrence","NY-Saint Lawrence",1141,1340,1412,1574,1600,"Northeast Region"]
[null,"NY","Saratoga","NY-Saratoga",1653,1942,2046,2281,2318,"Northeast Region"]
[null,"NY","Schenectady","NY-Schenectady",1512,1776,1871,2086,2120,"Northeast Region"]
[null,"NY","Schoharie","NY-Schoharie",1359,1596,1682,1875,1906,"Northeast Region"]
[null,"NY","Schuyler","NY-Schuyler",1189,1396,1471,1640,1667,"Northeast Region"]
[null,"NY","Seneca","NY-Seneca",1193,1402,1477,1647,1673,"Northeast Region"]
[null,"NY","Steuben","NY-Steuben",1151,1351,1424,1588,1613,"Northeast Region"]
[null,"NY","Sullivan","NY-Sullivan",1552,1823,1921,2142,2176,"Northeast Region"]
[null,"NY","Tioga","NY-Tioga",1245,1462,1541,1718,1746,"Northeast Region"]
[null,"NY","Tompkins","NY-Tompkins",1475,1732,1825,2035,2068,"Northeast Region"]
[null,"NY","Ulster","NY-Ulster",1819,2136,2251,2510,2550,"Northeast Region"]
[null,"NY","Warren","NY-Warren",1417,1665,1754,1956,1987,"Northeast Region"]
[null,"NY","Washington","NY-Washington",1340,1574,1659,1850,1880,"Northeast Region"]
[null,"NY","Wayne","NY-Wayne",1271,1493,1573,1754,1782,"Northeast Region"]
[null,"NY","Wyoming","NY-Wyoming",1176,1382,1456,1623,1650,"Northeast Region"]
[null,"NY","Yates","NY-Yates",1166,1369,1443,1609,1635,"Northeast Region"]
[null,"PA","Adams","PA-Adams",1522,1788,1884,2101,2135,"Northeast Region"]
[null,"PA","Allegheny","PA-Allegheny",1318,1548,1631,1819,1848,"Northeast Region"]
[null,"PA","Armstrong","PA-Armstrong",1110,1304,1374,1532,1557,"Northeast Region"]
[null,"PA","Beaver","PA-Beaver",1222,1435,1512,1686,1713,"Northeast Region"]
[null,"PA","Bedford","PA-Bedford",1127,1324,1395,1555,1581,"Northeast Region"]
[null,"PA","Berks","PA-Berks",1475,1732,1825,2035,2068,"Northeast Region"]
[null,"PA","Blair","PA-Blair",1106,1299,1369,1526,1551,"Northeast Region"]
[null,"PA","Bradford","PA-Bradford",1193,1401,1476,1646,1672,"Northeast Region"]
[null,"PA","Butler","PA-Butler",1425,1673,1763,1966,1997,"Northeast Region"]
[null,"PA","Cambria","PA-Cambria",1076,1264,1332,1485,1509,"Northeast Region"]
[null,"PA","Cameron","PA-Cameron",1054,1237,1304,1454,1477,"Northeast Region"]
[null,"PA","Carbon","PA-Carbon",1349,1584,1669,1861,1891,"Northeast Region"]
[null,"PA","Centre","PA-Centre",1454,1708,1800,2007,2039,"Northeast Region"]
[null,"PA","Clarion","PA-Clarion",1059,1244,1311,1462,1485,"Northeast Region"]
[null,"PA","Clearfield","PA-Clearfield",1063,1248,1315,1466,1490,"Northeast Region"]
[null,"PA","Clinton","PA-Clinton",1171,1375,1449,1616,1642,"Northeast Region"]
[null,"PA","Columbia","PA-Columbia",1222,1435,1512,1686,1713,"Northeast Region"]
[null,"PA","Crawford","PA-Crawford",1119,1314,1385,1544,1569,"Northeast Region"]
[null,"PA","Cumberland","PA-Cumberland",1457,1711,1803,2010,2043,"Northeast Region"]
[null,"PA","Dauphin","PA-Dauphin",1391,1633,1721,1919,1950,"Northeast Region"]
[null,"PA","Elk","PA-Elk",1027,1206,1271,1417,1440,"Northeast Region"]
[null,"PA","Erie","PA-Erie",1177,1383,1457,1625,1651,"Northeast Region"]
[null,"PA","Fayette","PA-Fayette",1071,1258,1326,1478,1502,"Northeast Region"]
[null,"PA","Forest","PA-Forest",938,1102,1161,1295,1315,"Northeast Region"]
[null,"PA","Franklin","PA-Franklin",1364,1602,1688,1882,1913,"Northeast Region"]
[null,"PA","Fulton","PA-Fulton",1223,1436,1513,1687,1714,"Northeast Region"]
[null,"PA","Greene","PA-Greene",1071,1257,1325,1477,1501,"Northeast Region"]
[null,"PA","Huntingdon","PA-Huntingdon",1122,1318,1389,1549,1574,"Northeast Region"]
[null,"PA","Indiana","PA-Indiana",1151,1352,1425,1589,1615,"Northeast Region"]
[null,"PA","Jefferson","PA-Jefferson",1015,1192,1256,1400,1423,"Northeast Region"]
[null,"PA","Juniata","PA-Juniata",1196,1405,1480,1650,1677,"Northeast Region"]
[null,"PA","Lackawanna","PA-Lackawanna",1321,1552,1635,1823,1852,"Northeast Region"]
[null,"PA","Lancaster","PA-Lancaster",1463,1719,1811,2019,2052,"Northeast Region"]
[null,"PA","Lawrence","PA-Lawrence",1123,1319,1390,1550,1575,"Northeast Region"]
[null,"PA","Lebanon","PA-Lebanon",1359,1596,1682,1875,1906,"Northeast Region"]
[null,"PA","Lehigh","PA-Lehigh",1555,1827,1925,2146,2181,"Northeast Region"]
[null,"PA","Luzerne","PA-Luzerne",1251,1469,1548,1726,1754,"Northeast Region"]
[null,"PA","Lycoming","PA-Lycoming",1238,1454,1532,1708,1736,"Northeast Region"]
[null,"PA","McKean","PA-McKean",1004,1180,1243,1386,1408,"Northeast Region"]
[null,"PA","Mercer","PA-Mercer",1115,1310,1380,1539,1564,"Northeast Region"]
[null,"PA","Mifflin","PA-Mifflin",1100,1292,1361,1518,1542,"Northeast Region"]
[null,"PA","Monroe","PA-Monroe",1669,1960,2065,2302,2340,"Northeast Region"]
[null,"PA","Montour","PA-Montour",1290,1516,1597,1781,1809,"Northeast Region"]
[null,"PA","Northampton","PA-Northampton",1634,1919,2022,2255,2291,"Northeast Region"]
[null,"PA","Northumberland","PA-Northumberland",1141,1340,1412,1574,1600,"Northeast Region"]
[null,"PA","Perry","PA-Perry",1346,1581,1666,1858,1888,"Northeast Region"]
[null,"PA","Pike","PA-Pike",1484,1743,1837,2048,2081,"Northeast Region"]
[null,"PA","Potter","PA-Potter",1130,1328,1399,1560,1585,"Northeast Region"]
[null,"PA","Schuylkill","PA-Schuylkill",1173,1378,1452,1619,1645,"Northeast Region"]
[null,"PA","Snyder","PA-Snyder",1201,1410,1486,1657,1684,"Northeast Region"]
[null,"PA","Somerset","PA-Somerset",1122,1318,1389,1549,1574,"Northeast Region"]
[null,"PA","Sullivan","PA-Sullivan",1185,1391,1466,1635,1661,"Northeast Region"]
[null,"PA","Susquehanna","PA-Susquehanna",1243,1460,1538,1715,1743,"Northeast Region"]
[null,"PA","Tioga","PA-Tioga",1193,1402,1477,1647,1673,"Northeast Region"]
[null,"PA","Union","PA-Union",1289,1514,1595,1778,1807,"Northeast Region"]
[null,"PA","Venango","PA-Venango",999,1174,1237,1379,1402,"Northeast Region"]
[null,"PA","Warren","PA-Warren",1038,1219,1285,1433,1456,"Northeast Region"]
[null,"PA","Washington","PA-Washington",1288,1513,1594,1777,1806,"Northeast Region"]
[null,"PA","Wayne","PA-Wayne",1375,1615,1702,1898,1928,"Northeast Region"]
[null,"PA","Westmoreland","PA-Westmoreland",1239,1456,1534,1710,1738,"Northeast Region"]
[null,"PA","Wyoming","PA-Wyoming",1278,1501,1582,1764,1792,"Northeast Region"]
[null,"PA","York","PA-York",1485,1744,1838,2049,2082,"Northeast Region"]
[null,"RI","Bristol","RI-Bristol",2015,2367,2494,2781,2826,"Northeast Region"]
[null,"RI","Kent","RI-Kent",1733,2036,2145,2392,2430,"Northeast Region"]
[null,"RI","Newport","RI-Newport",1972,2316,2440,2721,2765,"Northeast Region"]
[null,"RI","Providence","RI-Providence",1688,1982,2089,2329,2367,"Northeast Region"]
[null,"RI","Washington","RI-Washington",1875,2203,2321,2588,2630,"Northeast Region"]
[null,"VT","Addison","VT-Addison",1548,1818,1916,2136,2171,"Northeast Region"]
[null,"VT","Bennington","VT-Bennington",1436,1686,1777,1981,2013,"Northeast Region"]
[null,"VT","Caledonia","VT-Caledonia",1347,1582,1667,1859,1889,"Northeast Region"]
[null,"VT","Chittenden","VT-Chittenden",1716,2016,2124,2368,2406,"Northeast Region"]
[null,"VT","Essex","VT-Essex",1179,1385,1459,1627,1653,"Northeast Region"]
[null,"VT","Franklin","VT-Franklin",1451,1704,1796,2003,2035,"Northeast Region"]
[null,"VT","Grand Isle","VT-Grand Isle",1639,1925,2028,2261,2298,"Northeast Region"]
[null,"VT","Lamoille","VT-Lamoille",1532,1799,1896,2114,2148,"Northeast Region"]
[null,"VT","Orange","VT-Orange",1425,1673,1763,1966,1997,"Northeast Region"]
[null,"VT","Orleans","VT-Orleans",1240,1457,1535,1712,1739,"Northeast Region"]
[null,"VT","Rutland","VT-Rutland",1414,1661,1750,1951,1983,"Northeast Region"]
[null,"VT","Washington","VT-Washington",1562,1834,1933,2155,2190,"Northeast Region"]
[null,"VT","Windham","VT-Windham",1493,1754,1848,2061,2094,"Northeast Region"]
[null,"VT","Windsor","VT-Windsor",1534,1802,1899,2117,2152,"Northeast Region"]
[null,"DE","New Castle","DE-New Castle",1575,1850,1949,2173,2208,"Philadelphia"]
[null,"MD","Cecil","MD-Cecil",1687,1982,2088,2328,2366,"Philadelphia"]
[null,"NJ","Atlantic","NJ-Atlantic",1838,2159,2275,2537,2578,"Philadelphia"]
[null,"NJ","Burlington","NJ-Burlington",1949,2289,2412,2689,2733,"Philadelphia"]
[null,"NJ","Camden","NJ-Camden",1827,2146,2261,2521,2562,"Philadelphia"]
[null,"NJ","Cape May","NJ-Cape May",1806,2121,2235,2492,2532,"Philadelphia"]
[null,"NJ","Cumberland","NJ-Cumberland",1567,1840,1939,2162,2197,"Philadelphia"]
[null,"NJ","Gloucester","NJ-Gloucester",1896,2227,2347,2617,2659,"Philadelphia"]
[null,"NJ","Salem","NJ-Salem",1700,1997,2104,2346,2384,"Philadelphia"]
[null,"PA","Bucks","PA-Bucks",1961,2303,2427,2706,2750,"Philadelphia"]
[null,"PA","Chester","PA-Chester",2061,2421,2551,2844,2890,"Philadelphia"]
[null,"PA","Delaware","PA-Delaware",1774,2084,2196,2449,2488,"Philadelphia"]
[null,"PA","Montgomery","PA-Montgomery",1912,2245,2366,2638,2681,"Philadelphia"]
[null,"PA","Philadelphia","PA-Philadelphia",1269,1491,1571,1752,1780,"Philadelphia"]
[null,"AZ","Maricopa","AZ-Maricopa",1436,1686,1777,1981,2013,"Phoenix"]
[null,"AZ","Pinal","AZ-Pinal",1243,1460,1538,1715,1743,"Phoenix"]
[null,"CA","San Diego","CA-San Diego",2203,2588,2727,3041,3090,"San Diego"]
[null,"CA","Alameda","CA-Alameda",2409,2830,2982,3325,3379,"San Francisco"]
[null,"CA","Contra Costa","CA-Contra Costa",2341,2749,2897,3230,3282,"San Francisco"]
[null,"CA","Marin","CA-Marin",3032,3562,3753,4185,4252,"San Francisco"]
[null,"CA","Napa","CA-Napa",2223,2611,2751,3067,3117,"San Francisco"]
[null,"CA","San Benito","CA-San Benito",2138,2511,2646,2950,2998,"San Francisco"]
[null,"CA","San Francisco","CA-San Francisco",2943,3456,3642,4061,4126,"San Francisco"]
[null,"CA","San Mateo","CA-San Mateo",2876,3378,3560,3969,4033,"San Francisco"]
[null,"CA","Santa Clara","CA-Santa Clara",2751,3231,3405,3797,3858,"San Francisco"]
[null,"CA","Santa Cruz","CA-Santa Cruz",2416,2838,2990,3334,3388,"San Francisco"]
[null,"CA","Solano","CA-Solano",1915,2249,2370,2643,2685,"San Francisco"]
[null,"CA","Sonoma","CA-Sonoma",2097,2463,2595,2893,2940,"San Francisco"]
[null,"WA","Island","WA-Island",1669,1961,2066,2304,2341,"Seattle"]
[null,"WA","King","WA-King",2098,2465,2597,2896,2942,"Seattle"]
[null,"WA","Kitsap","WA-Kitsap",1670,1962,2067,2305,2342,"Seattle"]
[null,"WA","Pierce","WA-Pierce",1709,2007,2115,2358,2396,"Seattle"]
[null,"WA","Snohomish","WA-Snohomish",1888,2218,2337,2606,2648,"Seattle"]
[null,"WA","Thurston","WA-Thurston",1650,1938,2042,2277,2314,"Seattle"]
[null,"AL","Autauga","AL-Autauga",1226,1440,1517,1691,1719,"South Region"]
[null,"AL","Baldwin","AL-Baldwin",1340,1573,1658,1849,1879,"South Region"]
[null,"AL","Barbour","AL-Barbour",1005,1181,1244,1387,1409,"South Region"]
[null,"AL","Bibb","AL-Bibb",1100,1293,1362,1519,1543,"South Region"]
[null,"AL","Blount","AL-Blount",1138,1337,1409,1571,1596,"South Region"]
[null,"AL","Bullock","AL-Bullock",1080,1269,1337,1491,1515,"South Region"]
[null,"AL","Butler","AL-Butler",1029,1208,1273,1419,1442,"South Region"]
[null,"AL","Calhoun","AL-Calhoun",1101,1293,1363,1520,1544,"South Region"]
[null,"AL","Chambers","AL-Chambers",973,1143,1204,1342,1364,"South Region"]
[null,"AL","Cherokee","AL-Cherokee",1161,1364,1437,1602,1628,"South Region"]
[null,"AL","Chilton","AL-Chilton",1067,1254,1321,1473,1497,"South Region"]
[null,"AL","Choctaw","AL-Choctaw",1021,1199,1263,1408,1431,"South Region"]
[null,"AL","Clarke","AL-Clarke",1081,1270,1338,1492,1516,"South Region"]
[null,"AL","Clay","AL-Clay",1051,1235,1301,1451,1474,"South Region"]
[null,"AL","Coffee","AL-Coffee",1221,1434,1511,1685,1712,"South Region"]
[null,"AL","Colbert","AL-Colbert",1071,1257,1325,1477,1501,"South Region"]
[null,"AL","Conecuh","AL-Conecuh",925,1087,1145,1277,1297,"South Region"]
[null,"AL","Coosa","AL-Coosa",953,1120,1180,1316,1337,"South Region"]
[null,"AL","Covington","AL-Covington",1029,1208,1273,1419,1442,"South Region"]
[null,"AL","Crenshaw","AL-Crenshaw",1017,1195,1259,1404,1426,"South Region"]
[null,"AL","Cullman","AL-Cullman",1074,1261,1329,1482,1506,"South Region"]
[null,"AL","Dale","AL-Dale",1037,1219,1284,1432,1455,"South Region"]
[null,"AL","Dallas","AL-Dallas",1050,1234,1300,1450,1473,"South Region"]
[null,"AL","DeKalb","AL-DeKalb",1030,1210,1275,1422,1445,"South Region"]
[null,"AL","Elmore","AL-Elmore",1213,1424,1501,1674,1701,"South Region"]
[null,"AL","Escambia","AL-Escambia",1044,1226,1292,1441,1464,"South Region"]
[null,"AL","Etowah","AL-Etowah",1126,1322,1393,1553,1578,"South Region"]
[null,"AL","Fayette","AL-Fayette",1012,1188,1252,1396,1419,"South Region"]
[null,"AL","Franklin","AL-Franklin",982,1153,1215,1355,1377,"South Region"]
[null,"AL","Geneva","AL-Geneva",998,1172,1235,1377,1399,"South Region"]
[null,"AL","Greene","AL-Greene",925,1087,1145,1277,1297,"South Region"]
[null,"AL","Hale","AL-Hale",1058,1243,1310,1461,1484,"South Region"]
[null,"AL","Henry","AL-Henry",1092,1283,1352,1507,1532,"South Region"]
[null,"AL","Houston","AL-Houston",1108,1301,1371,1529,1553,"South Region"]
[null,"AL","Jackson","AL-Jackson",1053,1237,1303,1453,1476,"South Region"]
[null,"AL","Jefferson","AL-Jefferson",1303,1531,1613,1798,1828,"South Region"]
[null,"AL","Lamar","AL-Lamar",959,1126,1187,1324,1345,"South Region"]
[null,"AL","Lauderdale","AL-Lauderdale",1093,1284,1353,1509,1533,"South Region"]
[null,"AL","Lawrence","AL-Lawrence",1085,1275,1343,1497,1522,"South Region"]
[null,"AL","Lee","AL-Lee",1253,1472,1551,1729,1757,"South Region"]
[null,"AL","Limestone","AL-Limestone",1190,1398,1473,1642,1669,"South Region"]
[null,"AL","Lowndes","AL-Lowndes",1042,1224,1290,1438,1462,"South Region"]
[null,"AL","Macon","AL-Macon",1046,1228,1294,1443,1466,"South Region"]
[null,"AL","Madison","AL-Madison",1259,1479,1558,1737,1765,"South Region"]
[null,"AL","Marengo","AL-Marengo",1101,1293,1363,1520,1544,"South Region"]
[null,"AL","Marion","AL-Marion",953,1120,1180,1316,1337,"South Region"]
[null,"AL","Marshall","AL-Marshall",1105,1297,1367,1524,1549,"South Region"]
[null,"AL","Mobile","AL-Mobile",1212,1424,1500,1673,1700,"South Region"]
[null,"AL","Monroe","AL-Monroe",987,1159,1221,1361,1383,"South Region"]
[null,"AL","Montgomery","AL-Montgomery",1177,1383,1457,1625,1651,"South Region"]
[null,"AL","Morgan","AL-Morgan",1114,1309,1379,1538,1562,"South Region"]
[null,"AL","Perry","AL-Perry",1076,1264,1332,1485,1509,"South Region"]
[null,"AL","Pickens","AL-Pickens",1054,1237,1304,1454,1477,"South Region"]
[null,"AL","Pike","AL-Pike",1059,1244,1311,1462,1485,"South Region"]
[null,"AL","Randolph","AL-Randolph",974,1144,1205,1344,1365,"South Region"]
[null,"AL","Russell","AL-Russell",1137,1335,1407,1569,1594,"South Region"]
[null,"AL","Saint Clair","AL-Saint Clair",1206,1417,1493,1665,1692,"South Region"]
[null,"AL","Shelby","AL-Shelby",1439,1690,1781,1986,2018,"South Region"]
[null,"AL","Sumter","AL-Sumter",999,1173,1236,1378,1400,"South Region"]
[null,"AL","Talladega","AL-Talladega",1064,1250,1317,1468,1492,"South Region"]
[null,"AL","Tallapoosa","AL-Tallapoosa",1066,1252,1319,1471,1494,"South Region"]
[null,"AL","Tuscaloosa","AL-Tuscaloosa",1251,1469,1548,1726,1754,"South Region"]
[null,"AL","Walker","AL-Walker",1042,1223,1289,1437,1460,"South Region"]
[null,"AL","Washington","AL-Washington",1043,1225,1291,1439,1463,"South Region"]
[null,"AL","Wilcox","AL-Wilcox",1029,1208,1273,1419,1442,"South Region"]
[null,"AL","Winston","AL-Winston",1008,1183,1247,1390,1413,"South Region"]
[null,"AR","Arkansas","AR-Arkansas",975,1145,1207,1346,1368,"South Region"]
[null,"AR","Ashley","AR-Ashley",1000,1175,1238,1380,1403,"South Region"]
[null,"AR","Baxter","AR-Baxter",1011,1187,1251,1395,1417,"South Region"]
[null,"AR","Benton","AR-Benton",1225,1439,1516,1690,1718,"South Region"]
[null,"AR","Boone","AR-Boone",985,1157,1219,1359,1381,"South Region"]
[null,"AR","Bradley","AR-Bradley",952,1118,1178,1313,1335,"South Region"]
[null,"AR","Calhoun","AR-Calhoun",966,1135,1196,1334,1355,"South Region"]
[null,"AR","Carroll","AR-Carroll",1025,1204,1269,1415,1438,"South Region"]
[null,"AR","Chicot","AR-Chicot",987,1160,1222,1363,1385,"South Region"]
[null,"AR","Clark","AR-Clark",1030,1210,1275,1422,1445,"South Region"]
[null,"AR","Clay","AR-Clay",907,1065,1122,1251,1271,"South Region"]
[null,"AR","Cleburne","AR-Cleburne",1025,1203,1268,1414,1437,"South Region"]
[null,"AR","Cleveland","AR-Cleveland",1010,1186,1250,1394,1416,"South Region"]
[null,"AR","Columbia","AR-Columbia",996,1170,1233,1375,1397,"South Region"]
[null,"AR","Conway","AR-Conway",980,1151,1213,1352,1374,"South Region"]
[null,"AR","Craighead","AR-Craighead",1084,1273,1341,1495,1519,"South Region"]
[null,"AR","Crawford","AR-Crawford",1027,1206,1271,1417,1440,"South Region"]
[null,"AR","Crittenden","AR-Crittenden",1124,1320,1391,1551,1576,"South Region"]
[null,"AR","Cross","AR-Cross",1047,1230,1296,1445,1468,"South Region"]
[null,"AR","Dallas","AR-Dallas",967,1136,1197,1335,1356,"South Region"]
[null,"AR","Desha","AR-Desha",899,1056,1113,1241,1261,"South Region"]
[null,"AR","Drew","AR-Drew",985,1157,1219,1359,1381,"South Region"]
[null,"AR","Faulkner","AR-Faulkner",1201,1411,1487,1658,1685,"South Region"]
[null,"AR","Franklin","AR-Franklin",960,1127,1188,1325,1346,"South Region"]
[null,"AR","Fulton","AR-Fulton",1004,1179,1242,1385,1407,"South Region"]
[null,"AR","Garland","AR-Garland",1089,1279,1348,1503,1527,"South Region"]
[null,"AR","Grant","AR-Grant",1034,1215,1280,1427,1450,"South Region"]
[null,"AR","Greene","AR-Greene",1037,1218,1283,1431,1454,"South Region"]
[null,"AR","Hempstead","AR-Hempstead",1015,1192,1256,1400,1423,"South Region"]
[null,"AR","Hot Spring","AR-Hot Spring",991,1163,1226,1367,1389,"South Region"]
[null,"AR","Howard","AR-Howard",985,1157,1219,1359,1381,"South Region"]
[null,"AR","Independence","AR-Independence",1025,1203,1268,1414,1437,"South Region"]
[null,"AR","Izard","AR-Izard",939,1103,1162,1296,1317,"South Region"]
[null,"AR","Jackson","AR-Jackson",838,984,1037,1156,1175,"South Region"]
[null,"AR","Jefferson","AR-Jefferson",1008,1183,1247,1390,1413,"South Region"]
[null,"AR","Johnson","AR-Johnson",924,1086,1144,1276,1296,"South Region"]
[null,"AR","Lafayette","AR-Lafayette",913,1072,1130,1260,1280,"South Region"]
[null,"AR","Lawrence","AR-Lawrence",877,1030,1085,1210,1229,"South Region"]
[null,"AR","Lee","AR-Lee",898,1055,1112,1240,1260,"South Region"]
[null,"AR","Lincoln","AR-Lincoln",903,1061,1118,1247,1267,"South Region"]
[null,"AR","Little River","AR-Little River",969,1138,1199,1337,1358,"South Region"]
[null,"AR","Logan","AR-Logan",907,1066,1123,1252,1272,"South Region"]
[null,"AR","Lonoke","AR-Lonoke",1156,1358,1431,1596,1621,"South Region"]
[null,"AR","Madison","AR-Madison",1026,1205,1270,1416,1439,"South Region"]
[null,"AR","Marion","AR-Marion",911,1070,1127,1257,1277,"South Region"]
[null,"AR","Miller","AR-Miller",1052,1236,1302,1452,1475,"South Region"]
[null,"AR","Mississippi","AR-Mississippi",982,1153,1215,1355,1377,"South Region"]
[null,"AR","Monroe","AR-Monroe",921,1082,1140,1271,1292,"South Region"]
[null,"AR","Montgomery","AR-Montgomery",966,1135,1196,1334,1355,"South Region"]
[null,"AR","Nevada","AR-Nevada",936,1100,1159,1292,1313,"South Region"]
[null,"AR","Newton","AR-Newton",957,1124,1184,1320,1341,"South Region"]
[null,"AR","Ouachita","AR-Ouachita",930,1092,1151,1283,1304,"South Region"]
[null,"AR","Perry","AR-Perry",1058,1243,1310,1461,1484,"South Region"]
[null,"AR","Phillips","AR-Phillips",997,1171,1234,1376,1398,"South Region"]
[null,"AR","Pike","AR-Pike",899,1056,1113,1241,1261,"South Region"]
[null,"AR","Poinsett","AR-Poinsett",967,1136,1197,1335,1356,"South Region"]
[null,"AR","Polk","AR-Polk",981,1152,1214,1354,1375,"South Region"]
[null,"AR","Pope","AR-Pope",1012,1188,1252,1396,1419,"South Region"]
[null,"AR","Prairie","AR-Prairie",898,1054,1111,1239,1259,"South Region"]
[null,"AR","Pulaski","AR-Pulaski",1248,1465,1544,1722,1749,"South Region"]
[null,"AR","Randolph","AR-Randolph",889,1044,1100,1227,1246,"South Region"]
[null,"AR","Saint Francis","AR-Saint Francis",927,1089,1147,1279,1300,"South Region"]
[null,"AR","Saline","AR-Saline",1189,1397,1472,1641,1668,"South Region"]
[null,"AR","Scott","AR-Scott",886,1041,1097,1223,1243,"South Region"]
[null,"AR","Searcy","AR-Searcy",911,1070,1127,1257,1277,"South Region"]
[null,"AR","Sebastian","AR-Sebastian",1042,1224,1290,1438,1462,"South Region"]
[null,"AR","Sevier","AR-Sevier",903,1061,1118,1247,1267,"South Region"]
[null,"AR","Sharp","AR-Sharp",844,991,1044,1164,1183,"South Region"]
[null,"AR","Stone","AR-Stone",1021,1200,1264,1409,1432,"South Region"]
[null,"AR","Union","AR-Union",991,1164,1227,1368,1390,"South Region"]
[null,"AR","Van Buren","AR-Van Buren",1000,1175,1238,1380,1403,"South Region"]
[null,"AR","Washington","AR-Washington",1226,1440,1517,1691,1719,"South Region"]
[null,"AR","White","AR-White",1049,1232,1298,1447,1471,"South Region"]
[null,"AR","Woodruff","AR-Woodruff",854,1003,1057,1179,1198,"South Region"]
[null,"AR","Yell","AR-Yell",988,1161,1223,1364,1386,"South Region"]
[null,"DE","Kent","DE-Kent",1473,1730,1823,2033,2065,"South Region"]
[null,"DE","Sussex","DE-Sussex",1407,1652,1741,1941,1973,"South Region"]
[null,"FL","Alachua","FL-Alachua",1404,1649,1738,1938,1969,"South Region"]
[null,"FL","Baker","FL-Baker",1185,1392,1467,1636,1662,"South Region"]
[null,"FL","Bay","FL-Bay",1373,1612,1699,1894,1925,"South Region"]
[null,"FL","Bradford","FL-Bradford",1112,1306,1376,1534,1559,"South Region"]
[null,"FL","Brevard","FL-Brevard",1306,1534,1616,1802,1831,"South Region"]
[null,"FL","Calhoun","FL-Calhoun",1036,1217,1282,1429,1453,"South Region"]
[null,"FL","Charlotte","FL-Charlotte",1298,1525,1607,1792,1821,"South Region"]
[null,"FL","Citrus","FL-Citrus",1081,1270,1338,1492,1516,"South Region"]
[null,"FL","Clay","FL-Clay",1384,1626,1713,1910,1941,"South Region"]
[null,"FL","Collier","FL-Collier",1643,1929,2033,2267,2303,"South Region"]
[null,"FL","Columbia","FL-Columbia",1143,1342,1414,1577,1602,"South Region"]
[null,"FL","DeSoto","FL-DeSoto",1018,1196,1260,1405,1428,"South Region"]
[null,"FL","Dixie","FL-Dixie",1007,1182,1246,1389,1412,"South Region"]
[null,"FL","Duval","FL-Duval",1380,1621,1708,1904,1935,"South Region"]
[null,"FL","Escambia","FL-Escambia",1245,1462,1541,1718,1746,"South Region"]
[null,"FL","Flagler","FL-Flagler",1297,1523,1605,1790,1818,"South Region"]
[null,"FL","Franklin","FL-Franklin",1242,1459,1537,1714,1741,"South Region"]
[null,"FL","Gadsden","FL-Gadsden",1157,1359,1432,1597,1622,"South Region"]
[null,"FL","Gilchrist","FL-Gilchrist",1088,1277,1346,1501,1525,"South Region"]
[null,"FL","Glades","FL-Glades",1131,1329,1400,1561,1586,"South Region"]
[null,"FL","Gulf","FL-Gulf",1263,1483,1563,1743,1771,"South Region"]
[null,"FL","Hamilton","FL-Hamilton",973,1143,1204,1342,1364,"South Region"]
[null,"FL","Hardee","FL-Hardee",1043,1225,1291,1439,1463,"South Region"]
[null,"FL","Hendry","FL-Hendry",1098,1290,1359,1515,1540,"South Region"]
[null,"FL","Hernando","FL-Hernando",1157,1359,1432,1597,1622,"South Region"]
[null,"FL","Highlands","FL-Highlands",1082,1271,1339,1493,1517,"South Region"]
[null,"FL","Hillsborough","FL-Hillsborough",1462,1717,1809,2017,2050,"South Region"]
[null,"FL","Holmes","FL-Holmes",1018,1196,1260,1405,1428,"South Region"]
[null,"FL","Indian River","FL-Indian River",1312,1541,1624,1811,1840,"South Region"]
[null,"FL","Jackson","FL-Jackson",1073,1260,1328,1481,1505,"South Region"]
[null,"FL","Jefferson","FL-Jefferson",1138,1337,1409,1571,1596,"South Region"]
[null,"FL","Lafayette","FL-Lafayette",1182,1388,1463,1631,1658,"South Region"]
[null,"FL","Lake","FL-Lake",1290,1515,1596,1780,1808,"South Region"]
[null,"FL","Lee","FL-Lee",1381,1622,1709,1906,1936,"South Region"]
[null,"FL","Leon","FL-Leon",1436,1686,1777,1981,2013,"South Region"]
[null,"FL","Levy","FL-Levy",1088,1277,1346,1501,1525,"South Region"]
[null,"FL","Liberty","FL-Liberty",1006,1182,1245,1388,1411,"South Region"]
[null,"FL","Madison","FL-Madison",1019,1197,1261,1406,1429,"South Region"]
[null,"FL","Manatee","FL-Manatee",1496,1758,1852,2065,2098,"South Region"]
[null,"FL","Marion","FL-Marion",1127,1324,1395,1555,1581,"South Region"]
[null,"FL","Martin","FL-Martin",1588,1865,1965,2191,2226,"South Region"]
[null,"FL","Monroe","FL-Monroe",2088,2452,2584,2881,2928,"South Region"]
[null,"FL","Nassau","FL-Nassau",1400,1645,1733,1932,1963,"South Region"]
[null,"FL","Okaloosa","FL-Okaloosa",1481,1740,1833,2044,2077,"South Region"]
[null,"FL","Okeechobee","FL-Okeechobee",1116,1311,1381,1540,1565,"South Region"]
[null,"FL","Orange","FL-Orange",1475,1732,1825,2035,2068,"South Region"]
[null,"FL","Osceola","FL-Osceola",1359,1596,1682,1875,1906,"South Region"]
[null,"FL","Palm Beach","FL-Palm Beach",1655,1944,2048,2284,2320,"South Region"]
[null,"FL","Pasco","FL-Pasco",1323,1554,1637,1825,1855,"South Region"]
[null,"FL","Pinellas","FL-Pinellas",1431,1681,1771,1975,2007,"South Region"]
[null,"FL","Polk","FL-Polk",1228,1442,1520,1695,1722,"South Region"]
[null,"FL","Putnam","FL-Putnam",1043,1225,1291,1439,1463,"South Region"]
[null,"FL","Saint Johns","FL-Saint Johns",1708,2006,2114,2357,2395,"South Region"]
[null,"FL","Saint Lucie","FL-Saint Lucie",1358,1595,1681,1874,1905,"South Region"]
[null,"FL","Santa Rosa","FL-Santa Rosa",1393,1636,1724,1922,1953,"South Region"]
[null,"FL","Sarasota","FL-Sarasota",1413,1660,1749,1950,1982,"South Region"]
[null,"FL","Seminole","FL-Seminole",1479,1738,1831,2042,2075,"South Region"]
[null,"FL","Sumter","FL-Sumter",1205,1415,1491,1662,1689,"South Region"]
[null,"FL","Suwannee","FL-Suwannee",1042,1224,1290,1438,1462,"South Region"]
[null,"FL","Taylor","FL-Taylor",1047,1230,1296,1445,1468,"South Region"]
[null,"FL","Union","FL-Union",1106,1299,1369,1526,1551,"South Region"]
[null,"FL","Volusia","FL-Volusia",1257,1477,1556,1735,1763,"South Region"]
[null,"FL","Wakulla","FL-Wakulla",1231,1446,1524,1699,1727,"South Region"]
[null,"FL","Walton","FL-Walton",1345,1579,1664,1855,1885,"South Region"]
[null,"FL","Washington","FL-Washington",1011,1187,1251,1395,1417,"South Region"]
[null,"GA","Appling","GA-Appling",1004,1180,1243,1386,1408,"South Region"]
[null,"GA","Atkinson","GA-Atkinson",962,1129,1190,1327,1348,"South Region"]
[null,"GA","Bacon","GA-Bacon",896,1052,1109,1237,1256,"South Region"]
[null,"GA","Baker","GA-Baker",1001,1176,1239,1381,1404,"South Region"]
[null,"GA","Baldwin","GA-Baldwin",1271,1493,1573,1754,1782,"South Region"]
[null,"GA","Banks","GA-Banks",1237,1453,1531,1707,1735,"South Region"]
[null,"GA","Ben Hill","GA-Ben Hill",927,1089,1147,1279,1300,"South Region"]
[null,"GA","Berrien","GA-Berrien",1019,1197,1261,1406,1429,"South Region"]
[null,"GA","Bibb","GA-Bibb",1233,1448,1526,1701,1729,"South Region"]
[null,"GA","Bleckley","GA-Bleckley",1089,1279,1348,1503,1527,"South Region"]
[null,"GA","Brantley","GA-Brantley",1037,1218,1283,1431,1454,"South Region"]
[null,"GA","Brooks","GA-Brooks",1088,1277,1346,1501,1525,"South Region"]
[null,"GA","Bryan","GA-Bryan",1536,1804,1901,2120,2154,"South Region"]
[null,"GA","Bulloch","GA-Bulloch",1210,1422,1498,1670,1697,"South Region"]
[null,"GA","Burke","GA-Burke",1026,1205,1270,1416,1439,"South Region"]
[null,"GA","Calhoun","GA-Calhoun",1008,1183,1247,1390,1413,"South Region"]
[null,"GA","Camden","GA-Camden",1398,1642,1730,1929,1960,"South Region"]
[null,"GA","Candler","GA-Candler",1150,1350,1423,1587,1612,"South Region"]
[null,"GA","Catoosa","GA-Catoosa",1193,1402,1477,1647,1673,"South Region"]
[null,"GA","Charlton","GA-Charlton",1008,1183,1247,1390,1413,"South Region"]
[null,"GA","Chatham","GA-Chatham",1433,1684,1774,1978,2010,"South Region"]
[null,"GA","Chattahoochee","GA-Chattahoochee",894,1051,1107,1234,1254,"South Region"]
[null,"GA","Chattooga","GA-Chattooga",1004,1179,1242,1385,1407,"South Region"]
[null,"GA","Clarke","GA-Clarke",1265,1486,1566,1746,1774,"South Region"]
[null,"GA","Clay","GA-Clay",1147,1347,1419,1582,1608,"South Region"]
[null,"GA","Clinch","GA-Clinch",1148,1349,1421,1584,1610,"South Region"]
[null,"GA","Coffee","GA-Coffee",1074,1261,1329,1482,1506,"South Region"]
[null,"GA","Colquitt","GA-Colquitt",1032,1212,1277,1424,1447,"South Region"]
[null,"GA","Columbia","GA-Columbia",1389,1631,1719,1917,1948,"South Region"]
[null,"GA","Cook","GA-Cook",1060,1245,1312,1463,1486,"South Region"]
[null,"GA","Crawford","GA-Crawford",1126,1323,1394,1554,1579,"South Region"]
[null,"GA","Crisp","GA-Crisp",1033,1214,1279,1426,1449,"South Region"]
[null,"GA","Dade","GA-Dade",1123,1319,1390,1550,1575,"South Region"]
[null,"GA","Decatur","GA-Decatur",1114,1309,1379,1538,1562,"South Region"]
[null,"GA","Dodge","GA-Dodge",1109,1303,1373,1531,1556,"South Region"]
[null,"GA","Dooly","GA-Dooly",1041,1222,1288,1436,1459,"South Region"]
[null,"GA","Dougherty","GA-Dougherty",1188,1395,1470,1639,1666,"South Region"]
[null,"GA","Early","GA-Early",1088,1277,1346,1501,1525,"South Region"]
[null,"GA","Echols","GA-Echols",1010,1186,1250,1394,1416,"South Region"]
[null,"GA","Effingham","GA-Effingham",1343,1577,1662,1853,1883,"South Region"]
[null,"GA","Elbert","GA-Elbert",1052,1236,1302,1452,1475,"South Region"]
[null,"GA","Emanuel","GA-Emanuel",989,1162,1224,1365,1387,"South Region"]
[null,"GA","Evans","GA-Evans",1120,1315,1386,1545,1570,"South Region"]
[null,"GA","Fannin","GA-Fannin",1186,1393,1468,1637,1663,"South Region"]
[null,"GA","Floyd","GA-Floyd",1187,1394,1469,1638,1664,"South Region"]
[null,"GA","Franklin","GA-Franklin",1160,1363,1436,1601,1627,"South Region"]
[null,"GA","Gilmer","GA-Gilmer",1201,1410,1486,1657,1684,"South Region"]
[null,"GA","Glascock","GA-Glascock",993,1166,1229,1370,1392,"South Region"]
[null,"GA","Glynn","GA-Glynn",1340,1574,1659,1850,1880,"South Region"]
[null,"GA","Gordon","GA-Gordon",1100,1293,1362,1519,1543,"South Region"]
[null,"GA","Grady","GA-Grady",1134,1331,1403,1564,1590,"South Region"]
[null,"GA","Greene","GA-Greene",1416,1664,1753,1955,1986,"South Region"]
[null,"GA","Habersham","GA-Habersham",1166,1369,1443,1609,1635,"South Region"]
[null,"GA","Hall","GA-Hall",1337,1571,1655,1845,1875,"South Region"]
[null,"GA","Hancock","GA-Hancock",1065,1251,1318,1470,1493,"South Region"]
[null,"GA","Harris","GA-Harris",1492,1752,1846,2058,2092,"South Region"]
[null,"GA","Hart","GA-Hart",1155,1357,1430,1594,1620,"South Region"]
[null,"GA","Heard","GA-Heard",1084,1273,1341,1495,1519,"South Region"]
[null,"GA","Houston","GA-Houston",1239,1456,1534,1710,1738,"South Region"]
[null,"GA","Irwin","GA-Irwin",1054,1237,1304,1454,1477,"South Region"]
[null,"GA","Jackson","GA-Jackson",1379,1620,1707,1903,1934,"South Region"]
[null,"GA","Jasper","GA-Jasper",1186,1393,1468,1637,1663,"South Region"]
[null,"GA","Jeff Davis","GA-Jeff Davis",935,1098,1157,1290,1311,"South Region"]
[null,"GA","Jefferson","GA-Jefferson",1059,1244,1311,1462,1485,"South Region"]
[null,"GA","Jenkins","GA-Jenkins",1074,1261,1329,1482,1506,"South Region"]
[null,"GA","Johnson","GA-Johnson",1029,1208,1273,1419,1442,"South Region"]
[null,"GA","Jones","GA-Jones",1285,1509,1590,1773,1801,"South Region"]
[null,"GA","Lamar","GA-Lamar",1267,1488,1568,1748,1777,"South Region"]
[null,"GA","Lanier","GA-Lanier",1119,1314,1385,1544,1569,"South Region"]
[null,"GA","Laurens","GA-Laurens",1159,1362,1435,1600,1626,"South Region"]
[null,"GA","Lee","GA-Lee",1339,1572,1657,1848,1877,"South Region"]
[null,"GA","Liberty","GA-Liberty",1231,1445,1523,1698,1726,"South Region"]
[null,"GA","Lincoln","GA-Lincoln",1227,1441,1518,1693,1720,"South Region"]
[null,"GA","Long","GA-Long",1163,1366,1439,1604,1630,"South Region"]
[null,"GA","Lowndes","GA-Lowndes",1201,1410,1486,1657,1684,"South Region"]
[null,"GA","Lumpkin","GA-Lumpkin",1280,1503,1584,1766,1795,"South Region"]
[null,"GA","Macon","GA-Macon",983,1154,1216,1356,1378,"South Region"]
[null,"GA","Madison","GA-Madison",1122,1318,1389,1549,1574,"South Region"]
[null,"GA","Marion","GA-Marion",1089,1279,1348,1503,1527,"South Region"]
[null,"GA","McDuffie","GA-McDuffie",1161,1364,1437,1602,1628,"South Region"]
[null,"GA","McIntosh","GA-McIntosh",1249,1467,1546,1724,1752,"South Region"]
[null,"GA","Meriwether","GA-Meriwether",1126,1322,1393,1553,1578,"South Region"]
[null,"GA","Miller","GA-Miller",1124,1320,1391,1551,1576,"South Region"]
[null,"GA","Mitchell","GA-Mitchell",1048,1231,1297,1446,1470,"South Region"]
[null,"GA","Monroe","GA-Monroe",1294,1519,1601,1785,1814,"South Region"]
[null,"GA","Montgomery","GA-Montgomery",1074,1261,1329,1482,1506,"South Region"]
[null,"GA","Morgan","GA-Morgan",1364,1602,1688,1882,1913,"South Region"]
[null,"GA","Murray","GA-Murray",1054,1238,1305,1455,1479,"South Region"]
[null,"GA","Muscogee","GA-Muscogee",1254,1473,1552,1730,1758,"South Region"]
[null,"GA","Oconee","GA-Oconee",1605,1886,1987,2216,2251,"South Region"]
[null,"GA","Oglethorpe","GA-Oglethorpe",1203,1413,1489,1660,1687,"South Region"]
[null,"GA","Peach","GA-Peach",1219,1432,1509,1683,1710,"South Region"]
[null,"GA","Pierce","GA-Pierce",1117,1312,1383,1542,1567,"South Region"]
[null,"GA","Polk","GA-Polk",1195,1404,1479,1649,1676,"South Region"]
[null,"GA","Pulaski","GA-Pulaski",1155,1356,1429,1593,1619,"South Region"]
[null,"GA","Putnam","GA-Putnam",1223,1437,1514,1688,1715,"South Region"]
[null,"GA","Quitman","GA-Quitman",978,1149,1211,1350,1372,"South Region"]
[null,"GA","Rabun","GA-Rabun",1314,1543,1626,1813,1842,"South Region"]
[null,"GA","Randolph","GA-Randolph",1025,1204,1269,1415,1438,"South Region"]
[null,"GA","Richmond","GA-Richmond",1147,1347,1419,1582,1608,"South Region"]
[null,"GA","Schley","GA-Schley",1152,1353,1426,1590,1616,"South Region"]
[null,"GA","Screven","GA-Screven",1076,1264,1332,1485,1509,"South Region"]
[null,"GA","Seminole","GA-Seminole",1050,1233,1299,1448,1472,"South Region"]
[null,"GA","Stephens","GA-Stephens",1147,1348,1420,1583,1609,"South Region"]
[null,"GA","Stewart","GA-Stewart",859,1009,1063,1185,1204,"South Region"]
[null,"GA","Sumter","GA-Sumter",1109,1303,1373,1531,1556,"South Region"]
[null,"GA","Talbot","GA-Talbot",1098,1290,1359,1515,1540,"South Region"]
[null,"GA","Taliaferro","GA-Taliaferro",1048,1231,1297,1446,1470,"South Region"]
[null,"GA","Tattnall","GA-Tattnall",1016,1194,1258,1403,1425,"South Region"]
[null,"GA","Taylor","GA-Taylor",978,1149,1211,1350,1372,"South Region"]
[null,"GA","Telfair","GA-Telfair",889,1044,1100,1227,1246,"South Region"]
[null,"GA","Terrell","GA-Terrell",1000,1175,1238,1380,1403,"South Region"]
[null,"GA","Thomas","GA-Thomas",1162,1365,1438,1603,1629,"South Region"]
[null,"GA","Tift","GA-Tift",1133,1330,1402,1563,1588,"South Region"]
[null,"GA","Toombs","GA-Toombs",1080,1269,1337,1491,1515,"South Region"]
[null,"GA","Towns","GA-Towns",1191,1399,1474,1644,1670,"South Region"]
[null,"GA","Treutlen","GA-Treutlen",896,1052,1109,1237,1256,"South Region"]
[null,"GA","Troup","GA-Troup",1205,1415,1491,1662,1689,"South Region"]
[null,"GA","Turner","GA-Turner",1132,1330,1401,1562,1587,"South Region"]
[null,"GA","Twiggs","GA-Twiggs",1078,1266,1334,1487,1511,"South Region"]
[null,"GA","Union","GA-Union",1259,1479,1558,1737,1765,"South Region"]
[null,"GA","Upson","GA-Upson",1058,1242,1309,1460,1483,"South Region"]
[null,"GA","Walker","GA-Walker",1092,1282,1351,1506,1531,"South Region"]
[null,"GA","Ware","GA-Ware",1052,1236,1302,1452,1475,"South Region"]
[null,"GA","Warren","GA-Warren",1007,1182,1246,1389,1412,"South Region"]
[null,"GA","Washington","GA-Washington",1143,1343,1415,1578,1603,"South Region"]
[null,"GA","Wayne","GA-Wayne",1086,1275,1344,1499,1523,"South Region"]
[null,"GA","Webster","GA-Webster",1035,1216,1281,1428,1451,"South Region"]
[null,"GA","Wheeler","GA-Wheeler",894,1051,1107,1234,1254,"South Region"]
[null,"GA","White","GA-White",1203,1413,1489,1660,1687,"South Region"]
[null,"GA","Whitfield","GA-Whitfield",1125,1321,1392,1552,1577,"South Region"]
[null,"GA","Wilcox","GA-Wilcox",1017,1195,1259,1404,1426,"South Region"]
[null,"GA","Wilkes","GA-Wilkes",1138,1336,1408,1570,1595,"South Region"]
[null,"GA","Wilkinson","GA-Wilkinson",1054,1237,1304,1454,1477,"South Region"]
[null,"GA","Worth","GA-Worth",1059,1244,1311,1462,1485,"South Region"]
[null,"KY","Adair","KY-Adair",936,1099,1158,1291,1312,"South Region"]
[null,"KY","Allen","KY-Allen",1023,1201,1266,1412,1434,"South Region"]
[null,"KY","Anderson","KY-Anderson",1198,1407,1483,1654,1680,"South Region"]
[null,"KY","Ballard","KY-Ballard",1050,1234,1300,1450,1473,"South Region"]
[null,"KY","Barren","KY-Barren",1041,1222,1288,1436,1459,"South Region"]
[null,"KY","Bath","KY-Bath",973,1143,1204,1342,1364,"South Region"]
[null,"KY","Bell","KY-Bell",898,1054,1111,1239,1259,"South Region"]
[null,"KY","Boone","KY-Boone",1399,1643,1731,1930,1961,"South Region"]
[null,"KY","Bourbon","KY-Bourbon",1154,1355,1428,1592,1618,"South Region"]
[null,"KY","Boyd","KY-Boyd",1067,1254,1321,1473,1497,"South Region"]
[null,"KY","Boyle","KY-Boyle",1090,1280,1349,1504,1528,"South Region"]
[null,"KY","Bracken","KY-Bracken",1130,1328,1399,1560,1585,"South Region"]
[null,"KY","Breathitt","KY-Breathitt",1011,1187,1251,1395,1417,"South Region"]
[null,"KY","Breckinridge","KY-Breckinridge",993,1166,1229,1370,1392,"South Region"]
[null,"KY","Bullitt","KY-Bullitt",1216,1428,1505,1678,1705,"South Region"]
[null,"KY","Butler","KY-Butler",966,1134,1195,1332,1354,"South Region"]
[null,"KY","Caldwell","KY-Caldwell",1037,1218,1283,1431,1454,"South Region"]
[null,"KY","Calloway","KY-Calloway",1067,1253,1320,1472,1496,"South Region"]
[null,"KY","Campbell","KY-Campbell",1281,1504,1585,1767,1796,"South Region"]
[null,"KY","Carlisle","KY-Carlisle",991,1163,1226,1367,1389,"South Region"]
[null,"KY","Carroll","KY-Carroll",1037,1219,1284,1432,1455,"South Region"]
[null,"KY","Carter","KY-Carter",954,1121,1181,1317,1338,"South Region"]
[null,"KY","Casey","KY-Casey",940,1104,1163,1297,1318,"South Region"]
[null,"KY","Christian","KY-Christian",1115,1310,1380,1539,1564,"South Region"]
[null,"KY","Clark","KY-Clark",1182,1388,1463,1631,1658,"South Region"]
[null,"KY","Clay","KY-Clay",911,1070,1128,1258,1278,"South Region"]
[null,"KY","Clinton","KY-Clinton",932,1094,1153,1286,1306,"South Region"]
[null,"KY","Crittenden","KY-Crittenden",938,1102,1161,1295,1315,"South Region"]
[null,"KY","Cumberland","KY-Cumberland",894,1051,1107,1234,1254,"South Region"]
[null,"KY","Daviess","KY-Daviess",1088,1277,1346,1501,1525,"South Region"]
[null,"KY","Edmonson","KY-Edmonson",1026,1205,1270,1416,1439,"South Region"]
[null,"KY","Elliott","KY-Elliott",996,1170,1233,1375,1397,"South Region"]
[null,"KY","Estill","KY-Estill",1008,1184,1248,1392,1414,"South Region"]
[null,"KY","Fayette","KY-Fayette",1307,1535,1618,1804,1833,"South Region"]
[null,"KY","Fleming","KY-Fleming",976,1146,1208,1347,1369,"South Region"]
[null,"KY","Floyd","KY-Floyd",1017,1195,1259,1404,1426,"South Region"]
[null,"KY","Franklin","KY-Franklin",1202,1412,1488,1659,1686,"South Region"]
[null,"KY","Fulton","KY-Fulton",959,1126,1187,1324,1345,"South Region"]
[null,"KY","Gallatin","KY-Gallatin",1186,1393,1468,1637,1663,"South Region"]
[null,"KY","Garrard","KY-Garrard",1164,1367,1440,1606,1632,"South Region"]
[null,"KY","Grant","KY-Grant",1264,1484,1564,1744,1772,"South Region"]
[null,"KY","Graves","KY-Graves",1016,1194,1258,1403,1425,"South Region"]
[null,"KY","Grayson","KY-Grayson",999,1174,1237,1379,1402,"South Region"]
[null,"KY","Green","KY-Green",944,1108,1168,1302,1323,"South Region"]
[null,"KY","Greenup","KY-Greenup",1109,1302,1372,1530,1554,"South Region"]
[null,"KY","Hancock","KY-Hancock",1057,1241,1308,1458,1482,"South Region"]
[null,"KY","Hardin","KY-Hardin",1178,1384,1458,1626,1652,"South Region"]
[null,"KY","Harlan","KY-Harlan",907,1065,1122,1251,1271,"South Region"]
[null,"KY","Harrison","KY-Harrison",1082,1271,1339,1493,1517,"South Region"]
[null,"KY","Hart","KY-Hart",963,1131,1192,1329,1351,"South Region"]
[null,"KY","Henderson","KY-Henderson",1074,1261,1329,1482,1506,"South Region"]
[null,"KY","Henry","KY-Henry",1180,1386,1461,1629,1655,"South Region"]
[null,"KY","Hickman","KY-Hickman",960,1127,1188,1325,1346,"South Region"]
[null,"KY","Hopkins","KY-Hopkins",1003,1178,1241,1384,1406,"South Region"]
[null,"KY","Jackson","KY-Jackson",922,1083,1141,1272,1293,"South Region"]
[null,"KY","Jefferson","KY-Jefferson",1258,1478,1557,1736,1764,"South Region"]
[null,"KY","Jessamine","KY-Jessamine",1294,1520,1602,1786,1815,"South Region"]
[null,"KY","Johnson","KY-Johnson",1027,1206,1271,1417,1440,"South Region"]
[null,"KY","Kenton","KY-Kenton",1294,1519,1601,1785,1814,"South Region"]
[null,"KY","Knott","KY-Knott",966,1134,1195,1332,1354,"South Region"]
[null,"KY","Knox","KY-Knox",1027,1206,1271,1417,1440,"South Region"]
[null,"KY","Larue","KY-Larue",1052,1236,1302,1452,1475,"South Region"]
[null,"KY","Laurel","KY-Laurel",1032,1212,1277,1424,1447,"South Region"]
[null,"KY","Lawrence","KY-Lawrence",987,1159,1221,1361,1383,"South Region"]
[null,"KY","Lee","KY-Lee",896,1052,1109,1237,1256,"South Region"]
[null,"KY","Leslie","KY-Leslie",938,1102,1161,1295,1315,"South Region"]
[null,"KY","Letcher","KY-Letcher",892,1048,1104,1231,1251,"South Region"]
[null,"KY","Lewis","KY-Lewis",915,1075,1133,1263,1284,"South Region"]
[null,"KY","Lincoln","KY-Lincoln",997,1171,1234,1376,1398,"South Region"]
[null,"KY","Livingston","KY-Livingston",1019,1197,1261,1406,1429,"South Region"]
[null,"KY","Logan","KY-Logan",1065,1251,1318,1470,1493,"South Region"]
[null,"KY","Lyon","KY-Lyon",1209,1420,1496,1668,1695,"South Region"]
[null,"KY","Madison","KY-Madison",1211,1423,1499,1671,1698,"South Region"]
[null,"KY","Magoffin","KY-Magoffin",991,1164,1227,1368,1390,"South Region"]
[null,"KY","Marion","KY-Marion",1054,1238,1305,1455,1479,"South Region"]
[null,"KY","Marshall","KY-Marshall",1100,1293,1362,1519,1543,"South Region"]
[null,"KY","Martin","KY-Martin",1041,1222,1288,1436,1459,"South Region"]
[null,"KY","Mason","KY-Mason",1073,1260,1328,1481,1505,"South Region"]
[null,"KY","McCracken","KY-McCracken",1106,1299,1369,1526,1551,"South Region"]
[null,"KY","McCreary","KY-McCreary",850,998,1052,1173,1192,"South Region"]
[null,"KY","McLean","KY-McLean",1034,1215,1280,1427,1450,"South Region"]
[null,"KY","Meade","KY-Meade",1160,1363,1436,1601,1627,"South Region"]
[null,"KY","Menifee","KY-Menifee",892,1048,1104,1231,1251,"South Region"]
[null,"KY","Mercer","KY-Mercer",1143,1342,1414,1577,1602,"South Region"]
[null,"KY","Metcalfe","KY-Metcalfe",925,1087,1145,1277,1297,"South Region"]
[null,"KY","Monroe","KY-Monroe",926,1088,1146,1278,1298,"South Region"]
[null,"KY","Montgomery","KY-Montgomery",1062,1247,1314,1465,1489,"South Region"]
[null,"KY","Morgan","KY-Morgan",959,1126,1187,1324,1345,"South Region"]
[null,"KY","Muhlenberg","KY-Muhlenberg",984,1156,1218,1358,1380,"South Region"]
[null,"KY","Nelson","KY-Nelson",1136,1334,1406,1568,1593,"South Region"]
[null,"KY","Nicholas","KY-Nicholas",996,1170,1233,1375,1397,"South Region"]
[null,"KY","Ohio","KY-Ohio",941,1105,1164,1298,1319,"South Region"]
[null,"KY","Oldham","KY-Oldham",1607,1888,1989,2218,2254,"South Region"]
[null,"KY","Owen","KY-Owen",1030,1210,1275,1422,1445,"South Region"]
[null,"KY","Owsley","KY-Owsley",991,1163,1226,1367,1389,"South Region"]
[null,"KY","Pendleton","KY-Pendleton",1175,1380,1454,1621,1647,"South Region"]
[null,"KY","Perry","KY-Perry",1020,1198,1262,1407,1430,"South Region"]
[null,"KY","Pike","KY-Pike",1021,1199,1263,1408,1431,"South Region"]
[null,"KY","Powell","KY-Powell",1037,1218,1283,1431,1454,"South Region"]
[null,"KY","Pulaski","KY-Pulaski",1019,1197,1261,1406,1429,"South Region"]
[null,"KY","Robertson","KY-Robertson",1052,1236,1302,1452,1475,"South Region"]
[null,"KY","Rockcastle","KY-Rockcastle",961,1128,1189,1326,1347,"South Region"]
[null,"KY","Rowan","KY-Rowan",1032,1212,1277,1424,1447,"South Region"]
[null,"KY","Russell","KY-Russell",971,1141,1202,1340,1362,"South Region"]
[null,"KY","Scott","KY-Scott",1265,1486,1566,1746,1774,"South Region"]
[null,"KY","Shelby","KY-Shelby",1319,1549,1632,1820,1849,"South Region"]
[null,"KY","Simpson","KY-Simpson",1063,1248,1315,1466,1490,"South Region"]
[null,"KY","Spencer","KY-Spencer",1335,1568,1652,1842,1872,"South Region"]
[null,"KY","Taylor","KY-Taylor",984,1156,1218,1358,1380,"South Region"]
[null,"KY","Todd","KY-Todd",1009,1185,1249,1393,1415,"South Region"]
[null,"KY","Trigg","KY-Trigg",1089,1279,1348,1503,1527,"South Region"]
[null,"KY","Trimble","KY-Trimble",1215,1427,1504,1677,1704,"South Region"]
[null,"KY","Union","KY-Union",966,1134,1195,1332,1354,"South Region"]
[null,"KY","Warren","KY-Warren",1178,1384,1458,1626,1652,"South Region"]
[null,"KY","Washington","KY-Washington",1071,1258,1326,1478,1502,"South Region"]
[null,"KY","Wayne","KY-Wayne",876,1029,1084,1209,1228,"South Region"]
[null,"KY","Webster","KY-Webster",978,1149,1211,1350,1372,"South Region"]
[null,"KY","Whitley","KY-Whitley",978,1149,1211,1350,1372,"South Region"]
[null,"KY","Wolfe","KY-Wolfe",953,1119,1179,1315,1336,"South Region"]
[null,"KY","Woodford","KY-Woodford",1326,1557,1641,1830,1859,"South Region"]
[null,"LA","Acadia","LA-Acadia",995,1168,1231,1373,1395,"South Region"]
[null,"LA","Allen","LA-Allen",1018,1196,1260,1405,1428,"South Region"]
[null,"LA","Ascension","LA-Ascension",1315,1545,1628,1815,1845,"South Region"]
[null,"LA","Assumption","LA-Assumption",1105,1298,1368,1525,1550,"South Region"]
[null,"LA","Avoyelles","LA-Avoyelles",977,1147,1209,1348,1370,"South Region"]
[null,"LA","Beauregard","LA-Beauregard",1090,1280,1349,1504,1528,"South Region"]
[null,"LA","Bienville","LA-Bienville",943,1107,1167,1301,1322,"South Region"]
[null,"LA","Bossier","LA-Bossier",1251,1469,1548,1726,1754,"South Region"]
[null,"LA","Caddo","LA-Caddo",1193,1402,1477,1647,1673,"South Region"]
[null,"LA","Calcasieu","LA-Calcasieu",1130,1328,1399,1560,1585,"South Region"]
[null,"LA","Caldwell","LA-Caldwell",988,1161,1223,1364,1386,"South Region"]
[null,"LA","Cameron","LA-Cameron",1149,1349,1422,1586,1611,"South Region"]
[null,"LA","Catahoula","LA-Catahoula",952,1118,1178,1313,1335,"South Region"]
[null,"LA","Claiborne","LA-Claiborne",955,1122,1182,1318,1339,"South Region"]
[null,"LA","Concordia","LA-Concordia",951,1117,1177,1312,1334,"South Region"]
[null,"LA","DeSoto","LA-DeSoto",1051,1235,1301,1451,1474,"South Region"]
[null,"LA","East Baton Rouge","LA-East Baton Rouge",1309,1537,1620,1806,1835,"South Region"]
[null,"LA","East Carroll","LA-East Carroll",945,1110,1170,1305,1326,"South Region"]
[null,"LA","East Feliciana","LA-East Feliciana",1067,1254,1321,1473,1497,"South Region"]
[null,"LA","Evangeline","LA-Evangeline",995,1168,1231,1373,1395,"South Region"]
[null,"LA","Franklin","LA-Franklin",908,1067,1124,1253,1273,"South Region"]
[null,"LA","Grant","LA-Grant",998,1172,1235,1377,1399,"South Region"]
[null,"LA","Iberia","LA-Iberia",1111,1305,1375,1533,1558,"South Region"]
[null,"LA","Iberville","LA-Iberville",1185,1392,1467,1636,1662,"South Region"]
[null,"LA","Jackson","LA-Jackson",944,1108,1168,1302,1323,"South Region"]
[null,"LA","Jefferson","LA-Jefferson",1392,1635,1723,1921,1952,"South Region"]
[null,"LA","Jefferson Davis","LA-Jefferson Davis",1040,1221,1287,1435,1458,"South Region"]
[null,"LA","La Salle","LA-La Salle",967,1136,1197,1335,1356,"South Region"]
[null,"LA","Lafayette","LA-Lafayette",1288,1513,1594,1777,1806,"South Region"]
[null,"LA","Lafourche","LA-Lafourche",1188,1395,1470,1639,1666,"South Region"]
[null,"LA","Lincoln","LA-Lincoln",1197,1406,1482,1652,1679,"South Region"]
[null,"LA","Livingston","LA-Livingston",1260,1480,1560,1739,1767,"South Region"]
[null,"LA","Madison","LA-Madison",905,1063,1120,1249,1269,"South Region"]
[null,"LA","Morehouse","LA-Morehouse",996,1170,1233,1375,1397,"South Region"]
[null,"LA","Natchitoches","LA-Natchitoches",1099,1291,1360,1516,1541,"South Region"]
[null,"LA","Orleans","LA-Orleans",1588,1865,1965,2191,2226,"South Region"]
[null,"LA","Ouachita","LA-Ouachita",1128,1325,1396,1557,1582,"South Region"]
[null,"LA","Plaquemines","LA-Plaquemines",1504,1766,1861,2075,2109,"South Region"]
[null,"LA","Pointe Coupee","LA-Pointe Coupee",1214,1425,1502,1675,1702,"South Region"]
[null,"LA","Rapides","LA-Rapides",1162,1365,1438,1603,1629,"South Region"]
[null,"LA","Red River","LA-Red River",921,1082,1140,1271,1292,"South Region"]
[null,"LA","Richland","LA-Richland",977,1147,1209,1348,1370,"South Region"]
[null,"LA","Sabine","LA-Sabine",1047,1230,1296,1445,1468,"South Region"]
[null,"LA","Saint Bernard","LA-Saint Bernard",1155,1357,1430,1594,1620,"South Region"]
[null,"LA","Saint Charles","LA-Saint Charles",1441,1693,1784,1989,2021,"South Region"]
[null,"LA","Saint Helena","LA-Saint Helena",939,1103,1162,1296,1317,"South Region"]
[null,"LA","Saint James","LA-Saint James",1108,1301,1371,1529,1553,"South Region"]
[null,"LA","Saint John the Baptist","LA-Saint John the Baptist",1326,1557,1641,1830,1859,"South Region"]
[null,"LA","Saint Landry","LA-Saint Landry",991,1164,1227,1368,1390,"South Region"]
[null,"LA","Saint Martin","LA-Saint Martin",1073,1260,1328,1481,1505,"South Region"]
[null,"LA","Saint Mary","LA-Saint Mary",1126,1322,1393,1553,1578,"South Region"]
[null,"LA","Saint Tammany","LA-Saint Tammany",1489,1749,1843,2055,2088,"South Region"]
[null,"LA","Tangipahoa","LA-Tangipahoa",1179,1385,1459,1627,1653,"South Region"]
[null,"LA","Tensas","LA-Tensas",913,1072,1130,1260,1280,"South Region"]
[null,"LA","Terrebonne","LA-Terrebonne",1217,1429,1506,1679,1706,"South Region"]
[null,"LA","Union","LA-Union",1038,1219,1285,1433,1456,"South Region"]
[null,"LA","Vermilion","LA-Vermilion",1037,1218,1283,1431,1454,"South Region"]
[null,"LA","Vernon","LA-Vernon",1033,1214,1279,1426,1449,"South Region"]
[null,"LA","Washington","LA-Washington",970,1139,1200,1338,1360,"South Region"]
[null,"LA","Webster","LA-Webster",1066,1252,1319,1471,1494,"South Region"]
[null,"LA","West Baton Rouge","LA-West Baton Rouge",1332,1565,1649,1839,1868,"South Region"]
[null,"LA","West Carroll","LA-West Carroll",891,1047,1103,1230,1250,"South Region"]
[null,"LA","West Feliciana","LA-West Feliciana",1370,1610,1696,1891,1922,"South Region"]
[null,"LA","Winn","LA-Winn",922,1083,1141,1272,1293,"South Region"]
[null,"MD","Allegany","MD-Allegany",1164,1367,1440,1606,1632,"South Region"]
[null,"MD","Caroline","MD-Caroline",1518,1783,1879,2095,2129,"South Region"]
[null,"MD","Dorchester","MD-Dorchester",1440,1691,1782,1987,2019,"South Region"]
[null,"MD","Garrett","MD-Garrett",1226,1440,1517,1691,1719,"South Region"]
[null,"MD","Kent","MD-Kent",1563,1836,1935,2158,2192,"South Region"]
[null,"MD","Saint Marys","MD-Saint Marys",1855,2179,2296,2560,2601,"South Region"]
[null,"MD","Somerset","MD-Somerset",1285,1509,1590,1773,1801,"South Region"]
[null,"MD","Talbot","MD-Talbot",1669,1961,2066,2304,2341,"South Region"]
[null,"MD","Wicomico","MD-Wicomico",1430,1680,1770,1974,2005,"South Region"]
[null,"MD","Worcester","MD-Worcester",1552,1823,1921,2142,2176,"South Region"]
[null,"MS","Adams","MS-Adams",973,1143,1204,1342,1364,"South Region"]
[null,"MS","Alcorn","MS-Alcorn",1033,1214,1279,1426,1449,"South Region"]
[null,"MS","Amite","MS-Amite",974,1144,1206,1345,1366,"South Region"]
[null,"MS","Attala","MS-Attala",924,1085,1143,1274,1295,"South Region"]
[null,"MS","Benton","MS-Benton",1003,1178,1241,1384,1406,"South Region"]
[null,"MS","Bolivar","MS-Bolivar",1053,1237,1303,1453,1476,"South Region"]
[null,"MS","Calhoun","MS-Calhoun",872,1024,1079,1203,1223,"South Region"]
[null,"MS","Carroll","MS-Carroll",1001,1176,1239,1381,1404,"South Region"]
[null,"MS","Chickasaw","MS-Chickasaw",944,1108,1168,1302,1323,"South Region"]
[null,"MS","Choctaw","MS-Choctaw",895,1051,1108,1235,1255,"South Region"]
[null,"MS","Claiborne","MS-Claiborne",908,1067,1124,1253,1273,"South Region"]
[null,"MS","Clarke","MS-Clarke",941,1106,1165,1299,1320,"South Region"]
[null,"MS","Clay","MS-Clay",982,1153,1215,1355,1377,"South Region"]
[null,"MS","Coahoma","MS-Coahoma",999,1173,1236,1378,1400,"South Region"]
[null,"MS","Copiah","MS-Copiah",1033,1214,1279,1426,1449,"South Region"]
[null,"MS","Covington","MS-Covington",1025,1203,1268,1414,1437,"South Region"]
[null,"MS","DeSoto","MS-DeSoto",1276,1498,1579,1761,1789,"South Region"]
[null,"MS","Forrest","MS-Forrest",1143,1342,1414,1577,1602,"South Region"]
[null,"MS","Franklin","MS-Franklin",1010,1186,1250,1394,1416,"South Region"]
[null,"MS","George","MS-George",1175,1380,1454,1621,1647,"South Region"]
[null,"MS","Greene","MS-Greene",1096,1288,1357,1513,1537,"South Region"]
[null,"MS","Grenada","MS-Grenada",993,1166,1229,1370,1392,"South Region"]
[null,"MS","Hancock","MS-Hancock",1232,1447,1525,1700,1728,"South Region"]
[null,"MS","Harrison","MS-Harrison",1254,1473,1552,1730,1758,"South Region"]
[null,"MS","Hinds","MS-Hinds",1151,1352,1425,1589,1615,"South Region"]
[null,"MS","Holmes","MS-Holmes",949,1114,1174,1309,1330,"South Region"]
[null,"MS","Humphreys","MS-Humphreys",937,1101,1160,1293,1314,"South Region"]
[null,"MS","Issaquena","MS-Issaquena",1114,1309,1379,1538,1562,"South Region"]
[null,"MS","Itawamba","MS-Itawamba",995,1169,1232,1374,1396,"South Region"]
[null,"MS","Jackson","MS-Jackson",1281,1504,1585,1767,1796,"South Region"]
[null,"MS","Jasper","MS-Jasper",950,1116,1176,1311,1332,"South Region"]
[null,"MS","Jefferson","MS-Jefferson",952,1118,1178,1313,1335,"South Region"]
[null,"MS","Jefferson Davis","MS-Jefferson Davis",1028,1207,1272,1418,1441,"South Region"]
[null,"MS","Jones","MS-Jones",1069,1256,1323,1475,1499,"South Region"]
[null,"MS","Kemper","MS-Kemper",889,1044,1100,1227,1246,"South Region"]
[null,"MS","Lafayette","MS-Lafayette",1280,1503,1584,1766,1795,"South Region"]
[null,"MS","Lamar","MS-Lamar",1362,1600,1686,1880,1910,"South Region"]
[null,"MS","Lauderdale","MS-Lauderdale",1108,1301,1371,1529,1553,"South Region"]
[null,"MS","Lawrence","MS-Lawrence",994,1167,1230,1371,1394,"South Region"]
[null,"MS","Leake","MS-Leake",982,1153,1215,1355,1377,"South Region"]
[null,"MS","Lee","MS-Lee",1147,1348,1420,1583,1609,"South Region"]
[null,"MS","Leflore","MS-Leflore",1054,1237,1304,1454,1477,"South Region"]
[null,"MS","Lincoln","MS-Lincoln",1097,1289,1358,1514,1539,"South Region"]
[null,"MS","Lowndes","MS-Lowndes",1113,1307,1377,1535,1560,"South Region"]
[null,"MS","Madison","MS-Madison",1472,1729,1822,2032,2064,"South Region"]
[null,"MS","Marion","MS-Marion",1002,1177,1240,1383,1405,"South Region"]
[null,"MS","Marshall","MS-Marshall",1146,1346,1418,1581,1607,"South Region"]
[null,"MS","Monroe","MS-Monroe",1001,1176,1239,1381,1404,"South Region"]
[null,"MS","Montgomery","MS-Montgomery",985,1157,1219,1359,1381,"South Region"]
[null,"MS","Neshoba","MS-Neshoba",983,1154,1216,1356,1378,"South Region"]
[null,"MS","Newton","MS-Newton",974,1144,1206,1345,1366,"South Region"]
[null,"MS","Noxubee","MS-Noxubee",963,1131,1192,1329,1351,"South Region"]
[null,"MS","Oktibbeha","MS-Oktibbeha",1195,1404,1479,1649,1676,"South Region"]
[null,"MS","Panola","MS-Panola",1033,1213,1278,1425,1448,"South Region"]
[null,"MS","Pearl River","MS-Pearl River",1139,1338,1410,1572,1598,"South Region"]
[null,"MS","Perry","MS-Perry",1008,1183,1247,1390,1413,"South Region"]
[null,"MS","Pike","MS-Pike",1011,1187,1251,1395,1417,"South Region"]
[null,"MS","Pontotoc","MS-Pontotoc",965,1133,1194,1331,1353,"South Region"]
[null,"MS","Prentiss","MS-Prentiss",960,1127,1188,1325,1346,"South Region"]
[null,"MS","Quitman","MS-Quitman",835,980,1033,1152,1170,"South Region"]
[null,"MS","Rankin","MS-Rankin",1259,1479,1558,1737,1765,"South Region"]
[null,"MS","Scott","MS-Scott",1000,1175,1238,1380,1403,"South Region"]
[null,"MS","Sharkey","MS-Sharkey",1121,1316,1387,1547,1571,"South Region"]
[null,"MS","Simpson","MS-Simpson",1004,1180,1243,1386,1408,"South Region"]
[null,"MS","Smith","MS-Smith",1092,1282,1351,1506,1531,"South Region"]
[null,"MS","Stone","MS-Stone",1176,1382,1456,1623,1650,"South Region"]
[null,"MS","Sunflower","MS-Sunflower",975,1145,1207,1346,1368,"South Region"]
[null,"MS","Tallahatchie","MS-Tallahatchie",854,1003,1057,1179,1198,"South Region"]
[null,"MS","Tate","MS-Tate",1185,1391,1466,1635,1661,"South Region"]
[null,"MS","Tippah","MS-Tippah",907,1065,1122,1251,1271,"South Region"]
[null,"MS","Tishomingo","MS-Tishomingo",920,1080,1138,1269,1289,"South Region"]
[null,"MS","Tunica","MS-Tunica",947,1112,1172,1307,1328,"South Region"]
[null,"MS","Union","MS-Union",1012,1189,1253,1397,1420,"South Region"]
[null,"MS","Walthall","MS-Walthall",1037,1218,1283,1431,1454,"South Region"]
[null,"MS","Warren","MS-Warren",1169,1373,1447,1613,1639,"South Region"]
[null,"MS","Washington","MS-Washington",1049,1232,1298,1447,1471,"South Region"]
[null,"MS","Wayne","MS-Wayne",952,1118,1178,1313,1335,"South Region"]
[null,"MS","Webster","MS-Webster",1025,1204,1269,1415,1438,"South Region"]
[null,"MS","Wilkinson","MS-Wilkinson",962,1129,1190,1327,1348,"South Region"]
[null,"MS","Winston","MS-Winston",995,1168,1231,1373,1395,"South Region"]
[null,"MS","Yalobusha","MS-Yalobusha",1002,1177,1240,1383,1405,"South Region"]
[null,"MS","Yazoo","MS-Yazoo",987,1159,1221,1361,1383,"South Region"]
[null,"NC","Alamance","NC-Alamance",1219,1432,1509,1683,1710,"South Region"]
[null,"NC","Alexander","NC-Alexander",1021,1200,1264,1409,1432,"South Region"]
[null,"NC","Alleghany","NC-Alleghany",1108,1301,1371,1529,1553,"South Region"]
[null,"NC","Anson","NC-Anson",1008,1184,1248,1392,1414,"South Region"]
[null,"NC","Ashe","NC-Ashe",1071,1258,1326,1478,1502,"South Region"]
[null,"NC","Avery","NC-Avery",1095,1286,1355,1511,1535,"South Region"]
[null,"NC","Beaufort","NC-Beaufort",1216,1428,1505,1678,1705,"South Region"]
[null,"NC","Bertie","NC-Bertie",1131,1329,1400,1561,1586,"South Region"]
[null,"NC","Bladen","NC-Bladen",1061,1246,1313,1464,1488,"South Region"]
[null,"NC","Brunswick","NC-Brunswick",1331,1563,1647,1836,1866,"South Region"]
[null,"NC","Buncombe","NC-Buncombe",1292,1517,1599,1783,1812,"South Region"]
[null,"NC","Burke","NC-Burke",1055,1239,1306,1456,1480,"South Region"]
[null,"NC","Cabarrus","NC-Cabarrus",1349,1585,1670,1862,1892,"South Region"]
[null,"NC","Caldwell","NC-Caldwell",1025,1203,1268,1414,1437,"South Region"]
[null,"NC","Camden","NC-Camden",1630,1914,2017,2249,2285,"South Region"]
[null,"NC","Carteret","NC-Carteret",1331,1563,1647,1836,1866,"South Region"]
[null,"NC","Caswell","NC-Caswell",1075,1262,1330,1483,1507,"South Region"]
[null,"NC","Catawba","NC-Catawba",1133,1330,1402,1563,1588,"South Region"]
[null,"NC","Chatham","NC-Chatham",1487,1746,1840,2052,2085,"South Region"]
[null,"NC","Cherokee","NC-Cherokee",1022,1200,1265,1410,1433,"South Region"]
[null,"NC","Chowan","NC-Chowan",1269,1490,1570,1751,1779,"South Region"]
[null,"NC","Clay","NC-Clay",1059,1244,1311,1462,1485,"South Region"]
[null,"NC","Cleveland","NC-Cleveland",1078,1266,1334,1487,1511,"South Region"]
[null,"NC","Columbus","NC-Columbus",1104,1296,1366,1523,1548,"South Region"]
[null,"NC","Craven","NC-Craven",1303,1531,1613,1798,1828,"South Region"]
[null,"NC","Cumberland","NC-Cumberland",1234,1449,1527,1703,1730,"South Region"]
[null,"NC","Currituck","NC-Currituck",1551,1821,1919,2140,2174,"South Region"]
[null,"NC","Dare","NC-Dare",1617,1899,2001,2231,2267,"South Region"]
[null,"NC","Davidson","NC-Davidson",1147,1347,1419,1582,1608,"South Region"]
[null,"NC","Davie","NC-Davie",1233,1448,1526,1701,1729,"South Region"]
[null,"NC","Duplin","NC-Duplin",1106,1299,1369,1526,1551,"South Region"]
[null,"NC","Durham","NC-Durham",1413,1660,1749,1950,1982,"South Region"]
[null,"NC","Edgecombe","NC-Edgecombe",1076,1264,1332,1485,1509,"South Region"]
[null,"NC","Forsyth","NC-Forsyth",1230,1444,1522,1697,1724,"South Region"]
[null,"NC","Franklin","NC-Franklin",1209,1420,1496,1668,1695,"South Region"]
[null,"NC","Gaston","NC-Gaston",1201,1411,1487,1658,1685,"South Region"]
[null,"NC","Gates","NC-Gates",1288,1513,1594,1777,1806,"South Region"]
[null,"NC","Graham","NC-Graham",898,1054,1111,1239,1259,"South Region"]
[null,"NC","Granville","NC-Granville",1251,1469,1548,1726,1754,"South Region"]
[null,"NC","Greene","NC-Greene",1147,1347,1419,1582,1608,"South Region"]
[null,"NC","Guilford","NC-Guilford",1296,1522,1604,1788,1817,"South Region"]
[null,"NC","Halifax","NC-Halifax",1126,1323,1394,1554,1579,"South Region"]
[null,"NC","Harnett","NC-Harnett",1249,1467,1546,1724,1752,"South Region"]
[null,"NC","Haywood","NC-Haywood",1208,1419,1495,1667,1694,"South Region"]
[null,"NC","Henderson","NC-Henderson",1220,1433,1510,1684,1711,"South Region"]
[null,"NC","Hertford","NC-Hertford",1048,1231,1297,1446,1470,"South Region"]
[null,"NC","Hoke","NC-Hoke",1208,1419,1495,1667,1694,"South Region"]
[null,"NC","Hyde","NC-Hyde",1044,1226,1292,1441,1464,"South Region"]
[null,"NC","Iredell","NC-Iredell",1294,1519,1601,1785,1814,"South Region"]
[null,"NC","Jackson","NC-Jackson",1199,1408,1484,1655,1681,"South Region"]
[null,"NC","Johnston","NC-Johnston",1278,1501,1582,1764,1792,"South Region"]
[null,"NC","Jones","NC-Jones",1125,1321,1392,1552,1577,"South Region"]
[null,"NC","Lee","NC-Lee",1187,1394,1469,1638,1664,"South Region"]
[null,"NC","Lenoir","NC-Lenoir",1134,1331,1403,1564,1590,"South Region"]
[null,"NC","Lincoln","NC-Lincoln",1223,1437,1514,1688,1715,"South Region"]
[null,"NC","Macon","NC-Macon",1113,1307,1377,1535,1560,"South Region"]
[null,"NC","Madison","NC-Madison",1206,1417,1493,1665,1692,"South Region"]
[null,"NC","Martin","NC-Martin",1097,1289,1358,1514,1539,"South Region"]
[null,"NC","McDowell","NC-McDowell",1019,1197,1261,1406,1429,"South Region"]
[null,"NC","Mecklenburg","NC-Mecklenburg",1429,1678,1768,1971,2003,"South Region"]
[null,"NC","Mitchell","NC-Mitchell",1081,1270,1338,1492,1516,"South Region"]
[null,"NC","Montgomery","NC-Montgomery",1067,1253,1320,1472,1496,"South Region"]
[null,"NC","Moore","NC-Moore",1314,1543,1626,1813,1842,"South Region"]
[null,"NC","Nash","NC-Nash",1207,1418,1494,1666,1693,"South Region"]
[null,"NC","New Hanover","NC-New Hanover",1479,1738,1831,2042,2075,"South Region"]
[null,"NC","Northampton","NC-Northampton",1065,1251,1318,1470,1493,"South Region"]
[null,"NC","Onslow","NC-Onslow",1281,1504,1585,1767,1796,"South Region"]
[null,"NC","Orange","NC-Orange",1698,1994,2101,2343,2380,"South Region"]
[null,"NC","Pamlico","NC-Pamlico",1226,1440,1517,1691,1719,"South Region"]
[null,"NC","Pasquotank","NC-Pasquotank",1405,1650,1739,1939,1970,"South Region"]
[null,"NC","Pender","NC-Pender",1262,1482,1562,1742,1770,"South Region"]
[null,"NC","Perquimans","NC-Perquimans",1361,1598,1684,1878,1908,"South Region"]
[null,"NC","Person","NC-Person",1145,1345,1417,1580,1605,"South Region"]
[null,"NC","Pitt","NC-Pitt",1278,1501,1582,1764,1792,"South Region"]
[null,"NC","Polk","NC-Polk",1256,1475,1554,1733,1761,"South Region"]
[null,"NC","Randolph","NC-Randolph",1100,1293,1362,1519,1543,"South Region"]
[null,"NC","Richmond","NC-Richmond",999,1173,1236,1378,1400,"South Region"]
[null,"NC","Robeson","NC-Robeson",1059,1244,1311,1462,1485,"South Region"]
[null,"NC","Rockingham","NC-Rockingham",1075,1263,1331,1484,1508,"South Region"]
[null,"NC","Rowan","NC-Rowan",1123,1319,1390,1550,1575,"South Region"]
[null,"NC","Rutherford","NC-Rutherford",1025,1204,1269,1415,1438,"South Region"]
[null,"NC","Sampson","NC-Sampson",1111,1305,1375,1533,1558,"South Region"]
[null,"NC","Scotland","NC-Scotland",1048,1231,1297,1446,1470,"South Region"]
[null,"NC","Stanly","NC-Stanly",1190,1398,1473,1642,1669,"South Region"]
[null,"NC","Stokes","NC-Stokes",1114,1309,1379,1538,1562,"South Region"]
[null,"NC","Surry","NC-Surry",1100,1292,1361,1518,1542,"South Region"]
[null,"NC","Swain","NC-Swain",1132,1330,1401,1562,1587,"South Region"]
[null,"NC","Transylvania","NC-Transylvania",1164,1368,1441,1607,1633,"South Region"]
[null,"NC","Tyrrell","NC-Tyrrell",1054,1238,1305,1455,1479,"South Region"]
[null,"NC","Union","NC-Union",1450,1703,1794,2000,2033,"South Region"]
[null,"NC","Vance","NC-Vance",1092,1283,1352,1507,1532,"South Region"]
[null,"NC","Wake","NC-Wake",1521,1787,1883,2100,2133,"South Region"]
[null,"NC","Warren","NC-Warren",1151,1352,1425,1589,1615,"South Region"]
[null,"NC","Washington","NC-Washington",1097,1289,1358,1514,1539,"South Region"]
[null,"NC","Watauga","NC-Watauga",1358,1595,1681,1874,1905,"South Region"]
[null,"NC","Wayne","NC-Wayne",1161,1364,1437,1602,1628,"South Region"]
[null,"NC","Wilkes","NC-Wilkes",1088,1277,1346,1501,1525,"South Region"]
[null,"NC","Wilson","NC-Wilson",1227,1442,1519,1694,1721,"South Region"]
[null,"NC","Yadkin","NC-Yadkin",1077,1265,1333,1486,1510,"South Region"]
[null,"NC","Yancey","NC-Yancey",1096,1287,1356,1512,1536,"South Region"]
[null,"OK","Adair","OK-Adair",941,1105,1164,1298,1319,"South Region"]
[null,"OK","Alfalfa","OK-Alfalfa",906,1064,1121,1250,1270,"South Region"]
[null,"OK","Atoka","OK-Atoka",996,1170,1233,1375,1397,"South Region"]
[null,"OK","Beaver","OK-Beaver",1149,1349,1422,1586,1611,"South Region"]
[null,"OK","Beckham","OK-Beckham",1221,1434,1511,1685,1712,"South Region"]
[null,"OK","Blaine","OK-Blaine",1028,1207,1272,1418,1441,"South Region"]
[null,"OK","Bryan","OK-Bryan",1049,1232,1298,1447,1471,"South Region"]
[null,"OK","Caddo","OK-Caddo",983,1155,1217,1357,1379,"South Region"]
[null,"OK","Canadian","OK-Canadian",1349,1585,1670,1862,1892,"South Region"]
[null,"OK","Carter","OK-Carter",1102,1294,1364,1521,1545,"South Region"]
[null,"OK","Cherokee","OK-Cherokee",1093,1284,1353,1509,1533,"South Region"]
[null,"OK","Choctaw","OK-Choctaw",953,1119,1179,1315,1336,"South Region"]
[null,"OK","Cimarron","OK-Cimarron",863,1014,1068,1191,1210,"South Region"]
[null,"OK","Cleveland","OK-Cleveland",1311,1539,1622,1809,1838,"South Region"]
[null,"OK","Coal","OK-Coal",952,1118,1178,1313,1335,"South Region"]
[null,"OK","Comanche","OK-Comanche",1185,1391,1466,1635,1661,"South Region"]
[null,"OK","Cotton","OK-Cotton",1028,1207,1272,1418,1441,"South Region"]
[null,"OK","Craig","OK-Craig",974,1144,1206,1345,1366,"South Region"]
[null,"OK","Creek","OK-Creek",1132,1330,1401,1562,1587,"South Region"]
[null,"OK","Custer","OK-Custer",1126,1323,1394,1554,1579,"South Region"]
[null,"OK","Delaware","OK-Delaware",1102,1294,1364,1521,1545,"South Region"]
[null,"OK","Dewey","OK-Dewey",975,1145,1207,1346,1368,"South Region"]
[null,"OK","Ellis","OK-Ellis",977,1147,1209,1348,1370,"South Region"]
[null,"OK","Garfield","OK-Garfield",1060,1245,1312,1463,1486,"South Region"]
[null,"OK","Garvin","OK-Garvin",1042,1224,1290,1438,1462,"South Region"]
[null,"OK","Grady","OK-Grady",1193,1402,1477,1647,1673,"South Region"]
[null,"OK","Grant","OK-Grant",967,1136,1197,1335,1356,"South Region"]
[null,"OK","Greer","OK-Greer",935,1098,1157,1290,1311,"South Region"]
[null,"OK","Harmon","OK-Harmon",781,918,967,1078,1096,"South Region"]
[null,"OK","Harper","OK-Harper",1001,1176,1239,1381,1404,"South Region"]
[null,"OK","Haskell","OK-Haskell",947,1112,1172,1307,1328,"South Region"]
[null,"OK","Hughes","OK-Hughes",978,1148,1210,1349,1371,"South Region"]
[null,"OK","Jackson","OK-Jackson",1084,1273,1341,1495,1519,"South Region"]
[null,"OK","Jefferson","OK-Jefferson",913,1072,1130,1260,1280,"South Region"]
[null,"OK","Johnston","OK-Johnston",975,1145,1207,1346,1368,"South Region"]
[null,"OK","Kay","OK-Kay",1045,1227,1293,1442,1465,"South Region"]
[null,"OK","Kingfisher","OK-Kingfisher",1176,1381,1455,1622,1649,"South Region"]
[null,"OK","Kiowa","OK-Kiowa",944,1108,1168,1302,1323,"South Region"]
[null,"OK","Latimer","OK-Latimer",937,1101,1160,1293,1314,"South Region"]
[null,"OK","Le Flore","OK-Le Flore",988,1161,1223,1364,1386,"South Region"]
[null,"OK","Lincoln","OK-Lincoln",1069,1256,1323,1475,1499,"South Region"]
[null,"OK","Logan","OK-Logan",1328,1559,1643,1832,1862,"South Region"]
[null,"OK","Love","OK-Love",1063,1248,1315,1466,1490,"South Region"]
[null,"OK","Major","OK-Major",1059,1244,1311,1462,1485,"South Region"]
[null,"OK","Marshall","OK-Marshall",957,1124,1184,1320,1341,"South Region"]
[null,"OK","Mayes","OK-Mayes",1057,1241,1308,1458,1482,"South Region"]
[null,"OK","McClain","OK-McClain",1307,1535,1617,1803,1832,"South Region"]
[null,"OK","McCurtain","OK-McCurtain",970,1140,1201,1339,1361,"South Region"]
[null,"OK","McIntosh","OK-McIntosh",1016,1194,1258,1403,1425,"South Region"]
[null,"OK","Murray","OK-Murray",1070,1256,1324,1476,1500,"South Region"]
[null,"OK","Muskogee","OK-Muskogee",1043,1225,1291,1439,1463,"South Region"]
[null,"OK","Noble","OK-Noble",1050,1233,1299,1448,1472,"South Region"]
[null,"OK","Nowata","OK-Nowata",978,1149,1211,1350,1372,"South Region"]
[null,"OK","Okfuskee","OK-Okfuskee",957,1125,1185,1321,1343,"South Region"]
[null,"OK","Oklahoma","OK-Oklahoma",1282,1506,1587,1770,1798,"South Region"]
[null,"OK","Okmulgee","OK-Okmulgee",1033,1213,1278,1425,1448,"South Region"]
[null,"OK","Osage","OK-Osage",1159,1362,1435,1600,1626,"South Region"]
[null,"OK","Ottawa","OK-Ottawa",979,1150,1212,1351,1373,"South Region"]
[null,"OK","Pawnee","OK-Pawnee",1090,1280,1349,1504,1528,"South Region"]
[null,"OK","Payne","OK-Payne",1228,1442,1520,1695,1722,"South Region"]
[null,"OK","Pittsburg","OK-Pittsburg",1032,1212,1277,1424,1447,"South Region"]
[null,"OK","Pontotoc","OK-Pontotoc",1095,1286,1355,1511,1535,"South Region"]
[null,"OK","Pottawatomie","OK-Pottawatomie",1095,1286,1355,1511,1535,"South Region"]
[null,"OK","Pushmataha","OK-Pushmataha",949,1115,1175,1310,1331,"South Region"]
[null,"OK","Roger Mills","OK-Roger Mills",1071,1257,1325,1477,1501,"South Region"]
[null,"OK","Rogers","OK-Rogers",1258,1478,1557,1736,1764,"South Region"]
[null,"OK","Seminole","OK-Seminole",957,1125,1185,1321,1343,"South Region"]
[null,"OK","Sequoyah","OK-Sequoyah",950,1116,1176,1311,1332,"South Region"]
[null,"OK","Stephens","OK-Stephens",1077,1265,1333,1486,1510,"South Region"]
[null,"OK","Texas","OK-Texas",1101,1293,1363,1520,1544,"South Region"]
[null,"OK","Tillman","OK-Tillman",961,1128,1189,1326,1347,"South Region"]
[null,"OK","Tulsa","OK-Tulsa",1277,1500,1581,1763,1791,"South Region"]
[null,"OK","Wagoner","OK-Wagoner",1248,1466,1545,1723,1750,"South Region"]
[null,"OK","Washington","OK-Washington",1106,1299,1369,1526,1551,"South Region"]
[null,"OK","Washita","OK-Washita",961,1128,1189,1326,1347,"South Region"]
[null,"OK","Woods","OK-Woods",1024,1202,1267,1413,1436,"South Region"]
[null,"OK","Woodward","OK-Woodward",1041,1222,1288,1436,1459,"South Region"]
[null,"SC","Abbeville","SC-Abbeville",1063,1248,1315,1466,1490,"South Region"]
[null,"SC","Aiken","SC-Aiken",1167,1370,1444,1610,1636,"South Region"]
[null,"SC","Allendale","SC-Allendale",902,1059,1116,1244,1264,"South Region"]
[null,"SC","Anderson","SC-Anderson",1155,1356,1429,1593,1619,"South Region"]
[null,"SC","Bamberg","SC-Bamberg",967,1136,1197,1335,1356,"South Region"]
[null,"SC","Barnwell","SC-Barnwell",1024,1202,1267,1413,1436,"South Region"]
[null,"SC","Beaufort","SC-Beaufort",1622,1906,2008,2239,2275,"South Region"]
[null,"SC","Berkeley","SC-Berkeley",1286,1511,1592,1775,1804,"South Region"]
[null,"SC","Calhoun","SC-Calhoun",1111,1305,1375,1533,1558,"South Region"]
[null,"SC","Charleston","SC-Charleston",1602,1882,1983,2211,2247,"South Region"]
[null,"SC","Cherokee","SC-Cherokee",1011,1187,1251,1395,1417,"South Region"]
[null,"SC","Chester","SC-Chester",991,1163,1226,1367,1389,"South Region"]
[null,"SC","Chesterfield","SC-Chesterfield",983,1155,1217,1357,1379,"South Region"]
[null,"SC","Clarendon","SC-Clarendon",1041,1222,1288,1436,1459,"South Region"]
[null,"SC","Colleton","SC-Colleton",1126,1323,1394,1554,1579,"South Region"]
[null,"SC","Darlington","SC-Darlington",1031,1211,1276,1423,1446,"South Region"]
[null,"SC","Dillon","SC-Dillon",948,1113,1173,1308,1329,"South Region"]
[null,"SC","Dorchester","SC-Dorchester",1416,1663,1752,1953,1985,"South Region"]
[null,"SC","Edgefield","SC-Edgefield",1126,1322,1393,1553,1578,"South Region"]
[null,"SC","Fairfield","SC-Fairfield",1098,1290,1359,1515,1540,"South Region"]
[null,"SC","Florence","SC-Florence",1150,1350,1423,1587,1612,"South Region"]
[null,"SC","Georgetown","SC-Georgetown",1346,1581,1666,1858,1888,"South Region"]
[null,"SC","Greenville","SC-Greenville",1247,1464,1543,1720,1748,"South Region"]
[null,"SC","Greenwood","SC-Greenwood",1061,1246,1313,1464,1488,"South Region"]
[null,"SC","Hampton","SC-Hampton",1031,1211,1276,1423,1446,"South Region"]
[null,"SC","Horry","SC-Horry",1248,1466,1545,1723,1750,"South Region"]
[null,"SC","Jasper","SC-Jasper",1105,1297,1367,1524,1549,"South Region"]
[null,"SC","Kershaw","SC-Kershaw",1134,1331,1403,1564,1590,"South Region"]
[null,"SC","Lancaster","SC-Lancaster",1173,1378,1452,1619,1645,"South Region"]
[null,"SC","Laurens","SC-Laurens",1017,1195,1259,1404,1426,"South Region"]
[null,"SC","Lee","SC-Lee",955,1122,1182,1318,1339,"South Region"]
[null,"SC","Lexington","SC-Lexington",1219,1432,1509,1683,1710,"South Region"]
[null,"SC","Marion","SC-Marion",1000,1175,1238,1380,1403,"South Region"]
[null,"SC","Marlboro","SC-Marlboro",943,1107,1167,1301,1322,"South Region"]
[null,"SC","McCormick","SC-McCormick",1055,1239,1306,1456,1480,"South Region"]
[null,"SC","Newberry","SC-Newberry",1113,1307,1377,1535,1560,"South Region"]
[null,"SC","Oconee","SC-Oconee",1167,1370,1444,1610,1636,"South Region"]
[null,"SC","Orangeburg","SC-Orangeburg",1079,1268,1336,1490,1514,"South Region"]
[null,"SC","Pickens","SC-Pickens",1117,1312,1382,1541,1566,"South Region"]
[null,"SC","Richland","SC-Richland",1291,1517,1598,1782,1811,"South Region"]
[null,"SC","Saluda","SC-Saluda",1067,1254,1321,1473,1497,"South Region"]
[null,"SC","Spartanburg","SC-Spartanburg",1141,1340,1412,1574,1600,"South Region"]
[null,"SC","Sumter","SC-Sumter",1107,1300,1370,1528,1552,"South Region"]
[null,"SC","Union","SC-Union",979,1150,1212,1351,1373,"South Region"]
[null,"SC","Williamsburg","SC-Williamsburg",1008,1184,1248,1392,1414,"South Region"]
[null,"SC","York","SC-York",1281,1505,1586,1768,1797,"South Region"]
[null,"TN","Anderson","TN-Anderson",1155,1356,1429,1593,1619,"South Region"]
[null,"TN","Bedford","TN-Bedford",1130,1327,1398,1559,1584,"South Region"]
[null,"TN","Benton","TN-Benton",949,1115,1175,1310,1331,"South Region"]
[null,"TN","Bledsoe","TN-Bledsoe",1091,1281,1350,1505,1530,"South Region"]
[null,"TN","Blount","TN-Blount",1225,1439,1516,1690,1718,"South Region"]
[null,"TN","Bradley","TN-Bradley",1159,1361,1434,1599,1625,"South Region"]
[null,"TN","Campbell","TN-Campbell",1025,1203,1268,1414,1437,"South Region"]
[null,"TN","Cannon","TN-Cannon",1092,1283,1352,1507,1532,"South Region"]
[null,"TN","Carroll","TN-Carroll",960,1127,1188,1325,1346,"South Region"]
[null,"TN","Carter","TN-Carter",997,1171,1234,1376,1398,"South Region"]
[null,"TN","Cheatham","TN-Cheatham",1250,1468,1547,1725,1753,"South Region"]
[null,"TN","Chester","TN-Chester",1098,1290,1359,1515,1540,"South Region"]
[null,"TN","Claiborne","TN-Claiborne",982,1153,1215,1355,1377,"South Region"]
[null,"TN","Clay","TN-Clay",947,1112,1172,1307,1328,"South Region"]
[null,"TN","Cocke","TN-Cocke",1008,1184,1248,1392,1414,"South Region"]
[null,"TN","Coffee","TN-Coffee",1114,1309,1379,1538,1562,"South Region"]
[null,"TN","Crockett","TN-Crockett",1025,1203,1268,1414,1437,"South Region"]
[null,"TN","Cumberland","TN-Cumberland",1009,1185,1249,1393,1415,"South Region"]
[null,"TN","Davidson","TN-Davidson",1357,1593,1679,1872,1902,"South Region"]
[null,"TN","Decatur","TN-Decatur",1027,1206,1271,1417,1440,"South Region"]
[null,"TN","DeKalb","TN-DeKalb",1046,1229,1295,1444,1467,"South Region"]
[null,"TN","Dickson","TN-Dickson",1184,1390,1465,1633,1660,"South Region"]
[null,"TN","Dyer","TN-Dyer",1096,1287,1356,1512,1536,"South Region"]
[null,"TN","Fayette","TN-Fayette",1303,1531,1613,1798,1828,"South Region"]
[null,"TN","Fentress","TN-Fentress",951,1117,1177,1312,1334,"South Region"]
[null,"TN","Franklin","TN-Franklin",1035,1216,1281,1428,1451,"South Region"]
[null,"TN","Gibson","TN-Gibson",1058,1242,1309,1460,1483,"South Region"]
[null,"TN","Giles","TN-Giles",1130,1328,1399,1560,1585,"South Region"]
[null,"TN","Grainger","TN-Grainger",994,1167,1230,1371,1394,"South Region"]
[null,"TN","Greene","TN-Greene",974,1144,1206,1345,1366,"South Region"]
[null,"TN","Grundy","TN-Grundy",923,1084,1142,1273,1294,"South Region"]
[null,"TN","Hamblen","TN-Hamblen",1051,1235,1301,1451,1474,"South Region"]
[null,"TN","Hamilton","TN-Hamilton",1260,1480,1560,1739,1767,"South Region"]
[null,"TN","Hancock","TN-Hancock",811,953,1004,1119,1138,"South Region"]
[null,"TN","Hardeman","TN-Hardeman",995,1168,1231,1373,1395,"South Region"]
[null,"TN","Hardin","TN-Hardin",995,1168,1231,1373,1395,"South Region"]
[null,"TN","Hawkins","TN-Hawkins",1025,1203,1268,1414,1437,"South Region"]
[null,"TN","Haywood","TN-Haywood",1054,1237,1304,1454,1477,"South Region"]
[null,"TN","Henderson","TN-Henderson",989,1162,1224,1365,1387,"South Region"]
[null,"TN","Henry","TN-Henry",984,1156,1218,1358,1380,"South Region"]
[null,"TN","Hickman","TN-Hickman",1044,1226,1292,1441,1464,"South Region"]
[null,"TN","Houston","TN-Houston",983,1155,1217,1357,1379,"South Region"]
[null,"TN","Humphreys","TN-Humphreys",1068,1255,1322,1474,1498,"South Region"]
[null,"TN","Jackson","TN-Jackson",1030,1210,1275,1422,1445,"South Region"]
[null,"TN","Jefferson","TN-Jefferson",1088,1277,1346,1501,1525,"South Region"]
[null,"TN","Johnson","TN-Johnson",1018,1196,1260,1405,1428,"South Region"]
[null,"TN","Knox","TN-Knox",1269,1490,1570,1751,1779,"South Region"]
[null,"TN","Lake","TN-Lake",957,1124,1184,1320,1341,"South Region"]
[null,"TN","Lauderdale","TN-Lauderdale",1040,1221,1287,1435,1458,"South Region"]
[null,"TN","Lawrence","TN-Lawrence",1046,1229,1295,1444,1467,"South Region"]
[null,"TN","Lewis","TN-Lewis",1014,1191,1255,1399,1422,"South Region"]
[null,"TN","Lincoln","TN-Lincoln",1111,1305,1375,1533,1558,"South Region"]
[null,"TN","Loudon","TN-Loudon",1186,1393,1468,1637,1663,"South Region"]
[null,"TN","Macon","TN-Macon",995,1168,1231,1373,1395,"South Region"]
[null,"TN","Madison","TN-Madison",1195,1404,1479,1649,1676,"South Region"]
[null,"TN","Marion","TN-Marion",1071,1257,1325,1477,1501,"South Region"]
[null,"TN","Marshall","TN-Marshall",1114,1309,1379,1538,1562,"South Region"]
[null,"TN","Maury","TN-Maury",1199,1408,1484,1655,1681,"South Region"]
[null,"TN","McMinn","TN-McMinn",1074,1261,1329,1482,1506,"South Region"]
[null,"TN","McNairy","TN-McNairy",973,1143,1204,1342,1364,"South Region"]
[null,"TN","Meigs","TN-Meigs",1084,1274,1342,1496,1520,"South Region"]
[null,"TN","Monroe","TN-Monroe",1023,1201,1266,1412,1434,"South Region"]
[null,"TN","Montgomery","TN-Montgomery",1224,1438,1515,1689,1716,"South Region"]
[null,"TN","Moore","TN-Moore",1058,1242,1309,1460,1483,"South Region"]
[null,"TN","Morgan","TN-Morgan",1052,1236,1302,1452,1475,"South Region"]
[null,"TN","Obion","TN-Obion",995,1169,1232,1374,1396,"South Region"]
[null,"TN","Overton","TN-Overton",957,1125,1185,1321,1343,"South Region"]
[null,"TN","Perry","TN-Perry",920,1080,1138,1269,1289,"South Region"]
[null,"TN","Pickett","TN-Pickett",924,1085,1143,1274,1295,"South Region"]
[null,"TN","Polk","TN-Polk",1001,1176,1239,1381,1404,"South Region"]
[null,"TN","Putnam","TN-Putnam",1126,1322,1393,1553,1578,"South Region"]
[null,"TN","Rhea","TN-Rhea",1025,1204,1269,1415,1438,"South Region"]
[null,"TN","Roane","TN-Roane",1131,1329,1400,1561,1586,"South Region"]
[null,"TN","Robertson","TN-Robertson",1267,1488,1568,1748,1777,"South Region"]
[null,"TN","Rutherford","TN-Rutherford",1299,1526,1608,1793,1822,"South Region"]
[null,"TN","Scott","TN-Scott",902,1059,1116,1244,1264,"South Region"]
[null,"TN","Sequatchie","TN-Sequatchie",1058,1243,1310,1461,1484,"South Region"]
[null,"TN","Sevier","TN-Sevier",1187,1394,1469,1638,1664,"South Region"]
[null,"TN","Shelby","TN-Shelby",1370,1609,1695,1890,1920,"South Region"]
[null,"TN","Smith","TN-Smith",1129,1326,1397,1558,1583,"South Region"]
[null,"TN","Stewart","TN-Stewart",1053,1237,1303,1453,1476,"South Region"]
[null,"TN","Sullivan","TN-Sullivan",1080,1269,1337,1491,1515,"South Region"]
[null,"TN","Sumner","TN-Sumner",1363,1601,1687,1881,1911,"South Region"]
[null,"TN","Tipton","TN-Tipton",1266,1487,1567,1747,1775,"South Region"]
[null,"TN","Trousdale","TN-Trousdale",1075,1263,1331,1484,1508,"South Region"]
[null,"TN","Unicoi","TN-Unicoi",935,1098,1157,1290,1311,"South Region"]
[null,"TN","Union","TN-Union",974,1144,1205,1344,1365,"South Region"]
[null,"TN","Van Buren","TN-Van Buren",973,1143,1204,1342,1364,"South Region"]
[null,"TN","Warren","TN-Warren",972,1142,1203,1341,1363,"South Region"]
[null,"TN","Washington","TN-Washington",1142,1341,1413,1575,1601,"South Region"]
[null,"TN","Wayne","TN-Wayne",924,1086,1144,1276,1296,"South Region"]
[null,"TN","Weakley","TN-Weakley",999,1174,1237,1379,1402,"South Region"]
[null,"TN","White","TN-White",980,1151,1213,1352,1374,"South Region"]
[null,"TN","Williamson","TN-Williamson",1887,2217,2336,2605,2647,"South Region"]
[null,"TN","Wilson","TN-Wilson",1429,1679,1769,1972,2004,"South Region"]
[null,"TX","Anderson","TX-Anderson",1124,1320,1391,1551,1576,"South Region"]
[null,"TX","Andrews","TX-Andrews",1267,1488,1568,1748,1777,"South Region"]
[null,"TX","Angelina","TX-Angelina",1124,1320,1391,1551,1576,"South Region"]
[null,"TX","Aransas","TX-Aransas",1309,1537,1620,1806,1835,"South Region"]
[null,"TX","Archer","TX-Archer",1236,1452,1530,1706,1733,"South Region"]
[null,"TX","Armstrong","TX-Armstrong",1101,1293,1363,1520,1544,"South Region"]
[null,"TX","Atascosa","TX-Atascosa",1189,1396,1471,1640,1667,"South Region"]
[null,"TX","Bailey","TX-Bailey",909,1068,1125,1254,1275,"South Region"]
[null,"TX","Bandera","TX-Bandera",1277,1500,1581,1763,1791,"South Region"]
[null,"TX","Bastrop","TX-Bastrop",1333,1566,1650,1840,1869,"South Region"]
[null,"TX","Baylor","TX-Baylor",1265,1486,1566,1746,1774,"South Region"]
[null,"TX","Bee","TX-Bee",1061,1246,1313,1464,1488,"South Region"]
[null,"TX","Bell","TX-Bell",1286,1511,1592,1775,1804,"South Region"]
[null,"TX","Bexar","TX-Bexar",1344,1578,1663,1854,1884,"South Region"]
[null,"TX","Blanco","TX-Blanco",1381,1622,1709,1906,1936,"South Region"]
[null,"TX","Borden","TX-Borden",1086,1275,1344,1499,1523,"South Region"]
[null,"TX","Bosque","TX-Bosque",1079,1268,1336,1490,1514,"South Region"]
[null,"TX","Bowie","TX-Bowie",1189,1396,1471,1640,1667,"South Region"]
[null,"TX","Brazos","TX-Brazos",1446,1699,1790,1996,2028,"South Region"]
[null,"TX","Brewster","TX-Brewster",1204,1414,1490,1661,1688,"South Region"]
[null,"TX","Briscoe","TX-Briscoe",945,1110,1170,1305,1326,"South Region"]
[null,"TX","Brooks","TX-Brooks",1053,1237,1303,1453,1476,"South Region"]
[null,"TX","Brown","TX-Brown",1128,1325,1396,1557,1582,"South Region"]
[null,"TX","Burleson","TX-Burleson",1131,1329,1400,1561,1586,"South Region"]
[null,"TX","Burnet","TX-Burnet",1353,1590,1675,1868,1898,"South Region"]
[null,"TX","Caldwell","TX-Caldwell",1281,1504,1585,1767,1796,"South Region"]
[null,"TX","Calhoun","TX-Calhoun",1222,1435,1512,1686,1713,"South Region"]
[null,"TX","Callahan","TX-Callahan",1042,1223,1289,1437,1460,"South Region"]
[null,"TX","Cameron","TX-Cameron",1142,1341,1413,1575,1601,"South Region"]
[null,"TX","Camp","TX-Camp",1132,1330,1401,1562,1587,"South Region"]
[null,"TX","Carson","TX-Carson",1273,1495,1575,1756,1784,"South Region"]
[null,"TX","Cass","TX-Cass",1020,1198,1262,1407,1430,"South Region"]
[null,"TX","Castro","TX-Castro",962,1130,1191,1328,1349,"South Region"]
[null,"TX","Cherokee","TX-Cherokee",1120,1315,1386,1545,1570,"South Region"]
[null,"TX","Childress","TX-Childress",1066,1252,1319,1471,1494,"South Region"]
[null,"TX","Clay","TX-Clay",1144,1344,1416,1579,1604,"South Region"]
[null,"TX","Cochran","TX-Cochran",861,1012,1066,1189,1208,"South Region"]
[null,"TX","Coke","TX-Coke",1135,1333,1405,1567,1592,"South Region"]
[null,"TX","Coleman","TX-Coleman",957,1124,1184,1320,1341,"South Region"]
[null,"TX","Collingsworth","TX-Collingsworth",1043,1225,1291,1439,1463,"South Region"]
[null,"TX","Colorado","TX-Colorado",1256,1476,1555,1734,1762,"South Region"]
[null,"TX","Comal","TX-Comal",1568,1841,1940,2163,2198,"South Region"]
[null,"TX","Comanche","TX-Comanche",1079,1267,1335,1489,1513,"South Region"]
[null,"TX","Concho","TX-Concho",958,1126,1186,1322,1344,"South Region"]
[null,"TX","Cooke","TX-Cooke",1281,1505,1586,1768,1797,"South Region"]
[null,"TX","Coryell","TX-Coryell",1187,1394,1469,1638,1664,"South Region"]
[null,"TX","Cottle","TX-Cottle",888,1043,1099,1225,1245,"South Region"]
[null,"TX","Crane","TX-Crane",938,1102,1161,1295,1315,"South Region"]
[null,"TX","Crockett","TX-Crockett",1041,1222,1288,1436,1459,"South Region"]
[null,"TX","Crosby","TX-Crosby",946,1111,1171,1306,1327,"South Region"]
[null,"TX","Culberson","TX-Culberson",1021,1199,1263,1408,1431,"South Region"]
[null,"TX","Dallam","TX-Dallam",1143,1343,1415,1578,1603,"South Region"]
[null,"TX","Dawson","TX-Dawson",1021,1200,1264,1409,1432,"South Region"]
[null,"TX","Deaf Smith","TX-Deaf Smith",1105,1297,1367,1524,1549,"South Region"]
[null,"TX","DeWitt","TX-DeWitt",1103,1295,1365,1522,1547,"South Region"]
[null,"TX","Dickens","TX-Dickens",1124,1320,1391,1551,1576,"South Region"]
[null,"TX","Dimmit","TX-Dimmit",974,1144,1205,1344,1365,"South Region"]
[null,"TX","Donley","TX-Donley",1025,1204,1269,1415,1438,"South Region"]
[null,"TX","Duval","TX-Duval",1046,1228,1294,1443,1466,"South Region"]
[null,"TX","Eastland","TX-Eastland",1056,1240,1307,1457,1481,"South Region"]
[null,"TX","Ector","TX-Ector",1240,1457,1535,1712,1739,"South Region"]
[null,"TX","Edwards","TX-Edwards",962,1129,1190,1327,1348,"South Region"]
[null,"TX","El Paso","TX-El Paso",1186,1393,1468,1637,1663,"South Region"]
[null,"TX","Erath","TX-Erath",1239,1455,1533,1709,1737,"South Region"]
[null,"TX","Falls","TX-Falls",1046,1228,1294,1443,1466,"South Region"]
[null,"TX","Fannin","TX-Fannin",1213,1424,1501,1674,1701,"South Region"]
[null,"TX","Fayette","TX-Fayette",1102,1294,1364,1521,1545,"South Region"]
[null,"TX","Fisher","TX-Fisher",937,1101,1160,1293,1314,"South Region"]
[null,"TX","Floyd","TX-Floyd",1086,1275,1344,1499,1523,"South Region"]
[null,"TX","Foard","TX-Foard",991,1164,1227,1368,1390,"South Region"]
[null,"TX","Franklin","TX-Franklin",1179,1385,1459,1627,1653,"South Region"]
[null,"TX","Freestone","TX-Freestone",1177,1383,1457,1625,1651,"South Region"]
[null,"TX","Frio","TX-Frio",1113,1307,1377,1535,1560,"South Region"]
[null,"TX","Gaines","TX-Gaines",1035,1216,1281,1428,1451,"South Region"]
[null,"TX","Garza","TX-Garza",1049,1232,1298,1447,1471,"South Region"]
[null,"TX","Gillespie","TX-Gillespie",1455,1709,1801,2008,2041,"South Region"]
[null,"TX","Glasscock","TX-Glasscock",1184,1390,1465,1633,1660,"South Region"]
[null,"TX","Goliad","TX-Goliad",1182,1388,1463,1631,1658,"South Region"]
[null,"TX","Gonzales","TX-Gonzales",1113,1307,1377,1535,1560,"South Region"]
[null,"TX","Gray","TX-Gray",1150,1350,1423,1587,1612,"South Region"]
[null,"TX","Grayson","TX-Grayson",1237,1453,1531,1707,1735,"South Region"]
[null,"TX","Gregg","TX-Gregg",1240,1457,1535,1712,1739,"South Region"]
[null,"TX","Grimes","TX-Grimes",1135,1333,1405,1567,1592,"South Region"]
[null,"TX","Guadalupe","TX-Guadalupe",1445,1697,1788,1994,2026,"South Region"]
[null,"TX","Hale","TX-Hale",1014,1191,1255,1399,1422,"South Region"]
[null,"TX","Hall","TX-Hall",1025,1203,1268,1414,1437,"South Region"]
[null,"TX","Hamilton","TX-Hamilton",1143,1342,1414,1577,1602,"South Region"]
[null,"TX","Hansford","TX-Hansford",1135,1333,1405,1567,1592,"South Region"]
[null,"TX","Hardeman","TX-Hardeman",979,1150,1212,1351,1373,"South Region"]
[null,"TX","Hardin","TX-Hardin",1248,1466,1545,1723,1750,"South Region"]
[null,"TX","Harrison","TX-Harrison",1204,1414,1490,1661,1688,"South Region"]
[null,"TX","Hartley","TX-Hartley",1261,1481,1561,1741,1769,"South Region"]
[null,"TX","Haskell","TX-Haskell",995,1169,1232,1374,1396,"South Region"]
[null,"TX","Hays","TX-Hays",1557,1829,1927,2149,2183,"South Region"]
[null,"TX","Hemphill","TX-Hemphill",1236,1452,1530,1706,1733,"South Region"]
[null,"TX","Hidalgo","TX-Hidalgo",1147,1348,1420,1583,1609,"South Region"]
[null,"TX","Hill","TX-Hill",1210,1421,1497,1669,1696,"South Region"]
[null,"TX","Hockley","TX-Hockley",1108,1301,1371,1529,1553,"South Region"]
[null,"TX","Hopkins","TX-Hopkins",1149,1349,1422,1586,1611,"South Region"]
[null,"TX","Houston","TX-Houston",1061,1246,1313,1464,1488,"South Region"]
[null,"TX","Howard","TX-Howard",1088,1278,1347,1502,1526,"South Region"]
[null,"TX","Hudspeth","TX-Hudspeth",956,1123,1183,1319,1340,"South Region"]
[null,"TX","Hutchinson","TX-Hutchinson",1032,1212,1277,1424,1447,"South Region"]
[null,"TX","Irion","TX-Irion",1373,1612,1699,1894,1925,"South Region"]
[null,"TX","Jack","TX-Jack",1130,1327,1398,1559,1584,"South Region"]
[null,"TX","Jackson","TX-Jackson",1133,1330,1402,1563,1588,"South Region"]
[null,"TX","Jasper","TX-Jasper",1124,1320,1391,1551,1576,"South Region"]
[null,"TX","Jeff Davis","TX-Jeff Davis",1118,1313,1384,1543,1568,"South Region"]
[null,"TX","Jefferson","TX-Jefferson",1262,1482,1562,1742,1770,"South Region"]
[null,"TX","Jim Hogg","TX-Jim Hogg",1131,1329,1400,1561,1586,"South Region"]
[null,"TX","Jim Wells","TX-Jim Wells",1219,1432,1509,1683,1710,"South Region"]
[null,"TX","Jones","TX-Jones",1019,1197,1261,1406,1429,"South Region"]
[null,"TX","Karnes","TX-Karnes",995,1169,1232,1374,1396,"South Region"]
[null,"TX","Kendall","TX-Kendall",1867,2193,2311,2577,2618,"South Region"]
[null,"TX","Kenedy","TX-Kenedy",1098,1290,1359,1515,1540,"South Region"]
[null,"TX","Kent","TX-Kent",903,1060,1117,1245,1266,"South Region"]
[null,"TX","Kerr","TX-Kerr",1295,1521,1603,1787,1816,"South Region"]
[null,"TX","Kimble","TX-Kimble",983,1154,1216,1356,1378,"South Region"]
[null,"TX","King","TX-King",1098,1290,1359,1515,1540,"South Region"]
[null,"TX","Kinney","TX-Kinney",1083,1272,1340,1494,1518,"South Region"]
[null,"TX","Kleberg","TX-Kleberg",1210,1422,1498,1670,1697,"South Region"]
[null,"TX","Knox","TX-Knox",921,1082,1140,1271,1292,"South Region"]
[null,"TX","La Salle","TX-La Salle",1153,1354,1427,1591,1617,"South Region"]
[null,"TX","Lamar","TX-Lamar",1067,1253,1320,1472,1496,"South Region"]
[null,"TX","Lamb","TX-Lamb",1010,1186,1250,1394,1416,"South Region"]
[null,"TX","Lampasas","TX-Lampasas",1344,1578,1663,1854,1884,"South Region"]
[null,"TX","Lavaca","TX-Lavaca",1081,1270,1338,1492,1516,"South Region"]
[null,"TX","Lee","TX-Lee",1271,1493,1573,1754,1782,"South Region"]
[null,"TX","Leon","TX-Leon",1154,1355,1428,1592,1618,"South Region"]
[null,"TX","Limestone","TX-Limestone",1057,1241,1308,1458,1482,"South Region"]
[null,"TX","Lipscomb","TX-Lipscomb",1096,1288,1357,1513,1537,"South Region"]
[null,"TX","Live Oak","TX-Live Oak",1102,1294,1364,1521,1545,"South Region"]
[null,"TX","Llano","TX-Llano",1237,1453,1531,1707,1735,"South Region"]
[null,"TX","Loving","TX-Loving",1320,1551,1634,1822,1851,"South Region"]
[null,"TX","Lubbock","TX-Lubbock",1258,1478,1557,1736,1764,"South Region"]
[null,"TX","Lynn","TX-Lynn",1162,1365,1438,1603,1629,"South Region"]
[null,"TX","Madison","TX-Madison",1226,1440,1517,1691,1719,"South Region"]
[null,"TX","Marion","TX-Marion",1116,1311,1381,1540,1565,"South Region"]
[null,"TX","Martin","TX-Martin",1184,1390,1465,1633,1660,"South Region"]
[null,"TX","Mason","TX-Mason",1286,1511,1592,1775,1804,"South Region"]
[null,"TX","Matagorda","TX-Matagorda",1197,1405,1481,1651,1678,"South Region"]
[null,"TX","Maverick","TX-Maverick",1122,1318,1389,1549,1574,"South Region"]
[null,"TX","McCulloch","TX-McCulloch",1114,1309,1379,1538,1562,"South Region"]
[null,"TX","McLennan","TX-McLennan",1283,1507,1588,1771,1799,"South Region"]
[null,"TX","McMullen","TX-McMullen",1186,1393,1468,1637,1663,"South Region"]
[null,"TX","Medina","TX-Medina",1256,1475,1554,1733,1761,"South Region"]
[null,"TX","Menard","TX-Menard",885,1039,1095,1221,1241,"South Region"]
[null,"TX","Midland","TX-Midland",1462,1718,1810,2018,2051,"South Region"]
[null,"TX","Milam","TX-Milam",1105,1297,1367,1524,1549,"South Region"]
[null,"TX","Mills","TX-Mills",1189,1396,1471,1640,1667,"South Region"]
[null,"TX","Mitchell","TX-Mitchell",1024,1202,1267,1413,1436,"South Region"]
[null,"TX","Montague","TX-Montague",1075,1263,1331,1484,1508,"South Region"]
[null,"TX","Moore","TX-Moore",1151,1351,1424,1588,1613,"South Region"]
[null,"TX","Morris","TX-Morris",1008,1183,1247,1390,1413,"South Region"]
[null,"TX","Motley","TX-Motley",960,1127,1188,1325,1346,"South Region"]
[null,"TX","Nacogdoches","TX-Nacogdoches",1197,1405,1481,1651,1678,"South Region"]
[null,"TX","Navarro","TX-Navarro",1155,1357,1430,1594,1620,"South Region"]
[null,"TX","Newton","TX-Newton",1108,1301,1371,1529,1553,"South Region"]
[null,"TX","Nolan","TX-Nolan",1040,1221,1287,1435,1458,"South Region"]
[null,"TX","Nueces","TX-Nueces",1370,1609,1695,1890,1920,"South Region"]
[null,"TX","Ochiltree","TX-Ochiltree",1075,1262,1330,1483,1507,"South Region"]
[null,"TX","Oldham","TX-Oldham",1144,1344,1416,1579,1604,"South Region"]
[null,"TX","Orange","TX-Orange",1256,1475,1554,1733,1761,"South Region"]
[null,"TX","Palo Pinto","TX-Palo Pinto",1210,1422,1498,1670,1697,"South Region"]
[null,"TX","Panola","TX-Panola",1168,1371,1445,1611,1637,"South Region"]
[null,"TX","Parmer","TX-Parmer",1188,1395,1470,1639,1666,"South Region"]
[null,"TX","Pecos","TX-Pecos",1085,1275,1343,1497,1522,"South Region"]
[null,"TX","Polk","TX-Polk",1176,1382,1456,1623,1650,"South Region"]
[null,"TX","Potter","TX-Potter",1075,1263,1331,1484,1508,"South Region"]
[null,"TX","Presidio","TX-Presidio",963,1131,1192,1329,1351,"South Region"]
[null,"TX","Rains","TX-Rains",1241,1458,1536,1713,1740,"South Region"]
[null,"TX","Randall","TX-Randall",1366,1605,1691,1885,1916,"South Region"]
[null,"TX","Reagan","TX-Reagan",1332,1565,1649,1839,1868,"South Region"]
[null,"TX","Real","TX-Real",983,1155,1217,1357,1379,"South Region"]
[null,"TX","Red River","TX-Red River",1038,1219,1285,1433,1456,"South Region"]
[null,"TX","Reeves","TX-Reeves",882,1035,1091,1216,1236,"South Region"]
[null,"TX","Refugio","TX-Refugio",1081,1270,1338,1492,1516,"South Region"]
[null,"TX","Roberts","TX-Roberts",1198,1407,1483,1654,1680,"South Region"]
[null,"TX","Robertson","TX-Robertson",1085,1275,1343,1497,1522,"South Region"]
[null,"TX","Runnels","TX-Runnels",1022,1200,1265,1410,1433,"South Region"]
[null,"TX","Rusk","TX-Rusk",1089,1279,1348,1503,1527,"South Region"]
[null,"TX","Sabine","TX-Sabine",1109,1303,1373,1531,1556,"South Region"]
[null,"TX","San Augustine","TX-San Augustine",948,1113,1173,1308,1329,"South Region"]
[null,"TX","San Patricio","TX-San Patricio",1315,1545,1628,1815,1845,"South Region"]
[null,"TX","San Saba","TX-San Saba",1171,1375,1449,1616,1642,"South Region"]
[null,"TX","Schleicher","TX-Schleicher",987,1160,1222,1363,1385,"South Region"]
[null,"TX","Scurry","TX-Scurry",1088,1277,1346,1501,1525,"South Region"]
[null,"TX","Shackelford","TX-Shackelford",1183,1389,1464,1632,1659,"South Region"]
[null,"TX","Shelby","TX-Shelby",1038,1219,1285,1433,1456,"South Region"]
[null,"TX","Sherman","TX-Sherman",1254,1473,1552,1730,1758,"South Region"]
[null,"TX","Smith","TX-Smith",1286,1510,1591,1774,1803,"South Region"]
[null,"TX","Somervell","TX-Somervell",1275,1498,1578,1759,1788,"South Region"]
[null,"TX","Starr","TX-Starr",1033,1213,1278,1425,1448,"South Region"]
[null,"TX","Stephens","TX-Stephens",1047,1230,1296,1445,1468,"South Region"]
[null,"TX","Sterling","TX-Sterling",1061,1246,1313,1464,1488,"South Region"]
[null,"TX","Stonewall","TX-Stonewall",908,1067,1124,1253,1273,"South Region"]
[null,"TX","Sutton","TX-Sutton",1264,1484,1564,1744,1772,"South Region"]
[null,"TX","Swisher","TX-Swisher",1032,1212,1277,1424,1447,"South Region"]
[null,"TX","Taylor","TX-Taylor",1183,1389,1464,1632,1659,"South Region"]
[null,"TX","Terrell","TX-Terrell",859,1009,1063,1185,1204,"South Region"]
[null,"TX","Terry","TX-Terry",1086,1275,1344,1499,1523,"South Region"]
[null,"TX","Throckmorton","TX-Throckmorton",988,1161,1223,1364,1386,"South Region"]
[null,"TX","Titus","TX-Titus",1098,1290,1359,1515,1540,"South Region"]
[null,"TX","Tom Green","TX-Tom Green",1190,1398,1473,1642,1669,"South Region"]
[null,"TX","Travis","TX-Travis",1702,1999,2106,2348,2386,"South Region"]
[null,"TX","Trinity","TX-Trinity",1081,1270,1338,1492,1516,"South Region"]
[null,"TX","Tyler","TX-Tyler",1076,1264,1332,1485,1509,"South Region"]
[null,"TX","Upshur","TX-Upshur",1109,1302,1372,1530,1554,"South Region"]
[null,"TX","Upton","TX-Upton",1023,1201,1266,1412,1434,"South Region"]
[null,"TX","Uvalde","TX-Uvalde",1060,1245,1312,1463,1486,"South Region"]
[null,"TX","Val Verde","TX-Val Verde",1197,1405,1481,1651,1678,"South Region"]
[null,"TX","Van Zandt","TX-Van Zandt",1178,1384,1458,1626,1652,"South Region"]
[null,"TX","Victoria","TX-Victoria",1255,1474,1553,1732,1760,"South Region"]
[null,"TX","Walker","TX-Walker",1311,1540,1623,1810,1839,"South Region"]
[null,"TX","Ward","TX-Ward",1047,1230,1296,1445,1468,"South Region"]
[null,"TX","Washington","TX-Washington",1328,1560,1644,1833,1863,"South Region"]
[null,"TX","Webb","TX-Webb",1314,1543,1626,1813,1842,"South Region"]
[null,"TX","Wharton","TX-Wharton",1241,1458,1536,1713,1740,"South Region"]
[null,"TX","Wheeler","TX-Wheeler",1126,1323,1394,1554,1579,"South Region"]
[null,"TX","Wichita","TX-Wichita",1173,1378,1452,1619,1645,"South Region"]
[null,"TX","Wilbarger","TX-Wilbarger",1046,1228,1294,1443,1466,"South Region"]
[null,"TX","Willacy","TX-Willacy",1002,1177,1240,1383,1405,"South Region"]
[null,"TX","Williamson","TX-Williamson",1596,1874,1975,2202,2238,"South Region"]
[null,"TX","Wilson","TX-Wilson",1485,1744,1838,2049,2082,"South Region"]
[null,"TX","Winkler","TX-Winkler",975,1145,1207,1346,1368,"South Region"]
[null,"TX","Wood","TX-Wood",1177,1383,1457,1625,1651,"South Region"]
[null,"TX","Yoakum","TX-Yoakum",1141,1340,1412,1574,1600,"South Region"]
[null,"TX","Young","TX-Young",1121,1316,1387,1547,1571,"South Region"]
[null,"TX","Zapata","TX-Zapata",1168,1371,1445,1611,1637,"South Region"]
[null,"TX","Zavala","TX-Zavala",953,1119,1179,1315,1336,"South Region"]
[null,"VA","Accomack","VA-Accomack",1188,1395,1470,1639,1666,"South Region"]
[null,"VA","Albemarle","VA-Albemarle",1668,1959,2064,2301,2339,"South Region"]
[null,"VA","Alleghany","VA-Alleghany",1023,1201,1266,1412,1434,"South Region"]
[null,"VA","Amelia","VA-Amelia",1329,1561,1645,1834,1864,"South Region"]
[null,"VA","Amherst","VA-Amherst",1137,1335,1407,1569,1594,"South Region"]
[null,"VA","Appomattox","VA-Appomattox",1151,1351,1424,1588,1613,"South Region"]
[null,"VA","Augusta","VA-Augusta",1266,1487,1567,1747,1775,"South Region"]
[null,"VA","Bath","VA-Bath",1018,1196,1260,1405,1428,"South Region"]
[null,"VA","Bedford","VA-Bedford",1292,1517,1599,1783,1812,"South Region"]
[null,"VA","Bedford city","VA-Bedford city",1292,1517,1599,1783,1812,"South Region"]
[null,"VA","Bland","VA-Bland",985,1157,1219,1359,1381,"South Region"]
[null,"VA","Botetourt","VA-Botetourt",1393,1636,1724,1922,1953,"South Region"]
[null,"VA","Bristol city","VA-Bristol city",1021,1200,1264,1409,1432,"South Region"]
[null,"VA","Brunswick","VA-Brunswick",1103,1295,1365,1522,1547,"South Region"]
[null,"VA","Buchanan","VA-Buchanan",999,1174,1237,1379,1402,"South Region"]
[null,"VA","Buckingham","VA-Buckingham",1137,1335,1407,1569,1594,"South Region"]
[null,"VA","Buena Vista city","VA-Buena Vista city",1069,1256,1323,1475,1499,"South Region"]
[null,"VA","Campbell","VA-Campbell",1172,1377,1451,1618,1644,"South Region"]
[null,"VA","Caroline","VA-Caroline",1446,1698,1789,1995,2027,"South Region"]
[null,"VA","Carroll","VA-Carroll",986,1158,1220,1360,1382,"South Region"]
[null,"VA","Charles City","VA-Charles City",1255,1474,1553,1732,1760,"South Region"]
[null,"VA","Charlotte","VA-Charlotte",1116,1311,1381,1540,1565,"South Region"]
[null,"VA","Charlottesville city","VA-Charlottesville city",1610,1890,1992,2221,2257,"South Region"]
[null,"VA","Chesapeake city","VA-Chesapeake city",1724,2025,2134,2379,2418,"South Region"]
[null,"VA","Chesterfield","VA-Chesterfield",1552,1823,1921,2142,2176,"South Region"]
[null,"VA","Colonial Heights city","VA-Colonial Heights city",1311,1539,1622,1809,1838,"South Region"]
[null,"VA","Covington city","VA-Covington city",896,1052,1109,1237,1256,"South Region"]
[null,"VA","Craig","VA-Craig",1339,1572,1657,1848,1877,"South Region"]
[null,"VA","Culpeper","VA-Culpeper",1709,2007,2115,2358,2396,"South Region"]
[null,"VA","Cumberland","VA-Cumberland",1218,1431,1508,1681,1709,"South Region"]
[null,"VA","Danville city","VA-Danville city",1020,1198,1262,1407,1430,"South Region"]
[null,"VA","Dickenson","VA-Dickenson",1005,1181,1244,1387,1409,"South Region"]
[null,"VA","Dinwiddie","VA-Dinwiddie",1311,1540,1623,1810,1839,"South Region"]
[null,"VA","Emporia city","VA-Emporia city",1137,1335,1407,1569,1594,"South Region"]
[null,"VA","Essex","VA-Essex",1208,1419,1495,1667,1694,"South Region"]
[null,"VA","Floyd","VA-Floyd",1049,1232,1298,1447,1471,"South Region"]
[null,"VA","Fluvanna","VA-Fluvanna",1464,1720,1812,2020,2053,"South Region"]
[null,"VA","Franklin","VA-Franklin",1202,1412,1488,1659,1686,"South Region"]
[null,"VA","Franklin city","VA-Franklin city",1406,1651,1740,1940,1971,"South Region"]
[null,"VA","Frederick","VA-Frederick",1551,1822,1920,2141,2175,"South Region"]
[null,"VA","Galax city","VA-Galax city",930,1092,1151,1283,1304,"South Region"]
[null,"VA","Giles","VA-Giles",1045,1227,1293,1442,1465,"South Region"]
[null,"VA","Gloucester","VA-Gloucester",1446,1698,1789,1995,2027,"South Region"]
[null,"VA","Goochland","VA-Goochland",1664,1955,2060,2297,2334,"South Region"]
[null,"VA","Grayson","VA-Grayson",963,1131,1192,1329,1351,"South Region"]
[null,"VA","Greene","VA-Greene",1507,1770,1865,2079,2113,"South Region"]
[null,"VA","Greensville","VA-Greensville",1074,1261,1329,1482,1506,"South Region"]
[null,"VA","Halifax","VA-Halifax",1091,1281,1350,1505,1530,"South Region"]
[null,"VA","Hampton city","VA-Hampton city",1450,1703,1795,2001,2034,"South Region"]
[null,"VA","Hanover","VA-Hanover",1634,1919,2022,2255,2291,"South Region"]
[null,"VA","Harrisonburg city","VA-Harrisonburg city",1277,1500,1581,1763,1791,"South Region"]
[null,"VA","Henrico","VA-Henrico",1521,1787,1883,2100,2133,"South Region"]
[null,"VA","Henry","VA-Henry",991,1164,1227,1368,1390,"South Region"]
[null,"VA","Highland","VA-Highland",1118,1313,1384,1543,1568,"South Region"]
[null,"VA","Hopewell city","VA-Hopewell city",1078,1266,1334,1487,1511,"South Region"]
[null,"VA","Isle of Wight","VA-Isle of Wight",1652,1941,2045,2280,2317,"South Region"]
[null,"VA","James City","VA-James City",1681,1975,2081,2320,2358,"South Region"]
[null,"VA","King and Queen","VA-King and Queen",1154,1355,1428,1592,1618,"South Region"]
[null,"VA","King William","VA-King William",1488,1748,1842,2054,2087,"South Region"]
[null,"VA","Lancaster","VA-Lancaster",1433,1683,1773,1977,2009,"South Region"]
[null,"VA","Lee","VA-Lee",945,1110,1170,1305,1326,"South Region"]
[null,"VA","Lexington city","VA-Lexington city",1530,1796,1893,2111,2145,"South Region"]
[null,"VA","Louisa","VA-Louisa",1448,1701,1792,1998,2030,"South Region"]
[null,"VA","Lunenburg","VA-Lunenburg",1052,1236,1302,1452,1475,"South Region"]
[null,"VA","Lynchburg city","VA-Lynchburg city",1238,1454,1532,1708,1736,"South Region"]
[null,"VA","Madison","VA-Madison",1384,1626,1713,1910,1941,"South Region"]
[null,"VA","Martinsville city","VA-Martinsville city",1022,1200,1265,1410,1433,"South Region"]
[null,"VA","Mathews","VA-Mathews",1330,1562,1646,1835,1865,"South Region"]
[null,"VA","Mecklenburg","VA-Mecklenburg",1106,1299,1369,1526,1551,"South Region"]
[null,"VA","Middlesex","VA-Middlesex",1497,1758,1853,2066,2099,"South Region"]
[null,"VA","Montgomery","VA-Montgomery",1431,1681,1771,1975,2007,"South Region"]
[null,"VA","Nelson","VA-Nelson",1308,1536,1619,1805,1834,"South Region"]
[null,"VA","New Kent","VA-New Kent",1618,1900,2002,2232,2268,"South Region"]
[null,"VA","Newport News city","VA-Newport News city",1449,1702,1793,1999,2031,"South Region"]
[null,"VA","Norfolk city","VA-Norfolk city",1540,1809,1906,2125,2159,"South Region"]
[null,"VA","Northampton","VA-Northampton",1212,1424,1500,1673,1700,"South Region"]
[null,"VA","Northumberland","VA-Northumberland",1380,1621,1708,1904,1935,"South Region"]
[null,"VA","Norton city","VA-Norton city",859,1009,1063,1185,1204,"South Region"]
[null,"VA","Nottoway","VA-Nottoway",1201,1410,1486,1657,1684,"South Region"]
[null,"VA","Orange","VA-Orange",1462,1717,1809,2017,2050,"South Region"]
[null,"VA","Page","VA-Page",1195,1404,1479,1649,1676,"South Region"]
[null,"VA","Patrick","VA-Patrick",1034,1215,1280,1427,1450,"South Region"]
[null,"VA","Petersburg city","VA-Petersburg city",1157,1359,1432,1597,1622,"South Region"]
[null,"VA","Pittsylvania","VA-Pittsylvania",1055,1239,1306,1456,1480,"South Region"]
[null,"VA","Poquoson city","VA-Poquoson city",1862,2186,2304,2569,2610,"South Region"]
[null,"VA","Portsmouth city","VA-Portsmouth city",1469,1725,1818,2027,2060,"South Region"]
[null,"VA","Powhatan","VA-Powhatan",1565,1838,1937,2160,2195,"South Region"]
[null,"VA","Prince Edward","VA-Prince Edward",1238,1454,1532,1708,1736,"South Region"]
[null,"VA","Prince George","VA-Prince George",1450,1703,1795,2001,2034,"South Region"]
[null,"VA","Pulaski","VA-Pulaski",1130,1327,1398,1559,1584,"South Region"]
[null,"VA","Radford city","VA-Radford city",1197,1406,1482,1652,1679,"South Region"]
[null,"VA","Richmond","VA-Richmond",1107,1300,1370,1528,1552,"South Region"]
[null,"VA","Richmond city","VA-Richmond city",1462,1718,1810,2018,2051,"South Region"]
[null,"VA","Roanoke","VA-Roanoke",1334,1567,1651,1841,1871,"South Region"]
[null,"VA","Roanoke city","VA-Roanoke city",1166,1369,1443,1609,1635,"South Region"]
[null,"VA","Rockbridge","VA-Rockbridge",1299,1526,1608,1793,1822,"South Region"]
[null,"VA","Rockingham","VA-Rockingham",1338,1572,1656,1846,1876,"South Region"]
[null,"VA","Russell","VA-Russell",988,1161,1223,1364,1386,"South Region"]
[null,"VA","Salem city","VA-Salem city",1280,1503,1584,1766,1795,"South Region"]
[null,"VA","Scott","VA-Scott",966,1135,1196,1334,1355,"South Region"]
[null,"VA","Shenandoah","VA-Shenandoah",1336,1570,1654,1844,1874,"South Region"]
[null,"VA","Smyth","VA-Smyth",970,1139,1200,1338,1360,"South Region"]
[null,"VA","Southampton","VA-Southampton",1311,1539,1622,1809,1838,"South Region"]
[null,"VA","Staunton city","VA-Staunton city",1176,1382,1456,1623,1650,"South Region"]
[null,"VA","Suffolk city","VA-Suffolk city",1742,2046,2156,2404,2443,"South Region"]
[null,"VA","Surry","VA-Surry",1246,1463,1542,1719,1747,"South Region"]
[null,"VA","Sussex","VA-Sussex",1202,1412,1488,1659,1686,"South Region"]
[null,"VA","Tazewell","VA-Tazewell",1034,1215,1280,1427,1450,"South Region"]
[null,"VA","Virginia Beach city","VA-Virginia Beach city",1719,2019,2127,2372,2410,"South Region"]
[null,"VA","Washington","VA-Washington",1105,1298,1368,1525,1550,"South Region"]
[null,"VA","Waynesboro city","VA-Waynesboro city",1249,1467,1546,1724,1752,"South Region"]
[null,"VA","Westmoreland","VA-Westmoreland",1379,1620,1707,1903,1934,"South Region"]
[null,"VA","Williamsburg city","VA-Williamsburg city",1482,1740,1834,2045,2078,"South Region"]
[null,"VA","Winchester city","VA-Winchester city",1466,1721,1814,2023,2055,"South Region"]
[null,"VA","Wise","VA-Wise",1026,1205,1270,1416,1439,"South Region"]
[null,"VA","Wythe","VA-Wythe",1023,1201,1266,1412,1434,"South Region"]
[null,"VA","York","VA-York",1794,2107,2220,2475,2515,"South Region"]
[null,"WV","Barbour","WV-Barbour",933,1096,1155,1288,1309,"South Region"]
[null,"WV","Boone","WV-Boone",1053,1237,1303,1453,1476,"South Region"]
[null,"WV","Braxton","WV-Braxton",912,1071,1129,1259,1279,"South Region"]
[null,"WV","Brooke","WV-Brooke",1011,1187,1251,1395,1417,"South Region"]
[null,"WV","Cabell","WV-Cabell",1071,1257,1325,1477,1501,"South Region"]
[null,"WV","Calhoun","WV-Calhoun",781,917,966,1077,1094,"South Region"]
[null,"WV","Clay","WV-Clay",1008,1183,1247,1390,1413,"South Region"]
[null,"WV","Doddridge","WV-Doddridge",886,1041,1097,1223,1243,"South Region"]
[null,"WV","Fayette","WV-Fayette",915,1074,1132,1262,1283,"South Region"]
[null,"WV","Gilmer","WV-Gilmer",819,962,1014,1131,1149,"South Region"]
[null,"WV","Grant","WV-Grant",962,1130,1191,1328,1349,"South Region"]
[null,"WV","Greenbrier","WV-Greenbrier",961,1128,1189,1326,1347,"South Region"]
[null,"WV","Hampshire","WV-Hampshire",1046,1228,1294,1443,1466,"South Region"]
[null,"WV","Hancock","WV-Hancock",983,1154,1216,1356,1378,"South Region"]
[null,"WV","Hardy","WV-Hardy",1026,1205,1270,1416,1439,"South Region"]
[null,"WV","Harrison","WV-Harrison",1013,1190,1254,1398,1421,"South Region"]
[null,"WV","Jackson","WV-Jackson",997,1171,1234,1376,1398,"South Region"]
[null,"WV","Kanawha","WV-Kanawha",1048,1231,1297,1446,1470,"South Region"]
[null,"WV","Lewis","WV-Lewis",907,1066,1123,1252,1272,"South Region"]
[null,"WV","Lincoln","WV-Lincoln",908,1067,1124,1253,1273,"South Region"]
[null,"WV","Logan","WV-Logan",995,1169,1232,1374,1396,"South Region"]
[null,"WV","Marion","WV-Marion",1049,1232,1298,1447,1471,"South Region"]
[null,"WV","Marshall","WV-Marshall",960,1127,1188,1325,1346,"South Region"]
[null,"WV","Mason","WV-Mason",896,1052,1109,1237,1256,"South Region"]
[null,"WV","McDowell","WV-McDowell",810,951,1002,1117,1135,"South Region"]
[null,"WV","Mercer","WV-Mercer",972,1142,1203,1341,1363,"South Region"]
[null,"WV","Mineral","WV-Mineral",1071,1258,1326,1478,1502,"South Region"]
[null,"WV","Mingo","WV-Mingo",977,1147,1209,1348,1370,"South Region"]
[null,"WV","Monongalia","WV-Monongalia",1230,1444,1522,1697,1724,"South Region"]
[null,"WV","Monroe","WV-Monroe",995,1169,1232,1374,1396,"South Region"]
[null,"WV","Morgan","WV-Morgan",1237,1453,1531,1707,1735,"South Region"]
[null,"WV","Nicholas","WV-Nicholas",995,1168,1231,1373,1395,"South Region"]
[null,"WV","Ohio","WV-Ohio",1020,1198,1262,1407,1430,"South Region"]
[null,"WV","Pendleton","WV-Pendleton",944,1108,1168,1302,1323,"South Region"]
[null,"WV","Pleasants","WV-Pleasants",1045,1227,1293,1442,1465,"South Region"]
[null,"WV","Pocahontas","WV-Pocahontas",948,1113,1173,1308,1329,"South Region"]
[null,"WV","Preston","WV-Preston",1033,1213,1278,1425,1448,"South Region"]
[null,"WV","Putnam","WV-Putnam",1190,1398,1473,1642,1669,"South Region"]
[null,"WV","Raleigh","WV-Raleigh",1029,1209,1274,1421,1443,"South Region"]
[null,"WV","Randolph","WV-Randolph",951,1117,1177,1312,1334,"South Region"]
[null,"WV","Ritchie","WV-Ritchie",865,1015,1070,1193,1212,"South Region"]
[null,"WV","Roane","WV-Roane",959,1126,1187,1324,1345,"South Region"]
[null,"WV","Summers","WV-Summers",901,1058,1115,1243,1263,"South Region"]
[null,"WV","Taylor","WV-Taylor",1008,1184,1248,1392,1414,"South Region"]
[null,"WV","Tucker","WV-Tucker",978,1148,1210,1349,1371,"South Region"]
[null,"WV","Tyler","WV-Tyler",911,1070,1128,1258,1278,"South Region"]
[null,"WV","Upshur","WV-Upshur",981,1152,1214,1354,1375,"South Region"]
[null,"WV","Wayne","WV-Wayne",978,1148,1210,1349,1371,"South Region"]
[null,"WV","Webster","WV-Webster",822,965,1017,1134,1152,"South Region"]
[null,"WV","Wetzel","WV-Wetzel",912,1071,1129,1259,1279,"South Region"]
[null,"WV","Wirt","WV-Wirt",841,988,1041,1161,1179,"South Region"]
[null,"WV","Wood","WV-Wood",1000,1175,1238,1380,1403,"South Region"]
[null,"WV","Wyoming","WV-Wyoming",885,1039,1095,1221,1241,"South Region"]
[null,"DC","District of Columbia","DC-District of Columbia",2160,2537,2673,2980,3029,"Washington D.C."]
[null,"MD","Calvert","MD-Calvert",1996,2344,2470,2754,2799,"Washington D.C."]
[null,"MD","Charles","MD-Charles",2015,2367,2494,2781,2826,"Washington D.C."]
[null,"MD","Frederick","MD-Frederick",1896,2226,2346,2616,2658,"Washington D.C."]
[null,"MD","Montgomery","MD-Montgomery",2283,2681,2825,3150,3201,"Washington D.C."]
[null,"MD","Prince Georges","MD-Prince Georges",1913,2246,2367,2639,2682,"Washington D.C."]
[null,"MD","Washington","MD-Washington",1543,1813,1910,2130,2164,"Washington D.C."]
[null,"VA","Alexandria city","VA-Alexandria city",2351,2762,2910,3245,3297,"Washington D.C."]
[null,"VA","Arlington","VA-Arlington",2519,2959,3118,3477,3533,"Washington D.C."]
[null,"VA","Clarke","VA-Clarke",1780,2091,2203,2456,2496,"Washington D.C."]
[null,"VA","Fairfax","VA-Fairfax",2346,2756,2904,3238,3290,"Washington D.C."]
[null,"VA","Fairfax city","VA-Fairfax city",2195,2578,2717,3029,3078,"Washington D.C."]
[null,"VA","Falls Church city","VA-Falls Church city",2791,3278,3454,3851,3913,"Washington D.C."]
[null,"VA","Fauquier","VA-Fauquier",2008,2358,2485,2771,2816,"Washington D.C."]
[null,"VA","Fredericksburg city","VA-Fredericksburg city",1783,2094,2207,2461,2501,"Washington D.C."]
[null,"VA","King George","VA-King George",1855,2179,2296,2560,2601,"Washington D.C."]
[null,"VA","Loudoun","VA-Loudoun",2466,2896,3052,3403,3458,"Washington D.C."]
[null,"VA","Manassas city","VA-Manassas city",1839,2160,2276,2538,2579,"Washington D.C."]
[null,"VA","Manassas Park city","VA-Manassas Park city",1820,2137,2252,2511,2552,"Washington D.C."]
[null,"VA","Prince William","VA-Prince William",2094,2459,2591,2889,2936,"Washington D.C."]
[null,"VA","Rappahannock","VA-Rappahannock",1738,2041,2151,2398,2437,"Washington D.C."]
[null,"VA","Spotsylvania","VA-Spotsylvania",1673,1965,2071,2309,2346,"Washington D.C."]
[null,"VA","Stafford","VA-Stafford",1998,2347,2473,2757,2802,"Washington D.C."]
[null,"VA","Warren","VA-Warren",1459,1714,1806,2014,2046,"Washington D.C."]
[null,"WV","Berkeley","WV-Berkeley",1316,1546,1629,1816,1846,"Washington D.C."]
[null,"WV","Jefferson","WV-Jefferson",1554,1825,1923,2144,2179,"Washington D.C."]
[null,"AK","Aleutians East","AK-Aleutians East",1196,1405,1480,1650,1677,"West Region"]
[null,"AK","Aleutians West","AK-Aleutians West",2018,2370,2497,2784,2829,"West Region"]
[null,"AK","Anchorage","AK-Anchorage",1875,2202,2320,2587,2629,"West Region"]
[null,"AK","Bethel","AK-Bethel",1622,1905,2007,2238,2274,"West Region"]
[null,"AK","Bristol Bay","AK-Bristol Bay",1753,2058,2169,2418,2457,"West Region"]
[null,"AK","Denali","AK-Denali",1479,1738,1831,2042,2075,"West Region"]
[null,"AK","Dillingham","AK-Dillingham",1541,1810,1907,2126,2161,"West Region"]
[null,"AK","Fairbanks North Star","AK-Fairbanks North Star",1813,2130,2244,2502,2542,"West Region"]
[null,"AK","Haines","AK-Haines",1394,1637,1725,1923,1954,"West Region"]
[null,"AK","Hoonah Angoon","AK-Hoonah Angoon",1486,1745,1839,2050,2084,"West Region"]
[null,"AK","Juneau","AK-Juneau",2008,2358,2485,2771,2816,"West Region"]
[null,"AK","Kenai Peninsula","AK-Kenai Peninsula",1474,1731,1824,2034,2067,"West Region"]
[null,"AK","Ketchikan Gateway","AK-Ketchikan Gateway",1702,2000,2107,2349,2387,"West Region"]
[null,"AK","Kodiak Island","AK-Kodiak Island",1884,2213,2332,2600,2642,"West Region"]
[null,"AK","Kusilvak","AK-Kusilvak",768,902,950,1059,1076,"West Region"]
[null,"AK","Lake and Peninsula","AK-Lake and Peninsula",1374,1614,1701,1897,1927,"West Region"]
[null,"AK","Matanuska Susitna","AK-Matanuska Susitna",1649,1937,2041,2276,2312,"West Region"]
[null,"AK","Nome","AK-Nome",1536,1804,1901,2120,2154,"West Region"]
[null,"AK","North Slope","AK-North Slope",1249,1467,1546,1724,1752,"West Region"]
[null,"AK","Northwest Arctic","AK-Northwest Arctic",1397,1641,1729,1928,1959,"West Region"]
[null,"AK","Petersburg","AK-Petersburg",1479,1737,1830,2040,2073,"West Region"]
[null,"AK","Prince of Wales Hyder","AK-Prince of Wales Hyder",1303,1531,1613,1798,1828,"West Region"]
[null,"AK","Sitka","AK-Sitka",1864,2189,2307,2572,2614,"West Region"]
[null,"AK","Skagway","AK-Skagway",1822,2140,2255,2514,2555,"West Region"]
[null,"AK","Southeast Fairbanks","AK-Southeast Fairbanks",1368,1607,1693,1888,1918,"West Region"]
[null,"AK","Valdez Cordova","AK-Valdez Cordova",1691,1986,2093,2334,2371,"West Region"]
[null,"AK","Wrangell","AK-Wrangell",1424,1672,1762,1965,1996,"West Region"]
[null,"AK","Yakutat","AK-Yakutat",1378,1618,1705,1901,1932,"West Region"]
[null,"AK","Yukon Koyukuk","AK-Yukon Koyukuk",1138,1336,1408,1570,1595,"West Region"]
[null,"AZ","Apache","AZ-Apache",991,1164,1227,1368,1390,"West Region"]
[null,"AZ","Cochise","AZ-Cochise",1224,1438,1515,1689,1716,"West Region"]
[null,"AZ","Coconino","AZ-Coconino",1507,1770,1865,2079,2113,"West Region"]
[null,"AZ","Gila","AZ-Gila",1151,1352,1425,1589,1615,"West Region"]
[null,"AZ","Graham","AZ-Graham",1168,1371,1445,1611,1637,"West Region"]
[null,"AZ","Greenlee","AZ-Greenlee",920,1081,1139,1270,1290,"West Region"]
[null,"AZ","La Paz","AZ-La Paz",1059,1244,1311,1462,1485,"West Region"]
[null,"AZ","Mohave","AZ-Mohave",1118,1313,1384,1543,1568,"West Region"]
[null,"AZ","Navajo","AZ-Navajo",1129,1326,1397,1558,1583,"West Region"]
[null,"AZ","Pima","AZ-Pima",1333,1566,1650,1840,1869,"West Region"]
[null,"AZ","Santa Cruz","AZ-Santa Cruz",1147,1348,1420,1583,1609,"West Region"]
[null,"AZ","Yavapai","AZ-Yavapai",1293,1518,1600,1784,1813,"West Region"]
[null,"AZ","Yuma","AZ-Yuma",1175,1380,1454,1621,1647,"West Region"]
[null,"CA","Alpine","CA-Alpine",2026,2379,2507,2795,2840,"West Region"]
[null,"CA","Amador","CA-Amador",1713,2012,2120,2364,2402,"West Region"]
[null,"CA","Butte","CA-Butte",1494,1755,1849,2062,2095,"West Region"]
[null,"CA","Calaveras","CA-Calaveras",1679,1972,2078,2317,2354,"West Region"]
[null,"CA","Colusa","CA-Colusa",1454,1707,1799,2006,2038,"West Region"]
[null,"CA","Del Norte","CA-Del Norte",1404,1649,1738,1938,1969,"West Region"]
[null,"CA","El Dorado","CA-El Dorado",2066,2427,2557,2851,2897,"West Region"]
[null,"CA","Fresno","CA-Fresno",1519,1784,1880,2096,2130,"West Region"]
[null,"CA","Glenn","CA-Glenn",1397,1641,1729,1928,1959,"West Region"]
[null,"CA","Humboldt","CA-Humboldt",1581,1857,1957,2182,2217,"West Region"]
[null,"CA","Imperial","CA-Imperial",1419,1666,1756,1958,1990,"West Region"]
[null,"CA","Inyo","CA-Inyo",1702,1999,2106,2348,2386,"West Region"]
[null,"CA","Kern","CA-Kern",1450,1703,1795,2001,2034,"West Region"]
[null,"CA","Kings","CA-Kings",1441,1692,1783,1988,2020,"West Region"]
[null,"CA","Lake","CA-Lake",1496,1758,1852,2065,2098,"West Region"]
[null,"CA","Lassen","CA-Lassen",1488,1748,1842,2054,2087,"West Region"]
[null,"CA","Madera","CA-Madera",1463,1719,1811,2019,2052,"West Region"]
[null,"CA","Mariposa","CA-Mariposa",1576,1851,1950,2174,2209,"West Region"]
[null,"CA","Mendocino","CA-Mendocino",1716,2016,2124,2368,2406,"West Region"]
[null,"CA","Merced","CA-Merced",1383,1625,1712,1909,1940,"West Region"]
[null,"CA","Modoc","CA-Modoc",1063,1248,1315,1466,1490,"West Region"]
[null,"CA","Mono","CA-Mono",1916,2250,2371,2644,2686,"West Region"]
[null,"CA","Monterey","CA-Monterey",2009,2359,2486,2772,2817,"West Region"]
[null,"CA","Nevada","CA-Nevada",1929,2265,2387,2662,2704,"West Region"]
[null,"CA","Placer","CA-Placer",2057,2416,2546,2839,2885,"West Region"]
[null,"CA","Plumas","CA-Plumas",1522,1788,1884,2101,2135,"West Region"]
[null,"CA","Sacramento","CA-Sacramento",1707,2005,2113,2356,2394,"West Region"]
[null,"CA","San Joaquin","CA-San Joaquin",1703,2000,2108,2350,2388,"West Region"]
[null,"CA","San Luis Obispo","CA-San Luis Obispo",2050,2408,2537,2829,2874,"West Region"]
[null,"CA","Santa Barbara","CA-Santa Barbara",2122,2492,2626,2928,2975,"West Region"]
[null,"CA","Shasta","CA-Shasta",1475,1732,1825,2035,2068,"West Region"]
[null,"CA","Sierra","CA-Sierra",1394,1637,1725,1923,1954,"West Region"]
[null,"CA","Siskiyou","CA-Siskiyou",1327,1558,1642,1831,1860,"West Region"]
[null,"CA","Stanislaus","CA-Stanislaus",1553,1824,1922,2143,2178,"West Region"]
[null,"CA","Sutter","CA-Sutter",1509,1772,1867,2082,2115,"West Region"]
[null,"CA","Tehama","CA-Tehama",1326,1557,1641,1830,1859,"West Region"]
[null,"CA","Trinity","CA-Trinity",1459,1714,1806,2014,2046,"West Region"]
[null,"CA","Tulare","CA-Tulare",1382,1623,1710,1907,1937,"West Region"]
[null,"CA","Tuolumne","CA-Tuolumne",1569,1843,1942,2165,2200,"West Region"]
[null,"CA","Yolo","CA-Yolo",1906,2239,2359,2630,2673,"West Region"]
[null,"CA","Yuba","CA-Yuba",1506,1769,1864,2078,2112,"West Region"]
[null,"CO","Adams","CO-Adams",1528,1795,1891,2108,2143,"West Region"]
[null,"CO","Alamosa","CO-Alamosa",1126,1323,1394,1554,1579,"West Region"]
[null,"CO","Arapahoe","CO-Arapahoe",1615,1897,1999,2229,2265,"West Region"]
[null,"CO","Archuleta","CO-Archuleta",1399,1644,1732,1931,1962,"West Region"]
[null,"CO","Baca","CO-Baca",937,1101,1160,1293,1314,"West Region"]
[null,"CO","Bent","CO-Bent",985,1157,1219,1359,1381,"West Region"]
[null,"CO","Boulder","CO-Boulder",1795,2108,2221,2476,2516,"West Region"]
[null,"CO","Broomfield","CO-Broomfield",1738,2041,2151,2398,2437,"West Region"]
[null,"CO","Chaffee","CO-Chaffee",1444,1696,1787,1993,2025,"West Region"]
[null,"CO","Cheyenne","CO-Cheyenne",1210,1421,1497,1669,1696,"West Region"]
[null,"CO","Clear Creek","CO-Clear Creek",1520,1785,1881,2097,2131,"West Region"]
[null,"CO","Conejos","CO-Conejos",1050,1233,1299,1448,1472,"West Region"]
[null,"CO","Costilla","CO-Costilla",949,1115,1175,1310,1331,"West Region"]
[null,"CO","Crowley","CO-Crowley",1061,1246,1313,1464,1488,"West Region"]
[null,"CO","Custer","CO-Custer",1265,1486,1566,1746,1774,"West Region"]
[null,"CO","Delta","CO-Delta",1283,1507,1588,1771,1799,"West Region"]
[null,"CO","Denver","CO-Denver",1577,1852,1952,2176,2212,"West Region"]
[null,"CO","Dolores","CO-Dolores",1105,1297,1367,1524,1549,"West Region"]
[null,"CO","Douglas","CO-Douglas",1975,2319,2444,2725,2769,"West Region"]
[null,"CO","Eagle","CO-Eagle",1994,2342,2468,2752,2796,"West Region"]
[null,"CO","El Paso","CO-El Paso",1496,1758,1852,2065,2098,"West Region"]
[null,"CO","Elbert","CO-Elbert",1923,2259,2380,2654,2697,"West Region"]
[null,"CO","Fremont","CO-Fremont",1205,1415,1491,1662,1689,"West Region"]
[null,"CO","Garfield","CO-Garfield",1712,2011,2119,2363,2401,"West Region"]
[null,"CO","Gilpin","CO-Gilpin",1498,1759,1854,2067,2101,"West Region"]
[null,"CO","Grand","CO-Grand",1487,1746,1840,2052,2085,"West Region"]
[null,"CO","Gunnison","CO-Gunnison",1494,1755,1849,2062,2095,"West Region"]
[null,"CO","Hinsdale","CO-Hinsdale",1436,1686,1777,1981,2013,"West Region"]
[null,"CO","Huerfano","CO-Huerfano",1097,1289,1358,1514,1539,"West Region"]
[null,"CO","Jackson","CO-Jackson",1179,1385,1459,1627,1653,"West Region"]
[null,"CO","Jefferson","CO-Jefferson",1664,1954,2059,2296,2333,"West Region"]
[null,"CO","Kiowa","CO-Kiowa",990,1163,1225,1366,1388,"West Region"]
[null,"CO","Kit Carson","CO-Kit Carson",1182,1388,1463,1631,1658,"West Region"]
[null,"CO","La Plata","CO-La Plata",1592,1870,1970,2197,2232,"West Region"]
[null,"CO","Lake","CO-Lake",1379,1620,1707,1903,1934,"West Region"]
[null,"CO","Larimer","CO-Larimer",1537,1805,1902,2121,2155,"West Region"]
[null,"CO","Las Animas","CO-Las Animas",1217,1429,1506,1679,1706,"West Region"]
[null,"CO","Lincoln","CO-Lincoln",1230,1444,1522,1697,1724,"West Region"]
[null,"CO","Logan","CO-Logan",1121,1316,1387,1547,1571,"West Region"]
[null,"CO","Mesa","CO-Mesa",1352,1588,1673,1865,1896,"West Region"]
[null,"CO","Mineral","CO-Mineral",1411,1657,1746,1947,1978,"West Region"]
[null,"CO","Moffat","CO-Moffat",1327,1558,1642,1831,1860,"West Region"]
[null,"CO","Montezuma","CO-Montezuma",1200,1409,1485,1656,1683,"West Region"]
[null,"CO","Montrose","CO-Montrose",1326,1557,1641,1830,1859,"West Region"]
[null,"CO","Morgan","CO-Morgan",1280,1503,1584,1766,1795,"West Region"]
[null,"CO","Otero","CO-Otero",1054,1237,1304,1454,1477,"West Region"]
[null,"CO","Ouray","CO-Ouray",1734,2037,2146,2393,2431,"West Region"]
[null,"CO","Park","CO-Park",1510,1774,1869,2084,2118,"West Region"]
[null,"CO","Phillips","CO-Phillips",1131,1329,1400,1561,1586,"West Region"]
[null,"CO","Pitkin","CO-Pitkin",1967,2311,2435,2715,2759,"West Region"]
[null,"CO","Prowers","CO-Prowers",1084,1273,1341,1495,1519,"West Region"]
[null,"CO","Pueblo","CO-Pueblo",1228,1442,1520,1695,1722,"West Region"]
[null,"CO","Rio Blanco","CO-Rio Blanco",1244,1461,1539,1716,1744,"West Region"]
[null,"CO","Rio Grande","CO-Rio Grande",1123,1319,1390,1550,1575,"West Region"]
[null,"CO","Routt","CO-Routt",1778,2088,2200,2453,2493,"West Region"]
[null,"CO","Saguache","CO-Saguache",1110,1304,1374,1532,1557,"West Region"]
[null,"CO","San Juan","CO-San Juan",1283,1507,1588,1771,1799,"West Region"]
[null,"CO","San Miguel","CO-San Miguel",1857,2181,2298,2562,2604,"West Region"]
[null,"CO","Sedgwick","CO-Sedgwick",1009,1185,1249,1393,1415,"West Region"]
[null,"CO","Summit","CO-Summit",1931,2268,2390,2665,2708,"West Region"]
[null,"CO","Teller","CO-Teller",1462,1718,1810,2018,2051,"West Region"]
[null,"CO","Washington","CO-Washington",1116,1311,1381,1540,1565,"West Region"]
[null,"CO","Weld","CO-Weld",1488,1748,1842,2054,2087,"West Region"]
[null,"CO","Yuma","CO-Yuma",1185,1392,1467,1636,1662,"West Region"]
[null,"HI","Hawaii","HI-Hawaii",1619,1902,2004,2234,2271,"West Region"]
[null,"HI","Honolulu","HI-Honolulu",2281,2679,2823,3148,3198,"West Region"]
[null,"HI","Kalawao","HI-Kalawao",2044,2401,2530,2821,2866,"West Region"]
[null,"HI","Kauai","HI-Kauai",2098,2464,2596,2895,2941,"West Region"]
[null,"HI","Maui","HI-Maui",2180,2560,2698,3008,3057,"West Region"]
[null,"ID","Ada","ID-Ada",1355,1591,1677,1870,1900,"West Region"]
[null,"ID","Adams","ID-Adams",1100,1292,1361,1518,1542,"West Region"]
[null,"ID","Bannock","ID-Bannock",1159,1361,1434,1599,1625,"West Region"]
[null,"ID","Bear Lake","ID-Bear Lake",1046,1228,1294,1443,1466,"West Region"]
[null,"ID","Benewah","ID-Benewah",1111,1305,1375,1533,1558,"West Region"]
[null,"ID","Bingham","ID-Bingham",1167,1370,1444,1610,1636,"West Region"]
[null,"ID","Blaine","ID-Blaine",1693,1988,2095,2336,2374,"West Region"]
[null,"ID","Boise","ID-Boise",1267,1488,1568,1748,1777,"West Region"]
[null,"ID","Bonner","ID-Bonner",1281,1505,1586,1768,1797,"West Region"]
[null,"ID","Bonneville","ID-Bonneville",1232,1447,1525,1700,1728,"West Region"]
[null,"ID","Boundary","ID-Boundary",1200,1409,1485,1656,1683,"West Region"]
[null,"ID","Butte","ID-Butte",978,1148,1210,1349,1371,"West Region"]
[null,"ID","Camas","ID-Camas",1297,1523,1605,1790,1818,"West Region"]
[null,"ID","Canyon","ID-Canyon",1152,1353,1426,1590,1616,"West Region"]
[null,"ID","Caribou","ID-Caribou",1076,1264,1332,1485,1509,"West Region"]
[null,"ID","Cassia","ID-Cassia",1045,1227,1293,1442,1465,"West Region"]
[null,"ID","Clark","ID-Clark",1038,1219,1285,1433,1456,"West Region"]
[null,"ID","Clearwater","ID-Clearwater",1110,1304,1374,1532,1557,"West Region"]
[null,"ID","Custer","ID-Custer",1183,1389,1464,1632,1659,"West Region"]
[null,"ID","Elmore","ID-Elmore",1204,1414,1490,1661,1688,"West Region"]
[null,"ID","Franklin","ID-Franklin",1219,1432,1509,1683,1710,"West Region"]
[null,"ID","Fremont","ID-Fremont",1159,1362,1435,1600,1626,"West Region"]
[null,"ID","Gem","ID-Gem",1162,1365,1438,1603,1629,"West Region"]
[null,"ID","Gooding","ID-Gooding",1093,1284,1353,1509,1533,"West Region"]
[null,"ID","Idaho","ID-Idaho",1086,1275,1344,1499,1523,"West Region"]
[null,"ID","Jefferson","ID-Jefferson",1237,1453,1531,1707,1735,"West Region"]
[null,"ID","Jerome","ID-Jerome",1147,1347,1419,1582,1608,"West Region"]
[null,"ID","Kootenai","ID-Kootenai",1304,1532,1614,1800,1829,"West Region"]
[null,"ID","Latah","ID-Latah",1285,1509,1590,1773,1801,"West Region"]
[null,"ID","Lemhi","ID-Lemhi",1104,1296,1366,1523,1548,"West Region"]
[null,"ID","Lewis","ID-Lewis",1037,1218,1283,1431,1454,"West Region"]
[null,"ID","Lincoln","ID-Lincoln",1122,1318,1389,1549,1574,"West Region"]
[null,"ID","Madison","ID-Madison",1315,1544,1627,1814,1843,"West Region"]
[null,"ID","Minidoka","ID-Minidoka",990,1163,1225,1366,1388,"West Region"]
[null,"ID","Nez Perce","ID-Nez Perce",1251,1469,1548,1726,1754,"West Region"]
[null,"ID","Oneida","ID-Oneida",1196,1405,1480,1650,1677,"West Region"]
[null,"ID","Owyhee","ID-Owyhee",1138,1336,1408,1570,1595,"West Region"]
[null,"ID","Payette","ID-Payette",1164,1367,1440,1606,1632,"West Region"]
[null,"ID","Power","ID-Power",1075,1262,1330,1483,1507,"West Region"]
[null,"ID","Shoshone","ID-Shoshone",1043,1225,1291,1439,1463,"West Region"]
[null,"ID","Teton","ID-Teton",1581,1857,1957,2182,2217,"West Region"]
[null,"ID","Twin Falls","ID-Twin Falls",1168,1371,1445,1611,1637,"West Region"]
[null,"ID","Valley","ID-Valley",1367,1606,1692,1887,1917,"West Region"]
[null,"ID","Washington","ID-Washington",1079,1268,1336,1490,1514,"West Region"]
[null,"MT","Beaverhead","MT-Beaverhead",1201,1410,1486,1657,1684,"West Region"]
[null,"MT","Big Horn","MT-Big Horn",966,1134,1195,1332,1354,"West Region"]
[null,"MT","Blaine","MT-Blaine",1180,1386,1461,1629,1655,"West Region"]
[null,"MT","Broadwater","MT-Broadwater",1303,1531,1613,1798,1828,"West Region"]
[null,"MT","Carbon","MT-Carbon",1263,1483,1563,1743,1771,"West Region"]
[null,"MT","Carter","MT-Carter",1327,1558,1642,1831,1860,"West Region"]
[null,"MT","Cascade","MT-Cascade",1239,1456,1534,1710,1738,"West Region"]
[null,"MT","Chouteau","MT-Chouteau",1131,1329,1400,1561,1586,"West Region"]
[null,"MT","Custer","MT-Custer",1112,1306,1376,1534,1559,"West Region"]
[null,"MT","Daniels","MT-Daniels",1143,1343,1415,1578,1603,"West Region"]
[null,"MT","Dawson","MT-Dawson",1173,1378,1452,1619,1645,"West Region"]
[null,"MT","Deer Lodge","MT-Deer Lodge",1028,1207,1272,1418,1441,"West Region"]
[null,"MT","Fallon","MT-Fallon",1037,1219,1284,1432,1455,"West Region"]
[null,"MT","Fergus","MT-Fergus",1079,1268,1336,1490,1514,"West Region"]
[null,"MT","Flathead","MT-Flathead",1382,1624,1711,1908,1939,"West Region"]
[null,"MT","Gallatin","MT-Gallatin",1566,1839,1938,2161,2196,"West Region"]
[null,"MT","Garfield","MT-Garfield",1109,1303,1373,1531,1556,"West Region"]
[null,"MT","Glacier","MT-Glacier",1080,1269,1337,1491,1515,"West Region"]
[null,"MT","Golden Valley","MT-Golden Valley",1053,1237,1303,1453,1476,"West Region"]
[null,"MT","Granite","MT-Granite",1197,1405,1481,1651,1678,"West Region"]
[null,"MT","Hill","MT-Hill",1162,1365,1438,1603,1629,"West Region"]
[null,"MT","Jefferson","MT-Jefferson",1446,1699,1790,1996,2028,"West Region"]
[null,"MT","Judith Basin","MT-Judith Basin",1093,1284,1353,1509,1533,"West Region"]
[null,"MT","Lake","MT-Lake",1340,1574,1659,1850,1880,"West Region"]
[null,"MT","Lewis and Clark","MT-Lewis and Clark",1374,1614,1701,1897,1927,"West Region"]
[null,"MT","Liberty","MT-Liberty",886,1040,1096,1222,1242,"West Region"]
[null,"MT","Lincoln","MT-Lincoln",1148,1349,1421,1584,1610,"West Region"]
[null,"MT","Madison","MT-Madison",1328,1560,1644,1833,1863,"West Region"]
[null,"MT","McCone","MT-McCone",1203,1413,1489,1660,1687,"West Region"]
[null,"MT","Meagher","MT-Meagher",1172,1377,1451,1618,1644,"West Region"]
[null,"MT","Mineral","MT-Mineral",1294,1520,1602,1786,1815,"West Region"]
[null,"MT","Missoula","MT-Missoula",1481,1740,1833,2044,2077,"West Region"]
[null,"MT","Musselshell","MT-Musselshell",1188,1395,1470,1639,1666,"West Region"]
[null,"MT","Park","MT-Park",1336,1570,1654,1844,1874,"West Region"]
[null,"MT","Petroleum","MT-Petroleum",1116,1311,1381,1540,1565,"West Region"]
[null,"MT","Phillips","MT-Phillips",1098,1290,1359,1515,1540,"West Region"]
[null,"MT","Pondera","MT-Pondera",1109,1303,1373,1531,1556,"West Region"]
[null,"MT","Powder River","MT-Powder River",1282,1506,1587,1770,1798,"West Region"]
[null,"MT","Powell","MT-Powell",1033,1214,1279,1426,1449,"West Region"]
[null,"MT","Prairie","MT-Prairie",949,1114,1174,1309,1330,"West Region"]
[null,"MT","Ravalli","MT-Ravalli",1338,1572,1656,1846,1876,"West Region"]
[null,"MT","Richland","MT-Richland",1220,1433,1510,1684,1711,"West Region"]
[null,"MT","Roosevelt","MT-Roosevelt",980,1151,1213,1352,1374,"West Region"]
[null,"MT","Rosebud","MT-Rosebud",1136,1334,1406,1568,1593,"West Region"]
[null,"MT","Sanders","MT-Sanders",1217,1429,1506,1679,1706,"West Region"]
[null,"MT","Sheridan","MT-Sheridan",1201,1411,1487,1658,1685,"West Region"]
[null,"MT","Silver Bow","MT-Silver Bow",1066,1252,1319,1471,1494,"West Region"]
[null,"MT","Stillwater","MT-Stillwater",1367,1606,1692,1887,1917,"West Region"]
[null,"MT","Sweet Grass","MT-Sweet Grass",1325,1556,1640,1829,1858,"West Region"]
[null,"MT","Teton","MT-Teton",1184,1390,1465,1633,1660,"West Region"]
[null,"MT","Toole","MT-Toole",1060,1245,1312,1463,1486,"West Region"]
[null,"MT","Treasure","MT-Treasure",1170,1374,1448,1615,1641,"West Region"]
[null,"MT","Valley","MT-Valley",1063,1248,1315,1466,1490,"West Region"]
[null,"MT","Wheatland","MT-Wheatland",981,1152,1214,1354,1375,"West Region"]
[null,"MT","Wibaux","MT-Wibaux",1108,1301,1371,1529,1553,"West Region"]
[null,"MT","Yellowstone","MT-Yellowstone",1366,1604,1690,1884,1915,"West Region"]
[null,"NM","Bernalillo","NM-Bernalillo",1365,1603,1689,1883,1914,"West Region"]
[null,"NM","Catron","NM-Catron",1197,1406,1482,1652,1679,"West Region"]
[null,"NM","Chaves","NM-Chaves",1030,1210,1275,1422,1445,"West Region"]
[null,"NM","Cibola","NM-Cibola",1050,1234,1300,1450,1473,"West Region"]
[null,"NM","Colfax","NM-Colfax",1091,1281,1350,1505,1530,"West Region"]
[null,"NM","Curry","NM-Curry",1079,1267,1335,1489,1513,"West Region"]
[null,"NM","DeBaca","NM-DeBaca",945,1109,1169,1303,1324,"West Region"]
[null,"NM","Dona Ana","NM-Dona Ana",1196,1405,1480,1650,1677,"West Region"]
[null,"NM","Eddy","NM-Eddy",1092,1282,1351,1506,1531,"West Region"]
[null,"NM","Grant","NM-Grant",1079,1267,1335,1489,1513,"West Region"]
[null,"NM","Guadalupe","NM-Guadalupe",1061,1246,1313,1464,1488,"West Region"]
[null,"NM","Harding","NM-Harding",1042,1223,1289,1437,1460,"West Region"]
[null,"NM","Hidalgo","NM-Hidalgo",1002,1177,1240,1383,1405,"West Region"]
[null,"NM","Lea","NM-Lea",1130,1327,1398,1559,1584,"West Region"]
[null,"NM","Lincoln","NM-Lincoln",1239,1455,1533,1709,1737,"West Region"]
[null,"NM","Los Alamos","NM-Los Alamos",1765,2073,2184,2435,2474,"West Region"]
[null,"NM","Luna","NM-Luna",982,1153,1215,1355,1377,"West Region"]
[null,"NM","McKinley","NM-McKinley",1055,1239,1306,1456,1480,"West Region"]
[null,"NM","Mora","NM-Mora",1063,1248,1315,1466,1490,"West Region"]
[null,"NM","Otero","NM-Otero",1046,1229,1295,1444,1467,"West Region"]
[null,"NM","Quay","NM-Quay",978,1149,1211,1350,1372,"West Region"]
[null,"NM","Rio Arriba","NM-Rio Arriba",1242,1459,1537,1714,1741,"West Region"]
[null,"NM","Roosevelt","NM-Roosevelt",1074,1261,1329,1482,1506,"West Region"]
[null,"NM","San Juan","NM-San Juan",1265,1485,1565,1745,1773,"West Region"]
[null,"NM","San Miguel","NM-San Miguel",1210,1422,1498,1670,1697,"West Region"]
[null,"NM","Sandoval","NM-Sandoval",1353,1589,1674,1867,1897,"West Region"]
[null,"NM","Santa Fe","NM-Santa Fe",1559,1832,1930,2152,2187,"West Region"]
[null,"NM","Sierra","NM-Sierra",941,1106,1165,1299,1320,"West Region"]
[null,"NM","Socorro","NM-Socorro",1067,1254,1321,1473,1497,"West Region"]
[null,"NM","Taos","NM-Taos",1294,1520,1602,1786,1815,"West Region"]
[null,"NM","Torrance","NM-Torrance",985,1157,1219,1359,1381,"West Region"]
[null,"NM","Union","NM-Union",996,1170,1233,1375,1397,"West Region"]
[null,"NM","Valencia","NM-Valencia",1178,1384,1458,1626,1652,"West Region"]
[null,"NV","Carson City","NV-Carson City",1442,1694,1785,1990,2022,"West Region"]
[null,"NV","Churchill","NV-Churchill",1249,1467,1546,1724,1752,"West Region"]
[null,"NV","Clark","NV-Clark",1456,1710,1802,2009,2042,"West Region"]
[null,"NV","Douglas","NV-Douglas",1639,1925,2028,2261,2298,"West Region"]
[null,"NV","Elko","NV-Elko",1438,1689,1780,1985,2017,"West Region"]
[null,"NV","Esmeralda","NV-Esmeralda",1070,1256,1324,1476,1500,"West Region"]
[null,"NV","Eureka","NV-Eureka",1210,1422,1498,1670,1697,"West Region"]
[null,"NV","Humboldt","NV-Humboldt",1260,1480,1560,1739,1767,"West Region"]
[null,"NV","Lander","NV-Lander",1382,1623,1710,1907,1937,"West Region"]
[null,"NV","Lincoln","NV-Lincoln",1047,1230,1296,1445,1468,"West Region"]
[null,"NV","Lyon","NV-Lyon",1256,1475,1554,1733,1761,"West Region"]
[null,"NV","Mineral","NV-Mineral",974,1144,1205,1344,1365,"West Region"]
[null,"NV","Nye","NV-Nye",1194,1403,1478,1648,1675,"West Region"]
[null,"NV","Pershing","NV-Pershing",1217,1429,1506,1679,1706,"West Region"]
[null,"NV","Storey","NV-Storey",1378,1618,1705,1901,1932,"West Region"]
[null,"NV","Washoe","NV-Washoe",1556,1828,1926,2147,2182,"West Region"]
[null,"NV","White Pine","NV-White Pine",1148,1349,1421,1584,1610,"West Region"]
[null,"OR","Baker","OR-Baker",1162,1365,1438,1603,1629,"West Region"]
[null,"OR","Benton","OR-Benton",1572,1847,1946,2170,2205,"West Region"]
[null,"OR","Clackamas","OR-Clackamas",1795,2109,2222,2478,2518,"West Region"]
[null,"OR","Clatsop","OR-Clatsop",1520,1785,1881,2097,2131,"West Region"]
[null,"OR","Columbia","OR-Columbia",1460,1715,1807,2015,2047,"West Region"]
[null,"OR","Coos","OR-Coos",1248,1465,1544,1722,1749,"West Region"]
[null,"OR","Crook","OR-Crook",1260,1479,1559,1738,1766,"West Region"]
[null,"OR","Curry","OR-Curry",1386,1628,1715,1912,1943,"West Region"]
[null,"OR","Deschutes","OR-Deschutes",1495,1756,1850,2063,2096,"West Region"]
[null,"OR","Douglas","OR-Douglas",1285,1509,1590,1773,1801,"West Region"]
[null,"OR","Gilliam","OR-Gilliam",1075,1262,1330,1483,1507,"West Region"]
[null,"OR","Grant","OR-Grant",1082,1271,1339,1493,1517,"West Region"]
[null,"OR","Harney","OR-Harney",1024,1202,1267,1413,1436,"West Region"]
[null,"OR","Hood River","OR-Hood River",1651,1939,2043,2278,2315,"West Region"]
[null,"OR","Jackson","OR-Jackson",1454,1708,1800,2007,2039,"West Region"]
[null,"OR","Jefferson","OR-Jefferson",1215,1427,1504,1677,1704,"West Region"]
[null,"OR","Josephine","OR-Josephine",1342,1576,1661,1852,1882,"West Region"]
[null,"OR","Klamath","OR-Klamath",1223,1437,1514,1688,1715,"West Region"]
[null,"OR","Lake","OR-Lake",1107,1300,1370,1528,1552,"West Region"]
[null,"OR","Lane","OR-Lane",1449,1702,1793,1999,2031,"West Region"]
[null,"OR","Lincoln","OR-Lincoln",1370,1609,1695,1890,1920,"West Region"]
[null,"OR","Linn","OR-Linn",1357,1594,1680,1873,1903,"West Region"]
[null,"OR","Malheur","OR-Malheur",1179,1385,1459,1627,1653,"West Region"]
[null,"OR","Marion","OR-Marion",1446,1698,1789,1995,2027,"West Region"]
[null,"OR","Morrow","OR-Morrow",1108,1301,1371,1529,1553,"West Region"]
[null,"OR","Multnomah","OR-Multnomah",1702,1999,2106,2348,2386,"West Region"]
[null,"OR","Polk","OR-Polk",1478,1736,1829,2039,2072,"West Region"]
[null,"OR","Sherman","OR-Sherman",1096,1287,1356,1512,1536,"West Region"]
[null,"OR","Tillamook","OR-Tillamook",1306,1534,1616,1802,1831,"West Region"]
[null,"OR","Umatilla","OR-Umatilla",1247,1464,1543,1720,1748,"West Region"]
[null,"OR","Union","OR-Union",1179,1385,1459,1627,1653,"West Region"]
[null,"OR","Wallowa","OR-Wallowa",1219,1432,1509,1683,1710,"West Region"]
[null,"OR","Wasco","OR-Wasco",1321,1552,1635,1823,1852,"West Region"]
[null,"OR","Washington","OR-Washington",1757,2064,2175,2425,2464,"West Region"]
[null,"OR","Wheeler","OR-Wheeler",1167,1370,1444,1610,1636,"West Region"]
[null,"OR","Yamhill","OR-Yamhill",1524,1790,1886,2103,2137,"West Region"]
[null,"UT","Beaver","UT-Beaver",1164,1367,1440,1606,1632,"West Region"]
[null,"UT","Box Elder","UT-Box Elder",1268,1489,1569,1749,1778,"West Region"]
[null,"UT","Cache","UT-Cache",1303,1531,1613,1798,1828,"West Region"]
[null,"UT","Carbon","UT-Carbon",1075,1262,1330,1483,1507,"West Region"]
[null,"UT","Daggett","UT-Daggett",1206,1416,1492,1664,1690,"West Region"]
[null,"UT","Davis","UT-Davis",1491,1751,1845,2057,2090,"West Region"]
[null,"UT","Duchesne","UT-Duchesne",1244,1461,1539,1716,1744,"West Region"]
[null,"UT","Emery","UT-Emery",1077,1265,1333,1486,1510,"West Region"]
[null,"UT","Garfield","UT-Garfield",1085,1275,1343,1497,1522,"West Region"]
[null,"UT","Grand","UT-Grand",1210,1422,1498,1670,1697,"West Region"]
[null,"UT","Iron","UT-Iron",1244,1461,1539,1716,1744,"West Region"]
[null,"UT","Juab","UT-Juab",1188,1395,1470,1639,1666,"West Region"]
[null,"UT","Kane","UT-Kane",1175,1380,1454,1621,1647,"West Region"]
[null,"UT","Millard","UT-Millard",1105,1297,1367,1524,1549,"West Region"]
[null,"UT","Morgan","UT-Morgan",1715,2015,2123,2367,2405,"West Region"]
[null,"UT","Piute","UT-Piute",922,1083,1141,1272,1293,"West Region"]
[null,"UT","Rich","UT-Rich",1222,1435,1512,1686,1713,"West Region"]
[null,"UT","Salt Lake","UT-Salt Lake",1509,1772,1867,2082,2115,"West Region"]
[null,"UT","San Juan","UT-San Juan",1079,1268,1336,1490,1514,"West Region"]
[null,"UT","Sanpete","UT-Sanpete",1225,1439,1516,1690,1718,"West Region"]
[null,"UT","Sevier","UT-Sevier",1105,1298,1368,1525,1550,"West Region"]
[null,"UT","Summit","UT-Summit",2058,2417,2547,2840,2886,"West Region"]
[null,"UT","Tooele","UT-Tooele",1340,1574,1659,1850,1880,"West Region"]
[null,"UT","Uintah","UT-Uintah",1357,1594,1680,1873,1903,"West Region"]
[null,"UT","Utah","UT-Utah",1484,1743,1837,2048,2081,"West Region"]
[null,"UT","Wasatch","UT-Wasatch",1677,1970,2076,2315,2352,"West Region"]
[null,"UT","Washington","UT-Washington",1382,1624,1711,1908,1939,"West Region"]
[null,"UT","Wayne","UT-Wayne",1140,1339,1411,1573,1599,"West Region"]
[null,"UT","Weber","UT-Weber",1311,1539,1622,1809,1838,"West Region"]
[null,"WA","Adams","WA-Adams",1228,1442,1520,1695,1722,"West Region"]
[null,"WA","Asotin","WA-Asotin",1268,1489,1569,1749,1778,"West Region"]
[null,"WA","Benton","WA-Benton",1372,1611,1698,1893,1924,"West Region"]
[null,"WA","Chelan","WA-Chelan",1370,1610,1696,1891,1922,"West Region"]
[null,"WA","Clallam","WA-Clallam",1403,1647,1736,1936,1967,"West Region"]
[null,"WA","Clark","WA-Clark",1614,1896,1998,2228,2264,"West Region"]
[null,"WA","Columbia","WA-Columbia",1225,1439,1516,1690,1718,"West Region"]
[null,"WA","Cowlitz","WA-Cowlitz",1384,1626,1713,1910,1941,"West Region"]
[null,"WA","Douglas","WA-Douglas",1410,1656,1745,1946,1977,"West Region"]
[null,"WA","Ferry","WA-Ferry",1211,1423,1499,1671,1698,"West Region"]
[null,"WA","Franklin","WA-Franklin",1312,1541,1624,1811,1840,"West Region"]
[null,"WA","Garfield","WA-Garfield",1062,1247,1314,1465,1489,"West Region"]
[null,"WA","Grant","WA-Grant",1215,1427,1504,1677,1704,"West Region"]
[null,"WA","Grays Harbor","WA-Grays Harbor",1255,1474,1553,1732,1760,"West Region"]
[null,"WA","Jefferson","WA-Jefferson",1441,1692,1783,1988,2020,"West Region"]
[null,"WA","Kittitas","WA-Kittitas",1485,1744,1838,2049,2082,"West Region"]
[null,"WA","Klickitat","WA-Klickitat",1412,1658,1747,1948,1979,"West Region"]
[null,"WA","Lewis","WA-Lewis",1315,1544,1627,1814,1843,"West Region"]
[null,"WA","Lincoln","WA-Lincoln",1210,1422,1498,1670,1697,"West Region"]
[null,"WA","Mason","WA-Mason",1387,1628,1716,1913,1944,"West Region"]
[null,"WA","Okanogan","WA-Okanogan",1179,1385,1459,1627,1653,"West Region"]
[null,"WA","Pacific","WA-Pacific",1162,1365,1438,1603,1629,"West Region"]
[null,"WA","Pend Oreille","WA-Pend Oreille",1130,1327,1398,1559,1584,"West Region"]
[null,"WA","San Juan","WA-San Juan",1758,2065,2176,2426,2465,"West Region"]
[null,"WA","Skagit","WA-Skagit",1608,1889,1990,2219,2255,"West Region"]
[null,"WA","Skamania","WA-Skamania",1501,1763,1858,2072,2105,"West Region"]
[null,"WA","Spokane","WA-Spokane",1369,1608,1694,1889,1919,"West Region"]
[null,"WA","Stevens","WA-Stevens",1252,1471,1550,1728,1756,"West Region"]
[null,"WA","Wahkiakum","WA-Wahkiakum",1345,1579,1664,1855,1885,"West Region"]
[null,"WA","Walla Walla","WA-Walla Walla",1400,1645,1733,1932,1963,"West Region"]
[null,"WA","Whatcom","WA-Whatcom",1600,1879,1980,2208,2243,"West Region"]
[null,"WA","Whitman","WA-Whitman",1363,1601,1687,1881,1911,"West Region"]
[null,"WA","Yakima","WA-Yakima",1290,1516,1597,1781,1809,"West Region"]
[null,"WY","Albany","WY-Albany",1430,1680,1770,1974,2005,"West Region"]
[null,"WY","Big Horn","WY-Big Horn",1132,1330,1401,1562,1587,"West Region"]
[null,"WY","Campbell","WY-Campbell",1497,1758,1853,2066,2099,"West Region"]
[null,"WY","Carbon","WY-Carbon",1216,1428,1505,1678,1705,"West Region"]
[null,"WY","Converse","WY-Converse",1368,1607,1693,1888,1918,"West Region"]
[null,"WY","Crook","WY-Crook",1369,1608,1694,1889,1919,"West Region"]
[null,"WY","Fremont","WY-Fremont",1307,1535,1617,1803,1832,"West Region"]
[null,"WY","Goshen","WY-Goshen",1147,1347,1419,1582,1608,"West Region"]
[null,"WY","Hot Springs","WY-Hot Springs",1180,1386,1461,1629,1655,"West Region"]
[null,"WY","Johnson","WY-Johnson",1325,1556,1640,1829,1858,"West Region"]
[null,"WY","Laramie","WY-Laramie",1413,1660,1749,1950,1982,"West Region"]
[null,"WY","Lincoln","WY-Lincoln",1375,1615,1702,1898,1928,"West Region"]
[null,"WY","Natrona","WY-Natrona",1318,1548,1631,1819,1848,"West Region"]
[null,"WY","Niobrara","WY-Niobrara",1147,1348,1420,1583,1609,"West Region"]
[null,"WY","Park","WY-Park",1303,1531,1613,1798,1828,"West Region"]
[null,"WY","Platte","WY-Platte",1089,1279,1348,1503,1527,"West Region"]
[null,"WY","Sheridan","WY-Sheridan",1418,1665,1755,1957,1988,"West Region"]
[null,"WY","Sublette","WY-Sublette",1675,1967,2073,2311,2349,"West Region"]
[null,"WY","Sweetwater","WY-Sweetwater",1456,1710,1802,2009,2042,"West Region"]
[null,"WY","Teton","WY-Teton",1983,2329,2454,2736,2780,"West Region"]
[null,"WY","Uinta","WY-Uinta",1297,1523,1605,1790,1818,"West Region"]
[null,"WY","Washakie","WY-Washakie",1239,1455,1533,1709,1737,"West Region"]
[null,"WY","Weston","WY-Weston",1340,1573,1658,1849,1879,"West Region"]

{"sheet":"Counties","index":3,"n_rows":255,"n_cols":52,"rows_kept":255,"cut":false,"hidden":true,"merged":[]}
["AK","AL","AR","AZ","CA","CO","CT","DC","DE","FL","GA","HI","IA","ID","IL","IN","KS","KY","LA","MA","MD","ME","MI","MN","MO","MS","MT","NC","ND","NE","NH","NJ","NM","NV","NY","OH","OK","OR","PA","PR","RI","SC","SD","TN","TX","UT","VA","VT","WA","WI","WV","WY"]
["Aleutians East","Autauga","Arkansas","Apache","Alameda","Adams","Fairfield","District of Columbia","Kent","Alachua","Appling","Hawaii","Adair","Ada","Adams","Adams","Allen","Adair","Acadia","Barnstable","Allegany","Androscoggin","Alcona","Aitkin","Adair","Adams","Beaverhead","Alamance","Adams","Adams","Belknap","Atlantic","Bernalillo","Carson City","Albany","Adams","Adair","Baker","Adams","Adjuntas","Bristol","Abbeville","Aurora","Anderson","Anderson","Beaver","Accomack","Addison","Adams","Adams","Barbour","Albany"]
["Aleutians West","Baldwin","Ashley","Cochise","Alpine","Alamosa","Hartford",null,"New Castle","Baker","Atkinson","Honolulu","Adams","Adams","Alexander","Allen","Anderson","Allen","Allen","Berkshire","Anne Arundel","Aroostook","Alger","Anoka","Andrew","Alcorn","Big Horn","Alexander","Barnes","Antelope","Carroll","Bergen","Catron","Churchill","Allegany","Allen","Alfalfa","Benton","Allegheny","Aguada","Kent","Aiken","Beadle","Bedford","Andrews","Box Elder","Albemarle","Bennington","Asotin","Ashland","Berkeley","Big Horn"]
["Anchorage","Barbour","Baxter","Coconino","Amador","Arapahoe","Litchfield",null,"Sussex","Bay","Bacon","Kalawao","Allamakee","Bannock","Bond","Bartholomew","Atchison","Anderson","Ascension","Bristol","Baltimore","Cumberland","Allegan","Becker","Atchison","Amite","Blaine","Alleghany","Benson","Arthur","Cheshire","Burlington","Chaves","Clark","Bronx","Ashland","Atoka","Clackamas","Armstrong","Aguadilla","Newport","Allendale","Bennett","Benton","Angelina","Cache","Alexandria city","Caledonia","Benton","Barron","Boone","Campbell"]
["Bethel","Bibb","Benton","Gila","Butte","Archuleta","Middlesex",null,null,"Bradford","Baker","Kauai","Appanoose","Bear Lake","Boone","Benton","Barber","Ballard","Assumption","Dukes","Baltimore city","Franklin","Alpena","Beltrami","Audrain","Attala","Broadwater","Anson","Billings","Banner","Coos","Camden","Cibola","Douglas","Broome","Ashtabula","Beaver","Clatsop","Beaver","Aguas Buenas","Providence","Anderson","Bon Homme","Bledsoe","Aransas","Carbon","Alleghany","Chittenden","Chelan","Bayfield","Braxton","Carbon"]
["Bristol Bay","Blount","Boone","Graham","Calaveras","Baca","New Haven",null,null,"Brevard","Baldwin","Maui","Audubon","Benewah","Brown","Blackford","Barton","Barren","Avoyelles","Essex","Calvert","Hancock","Antrim","Benton","Barry","Benton","Carbon","Ashe","Bottineau","Blaine","Grafton","Cape May","Colfax","Elko","Cattaraugus","Athens","Beckham","Columbia","Bedford","Aibonito","Washington","Bamberg","Brookings","Blount","Archer","Daggett","Amelia","Essex","Clallam","Brown","Brooke","Converse"]
["Denali","Bullock","Bradley","Greenlee","Colusa","Bent","New London",null,null,"Broward","Banks",null,"Benton","Bingham","Bureau","Boone","Bourbon","Bath","Beauregard","Franklin","Caroline","Kennebec","Arenac","Big Stone","Barton","Bolivar","Carter","Avery","Bowman","Boone","Hillsborough","Cumberland","Curry","Esmeralda","Cayuga","Auglaize","Blaine","Coos","Berks","Anasco",null,"Barnwell","Brown","Bradley","Armstrong","Davis","Amherst","Franklin","Clark","Buffalo","Cabell","Crook"]
["Dillingham","Butler","Calhoun","La Paz","Contra Costa","Boulder","Tolland",null,null,"Calhoun","Barrow",null,"Black Hawk","Blaine","Calhoun","Brown","Brown","Bell","Bienville","Hampden","Carroll","Knox","Baraga","Blue Earth","Bates","Calhoun","Cascade","Beaufort","Burke","Box Butte","Merrimack","Essex","DeBaca","Eureka","Chautauqua","Belmont","Bryan","Crook","Blair","Arecibo",null,"Beaufort","Brule","Campbell","Atascosa","Duchesne","Appomattox","Grand Isle","Columbia","Burnett","Calhoun","Fremont"]
["Fairbanks North Star","Calhoun","Carroll","Maricopa","Del Norte","Broomfield","Windham",null,null,"Charlotte","Bartow",null,"Boone","Boise","Carroll","Carroll","Butler","Boone","Bossier","Hampshire","Cecil","Lincoln","Barry","Brown","Benton","Carroll","Chouteau","Bertie","Burleigh","Boyd","Rockingham","Gloucester","Dona Ana","Humboldt","Chemung","Brown","Caddo","Curry","Bradford","Arroyo",null,"Berkeley","Buffalo","Cannon","Austin","Emery","Arlington","Lamoille","Cowlitz","Calumet","Clay","Goshen"]
["Haines","Chambers","Chicot","Mohave","El Dorado","Chaffee",null,null,null,"Citrus","Ben Hill",null,"Bremer","Bonner","Cass","Cass","Chase","Bourbon","Caddo","Middlesex","Charles","Oxford","Bay","Carlton","Bollinger","Chickasaw","Custer","Bladen","Cass","Brown","Strafford","Hudson","Eddy","Lander","Chenango","Butler","Canadian","Deschutes","Bucks","Barceloneta",null,"Calhoun","Butte","Carroll","Bailey","Garfield","Augusta","Orange","Douglas","Chippewa","Doddridge","Hot Springs"]
["Hoonah Angoon","Cherokee","Clark","Navajo","Fresno","Cheyenne",null,null,null,"Clay","Berrien",null,"Buchanan","Bonneville","Champaign","Clark","Chautauqua","Boyd","Calcasieu","Nantucket","Dorchester","Penobscot","Benzie","Carver","Boone","Choctaw","Daniels","Brunswick","Cavalier","Buffalo","Sullivan","Hunterdon","Grant","Lincoln","Clinton","Carroll","Carter","Douglas","Butler","Barranquitas",null,"Charleston","Campbell","Carter","Bandera","Grand","Bath","Orleans","Ferry","Clark","Fayette","Johnson"]
["Juneau","Chilton","Clay","Pima","Glenn","Clear Creek",null,null,null,"Collier","Bibb",null,"Buena Vista","Boundary","Christian","Clay","Cherokee","Boyle","Caldwell","Norfolk","Frederick","Piscataquis","Berrien","Cass","Buchanan","Claiborne","Dawson","Buncombe","Dickey","Burt",null,"Mercer","Guadalupe","Lyon","Columbia","Champaign","Cherokee","Gilliam","Cambria","Bayamon",null,"Cherokee","Charles Mix","Cheatham","Bastrop","Iron","Bedford","Rutland","Franklin","Columbia","Gilmer","Laramie"]
["Kenai Peninsula","Choctaw","Cleburne","Pinal","Humboldt","Conejos",null,null,null,"Columbia","Bleckley",null,"Butler","Butte","Clark","Clinton","Cheyenne","Bracken","Cameron","Plymouth","Garrett","Sagadahoc","Branch","Chippewa","Butler","Clarke","Deer Lodge","Burke","Divide","Butler",null,"Middlesex","Harding","Mineral","Cortland","Clark","Choctaw","Grant","Cameron","Cabo Rojo",null,"Chester","Clark","Chester","Baylor","Juab","Bedford city","Washington","Garfield","Crawford","Grant","Lincoln"]
["Ketchikan Gateway","Clarke","Cleveland","Santa Cruz","Imperial","Costilla",null,null,null,"DeSoto","Brantley",null,"Calhoun","Camas","Clay","Crawford","Clark","Breathitt","Catahoula","Suffolk","Harford","Somerset","Calhoun","Chisago","Caldwell","Clay","Fallon","Cabarrus","Dunn","Cass",null,"Monmouth","Hidalgo","Nye","Delaware","Clermont","Cimarron","Harney","Carbon","Caguas",null,"Chesterfield","Clay","Claiborne","Bee","Kane","Bland","Windham","Grant","Dane","Greenbrier","Natrona"]
["Kodiak Island","Clay","Columbia","Yavapai","Inyo","Crowley",null,null,null,"Dixie","Brooks",null,"Carroll","Canyon","Clinton","Daviess","Clay","Breckinridge","Claiborne","Worcester","Howard","Waldo","Cass","Clay","Callaway","Coahoma","Fergus","Caldwell","Eddy","Cedar",null,"Morris","Lea","Pershing","Dutchess","Clinton","Cleveland","Hood River","Centre","Camuy",null,"Clarendon","Codington","Clay","Bell","Millard","Botetourt","Windsor","Grays Harbor","Dodge","Hampshire","Niobrara"]
["Kusilvak","Cleburne","Conway","Yuma","Kern","Custer",null,null,null,"Duval","Bryan",null,"Cass","Caribou","Coles","Dearborn","Cloud","Bullitt","Concordia",null,"Kent","Washington","Charlevoix","Clearwater","Camden","Copiah","Flathead","Camden","Emmons","Chase",null,"Ocean","Lincoln","Storey","Erie","Columbiana","Coal","Jackson","Chester","Canovanas",null,"Colleton","Corson","Cocke","Bexar","Morgan","Bristol city",null,"Island","Door","Hancock","Park"]
["Lake and Peninsula","Coffee","Craighead",null,"Kings","Delta",null,null,null,"Escambia","Bulloch",null,"Cedar","Cassia","Cook","Decatur","Coffey","Butler","DeSoto",null,"Montgomery","York","Cheboygan","Cook","Cape Girardeau","Covington","Gallatin","Carteret","Foster","Cherry",null,"Passaic","Los Alamos","Washoe","Essex","Coshocton","Comanche","Jefferson","Clarion","Carolina",null,"Darlington","Custer","Coffee","Blanco","Piute","Brunswick",null,"Jefferson","Douglas","Hardy","Platte"]
["Matanuska Susitna","Colbert","Crawford",null,"Lake","Denver",null,null,null,"Flagler","Burke",null,"Cerro Gordo","Clark","Crawford","DeKalb","Comanche","Caldwell","East Baton Rouge",null,"Prince Georges",null,"Chippewa","Cottonwood","Carroll","DeSoto","Garfield","Caswell","Golden Valley","Cheyenne",null,"Salem","Luna","White Pine","Franklin","Crawford","Cotton","Josephine","Clearfield","Catano",null,"Dillon","Davison","Crockett","Borden","Rich","Buchanan",null,"King","Dunn","Harrison","Sheridan"]
["Nome","Conecuh","Crittenden",null,"Lassen","Dolores",null,null,null,"Franklin","Butts",null,"Cherokee","Clearwater","Cumberland","Delaware","Cowley","Calloway","East Carroll",null,"Queen Annes",null,"Clare","Crow Wing","Carter","Forrest","Glacier","Catawba","Grand Forks","Clay",null,"Somerset","McKinley",null,"Fulton","Cuyahoga","Craig","Klamath","Clinton","Cayey",null,"Dorchester","Day","Cumberland","Bosque","Salt Lake","Buckingham",null,"Kitsap","Eau Claire","Jackson","Sublette"]
["North Slope","Coosa","Cross",null,"Los Angeles","Douglas",null,null,null,"Gadsden","Calhoun",null,"Chickasaw","Custer","DeKalb","Dubois","Crawford","Campbell","East Feliciana",null,"Saint Marys",null,"Clinton","Dakota","Cass","Franklin","Golden Valley","Chatham","Grant","Colfax",null,"Sussex","Mora",null,"Genesee","Darke","Creek","Lake","Columbia","Ceiba",null,"Edgefield","Deuel","Davidson","Bowie","San Juan","Buena Vista city",null,"Kittitas","Florence","Jefferson","Sweetwater"]
["Northwest Arctic","Covington","Dallas",null,"Madera","Eagle",null,null,null,"Gilchrist","Camden",null,"Clarke","Elmore","DeWitt","Elkhart","Decatur","Carlisle","Evangeline",null,"Somerset",null,"Crawford","Dodge","Cedar","George","Granite","Cherokee","Griggs","Cuming",null,"Union","Otero",null,"Greene","Defiance","Custer","Lane","Crawford","Ciales",null,"Fairfield","Dewey","Decatur","Brazoria","Sanpete","Campbell",null,"Klickitat","Fond du Lac","Kanawha","Teton"]
["Petersburg","Crenshaw","Desha",null,"Marin","El Paso",null,null,null,"Glades","Candler",null,"Clay","Franklin","Douglas","Fayette","Dickinson","Carroll","Franklin",null,"Talbot",null,"Delta","Douglas","Chariton","Greene","Hill","Chowan","Hettinger","Custer",null,"Warren","Quay",null,"Hamilton","Delaware","Delaware","Lincoln","Cumberland","Cidra",null,"Florence","Douglas","DeKalb","Brazos","Sevier","Caroline",null,"Lewis","Forest","Lewis","Uinta"]
["Prince of Wales Hyder","Cullman","Drew",null,"Mariposa","Elbert",null,null,null,"Gulf","Carroll",null,"Clayton","Fremont","DuPage","Floyd","Doniphan","Carter","Grant",null,"Washington",null,"Dickinson","Faribault","Christian","Grenada","Jefferson","Clay","Kidder","Dakota",null,null,"Rio Arriba",null,"Herkimer","Erie","Dewey","Linn","Dauphin","Coamo",null,"Georgetown","Edmunds","Dickson","Brewster","Summit","Carroll",null,"Lincoln","Grant","Lincoln","Washakie"]
["Sitka","Dale","Faulkner",null,"Mendocino","Fremont",null,null,null,"Hamilton","Catoosa",null,"Clinton","Gem","Edgar","Fountain","Douglas","Casey","Iberia",null,"Wicomico",null,"Eaton","Fillmore","Clark","Hancock","Judith Basin","Cleveland","LaMoure","Dawes",null,null,"Roosevelt",null,"Jefferson","Fairfield","Ellis","Malheur","Delaware","Comerio",null,"Greenville","Fall River","Dyer","Briscoe","Tooele","Charles City",null,"Mason","Green","Logan","Weston"]
["Skagway","Dallas","Franklin",null,"Merced","Garfield",null,null,null,"Hardee","Charlton",null,"Crawford","Gooding","Edwards","Franklin","Edwards","Christian","Iberville",null,"Worcester",null,"Emmet","Freeborn","Clay","Harrison","Lake","Columbus","Logan","Dawson",null,null,"San Juan",null,"Kings","Fayette","Garfield","Marion","Elk","Corozal",null,"Greenwood","Faulk","Fayette","Brooks","Uintah","Charlotte",null,"Okanogan","Green Lake","Marion"]
["Southeast Fairbanks","DeKalb","Fulton",null,"Modoc","Gilpin",null,null,null,"Hendry","Chatham",null,"Dallas","Idaho","Effingham","Fulton","Elk","Clark","Jackson",null,null,null,"Genesee","Goodhue","Clinton","Hinds","Lewis and Clark","Craven","McHenry","Deuel",null,null,"San Miguel",null,"Lewis","Franklin","Garvin","Morrow","Erie","Culebra",null,"Hampton","Grant","Fentress","Brown","Utah","Charlottesville city",null,"Pacific","Iowa","Marshall"]
["Valdez Cordova","Elmore","Garland",null,"Mono","Grand",null,null,null,"Hernando","Chattahoochee",null,"Davis","Jefferson","Fayette","Gibson","Ellis","Clay","Jefferson",null,null,null,"Gladwin","Grant","Cole","Holmes","Liberty","Cumberland","McIntosh","Dixon",null,null,"Sandoval",null,"Livingston","Fulton","Grady","Multnomah","Fayette","Dorado",null,"Horry","Gregory","Franklin","Burleson","Wasatch","Chesapeake city",null,"Pend Oreille","Iron","Mason"]
["Wrangell","Escambia","Grant",null,"Monterey","Gunnison",null,null,null,"Highlands","Chattooga",null,"Decatur","Jerome","Ford","Grant","Ellsworth","Clinton","Jefferson Davis",null,null,null,"Gogebic","Hennepin","Cooper","Humphreys","Lincoln","Currituck","McKenzie","Dodge",null,null,"Santa Fe",null,"Madison","Gallia","Grant","Polk","Forest","Fajardo",null,"Jasper","Haakon","Gibson","Burnet","Washington","Chesterfield",null,"Pierce","Jackson","McDowell"]
["Yakutat","Etowah","Greene",null,"Napa","Hinsdale",null,null,null,"Hillsborough","Cherokee",null,"Delaware","Kootenai","Franklin","Greene","Finney","Crittenden","La Salle",null,null,null,"Grand Traverse","Houston","Crawford","Issaquena","Madison","Dare","McLean","Douglas",null,null,"Sierra",null,"Monroe","Geauga","Greer","Sherman","Franklin","Florida",null,"Kershaw","Hamlin","Giles","Caldwell","Wayne","Clarke",null,"San Juan","Jefferson","Mercer"]
["Yukon Koyukuk","Fayette","Hempstead",null,"Nevada","Huerfano",null,null,null,"Holmes","Clarke",null,"Des Moines","Latah","Fulton","Hamilton","Ford","Cumberland","Lafayette",null,null,null,"Gratiot","Hubbard","Dade","Itawamba","McCone","Davidson","Mercer","Dundy",null,null,"Socorro",null,"Montgomery","Greene","Harmon","Tillamook","Fulton","Guanica",null,"Lancaster","Hand","Grainger","Calhoun","Weber","Colonial Heights city",null,"Skagit","Juneau","Mineral"]
[null,"Franklin","Hot Spring",null,"Orange","Jackson",null,null,null,"Indian River","Clay",null,"Dickinson","Lemhi","Gallatin","Hancock","Franklin","Daviess","Lafourche",null,null,null,"Hillsdale","Isanti","Dallas","Jackson","Meagher","Davie","Morton","Fillmore",null,null,"Taos",null,"Nassau","Guernsey","Harper","Umatilla","Greene","Guayama",null,"Laurens","Hanson","Greene","Callahan",null,"Covington city",null,"Skamania","Kenosha","Mingo"]
[null,"Geneva","Howard",null,"Placer","Jefferson",null,null,null,"Jackson","Clayton",null,"Dubuque","Lewis","Greene","Harrison","Geary","Edmonson","Lincoln",null,null,null,"Houghton","Itasca","Daviess","Jasper","Mineral","Duplin","Mountrail","Franklin",null,null,"Torrance",null,"New York","Hamilton","Haskell","Union","Huntingdon","Guayanilla",null,"Lee","Harding","Grundy","Cameron",null,"Craig",null,"Snohomish","Kewaunee","Monongalia"]
[null,"Greene","Independence",null,"Plumas","Kiowa",null,null,null,"Jefferson","Clinch",null,"Emmet","Lincoln","Grundy","Hendricks","Gove","Elliott","Livingston",null,null,null,"Huron","Jackson","DeKalb","Jefferson","Missoula","Durham","Nelson","Frontier",null,null,"Union",null,"Niagara","Hancock","Hughes","Wallowa","Indiana","Guaynabo",null,"Lexington","Hughes","Hamblen","Camp",null,"Culpeper",null,"Spokane","La Crosse","Monroe"]
[null,"Hale","Izard",null,"Riverside","Kit Carson",null,null,null,"Lafayette","Cobb",null,"Fayette","Madison","Hamilton","Henry","Graham","Estill","Madison",null,null,null,"Ingham","Kanabec","Dent","Jefferson Davis","Musselshell","Edgecombe","Oliver","Furnas",null,null,"Valencia",null,"Oneida","Hardin","Jackson","Wasco","Jefferson","Gurabo",null,"Marion","Hutchinson","Hamilton","Carson",null,"Cumberland",null,"Stevens","Lafayette","Morgan"]
[null,"Henry","Jackson",null,"Sacramento","La Plata",null,null,null,"Lake","Coffee",null,"Floyd","Minidoka","Hancock","Howard","Grant","Fayette","Morehouse",null,null,null,"Ionia","Kandiyohi","Douglas","Jones","Park","Forsyth","Pembina","Gage",null,null,null,null,"Onondaga","Harrison","Jefferson","Washington","Juniata","Hatillo",null,"Marlboro","Hyde","Hancock","Cass",null,"Danville city",null,"Thurston","Langlade","Nicholas"]
[null,"Houston","Jefferson",null,"San Benito","Lake",null,null,null,"Lee","Colquitt",null,"Franklin","Nez Perce","Hardin","Huntington","Gray","Fleming","Natchitoches",null,null,null,"Iosco","Kittson","Dunklin","Kemper","Petroleum","Franklin","Pierce","Garden",null,null,null,null,"Ontario","Henry","Johnston","Wheeler","Lackawanna","Hormigueros",null,"McCormick","Jackson","Hardeman","Castro",null,"Dickenson",null,"Wahkiakum","Lincoln","Ohio"]
[null,"Jackson","Johnson",null,"San Bernardino","Larimer",null,null,null,"Leon","Columbia",null,"Fremont","Oneida","Henderson","Jackson","Greeley","Floyd","Orleans",null,null,null,"Iron","Koochiching","Franklin","Lafayette","Phillips","Gaston","Ramsey","Garfield",null,null,null,null,"Orange","Highland","Kay","Yamhill","Lancaster","Humacao",null,"Newberry","Jerauld","Hardin","Chambers",null,"Dinwiddie",null,"Walla Walla","Manitowoc","Pendleton"]
[null,"Jefferson","Lafayette",null,"San Diego","Las Animas",null,null,null,"Levy","Cook",null,"Greene","Owyhee","Henry","Jasper","Greenwood","Franklin","Ouachita",null,null,null,"Isabella","Lac qui Parle","Gasconade","Lamar","Pondera","Gates","Ransom","Gosper",null,null,null,null,"Orleans","Hocking","Kingfisher",null,"Lawrence","Isabela",null,"Oconee","Jones","Hawkins","Cherokee",null,"Emporia city",null,"Whatcom","Marathon","Pleasants"]
[null,"Lamar","Lawrence",null,"San Francisco","Lincoln",null,null,null,"Liberty","Coweta",null,"Grundy","Payette","Iroquois","Jay","Hamilton","Fulton","Plaquemines",null,null,null,"Jackson","Lake","Gentry","Lauderdale","Powder River","Graham","Renville","Grant",null,null,null,null,"Oswego","Holmes","Kiowa",null,"Lebanon","Jayuya",null,"Orangeburg","Kingsbury","Haywood","Childress",null,"Essex",null,"Whitman","Marinette","Pocahontas"]
[null,"Lauderdale","Lee",null,"San Joaquin","Logan",null,null,null,"Madison","Crawford",null,"Guthrie","Power","Jackson","Jefferson","Harper","Gallatin","Pointe Coupee",null,null,null,"Kalamazoo","Lake of the Woods","Greene","Lawrence","Powell","Granville","Richland","Greeley",null,null,null,null,"Otsego","Huron","Latimer",null,"Lehigh","Juana Diaz",null,"Pickens","Lake","Henderson","Clay",null,"Fairfax",null,"Yakima","Marquette","Preston"]
[null,"Lawrence","Lincoln",null,"San Luis Obispo","Mesa",null,null,null,"Manatee","Crisp",null,"Hamilton","Shoshone","Jasper","Jennings","Harvey","Garrard","Rapides",null,null,null,"Kalkaska","Le Sueur","Grundy","Leake","Prairie","Greene","Rolette","Hall",null,null,null,null,"Putnam","Jackson","Le Flore",null,"Luzerne","Juncos",null,"Richland","Lawrence","Henry","Cochran",null,"Fairfax city",null,null,"Menominee","Putnam"]
[null,"Lee","Little River",null,"San Mateo","Mineral",null,null,null,"Marion","Dade",null,"Hancock","Teton","Jefferson","Johnson","Haskell","Grant","Red River",null,null,null,"Kent","Lincoln","Harrison","Lee","Ravalli","Guilford","Sargent","Hamilton",null,null,null,null,"Queens","Jefferson","Lincoln",null,"Lycoming","Lajas",null,"Saluda","Lincoln","Hickman","Coke",null,"Falls Church city",null,null,"Milwaukee","Raleigh"]
[null,"Limestone","Logan",null,"Santa Barbara","Moffat",null,null,null,"Martin","Dawson",null,"Hardin","Twin Falls","Jersey","Knox","Hodgeman","Graves","Richland",null,null,null,"Keweenaw","Lyon","Henry","Leflore","Richland","Halifax","Sheridan","Harlan",null,null,null,null,"Rensselaer","Knox","Logan",null,"McKean","Lares",null,"Spartanburg","Lyman","Houston","Coleman",null,"Fauquier",null,null,"Monroe","Randolph"]
[null,"Lowndes","Lonoke",null,"Santa Clara","Montezuma",null,null,null,"Miami-Dade","Decatur",null,"Harrison","Valley","Jo Daviess","Kosciusko","Jackson","Grayson","Sabine",null,null,null,"Lake","Mahnomen","Hickory","Lincoln","Roosevelt","Harnett","Sioux","Hayes",null,null,null,null,"Richmond","Lake","Love",null,"Mercer","Las Marias",null,"Sumter","Marshall","Humphreys","Collin",null,"Floyd",null,null,"Oconto","Ritchie"]
[null,"Macon","Madison",null,"Santa Cruz","Montrose",null,null,null,"Monroe","DeKalb",null,"Henry","Washington","Johnson","LaGrange","Jefferson","Green","Saint Bernard",null,null,null,"Lapeer","Marshall","Holt","Lowndes","Rosebud","Haywood","Slope","Hitchcock",null,null,null,null,"Rockland","Lawrence","Major",null,"Mifflin","Las Piedras",null,"Union","McCook","Jackson","Collingsworth",null,"Fluvanna",null,null,"Oneida","Roane"]
[null,"Madison","Marion",null,"Shasta","Morgan",null,null,null,"Nassau","Dodge",null,"Howard",null,"Kane","Lake","Jewell","Greenup","Saint Charles",null,null,null,"Leelanau","Martin","Howard","Madison","Sanders","Henderson","Stark","Holt",null,null,null,null,"Saint Lawrence","Licking","Marshall",null,"Monroe","Loiza",null,"Williamsburg","McPherson","Jefferson","Colorado",null,"Franklin",null,null,"Outagamie","Summers"]
[null,"Marengo","Miller",null,"Sierra","Otero",null,null,null,"Okaloosa","Dooly",null,"Humboldt",null,"Kankakee","LaPorte","Johnson","Hancock","Saint Helena",null,null,null,"Lenawee","McLeod","Howell","Marion","Sheridan","Hertford","Steele","Hooker",null,null,null,null,"Saratoga","Logan","Mayes",null,"Montgomery","Luquillo",null,"York","Meade","Johnson","Comal",null,"Franklin city",null,null,"Ozaukee","Taylor"]
[null,"Marion","Mississippi",null,"Siskiyou","Ouray",null,null,null,"Okeechobee","Dougherty",null,"Ida",null,"Kendall","Lawrence","Kearny","Hardin","Saint James",null,null,null,"Livingston","Meeker","Iron","Marshall","Silver Bow","Hoke","Stutsman","Howard",null,null,null,null,"Schenectady","Lorain","McClain",null,"Montour","Manati",null,null,"Mellette","Knox","Comanche",null,"Frederick",null,null,"Pepin","Tucker"]
[null,"Marshall","Monroe",null,"Solano","Park",null,null,null,"Orange","Douglas",null,"Iowa",null,"Knox","Madison","Kingman","Harlan","Saint John the Baptist",null,null,null,"Luce","Mille Lacs","Jackson","Monroe","Stillwater","Hyde","Towner","Jefferson",null,null,null,null,"Schoharie","Lucas","McCurtain",null,"Northampton","Maricao",null,null,"Miner","Lake","Concho",null,"Fredericksburg city",null,null,"Pierce","Tyler"]
[null,"Mobile","Montgomery",null,"Sonoma","Phillips",null,null,null,"Osceola","Early",null,"Jackson",null,"La Salle","Marion","Kiowa","Harrison","Saint Landry",null,null,null,"Mackinac","Morrison","Jasper","Montgomery","Sweet Grass","Iredell","Traill","Johnson",null,null,null,null,"Schuyler","Madison","McIntosh",null,"Northumberland","Maunabo",null,null,"Minnehaha","Lauderdale","Cooke",null,"Galax city",null,null,"Polk","Upshur"]
[null,"Monroe","Nevada",null,"Stanislaus","Pitkin",null,null,null,"Palm Beach","Echols",null,"Jasper",null,"Lake","Marshall","Labette","Hart","Saint Martin",null,null,null,"Macomb","Mower","Jefferson","Neshoba","Teton","Jackson","Walsh","Kearney",null,null,null,null,"Seneca","Mahoning","Murray",null,"Perry","Mayaguez",null,null,"Moody","Lawrence","Coryell",null,"Giles",null,null,"Portage","Wayne"]
[null,"Montgomery","Newton",null,"Sutter","Prowers",null,null,null,"Pasco","Effingham",null,"Jefferson",null,"Lawrence","Martin","Lane","Henderson","Saint Mary",null,null,null,"Manistee","Murray","Johnson","Newton","Toole","Johnston","Ward","Keith",null,null,null,null,"Steuben","Marion","Muskogee",null,"Philadelphia","Moca",null,null,"Oglala Dakota","Lewis","Cottle",null,"Gloucester",null,null,"Price","Webster"]
[null,"Morgan","Ouachita",null,"Tehama","Pueblo",null,null,null,"Pinellas","Elbert",null,"Johnson",null,"Lee","Miami","Leavenworth","Henry","Saint Tammany",null,null,null,"Marquette","Nicollet","Knox","Noxubee","Treasure","Jones","Wells","Keya Paha",null,null,null,null,"Suffolk","Medina","Noble",null,"Pike","Morovis",null,null,"Pennington","Lincoln","Crane",null,"Goochland",null,null,"Racine","Wetzel"]
[null,"Perry","Perry",null,"Trinity","Rio Blanco",null,null,null,"Polk","Emanuel",null,"Jones",null,"Livingston","Monroe","Lincoln","Hickman","Tangipahoa",null,null,null,"Mason","Nobles","Laclede","Oktibbeha","Valley","Lee","Williams","Kimball",null,null,null,null,"Sullivan","Meigs","Nowata",null,"Potter","Naguabo",null,null,"Perkins","Loudon","Crockett",null,"Grayson",null,null,"Richland","Wirt"]
[null,"Pickens","Phillips",null,"Tulare","Rio Grande",null,null,null,"Putnam","Evans",null,"Keokuk",null,"Logan","Montgomery","Linn","Hopkins","Tensas",null,null,null,"Mecosta","Norman","Lafayette","Panola","Wheatland","Lenoir",null,"Knox",null,null,null,null,"Tioga","Mercer","Okfuskee",null,"Schuylkill","Naranjito",null,null,"Potter","Macon","Crosby",null,"Greene",null,null,"Rock","Wood"]
[null,"Pike","Pike",null,"Tuolumne","Routt",null,null,null,"Saint Johns","Fannin",null,"Kossuth",null,"Macon","Morgan","Logan","Jackson","Terrebonne",null,null,null,"Menominee","Olmsted","Lawrence","Pearl River","Wibaux","Lincoln",null,"Lancaster",null,null,null,null,"Tompkins","Miami","Oklahoma",null,"Snyder","Orocovis",null,null,"Roberts","Madison","Culberson",null,"Greensville",null,null,"Rusk","Wyoming"]
[null,"Randolph","Poinsett",null,"Ventura","Saguache",null,null,null,"Saint Lucie","Fayette",null,"Lee",null,"Macoupin","Newton","Lyon","Jefferson","Union",null,null,null,"Midland","Otter Tail","Lewis","Perry","Yellowstone","Macon",null,"Lincoln",null,null,null,null,"Ulster","Monroe","Okmulgee",null,"Somerset","Patillas",null,null,"Sanborn","Marion","Dallam",null,"Halifax",null,null,"Saint Croix"]
[null,"Russell","Polk",null,"Yolo","San Juan",null,null,null,"Santa Rosa","Floyd",null,"Linn",null,"Madison","Noble","Marion","Jessamine","Vermilion",null,null,null,"Missaukee","Pennington","Lincoln","Pike",null,"Madison",null,"Logan",null,null,null,null,"Warren","Montgomery","Osage",null,"Sullivan","Penuelas",null,null,"Spink","Marshall","Dallas",null,"Hampton city",null,null,"Sauk"]
[null,"Saint Clair","Pope",null,"Yuba","San Miguel",null,null,null,"Sarasota","Forsyth",null,"Louisa",null,"Marion","Ohio","Marshall","Johnson","Vernon",null,null,null,"Monroe","Pine","Linn","Pontotoc",null,"Martin",null,"Loup",null,null,null,null,"Washington","Morgan","Ottawa",null,"Susquehanna","Ponce",null,null,"Stanley","Maury","Dawson",null,"Hanover",null,null,"Sawyer"]
[null,"Shelby","Prairie",null,null,"Sedgwick",null,null,null,"Seminole","Franklin",null,"Lucas",null,"Marshall","Orange","McPherson","Kenton","Washington",null,null,null,"Montcalm","Pipestone","Livingston","Prentiss",null,"McDowell",null,"Madison",null,null,null,null,"Wayne","Morrow","Pawnee",null,"Tioga","Quebradillas",null,null,"Sully","McMinn","De Witt",null,"Harrisonburg city",null,null,"Shawano"]
[null,"Sumter","Pulaski",null,null,"Summit",null,null,null,"Sumter","Fulton",null,"Lyon",null,"Mason","Owen","Meade","Knott","Webster",null,null,null,"Montmorency","Polk","Macon","Quitman",null,"Mecklenburg",null,"McPherson",null,null,null,null,"Westchester","Muskingum","Payne",null,"Union","Rincon",null,null,"Todd","McNairy","Deaf Smith",null,"Henrico",null,null,"Sheboygan"]
[null,"Talladega","Randolph",null,null,"Teller",null,null,null,"Suwannee","Gilmer",null,"Madison",null,"Massac","Parke","Miami","Knox","West Baton Rouge",null,null,null,"Muskegon","Pope","Madison","Rankin",null,"Mitchell",null,"Merrick",null,null,null,null,"Wyoming","Noble","Pittsburg",null,"Venango","Rio Grande",null,null,"Tripp","Meigs","Delta",null,"Henry",null,null,"Taylor"]
[null,"Tallapoosa","Saint Francis",null,null,"Washington",null,null,null,"Taylor","Glascock",null,"Mahaska",null,"McDonough","Perry","Mitchell","Larue","West Carroll",null,null,null,"Newaygo","Ramsey","Maries","Scott",null,"Montgomery",null,"Morrill",null,null,null,null,"Yates","Ottawa","Pontotoc",null,"Warren","Sabana Grande",null,null,"Turner","Monroe","Denton",null,"Highland",null,null,"Trempealeau"]
[null,"Tuscaloosa","Saline",null,null,"Weld",null,null,null,"Union","Glynn",null,"Marion",null,"McHenry","Pike","Montgomery","Laurel","West Feliciana",null,null,null,"Oakland","Red Lake","Marion","Sharkey",null,"Moore",null,"Nance",null,null,null,null,null,"Paulding","Pottawatomie",null,"Washington","Salinas",null,null,"Union","Montgomery","Dickens",null,"Hopewell city",null,null,"Vernon"]
[null,"Walker","Scott",null,null,"Yuma",null,null,null,"Volusia","Gordon",null,"Marshall",null,"McLean","Porter","Morris","Lawrence","Winn",null,null,null,"Oceana","Redwood","McDonald","Simpson",null,"Nash",null,"Nemaha",null,null,null,null,null,"Perry","Pushmataha",null,"Wayne","San German",null,null,"Walworth","Moore","Dimmit",null,"Isle of Wight",null,null,"Vilas"]
[null,"Washington","Searcy",null,null,null,null,null,null,"Wakulla","Grady",null,"Mills",null,"Menard","Posey","Morton","Lee",null,null,null,null,"Ogemaw","Renville","Mercer","Smith",null,"New Hanover",null,"Nuckolls",null,null,null,null,null,"Pickaway","Roger Mills",null,"Westmoreland","San Juan",null,null,"Yankton","Morgan","Donley",null,"James City",null,null,"Walworth"]
[null,"Wilcox","Sebastian",null,null,null,null,null,null,"Walton","Greene",null,"Mitchell",null,"Mercer","Pulaski","Nemaha","Leslie",null,null,null,null,"Ontonagon","Rice","Miller","Stone",null,"Northampton",null,"Otoe",null,null,null,null,null,"Pike","Rogers",null,"Wyoming","San Lorenzo",null,null,"Ziebach","Obion","Duval",null,"King and Queen",null,null,"Washburn"]
[null,"Winston","Sevier",null,null,null,null,null,null,"Washington","Gwinnett",null,"Monona",null,"Monroe","Putnam","Neosho","Letcher",null,null,null,null,"Osceola","Rock","Mississippi","Sunflower",null,"Onslow",null,"Pawnee",null,null,null,null,null,"Portage","Seminole",null,"York","San Sebastian",null,null,null,"Overton","Eastland",null,"King George",null,null,"Washington"]
[null,null,"Sharp",null,null,null,null,null,null,null,"Habersham",null,"Monroe",null,"Montgomery","Randolph","Ness","Lewis",null,null,null,null,"Oscoda","Roseau","Moniteau","Tallahatchie",null,"Orange",null,"Perkins",null,null,null,null,null,"Preble","Sequoyah",null,null,"Santa Isabel",null,null,null,"Perry","Ector",null,"King William",null,null,"Waukesha"]
[null,null,"Stone",null,null,null,null,null,null,null,"Hall",null,"Montgomery",null,"Morgan","Ripley","Norton","Lincoln",null,null,null,null,"Otsego","Saint Louis","Monroe","Tate",null,"Pamlico",null,"Phelps",null,null,null,null,null,"Putnam","Stephens",null,null,"Toa Alta",null,null,null,"Pickett","Edwards",null,"Lancaster",null,null,"Waupaca"]
[null,null,"Union",null,null,null,null,null,null,null,"Hancock",null,"Muscatine",null,"Moultrie","Rush","Osage","Livingston",null,null,null,null,"Ottawa","Scott","Montgomery","Tippah",null,"Pasquotank",null,"Pierce",null,null,null,null,null,"Richland","Texas",null,null,"Toa Baja",null,null,null,"Polk","El Paso",null,"Lee",null,null,"Waushara"]
[null,null,"Van Buren",null,null,null,null,null,null,null,"Haralson",null,"OBrien",null,"Ogle","Saint Joseph","Osborne","Logan",null,null,null,null,"Presque Isle","Sherburne","Morgan","Tishomingo",null,"Pender",null,"Platte",null,null,null,null,null,"Ross","Tillman",null,null,"Trujillo Alto",null,null,null,"Putnam","Ellis",null,"Lexington city",null,null,"Winnebago"]
[null,null,"Washington",null,null,null,null,null,null,null,"Harris",null,"Osceola",null,"Peoria","Scott","Ottawa","Lyon",null,null,null,null,"Roscommon","Sibley","New Madrid","Tunica",null,"Perquimans",null,"Polk",null,null,null,null,null,"Sandusky","Tulsa",null,null,"Utuado",null,null,null,"Rhea","Erath",null,"Loudoun",null,null,"Wood"]
[null,null,"White",null,null,null,null,null,null,null,"Hart",null,"Page",null,"Perry","Shelby","Pawnee","Madison",null,null,null,null,"Saginaw","Stearns","Newton","Union",null,"Person",null,"Red Willow",null,null,null,null,null,"Scioto","Wagoner",null,null,"Vega Alta",null,null,null,"Roane","Falls",null,"Louisa"]
[null,null,"Woodruff",null,null,null,null,null,null,null,"Heard",null,"Palo Alto",null,"Piatt","Spencer","Phillips","Magoffin",null,null,null,null,"Saint Clair","Steele","Nodaway","Walthall",null,"Pitt",null,"Richardson",null,null,null,null,null,"Seneca","Washington",null,null,"Vega Baja",null,null,null,"Robertson","Fannin",null,"Lunenburg"]
[null,null,"Yell",null,null,null,null,null,null,null,"Henry",null,"Plymouth",null,"Pike","Starke","Pottawatomie","Marion",null,null,null,null,"Saint Joseph","Stevens","Oregon","Warren",null,"Polk",null,"Rock",null,null,null,null,null,"Shelby","Washita",null,null,"Vieques",null,null,null,"Rutherford","Fayette",null,"Lynchburg city"]
[null,null,null,null,null,null,null,null,null,null,"Houston",null,"Pocahontas",null,"Pope","Steuben","Pratt","Marshall",null,null,null,null,"Sanilac","Swift","Osage","Washington",null,"Randolph",null,"Saline",null,null,null,null,null,"Stark","Woods",null,null,"Villalba",null,null,null,"Scott","Fisher",null,"Madison"]
[null,null,null,null,null,null,null,null,null,null,"Irwin",null,"Polk",null,"Pulaski","Sullivan","Rawlins","Martin",null,null,null,null,"Schoolcraft","Todd","Ozark","Wayne",null,"Richmond",null,"Sarpy",null,null,null,null,null,"Summit","Woodward",null,null,"Yabucoa",null,null,null,"Sequatchie","Floyd",null,"Manassas city"]
[null,null,null,null,null,null,null,null,null,null,"Jackson",null,"Pottawattamie",null,"Putnam","Switzerland","Reno","Mason",null,null,null,null,"Shiawassee","Traverse","Pemiscot","Webster",null,"Robeson",null,"Saunders",null,null,null,null,null,"Trumbull",null,null,null,"Yauco",null,null,null,"Sevier","Foard",null,"Manassas Park city"]
[null,null,null,null,null,null,null,null,null,null,"Jasper",null,"Poweshiek",null,"Randolph","Tippecanoe","Republic","McCracken",null,null,null,null,"Tuscola","Wabasha","Perry","Wilkinson",null,"Rockingham",null,"Scotts Bluff",null,null,null,null,null,"Tuscarawas",null,null,null,null,null,null,null,"Shelby","Fort Bend",null,"Martinsville city"]
[null,null,null,null,null,null,null,null,null,null,"Jeff Davis",null,"Ringgold",null,"Richland","Tipton","Rice","McCreary",null,null,null,null,"Van Buren","Wadena","Pettis","Winston",null,"Rowan",null,"Seward",null,null,null,null,null,"Union",null,null,null,null,null,null,null,"Smith","Franklin",null,"Mathews"]
[null,null,null,null,null,null,null,null,null,null,"Jefferson",null,"Sac",null,"Rock Island","Union","Riley","McLean",null,null,null,null,"Washtenaw","Waseca","Phelps","Yalobusha",null,"Rutherford",null,"Sheridan",null,null,null,null,null,"Van Wert",null,null,null,null,null,null,null,"Stewart","Freestone",null,"Mecklenburg"]
[null,null,null,null,null,null,null,null,null,null,"Jenkins",null,"Scott",null,"Saint Clair","Vanderburgh","Rooks","Meade",null,null,null,null,"Wayne","Washington","Pike","Yazoo",null,"Sampson",null,"Sherman",null,null,null,null,null,"Vinton",null,null,null,null,null,null,null,"Sullivan","Frio",null,"Middlesex"]
[null,null,null,null,null,null,null,null,null,null,"Johnson",null,"Shelby",null,"Saline","Vermillion","Rush","Menifee",null,null,null,null,"Wexford","Watonwan","Platte",null,null,"Scotland",null,"Sioux",null,null,null,null,null,"Warren",null,null,null,null,null,null,null,"Sumner","Gaines",null,"Montgomery"]
[null,null,null,null,null,null,null,null,null,null,"Jones",null,"Sioux",null,"Sangamon","Vigo","Russell","Mercer",null,null,null,null,null,"Wilkin","Polk",null,null,"Stanly",null,"Stanton",null,null,null,null,null,"Washington",null,null,null,null,null,null,null,"Tipton","Galveston",null,"Nelson"]
[null,null,null,null,null,null,null,null,null,null,"Lamar",null,"Story",null,"Schuyler","Wabash","Saline","Metcalfe",null,null,null,null,null,"Winona","Pulaski",null,null,"Stokes",null,"Thayer",null,null,null,null,null,"Wayne",null,null,null,null,null,null,null,"Trousdale","Garza",null,"New Kent"]
[null,null,null,null,null,null,null,null,null,null,"Lanier",null,"Tama",null,"Scott","Warren","Scott","Monroe",null,null,null,null,null,"Wright","Putnam",null,null,"Surry",null,"Thomas",null,null,null,null,null,"Williams",null,null,null,null,null,null,null,"Unicoi","Gillespie",null,"Newport News city"]
[null,null,null,null,null,null,null,null,null,null,"Laurens",null,"Taylor",null,"Shelby","Warrick","Sedgwick","Montgomery",null,null,null,null,null,"Yellow Medicine","Ralls",null,null,"Swain",null,"Thurston",null,null,null,null,null,"Wood",null,null,null,null,null,null,null,"Union","Glasscock",null,"Norfolk city"]
[null,null,null,null,null,null,null,null,null,null,"Lee",null,"Union",null,"Stark","Washington","Seward","Morgan",null,null,null,null,null,null,"Randolph",null,null,"Transylvania",null,"Valley",null,null,null,null,null,"Wyandot",null,null,null,null,null,null,null,"Van Buren","Goliad",null,"Northampton"]
[null,null,null,null,null,null,null,null,null,null,"Liberty",null,"Van Buren",null,"Stephenson","Wayne","Shawnee","Muhlenberg",null,null,null,null,null,null,"Ray",null,null,"Tyrrell",null,"Washington",null,null,null,null,null,null,null,null,null,null,null,null,null,"Warren","Gonzales",null,"Northumberland"]
[null,null,null,null,null,null,null,null,null,null,"Lincoln",null,"Wapello",null,"Tazewell","Wells","Sheridan","Nelson",null,null,null,null,null,null,"Reynolds",null,null,"Union",null,"Wayne",null,null,null,null,null,null,null,null,null,null,null,null,null,"Washington","Gray",null,"Norton city"]
[null,null,null,null,null,null,null,null,null,null,"Long",null,"Warren",null,"Union","White","Sherman","Nicholas",null,null,null,null,null,null,"Ripley",null,null,"Vance",null,"Webster",null,null,null,null,null,null,null,null,null,null,null,null,null,"Wayne","Grayson",null,"Nottoway"]
[null,null,null,null,null,null,null,null,null,null,"Lowndes",null,"Washington",null,"Vermilion","Whitley","Smith","Ohio",null,null,null,null,null,null,"Saint Charles",null,null,"Wake",null,"Wheeler",null,null,null,null,null,null,null,null,null,null,null,null,null,"Weakley","Gregg",null,"Orange"]
[null,null,null,null,null,null,null,null,null,null,"Lumpkin",null,"Wayne",null,"Wabash",null,"Stafford","Oldham",null,null,null,null,null,null,"Saint Clair",null,null,"Warren",null,"York",null,null,null,null,null,null,null,null,null,null,null,null,null,"White","Grimes",null,"Page"]
[null,null,null,null,null,null,null,null,null,null,"Macon",null,"Webster",null,"Warren",null,"Stanton","Owen",null,null,null,null,null,null,"Saint Francois",null,null,"Washington",null,null,null,null,null,null,null,null,null,null,null,null,null,null,null,"Williamson","Guadalupe",null,"Patrick"]
[null,null,null,null,null,null,null,null,null,null,"Madison",null,"Winnebago",null,"Washington",null,"Stevens","Owsley",null,null,null,null,null,null,"Saint Louis",null,null,"Watauga",null,null,null,null,null,null,null,null,null,null,null,null,null,null,null,"Wilson","Hale",null,"Petersburg city"]
[null,null,null,null,null,null,null,null,null,null,"Marion",null,"Winneshiek",null,"Wayne",null,"Sumner","Pendleton",null,null,null,null,null,null,"Saint Louis city",null,null,"Wayne",null,null,null,null,null,null,null,null,null,null,null,null,null,null,null,null,"Hall",null,"Pittsylvania"]
[null,null,null,null,null,null,null,null,null,null,"McDuffie",null,"Woodbury",null,"White",null,"Thomas","Perry",null,null,null,null,null,null,"Sainte Genevieve",null,null,"Wilkes",null,null,null,null,null,null,null,null,null,null,null,null,null,null,null,null,"Hamilton",null,"Poquoson city"]
[null,null,null,null,null,null,null,null,null,null,"McIntosh",null,"Worth",null,"Whiteside",null,"Trego","Pike",null,null,null,null,null,null,"Saline",null,null,"Wilson",null,null,null,null,null,null,null,null,null,null,null,null,null,null,null,null,"Hansford",null,"Portsmouth city"]
[null,null,null,null,null,null,null,null,null,null,"Meriwether",null,"Wright",null,"Will",null,"Wabaunsee","Powell",null,null,null,null,null,null,"Schuyler",null,null,"Yadkin",null,null,null,null,null,null,null,null,null,null,null,null,null,null,null,null,"Hardeman",null,"Powhatan"]
[null,null,null,null,null,null,null,null,null,null,"Miller",null,null,null,"Williamson",null,"Wallace","Pulaski",null,null,null,null,null,null,"Scotland",null,null,"Yancey",null,null,null,null,null,null,null,null,null,null,null,null,null,null,null,null,"Hardin",null,"Prince Edward"]
[null,null,null,null,null,null,null,null,null,null,"Mitchell",null,null,null,"Winnebago",null,"Washington","Robertson",null,null,null,null,null,null,"Scott",null,null,null,null,null,null,null,null,null,null,null,null,null,null,null,null,null,null,null,"Harris",null,"Prince George"]
[null,null,null,null,null,null,null,null,null,null,"Monroe",null,null,null,"Woodford",null,"Wichita","Rockcastle",null,null,null,null,null,null,"Shannon",null,null,null,null,null,null,null,null,null,null,null,null,null,null,null,null,null,null,null,"Harrison",null,"Prince William"]
[null,null,null,null,null,null,null,null,null,null,"Montgomery",null,null,null,null,null,"Wilson","Rowan",null,null,null,null,null,null,"Shelby",null,null,null,null,null,null,null,null,null,null,null,null,null,null,null,null,null,null,null,"Hartley",null,"Pulaski"]
[null,null,null,null,null,null,null,null,null,null,"Morgan",null,null,null,null,null,"Woodson","Russell",null,null,null,null,null,null,"Stoddard",null,null,null,null,null,null,null,null,null,null,null,null,null,null,null,null,null,null,null,"Haskell",null,"Radford city"]
[null,null,null,null,null,null,null,null,null,null,"Murray",null,null,null,null,null,"Wyandotte","Scott",null,null,null,null,null,null,"Stone",null,null,null,null,null,null,null,null,null,null,null,null,null,null,null,null,null,null,null,"Hays",null,"Rappahannock"]
[null,null,null,null,null,null,null,null,null,null,"Muscogee",null,null,null,null,null,null,"Shelby",null,null,null,null,null,null,"Sullivan",null,null,null,null,null,null,null,null,null,null,null,null,null,null,null,null,null,null,null,"Hemphill",null,"Richmond"]
[null,null,null,null,null,null,null,null,null,null,"Newton",null,null,null,null,null,null,"Simpson",null,null,null,null,null,null,"Taney",null,null,null,null,null,null,null,null,null,null,null,null,null,null,null,null,null,null,null,"Henderson",null,"Richmond city"]
[null,null,null,null,null,null,null,null,null,null,"Oconee",null,null,null,null,null,null,"Spencer",null,null,null,null,null,null,"Texas",null,null,null,null,null,null,null,null,null,null,null,null,null,null,null,null,null,null,null,"Hidalgo",null,"Roanoke"]
[null,null,null,null,null,null,null,null,null,null,"Oglethorpe",null,null,null,null,null,null,"Taylor",null,null,null,null,null,null,"Vernon",null,null,null,null,null,null,null,null,null,null,null,null,null,null,null,null,null,null,null,"Hill",null,"Roanoke city"]
[null,null,null,null,null,null,null,null,null,null,"Paulding",null,null,null,null,null,null,"Todd",null,null,null,null,null,null,"Warren",null,null,null,null,null,null,null,null,null,null,null,null,null,null,null,null,null,null,null,"Hockley",null,"Rockbridge"]
[null,null,null,null,null,null,null,null,null,null,"Peach",null,null,null,null,null,null,"Trigg",null,null,null,null,null,null,"Washington",null,null,null,null,null,null,null,null,null,null,null,null,null,null,null,null,null,null,null,"Hood",null,"Rockingham"]
[null,null,null,null,null,null,null,null,null,null,"Pickens",null,null,null,null,null,null,"Trimble",null,null,null,null,null,null,"Wayne",null,null,null,null,null,null,null,null,null,null,null,null,null,null,null,null,null,null,null,"Hopkins",null,"Russell"]
[null,null,null,null,null,null,null,null,null,null,"Pierce",null,null,null,null,null,null,"Union",null,null,null,null,null,null,"Webster",null,null,null,null,null,null,null,null,null,null,null,null,null,null,null,null,null,null,null,"Houston",null,"Salem city"]
[null,null,null,null,null,null,null,null,null,null,"Pike",null,null,null,null,null,null,"Warren",null,null,null,null,null,null,"Worth",null,null,null,null,null,null,null,null,null,null,null,null,null,null,null,null,null,null,null,"Howard",null,"Scott"]
[null,null,null,null,null,null,null,null,null,null,"Polk",null,null,null,null,null,null,"Washington",null,null,null,null,null,null,"Wright",null,null,null,null,null,null,null,null,null,null,null,null,null,null,null,null,null,null,null,"Hudspeth",null,"Shenandoah"]
[null,null,null,null,null,null,null,null,null,null,"Pulaski",null,null,null,null,null,null,"Wayne",null,null,null,null,null,null,null,null,null,null,null,null,null,null,null,null,null,null,null,null,null,null,null,null,null,null,"Hunt",null,"Smyth"]
[null,null,null,null,null,null,null,null,null,null,"Putnam",null,null,null,null,null,null,"Webster",null,null,null,null,null,null,null,null,null,null,null,null,null,null,null,null,null,null,null,null,null,null,null,null,null,null,"Hutchinson",null,"Southampton"]
[null,null,null,null,null,null,null,null,null,null,"Quitman",null,null,null,null,null,null,"Whitley",null,null,null,null,null,null,null,null,null,null,null,null,null,null,null,null,null,null,null,null,null,null,null,null,null,null,"Irion",null,"Spotsylvania"]
[null,null,null,null,null,null,null,null,null,null,"Rabun",null,null,null,null,null,null,"Wolfe",null,null,null,null,null,null,null,null,null,null,null,null,null,null,null,null,null,null,null,null,null,null,null,null,null,null,"Jack",null,"Stafford"]
[null,null,null,null,null,null,null,null,null,null,"Randolph",null,null,null,null,null,null,"Woodford",null,null,null,null,null,null,null,null,null,null,null,null,null,null,null,null,null,null,null,null,null,null,null,null,null,null,"Jackson",null,"Staunton city"]
[null,null,null,null,null,null,null,null,null,null,"Richmond",null,null,null,null,null,null,null,null,null,null,null,null,null,null,null,null,null,null,null,null,null,null,null,null,null,null,null,null,null,null,null,null,null,"Jasper",null,"Suffolk city"]
[null,null,null,null,null,null,null,null,null,null,"Rockdale",null,null,null,null,null,null,null,null,null,null,null,null,null,null,null,null,null,null,null,null,null,null,null,null,null,null,null,null,null,null,null,null,null,"Jeff Davis",null,"Surry"]
[null,null,null,null,null,null,null,null,null,null,"Schley",null,null,null,null,null,null,null,null,null,null,null,null,null,null,null,null,null,null,null,null,null,null,null,null,null,null,null,null,null,null,null,null,null,"Jefferson",null,"Sussex"]
[null,null,null,null,null,null,null,null,null,null,"Screven",null,null,null,null,null,null,null,null,null,null,null,null,null,null,null,null,null,null,null,null,null,null,null,null,null,null,null,null,null,null,null,null,null,"Jim Hogg",null,"Tazewell"]
[null,null,null,null,null,null,null,null,null,null,"Seminole",null,null,null,null,null,null,null,null,null,null,null,null,null,null,null,null,null,null,null,null,null,null,null,null,null,null,null,null,null,null,null,null,null,"Jim Wells",null,"Virginia Beach city"]
[null,null,null,null,null,null,null,null,null,null,"Spalding",null,null,null,null,null,null,null,null,null,null,null,null,null,null,null,null,null,null,null,null,null,null,null,null,null,null,null,null,null,null,null,null,null,"Johnson",null,"Warren"]
[null,null,null,null,null,null,null,null,null,null,"Stephens",null,null,null,null,null,null,null,null,null,null,null,null,null,null,null,null,null,null,null,null,null,null,null,null,null,null,null,null,null,null,null,null,null,"Jones",null,"Washington"]
[null,null,null,null,null,null,null,null,null,null,"Stewart",null,null,null,null,null,null,null,null,null,null,null,null,null,null,null,null,null,null,null,null,null,null,null,null,null,null,null,null,null,null,null,null,null,"Karnes",null,"Waynesboro city"]
[null,null,null,null,null,null,null,null,null,null,"Sumter",null,null,null,null,null,null,null,null,null,null,null,null,null,null,null,null,null,null,null,null,null,null,null,null,null,null,null,null,null,null,null,null,null,"Kaufman",null,"Westmoreland"]
[null,null,null,null,null,null,null,null,null,null,"Talbot",null,null,null,null,null,null,null,null,null,null,null,null,null,null,null,null,null,null,null,null,null,null,null,null,null,null,null,null,null,null,null,null,null,"Kendall",null,"Williamsburg city"]
[null,null,null,null,null,null,null,null,null,null,"Taliaferro",null,null,null,null,null,null,null,null,null,null,null,null,null,null,null,null,null,null,null,null,null,null,null,null,null,null,null,null,null,null,null,null,null,"Kenedy",null,"Winchester city"]
[null,null,null,null,null,null,null,null,null,null,"Tattnall",null,null,null,null,null,null,null,null,null,null,null,null,null,null,null,null,null,null,null,null,null,null,null,null,null,null,null,null,null,null,null,null,null,"Kent",null,"Wise"]
[null,null,null,null,null,null,null,null,null,null,"Taylor",null,null,null,null,null,null,null,null,null,null,null,null,null,null,null,null,null,null,null,null,null,null,null,null,null,null,null,null,null,null,null,null,null,"Kerr",null,"Wythe"]
[null,null,null,null,null,null,null,null,null,null,"Telfair",null,null,null,null,null,null,null,null,null,null,null,null,null,null,null,null,null,null,null,null,null,null,null,null,null,null,null,null,null,null,null,null,null,"Kimble",null,"York"]
[null,null,null,null,null,null,null,null,null,null,"Terrell",null,null,null,null,null,null,null,null,null,null,null,null,null,null,null,null,null,null,null,null,null,null,null,null,null,null,null,null,null,null,null,null,null,"King"]
[null,null,null,null,null,null,null,null,null,null,"Thomas",null,null,null,null,null,null,null,null,null,null,null,null,null,null,null,null,null,null,null,null,null,null,null,null,null,null,null,null,null,null,null,null,null,"Kinney"]
[null,null,null,null,null,null,null,null,null,null,"Tift",null,null,null,null,null,null,null,null,null,null,null,null,null,null,null,null,null,null,null,null,null,null,null,null,null,null,null,null,null,null,null,null,null,"Kleberg"]
[null,null,null,null,null,null,null,null,null,null,"Toombs",null,null,null,null,null,null,null,null,null,null,null,null,null,null,null,null,null,null,null,null,null,null,null,null,null,null,null,null,null,null,null,null,null,"Knox"]
[null,null,null,null,null,null,null,null,null,null,"Towns",null,null,null,null,null,null,null,null,null,null,null,null,null,null,null,null,null,null,null,null,null,null,null,null,null,null,null,null,null,null,null,null,null,"La Salle"]
[null,null,null,null,null,null,null,null,null,null,"Treutlen",null,null,null,null,null,null,null,null,null,null,null,null,null,null,null,null,null,null,null,null,null,null,null,null,null,null,null,null,null,null,null,null,null,"Lamar"]
[null,null,null,null,null,null,null,null,null,null,"Troup",null,null,null,null,null,null,null,null,null,null,null,null,null,null,null,null,null,null,null,null,null,null,null,null,null,null,null,null,null,null,null,null,null,"Lamb"]
[null,null,null,null,null,null,null,null,null,null,"Turner",null,null,null,null,null,null,null,null,null,null,null,null,null,null,null,null,null,null,null,null,null,null,null,null,null,null,null,null,null,null,null,null,null,"Lampasas"]
[null,null,null,null,null,null,null,null,null,null,"Twiggs",null,null,null,null,null,null,null,null,null,null,null,null,null,null,null,null,null,null,null,null,null,null,null,null,null,null,null,null,null,null,null,null,null,"Lavaca"]
[null,null,null,null,null,null,null,null,null,null,"Union",null,null,null,null,null,null,null,null,null,null,null,null,null,null,null,null,null,null,null,null,null,null,null,null,null,null,null,null,null,null,null,null,null,"Lee"]
[null,null,null,null,null,null,null,null,null,null,"Upson",null,null,null,null,null,null,null,null,null,null,null,null,null,null,null,null,null,null,null,null,null,null,null,null,null,null,null,null,null,null,null,null,null,"Leon"]
[null,null,null,null,null,null,null,null,null,null,"Walker",null,null,null,null,null,null,null,null,null,null,null,null,null,null,null,null,null,null,null,null,null,null,null,null,null,null,null,null,null,null,null,null,null,"Liberty"]
[null,null,null,null,null,null,null,null,null,null,"Walton",null,null,null,null,null,null,null,null,null,null,null,null,null,null,null,null,null,null,null,null,null,null,null,null,null,null,null,null,null,null,null,null,null,"Limestone"]
[null,null,null,null,null,null,null,null,null,null,"Ware",null,null,null,null,null,null,null,null,null,null,null,null,null,null,null,null,null,null,null,null,null,null,null,null,null,null,null,null,null,null,null,null,null,"Lipscomb"]
[null,null,null,null,null,null,null,null,null,null,"Warren",null,null,null,null,null,null,null,null,null,null,null,null,null,null,null,null,null,null,null,null,null,null,null,null,null,null,null,null,null,null,null,null,null,"Live Oak"]
[null,null,null,null,null,null,null,null,null,null,"Washington",null,null,null,null,null,null,null,null,null,null,null,null,null,null,null,null,null,null,null,null,null,null,null,null,null,null,null,null,null,null,null,null,null,"Llano"]
[null,null,null,null,null,null,null,null,null,null,"Wayne",null,null,null,null,null,null,null,null,null,null,null,null,null,null,null,null,null,null,null,null,null,null,null,null,null,null,null,null,null,null,null,null,null,"Loving"]
[null,null,null,null,null,null,null,null,null,null,"Webster",null,null,null,null,null,null,null,null,null,null,null,null,null,null,null,null,null,null,null,null,null,null,null,null,null,null,null,null,null,null,null,null,null,"Lubbock"]
[null,null,null,null,null,null,null,null,null,null,"Wheeler",null,null,null,null,null,null,null,null,null,null,null,null,null,null,null,null,null,null,null,null,null,null,null,null,null,null,null,null,null,null,null,null,null,"Lynn"]
[null,null,null,null,null,null,null,null,null,null,"White",null,null,null,null,null,null,null,null,null,null,null,null,null,null,null,null,null,null,null,null,null,null,null,null,null,null,null,null,null,null,null,null,null,"Madison"]
[null,null,null,null,null,null,null,null,null,null,"Whitfield",null,null,null,null,null,null,null,null,null,null,null,null,null,null,null,null,null,null,null,null,null,null,null,null,null,null,null,null,null,null,null,null,null,"Marion"]
[null,null,null,null,null,null,null,null,null,null,"Wilcox",null,null,null,null,null,null,null,null,null,null,null,null,null,null,null,null,null,null,null,null,null,null,null,null,null,null,null,null,null,null,null,null,null,"Martin"]
[null,null,null,null,null,null,null,null,null,null,"Wilkes",null,null,null,null,null,null,null,null,null,null,null,null,null,null,null,null,null,null,null,null,null,null,null,null,null,null,null,null,null,null,null,null,null,"Mason"]
[null,null,null,null,null,null,null,null,null,null,"Wilkinson",null,null,null,null,null,null,null,null,null,null,null,null,null,null,null,null,null,null,null,null,null,null,null,null,null,null,null,null,null,null,null,null,null,"Matagorda"]
[null,null,null,null,null,null,null,null,null,null,"Worth",null,null,null,null,null,null,null,null,null,null,null,null,null,null,null,null,null,null,null,null,null,null,null,null,null,null,null,null,null,null,null,null,null,"Maverick"]
[null,null,null,null,null,null,null,null,null,null,null,null,null,null,null,null,null,null,null,null,null,null,null,null,null,null,null,null,null,null,null,null,null,null,null,null,null,null,null,null,null,null,null,null,"McCulloch"]
[null,null,null,null,null,null,null,null,null,null,null,null,null,null,null,null,null,null,null,null,null,null,null,null,null,null,null,null,null,null,null,null,null,null,null,null,null,null,null,null,null,null,null,null,"McLennan"]
[null,null,null,null,null,null,null,null,null,null,null,null,null,null,null,null,null,null,null,null,null,null,null,null,null,null,null,null,null,null,null,null,null,null,null,null,null,null,null,null,null,null,null,null,"McMullen"]
[null,null,null,null,null,null,null,null,null,null,null,null,null,null,null,null,null,null,null,null,null,null,null,null,null,null,null,null,null,null,null,null,null,null,null,null,null,null,null,null,null,null,null,null,"Medina"]
[null,null,null,null,null,null,null,null,null,null,null,null,null,null,null,null,null,null,null,null,null,null,null,null,null,null,null,null,null,null,null,null,null,null,null,null,null,null,null,null,null,null,null,null,"Menard"]
[null,null,null,null,null,null,null,null,null,null,null,null,null,null,null,null,null,null,null,null,null,null,null,null,null,null,null,null,null,null,null,null,null,null,null,null,null,null,null,null,null,null,null,null,"Midland"]
[null,null,null,null,null,null,null,null,null,null,null,null,null,null,null,null,null,null,null,null,null,null,null,null,null,null,null,null,null,null,null,null,null,null,null,null,null,null,null,null,null,null,null,null,"Milam"]
[null,null,null,null,null,null,null,null,null,null,null,null,null,null,null,null,null,null,null,null,null,null,null,null,null,null,null,null,null,null,null,null,null,null,null,null,null,null,null,null,null,null,null,null,"Mills"]
[null,null,null,null,null,null,null,null,null,null,null,null,null,null,null,null,null,null,null,null,null,null,null,null,null,null,null,null,null,null,null,null,null,null,null,null,null,null,null,null,null,null,null,null,"Mitchell"]
[null,null,null,null,null,null,null,null,null,null,null,null,null,null,null,null,null,null,null,null,null,null,null,null,null,null,null,null,null,null,null,null,null,null,null,null,null,null,null,null,null,null,null,null,"Montague"]
[null,null,null,null,null,null,null,null,null,null,null,null,null,null,null,null,null,null,null,null,null,null,null,null,null,null,null,null,null,null,null,null,null,null,null,null,null,null,null,null,null,null,null,null,"Montgomery"]
[null,null,null,null,null,null,null,null,null,null,null,null,null,null,null,null,null,null,null,null,null,null,null,null,null,null,null,null,null,null,null,null,null,null,null,null,null,null,null,null,null,null,null,null,"Moore"]
[null,null,null,null,null,null,null,null,null,null,null,null,null,null,null,null,null,null,null,null,null,null,null,null,null,null,null,null,null,null,null,null,null,null,null,null,null,null,null,null,null,null,null,null,"Morris"]
[null,null,null,null,null,null,null,null,null,null,null,null,null,null,null,null,null,null,null,null,null,null,null,null,null,null,null,null,null,null,null,null,null,null,null,null,null,null,null,null,null,null,null,null,"Motley"]
[null,null,null,null,null,null,null,null,null,null,null,null,null,null,null,null,null,null,null,null,null,null,null,null,null,null,null,null,null,null,null,null,null,null,null,null,null,null,null,null,null,null,null,null,"Nacogdoches"]
[null,null,null,null,null,null,null,null,null,null,null,null,null,null,null,null,null,null,null,null,null,null,null,null,null,null,null,null,null,null,null,null,null,null,null,null,null,null,null,null,null,null,null,null,"Navarro"]
[null,null,null,null,null,null,null,null,null,null,null,null,null,null,null,null,null,null,null,null,null,null,null,null,null,null,null,null,null,null,null,null,null,null,null,null,null,null,null,null,null,null,null,null,"Newton"]
[null,null,null,null,null,null,null,null,null,null,null,null,null,null,null,null,null,null,null,null,null,null,null,null,null,null,null,null,null,null,null,null,null,null,null,null,null,null,null,null,null,null,null,null,"Nolan"]
[null,null,null,null,null,null,null,null,null,null,null,null,null,null,null,null,null,null,null,null,null,null,null,null,null,null,null,null,null,null,null,null,null,null,null,null,null,null,null,null,null,null,null,null,"Nueces"]
[null,null,null,null,null,null,null,null,null,null,null,null,null,null,null,null,null,null,null,null,null,null,null,null,null,null,null,null,null,null,null,null,null,null,null,null,null,null,null,null,null,null,null,null,"Ochiltree"]
[null,null,null,null,null,null,null,null,null,null,null,null,null,null,null,null,null,null,null,null,null,null,null,null,null,null,null,null,null,null,null,null,null,null,null,null,null,null,null,null,null,null,null,null,"Oldham"]
[null,null,null,null,null,null,null,null,null,null,null,null,null,null,null,null,null,null,null,null,null,null,null,null,null,null,null,null,null,null,null,null,null,null,null,null,null,null,null,null,null,null,null,null,"Orange"]
[null,null,null,null,null,null,null,null,null,null,null,null,null,null,null,null,null,null,null,null,null,null,null,null,null,null,null,null,null,null,null,null,null,null,null,null,null,null,null,null,null,null,null,null,"Palo Pinto"]
[null,null,null,null,null,null,null,null,null,null,null,null,null,null,null,null,null,null,null,null,null,null,null,null,null,null,null,null,null,null,null,null,null,null,null,null,null,null,null,null,null,null,null,null,"Panola"]
[null,null,null,null,null,null,null,null,null,null,null,null,null,null,null,null,null,null,null,null,null,null,null,null,null,null,null,null,null,null,null,null,null,null,null,null,null,null,null,null,null,null,null,null,"Parker"]
[null,null,null,null,null,null,null,null,null,null,null,null,null,null,null,null,null,null,null,null,null,null,null,null,null,null,null,null,null,null,null,null,null,null,null,null,null,null,null,null,null,null,null,null,"Parmer"]
[null,null,null,null,null,null,null,null,null,null,null,null,null,null,null,null,null,null,null,null,null,null,null,null,null,null,null,null,null,null,null,null,null,null,null,null,null,null,null,null,null,null,null,null,"Pecos"]
[null,null,null,null,null,null,null,null,null,null,null,null,null,null,null,null,null,null,null,null,null,null,null,null,null,null,null,null,null,null,null,null,null,null,null,null,null,null,null,null,null,null,null,null,"Polk"]
[null,null,null,null,null,null,null,null,null,null,null,null,null,null,null,null,null,null,null,null,null,null,null,null,null,null,null,null,null,null,null,null,null,null,null,null,null,null,null,null,null,null,null,null,"Potter"]
[null,null,null,null,null,null,null,null,null,null,null,null,null,null,null,null,null,null,null,null,null,null,null,null,null,null,null,null,null,null,null,null,null,null,null,null,null,null,null,null,null,null,null,null,"Presidio"]
[null,null,null,null,null,null,null,null,null,null,null,null,null,null,null,null,null,null,null,null,null,null,null,null,null,null,null,null,null,null,null,null,null,null,null,null,null,null,null,null,null,null,null,null,"Rains"]
[null,null,null,null,null,null,null,null,null,null,null,null,null,null,null,null,null,null,null,null,null,null,null,null,null,null,null,null,null,null,null,null,null,null,null,null,null,null,null,null,null,null,null,null,"Randall"]
[null,null,null,null,null,null,null,null,null,null,null,null,null,null,null,null,null,null,null,null,null,null,null,null,null,null,null,null,null,null,null,null,null,null,null,null,null,null,null,null,null,null,null,null,"Reagan"]
[null,null,null,null,null,null,null,null,null,null,null,null,null,null,null,null,null,null,null,null,null,null,null,null,null,null,null,null,null,null,null,null,null,null,null,null,null,null,null,null,null,null,null,null,"Real"]
[null,null,null,null,null,null,null,null,null,null,null,null,null,null,null,null,null,null,null,null,null,null,null,null,null,null,null,null,null,null,null,null,null,null,null,null,null,null,null,null,null,null,null,null,"Red River"]
[null,null,null,null,null,null,null,null,null,null,null,null,null,null,null,null,null,null,null,null,null,null,null,null,null,null,null,null,null,null,null,null,null,null,null,null,null,null,null,null,null,null,null,null,"Reeves"]
[null,null,null,null,null,null,null,null,null,null,null,null,null,null,null,null,null,null,null,null,null,null,null,null,null,null,null,null,null,null,null,null,null,null,null,null,null,null,null,null,null,null,null,null,"Refugio"]
[null,null,null,null,null,null,null,null,null,null,null,null,null,null,null,null,null,null,null,null,null,null,null,null,null,null,null,null,null,null,null,null,null,null,null,null,null,null,null,null,null,null,null,null,"Roberts"]
[null,null,null,null,null,null,null,null,null,null,null,null,null,null,null,null,null,null,null,null,null,null,null,null,null,null,null,null,null,null,null,null,null,null,null,null,null,null,null,null,null,null,null,null,"Robertson"]
[null,null,null,null,null,null,null,null,null,null,null,null,null,null,null,null,null,null,null,null,null,null,null,null,null,null,null,null,null,null,null,null,null,null,null,null,null,null,null,null,null,null,null,null,"Rockwall"]
[null,null,null,null,null,null,null,null,null,null,null,null,null,null,null,null,null,null,null,null,null,null,null,null,null,null,null,null,null,null,null,null,null,null,null,null,null,null,null,null,null,null,null,null,"Runnels"]
[null,null,null,null,null,null,null,null,null,null,null,null,null,null,null,null,null,null,null,null,null,null,null,null,null,null,null,null,null,null,null,null,null,null,null,null,null,null,null,null,null,null,null,null,"Rusk"]
[null,null,null,null,null,null,null,null,null,null,null,null,null,null,null,null,null,null,null,null,null,null,null,null,null,null,null,null,null,null,null,null,null,null,null,null,null,null,null,null,null,null,null,null,"Sabine"]
[null,null,null,null,null,null,null,null,null,null,null,null,null,null,null,null,null,null,null,null,null,null,null,null,null,null,null,null,null,null,null,null,null,null,null,null,null,null,null,null,null,null,null,null,"San Augustine"]
[null,null,null,null,null,null,null,null,null,null,null,null,null,null,null,null,null,null,null,null,null,null,null,null,null,null,null,null,null,null,null,null,null,null,null,null,null,null,null,null,null,null,null,null,"San Jacinto"]
[null,null,null,null,null,null,null,null,null,null,null,null,null,null,null,null,null,null,null,null,null,null,null,null,null,null,null,null,null,null,null,null,null,null,null,null,null,null,null,null,null,null,null,null,"San Patricio"]
[null,null,null,null,null,null,null,null,null,null,null,null,null,null,null,null,null,null,null,null,null,null,null,null,null,null,null,null,null,null,null,null,null,null,null,null,null,null,null,null,null,null,null,null,"San Saba"]
[null,null,null,null,null,null,null,null,null,null,null,null,null,null,null,null,null,null,null,null,null,null,null,null,null,null,null,null,null,null,null,null,null,null,null,null,null,null,null,null,null,null,null,null,"Schleicher"]
[null,null,null,null,null,null,null,null,null,null,null,null,null,null,null,null,null,null,null,null,null,null,null,null,null,null,null,null,null,null,null,null,null,null,null,null,null,null,null,null,null,null,null,null,"Scurry"]
[null,null,null,null,null,null,null,null,null,null,null,null,null,null,null,null,null,null,null,null,null,null,null,null,null,null,null,null,null,null,null,null,null,null,null,null,null,null,null,null,null,null,null,null,"Shackelford"]
[null,null,null,null,null,null,null,null,null,null,null,null,null,null,null,null,null,null,null,null,null,null,null,null,null,null,null,null,null,null,null,null,null,null,null,null,null,null,null,null,null,null,null,null,"Shelby"]
[null,null,null,null,null,null,null,null,null,null,null,null,null,null,null,null,null,null,null,null,null,null,null,null,null,null,null,null,null,null,null,null,null,null,null,null,null,null,null,null,null,null,null,null,"Sherman"]
[null,null,null,null,null,null,null,null,null,null,null,null,null,null,null,null,null,null,null,null,null,null,null,null,null,null,null,null,null,null,null,null,null,null,null,null,null,null,null,null,null,null,null,null,"Smith"]
[null,null,null,null,null,null,null,null,null,null,null,null,null,null,null,null,null,null,null,null,null,null,null,null,null,null,null,null,null,null,null,null,null,null,null,null,null,null,null,null,null,null,null,null,"Somervell"]
[null,null,null,null,null,null,null,null,null,null,null,null,null,null,null,null,null,null,null,null,null,null,null,null,null,null,null,null,null,null,null,null,null,null,null,null,null,null,null,null,null,null,null,null,"Starr"]
[null,null,null,null,null,null,null,null,null,null,null,null,null,null,null,null,null,null,null,null,null,null,null,null,null,null,null,null,null,null,null,null,null,null,null,null,null,null,null,null,null,null,null,null,"Stephens"]
[null,null,null,null,null,null,null,null,null,null,null,null,null,null,null,null,null,null,null,null,null,null,null,null,null,null,null,null,null,null,null,null,null,null,null,null,null,null,null,null,null,null,null,null,"Sterling"]
[null,null,null,null,null,null,null,null,null,null,null,null,null,null,null,null,null,null,null,null,null,null,null,null,null,null,null,null,null,null,null,null,null,null,null,null,null,null,null,null,null,null,null,null,"Stonewall"]
[null,null,null,null,null,null,null,null,null,null,null,null,null,null,null,null,null,null,null,null,null,null,null,null,null,null,null,null,null,null,null,null,null,null,null,null,null,null,null,null,null,null,null,null,"Sutton"]
[null,null,null,null,null,null,null,null,null,null,null,null,null,null,null,null,null,null,null,null,null,null,null,null,null,null,null,null,null,null,null,null,null,null,null,null,null,null,null,null,null,null,null,null,"Swisher"]
[null,null,null,null,null,null,null,null,null,null,null,null,null,null,null,null,null,null,null,null,null,null,null,null,null,null,null,null,null,null,null,null,null,null,null,null,null,null,null,null,null,null,null,null,"Tarrant"]
[null,null,null,null,null,null,null,null,null,null,null,null,null,null,null,null,null,null,null,null,null,null,null,null,null,null,null,null,null,null,null,null,null,null,null,null,null,null,null,null,null,null,null,null,"Taylor"]
[null,null,null,null,null,null,null,null,null,null,null,null,null,null,null,null,null,null,null,null,null,null,null,null,null,null,null,null,null,null,null,null,null,null,null,null,null,null,null,null,null,null,null,null,"Terrell"]
[null,null,null,null,null,null,null,null,null,null,null,null,null,null,null,null,null,null,null,null,null,null,null,null,null,null,null,null,null,null,null,null,null,null,null,null,null,null,null,null,null,null,null,null,"Terry"]
[null,null,null,null,null,null,null,null,null,null,null,null,null,null,null,null,null,null,null,null,null,null,null,null,null,null,null,null,null,null,null,null,null,null,null,null,null,null,null,null,null,null,null,null,"Throckmorton"]
[null,null,null,null,null,null,null,null,null,null,null,null,null,null,null,null,null,null,null,null,null,null,null,null,null,null,null,null,null,null,null,null,null,null,null,null,null,null,null,null,null,null,null,null,"Titus"]
[null,null,null,null,null,null,null,null,null,null,null,null,null,null,null,null,null,null,null,null,null,null,null,null,null,null,null,null,null,null,null,null,null,null,null,null,null,null,null,null,null,null,null,null,"Tom Green"]
[null,null,null,null,null,null,null,null,null,null,null,null,null,null,null,null,null,null,null,null,null,null,null,null,null,null,null,null,null,null,null,null,null,null,null,null,null,null,null,null,null,null,null,null,"Travis"]
[null,null,null,null,null,null,null,null,null,null,null,null,null,null,null,null,null,null,null,null,null,null,null,null,null,null,null,null,null,null,null,null,null,null,null,null,null,null,null,null,null,null,null,null,"Trinity"]
[null,null,null,null,null,null,null,null,null,null,null,null,null,null,null,null,null,null,null,null,null,null,null,null,null,null,null,null,null,null,null,null,null,null,null,null,null,null,null,null,null,null,null,null,"Tyler"]
[null,null,null,null,null,null,null,null,null,null,null,null,null,null,null,null,null,null,null,null,null,null,null,null,null,null,null,null,null,null,null,null,null,null,null,null,null,null,null,null,null,null,null,null,"Upshur"]
[null,null,null,null,null,null,null,null,null,null,null,null,null,null,null,null,null,null,null,null,null,null,null,null,null,null,null,null,null,null,null,null,null,null,null,null,null,null,null,null,null,null,null,null,"Upton"]
[null,null,null,null,null,null,null,null,null,null,null,null,null,null,null,null,null,null,null,null,null,null,null,null,null,null,null,null,null,null,null,null,null,null,null,null,null,null,null,null,null,null,null,null,"Uvalde"]
[null,null,null,null,null,null,null,null,null,null,null,null,null,null,null,null,null,null,null,null,null,null,null,null,null,null,null,null,null,null,null,null,null,null,null,null,null,null,null,null,null,null,null,null,"Val Verde"]
[null,null,null,null,null,null,null,null,null,null,null,null,null,null,null,null,null,null,null,null,null,null,null,null,null,null,null,null,null,null,null,null,null,null,null,null,null,null,null,null,null,null,null,null,"Van Zandt"]
[null,null,null,null,null,null,null,null,null,null,null,null,null,null,null,null,null,null,null,null,null,null,null,null,null,null,null,null,null,null,null,null,null,null,null,null,null,null,null,null,null,null,null,null,"Victoria"]
[null,null,null,null,null,null,null,null,null,null,null,null,null,null,null,null,null,null,null,null,null,null,null,null,null,null,null,null,null,null,null,null,null,null,null,null,null,null,null,null,null,null,null,null,"Walker"]
[null,null,null,null,null,null,null,null,null,null,null,null,null,null,null,null,null,null,null,null,null,null,null,null,null,null,null,null,null,null,null,null,null,null,null,null,null,null,null,null,null,null,null,null,"Waller"]
[null,null,null,null,null,null,null,null,null,null,null,null,null,null,null,null,null,null,null,null,null,null,null,null,null,null,null,null,null,null,null,null,null,null,null,null,null,null,null,null,null,null,null,null,"Ward"]
[null,null,null,null,null,null,null,null,null,null,null,null,null,null,null,null,null,null,null,null,null,null,null,null,null,null,null,null,null,null,null,null,null,null,null,null,null,null,null,null,null,null,null,null,"Washington"]
[null,null,null,null,null,null,null,null,null,null,null,null,null,null,null,null,null,null,null,null,null,null,null,null,null,null,null,null,null,null,null,null,null,null,null,null,null,null,null,null,null,null,null,null,"Webb"]
[null,null,null,null,null,null,null,null,null,null,null,null,null,null,null,null,null,null,null,null,null,null,null,null,null,null,null,null,null,null,null,null,null,null,null,null,null,null,null,null,null,null,null,null,"Wharton"]
[null,null,null,null,null,null,null,null,null,null,null,null,null,null,null,null,null,null,null,null,null,null,null,null,null,null,null,null,null,null,null,null,null,null,null,null,null,null,null,null,null,null,null,null,"Wheeler"]
[null,null,null,null,null,null,null,null,null,null,null,null,null,null,null,null,null,null,null,null,null,null,null,null,null,null,null,null,null,null,null,null,null,null,null,null,null,null,null,null,null,null,null,null,"Wichita"]
[null,null,null,null,null,null,null,null,null,null,null,null,null,null,null,null,null,null,null,null,null,null,null,null,null,null,null,null,null,null,null,null,null,null,null,null,null,null,null,null,null,null,null,null,"Wilbarger"]
[null,null,null,null,null,null,null,null,null,null,null,null,null,null,null,null,null,null,null,null,null,null,null,null,null,null,null,null,null,null,null,null,null,null,null,null,null,null,null,null,null,null,null,null,"Willacy"]
[null,null,null,null,null,null,null,null,null,null,null,null,null,null,null,null,null,null,null,null,null,null,null,null,null,null,null,null,null,null,null,null,null,null,null,null,null,null,null,null,null,null,null,null,"Williamson"]
[null,null,null,null,null,null,null,null,null,null,null,null,null,null,null,null,null,null,null,null,null,null,null,null,null,null,null,null,null,null,null,null,null,null,null,null,null,null,null,null,null,null,null,null,"Wilson"]
[null,null,null,null,null,null,null,null,null,null,null,null,null,null,null,null,null,null,null,null,null,null,null,null,null,null,null,null,null,null,null,null,null,null,null,null,null,null,null,null,null,null,null,null,"Winkler"]
[null,null,null,null,null,null,null,null,null,null,null,null,null,null,null,null,null,null,null,null,null,null,null,null,null,null,null,null,null,null,null,null,null,null,null,null,null,null,null,null,null,null,null,null,"Wise"]
[null,null,null,null,null,null,null,null,null,null,null,null,null,null,null,null,null,null,null,null,null,null,null,null,null,null,null,null,null,null,null,null,null,null,null,null,null,null,null,null,null,null,null,null,"Wood"]
[null,null,null,null,null,null,null,null,null,null,null,null,null,null,null,null,null,null,null,null,null,null,null,null,null,null,null,null,null,null,null,null,null,null,null,null,null,null,null,null,null,null,null,null,"Yoakum"]
[null,null,null,null,null,null,null,null,null,null,null,null,null,null,null,null,null,null,null,null,null,null,null,null,null,null,null,null,null,null,null,null,null,null,null,null,null,null,null,null,null,null,null,null,"Young"]
[null,null,null,null,null,null,null,null,null,null,null,null,null,null,null,null,null,null,null,null,null,null,null,null,null,null,null,null,null,null,null,null,null,null,null,null,null,null,null,null,null,null,null,null,"Zapata"]
[null,null,null,null,null,null,null,null,null,null,null,null,null,null,null,null,null,null,null,null,null,null,null,null,null,null,null,null,null,null,null,null,null,null,null,null,null,null,null,null,null,null,null,null,"Zavala"]

{"sheet":"Sheet1","index":4,"n_rows":47,"n_cols":9,"rows_kept":47,"cut":false,"hidden":true,"merged":[]}
["Income",null,null,null,null,null,null,null,0]
[null,null,null,null,null,null,null,null,1]
["Deborah's Gross Monthly Income",1892.24,null,null,"State     ","AZ",null,null,2]
["Net Monthly Business Income",7898.25,null,null,"County     ","Graham County"]
["Total Gross Monthly Income",{"$f":"SUM(B3:B4)","v":9790.49},null,null,"Number in household     "]
[null,null,null,null,"Number in household > 65     "]
["Expenses",null,null,null,"Number of ELIGIBLE vehicles     ",0]
["National Standard for Food, Clothing, Misc",1234]
["Mortgage/Rent",999]
["Electric",101]
["Gas/Oil",74]
["Water/Sewer",75]
["Trash",0]
["Phone/Cell/Cable/Internet/Misc.",0,1549]
["Real Estate Taxes and Insurance",300]
["Add'l Taxes and insurance (not above)",0]
["Vehicle Ownership Cost",0]
["National Standard for Vehicle Operating Cost",488]
["Medical Insurance",735]
["Dental Insurance",0]
["Vision Insurance",0]
["Long Term Disability Insurance",0]
["Short Term Disability Insurance",0]
["Life Insurance",0]
["National Standard for Out of Pocket Medical",180]
["Delinquent State Tax Payments",0]
["Deborah's 401k Contributions (Voluntary)",75.569999999999993]
["Estimated Tax Payments",510]
["Federal and State Withholding",323.63]
["Medicare Witholding",27.43]
["Social Security Withholding",139.01]
["Total Monthly Expenses",5261.64]
[]
["Monthly Disposable Income",4528.8499999999995]
[]
[]
["Conditional Expenses"]
["Discover Card",1000]
["Visa",400]
["Lowes",100]
["JC Penny",150]
["Visa",300]
["Love, Beal, Nixon - Credit Card Settlement",250]
["Citi - Credit Card Settlement",239]
["Total Conditional Expenses",2439]
[]
["Monthly Disposable Income w/ Cond. Exp.",2089.8499999999995]